Workbook

Sheet FERC_IS1
A1: %,LACTUALS,SBAL | B1: %,ATF,FACCOUNT | C1: %,ATT,FDESCR,UDESCR | F1: %,LACTUALS,SPER | G1: %,LACTUALS,SPER-1YR | H1: %,C | I1: %,C | K1: %,LACTUALS,SYTD | L1: %,LACTUALS,SYTD-1YR | M1: %,C | N1: %,C | Q1: %,LACTUALS,SQTR | R1: %,LACTUALS,SQTR-1YR | S1: %,C | T1: %,C | V1: %,LACTUALS,SROLLING12 | W1: %,LACTUALS,SROLNG12-1Y | X1: %,C | Y1: %,C | AA1: %,LACTUALS,SPER12-2Y | AC1: %,LACTUALS,SPER1-1YR | AD1: %,LACTUALS,SPER2-1YR | AE1: %,LACTUALS,SPER3-1YR | AF1: %,LACTUALS,SPER4-1YR | AG1: %,LACTUALS,SPER5-1YR | AH1: %,LACTUALS,SPER6-1YR | AI1: %,LACTUALS,SPER7-1YR | AJ1: %,LACTUALS,SPER8-1YR | AK1: %,LACTUALS,SPER9-1YR | AL1: %,LACTUALS,SPER10-1YR | AM1: %,LACTUALS,SPER11-1YR | AN1: %,LACTUALS,SPER12-YR | AP1: %,LACTUALS,SPER1 | AQ1: %,LACTUALS,SPER2 | AR1: %,LACTUALS,SPER3 | AS1: %,LACTUALS,SPER4 | AT1: %,LACTUALS,SPER5 | AU1: %,LACTUALS,SPER6 | AV1: %,LACTUALS,SPER7 | AW1: %,LACTUALS,SPER8 | AX1: %,LACTUALS,SPER9 | AY1: %,LACTUALS,SPER10 | AZ1: %,LACTUALS,SPER11 | BA1: %,LACTUALS,SPER12
C2: =IF($C$711="Error",$C$716,IF($C$717="Error",$C$713&" - "&$C$712,IF($C$717 = $C$716, "BU"& $C$717&" -" & $C$711,$C$717&" - "&$C$716))) -> Kentucky Power Corp Consol | G2: =+C2 -> Kentucky Power Corp Consol | L2: =+G2 -> Kentucky Power Corp Consol | R2: =+L2 -> Kentucky Power Corp Consol | W2: =+R2 -> Kentucky Power Corp Consol | AA2: =+C2 -> Kentucky Power Corp Consol | AP2: =+C2 -> Kentucky Power Corp Consol
C3: =TEXT(+$C$701,"MMMM YYYY") -> October 2025 | G3: =+"As of: "& TEXT(+$C$701,"MMM YYYY") -> As of: Oct 2025 | L3: =+G3 -> As of: Oct 2025 | R3: =+L3 -> As of: Oct 2025 | W3: =+R3 -> As of: Oct 2025 | AA3: =+G3 -> As of: Oct 2025
B4: ="Run Date: "& TEXT(NvsEndTime,"MM/DD/YYYY hh:mm AM/PM;@") -> Run Date: 11/08/2025 10:20 AM | AP4: =+AA4 -> 0
B5: =IF(C714<>"Error",C714,"") -> GLR6283P | C5: ="Rpt ID: "& C709& " Layout: "&C710 -> Rpt ID: FERC_IS1 Layout: FERC_IS1 | F5: ONE MONTH ENDED | H5: Variance | K5: YEAR TO DATE | M5: Variance | Q5: THREE MONTHS ENDED | S5: Variance | V5: TWELVE MONTHS ENDED | X5: Variance
B6: =IF(C711="Error",""&C717,IF(C717= "Error","" & C713,"" &C717)) -> KYP_CORP_CONSOL | C6: =IF($C$711="Error",NvsTreeASD & " Acct: GL_FERC_ACCT BU: "&+$C$718,IF(C717="Error",NvsTreeASD & " Acct: GL_FERC_ACCT BU: "&+$C$713,NvsTreeASD & " Acct: GL_FERC_ACCT BU: "&+$C$717)) -> V2099-01-01 Acct: GL_FERC_ACCT BU: GL_PRPT_CONS | F6: =TEXT($C$701,"YYYY") -> 2025 | G6: =+F6-1 -> 2024 | H6: $ | I6: % | K6: =TEXT($C$701,"YYYY") -> 2025 | L6: =+K6-1 -> 2024 | M6: $ | N6: % | O6: Explanation | Q6: =TEXT($C$701,"YYYY") -> 2025 | R6: =+Q6-1 -> 2024 | S6: $ | T6: % | V6: =TEXT($C$701,"YYYY") -> 2025 | W6: =+V6-1 -> 2024 | X6: $ | Y6: % | AA6: ="Dec "&TEXT($C$701,"YYYY") - 2 -> Dec 2023 | AC6: ="Jan "&TEXT($C$701,"YYYY")-1 -> Jan 2024 | AD6: ="Feb "&TEXT($C$701,"YYYY") - 1 -> Feb 2024 | AE6: ="Mar "&TEXT($C$701,"YYYY") - 1 -> Mar 2024 | AF6: ="Apr "&TEXT($C$701,"YYYY") - 1 -> Apr 2024 | AG6: ="May "&TEXT($C$701,"YYYY") - 1 -> May 2024 | AH6: ="Jun "&TEXT($C$701,"YYYY") - 1 -> Jun 2024 | AI6: ="Jul "&TEXT($C$701,"YYYY") - 1 -> Jul 2024 | AJ6: ="Aug "&TEXT($C$701,"YYYY") - 1 -> Aug 2024 | AK6: ="Sep "&TEXT($C$701,"YYYY") - 1 -> Sep 2024 | AL6: ="Oct "&TEXT($C$701,"YYYY") - 1 -> Oct 2024 | AM6: ="Nov "&TEXT($C$701,"YYYY") - 1 -> Nov 2024 | AN6: ="Dec "&TEXT($C$701,"YYYY") - 1 -> Dec 2024 | AP6: ="Jan "&TEXT($C$701,"YYYY") -> Jan 2025 | AQ6: ="Feb "&TEXT($C$701,"YYYY") -> Feb 2025 | AR6: ="Mar "&TEXT($C$701,"YYYY") -> Mar 2025 | AS6: ="Apr "&TEXT($C$701,"YYYY") -> Apr 2025 | AT6: ="May "&TEXT($C$701,"YYYY") -> May 2025 | AU6: ="Jun "&TEXT($C$701,"YYYY") -> Jun 2025 | AV6: ="Jul "&TEXT($C$701,"YYYY") -> Jul 2025 | AW6: ="Aug "&TEXT($C$701,"YYYY") -> Aug 2025 | AX6: ="Sep "&TEXT($C$701,"YYYY") -> Sep 2025 | AY6: ="Oct "&TEXT($C$701,"YYYY") -> Oct 2025 | AZ6: ="Nov "&TEXT($C$701,"YYYY") -> Nov 2025 | BA6: ="Dec "&TEXT($C$701,"YYYY") -> Dec 2025
B7: FERC Form | C7: INCOME STATEMENT
B9: Line 1 | C9: Utility Operating Income
A11: %,V4400001 | B11: 4400001 | C11: Residential Sales-W/Space Htg | F11: 9871189.17 | G11: 8965160.08 | H11: =+F11-G11 -> 906029.09 | I11: =IF(G11<0,IF(H11=0,0,IF(OR(G11=0,F11=0),"N.M.",IF(ABS(H11/G11)>=10,"N.M.",H11/(-G11)))),IF(H11=0,0,IF(OR(G11=0,F11=0),"N.M.",IF(ABS(H11/G11)>=10,"N.M.",H11/G11)))) -> 0.1010611168 | K11: 125071993.3 | L11: 114356400.4 | Q11: 29943143.45 | R11: 29770480.87 | V11: 154468615.9 | W11: 136087652.1 | X11: =+V11-W11 -> 18380963.79 | Y11: =IF(W11<0,IF(X11=0,0,IF(OR(W11=0,V11=0),"N.M.",IF(ABS(X11/W11)>=10,"N.M.",X11/(-W11)))),IF(X11=0,0,IF(OR(W11=0,V11=0),"N.M.",IF(ABS(X11/W11)>=10,"N.M.",X11/W11)))) -> 0.1350670947 | AA11: 10161335.62 | AC11: 15558463.53 | AD11: 14616984.42 | AE11: 12136381.5 | AF11: 8855896.83 | AG11: 11033109.74 | AH11: 9725457.14 | AI11: 12659626.4 | AJ11: 12112246.53 | AK11: 8693074.26 | AL11: 8965160.08 | AM11: 10845452.17 | AN11: 18551170.45 | AP11: 21899121.56 | AQ11: 16684360.74 | AR11: 14995212.24 | AS11: 10394968.61 | AT11: 7731231.34 | AU11: 10518841.64 | AV11: 12905113.72 | AW11: 11599370.53 | AX11: 8472583.75 | AY11: 9871189.17 | AZ11: -2265632.39 | BA11: 0
A12: %,V4400002 | B12: 4400002 | C12: Residential Sales-W/O Space Ht | F12: 5193758.17 | G12: 4573201.22 | H12: =+F12-G12 -> 620556.95 | I12: =IF(G12<0,IF(H12=0,0,IF(OR(G12=0,F12=0),"N.M.",IF(ABS(H12/G12)>=10,"N.M.",H12/(-G12)))),IF(H12=0,0,IF(OR(G12=0,F12=0),"N.M.",IF(ABS(H12/G12)>=10,"N.M.",H12/G12)))) -> 0.1356942151 | K12: 58633214.45 | L12: 53945747.42 | Q12: 16552114.94 | R12: 16122473.88 | V12: 69377163.25 | W12: 63027546.62 | X12: =+V12-W12 -> 6349616.625 | Y12: =IF(W12<0,IF(X12=0,0,IF(OR(W12=0,V12=0),"N.M.",IF(ABS(X12/W12)>=10,"N.M.",X12/(-W12)))),IF(X12=0,0,IF(OR(W12=0,V12=0),"N.M.",IF(ABS(X12/W12)>=10,"N.M.",X12/W12)))) -> 0.1007435156 | AA12: 4043047.51 | AC12: 5953558.54 | AD12: 5143286.96 | AE12: 4912591.67 | AF12: 3963397.48 | AG12: 5584685.82 | AH12: 5084746.72 | AI12: 7181006.35 | AJ12: 6771128.45 | AK12: 4778144.21 | AL12: 4573201.22 | AM12: 4663728.72 | AN12: 6080220.07 | AP12: 7798813.73 | AQ12: 5861368.47 | AR12: 5866308.67 | AS12: 4806574.39 | AT12: 3968953.45 | AU12: 5838656.28 | AV12: 7940424.53 | AW12: 6607786.695 | AX12: 4750570.07 | AY12: 5193758.17 | AZ12: -1269320.84 | BA12: 0
A13: %,V4400005 | B13: 4400005 | C13: Residential Fuel Rev | F13: 4270224.06 | G13: 4340407.15 | H13: =+F13-G13 -> -70183.09 | I13: =IF(G13<0,IF(H13=0,0,IF(OR(G13=0,F13=0),"N.M.",IF(ABS(H13/G13)>=10,"N.M.",H13/(-G13)))),IF(H13=0,0,IF(OR(G13=0,F13=0),"N.M.",IF(ABS(H13/G13)>=10,"N.M.",H13/G13)))) -> -0.01616970196 | K13: 66708018.42 | L13: 58431356 | Q13: 15509990.99 | R13: 15439554.39 | V13: 79831899.98 | W13: 70212936.38 | X13: =+V13-W13 -> 9618963.6 | Y13: =IF(W13<0,IF(X13=0,0,IF(OR(W13=0,V13=0),"N.M.",IF(ABS(X13/W13)>=10,"N.M.",X13/(-W13)))),IF(X13=0,0,IF(OR(W13=0,V13=0),"N.M.",IF(ABS(X13/W13)>=10,"N.M.",X13/W13)))) -> 0.1369970278 | AA13: 6848719.21 | AC13: 10126118.47 | AD13: 8152138.81 | AE13: 5903351.82 | AF13: 3913478.47 | AG13: 4952310.97 | AH13: 4053701.51 | AI13: 5890701.56 | AJ13: 6610214.41 | AK13: 4488932.83 | AL13: 4340407.15 | AM13: 5167578.14 | AN13: 7956303.42 | AP13: 11449951.72 | AQ13: 6075362.78 | AR13: 7122520.27 | AS13: 3185157.45 | AT13: 3153512.74 | AU13: 12113659.34 | AV13: 8097863.13 | AW13: 7131606.14 | AX13: 4108160.79 | AY13: 4270224.06 | AZ13: -2390339.72 | BA13: 0
A14: %,R,FACCOUNT,TGL_FERC_ACCT,XDYYNNY01,N4400 | C14: Residential Sales | F14: 19335171.4 | G14: 17878768.45 | H14: =+F14-G14 -> 1456402.95 | I14: =IF(G14<0,IF(H14=0,0,IF(OR(G14=0,F14=0),"N.M.",IF(ABS(H14/G14)>=10,"N.M.",H14/(-G14)))),IF(H14=0,0,IF(OR(G14=0,F14=0),"N.M.",IF(ABS(H14/G14)>=10,"N.M.",H14/G14)))) -> 0.08145991454 | K14: 250413226.2 | L14: 226733503.9 | Q14: 62005249.38 | R14: 61332509.14 | V14: 303677679.1 | W14: 269328135.1 | X14: =+V14-W14 -> 34349544.02 | Y14: =IF(W14<0,IF(X14=0,0,IF(OR(W14=0,V14=0),"N.M.",IF(ABS(X14/W14)>=10,"N.M.",X14/(-W14)))),IF(X14=0,0,IF(OR(W14=0,V14=0),"N.M.",IF(ABS(X14/W14)>=10,"N.M.",X14/W14)))) -> 0.1275378972 | AA14: 21053102.34 | AC14: 31638140.54 | AD14: 27912410.19 | AE14: 22952324.99 | AF14: 16732772.78 | AG14: 21570106.53 | AH14: 18863905.37 | AI14: 25731334.31 | AJ14: 25493589.39 | AK14: 17960151.3 | AL14: 17878768.45 | AM14: 20676759.03 | AN14: 32587693.94 | AP14: 41147887.01 | AQ14: 28621091.99 | AR14: 27984041.18 | AS14: 18386700.45 | AT14: 14853697.53 | AU14: 28471157.26 | AV14: 28943401.38 | AW14: 25338763.37 | AX14: 17331314.61 | AY14: 19335171.4 | AZ14: -5925292.95 | BA14: 0
A16: %,V4420001 | B16: 4420001 | C16: Commercial Sales | F16: 8866081.53 | G16: 7680734.36 | H16: =+F16-G16 -> 1185347.17 | I16: =IF(G16<0,IF(H16=0,0,IF(OR(G16=0,F16=0),"N.M.",IF(ABS(H16/G16)>=10,"N.M.",H16/(-G16)))),IF(H16=0,0,IF(OR(G16=0,F16=0),"N.M.",IF(ABS(H16/G16)>=10,"N.M.",H16/G16)))) -> 0.1543273227 | K16: 82878858.64 | L16: 81676108.85 | Q16: 24245267.14 | R16: 24256054.91 | V16: 101133247.5 | W16: 95444844.81 | X16: =+V16-W16 -> 5688402.675 | Y16: =IF(W16<0,IF(X16=0,0,IF(OR(W16=0,V16=0),"N.M.",IF(ABS(X16/W16)>=10,"N.M.",X16/(-W16)))),IF(X16=0,0,IF(OR(W16=0,V16=0),"N.M.",IF(ABS(X16/W16)>=10,"N.M.",X16/W16)))) -> 0.05959884671 | AA16: 6338635.57 | AC16: 8345851.1 | AD16: 7445757.95 | AE16: 8128778.73 | AF16: 6662662.03 | AG16: 9650181.32 | AH16: 7980896.62 | AI16: 9205926.19 | AJ16: 9172600.06 | AK16: 7402720.49 | AL16: 7680734.36 | AM16: 8271068.08 | AN16: 9983320.76 | AP16: 9756331.98 | AQ16: 8300398.38 | AR16: 8698149.74 | AS16: 7636183.85 | AT16: 6724174.25 | AU16: 8621358.89 | AV16: 8896994.41 | AW16: 8200358.925 | AX16: 7178826.69 | AY16: 8866081.53 | AZ16: -2593371.92 | BA16: 0
A17: %,V4420002 | B17: 4420002 | C17: Industrial Sales (Excl Mines) | F17: 6684660.79 | G17: 6444061.67 | H17: =+F17-G17 -> 240599.12 | I17: =IF(G17<0,IF(H17=0,0,IF(OR(G17=0,F17=0),"N.M.",IF(ABS(H17/G17)>=10,"N.M.",H17/(-G17)))),IF(H17=0,0,IF(OR(G17=0,F17=0),"N.M.",IF(ABS(H17/G17)>=10,"N.M.",H17/G17)))) -> 0.03733656385 | K17: 58000234.02 | L17: 60601119.79 | Q17: 16881888.02 | R17: 18839176.99 | V17: 71330393.53 | W17: 70029838.23 | X17: =+V17-W17 -> 1300555.304 | Y17: =IF(W17<0,IF(X17=0,0,IF(OR(W17=0,V17=0),"N.M.",IF(ABS(X17/W17)>=10,"N.M.",X17/(-W17)))),IF(X17=0,0,IF(OR(W17=0,V17=0),"N.M.",IF(ABS(X17/W17)>=10,"N.M.",X17/W17)))) -> 0.01857144521 | AA17: 3979180.9 | AC17: 5743906.22 | AD17: 3684686.29 | AE17: 5718215.42 | AF17: 7313419.86 | AG17: 5146667.24 | AH17: 6615781.63 | AI17: 7539266.14 | AJ17: 6382355.83 | AK17: 6012759.49 | AL17: 6444061.67 | AM17: 6011075.42 | AN17: 7319084.09 | AP17: 5985417.87 | AQ17: 6026809.65 | AR17: 7316102.71 | AS17: 6439848.92 | AT17: 6842201.07 | AU17: 2312197.92 | AV17: 6195767.86 | AW17: 5372986.274 | AX17: 4824240.96 | AY17: 6684660.79 | AZ17: -891719.1 | BA17: 0
A18: %,V4420004 | B18: 4420004 | C18: Ind Sales-NonAffil(Incl Mines) | F18: 1290874.68 | G18: 1413776.87 | H18: =+F18-G18 -> -122902.19 | I18: =IF(G18<0,IF(H18=0,0,IF(OR(G18=0,F18=0),"N.M.",IF(ABS(H18/G18)>=10,"N.M.",H18/(-G18)))),IF(H18=0,0,IF(OR(G18=0,F18=0),"N.M.",IF(ABS(H18/G18)>=10,"N.M.",H18/G18)))) -> -0.08693181549 | K18: 12681410.41 | L18: 14894598.99 | Q18: 3571637.003 | R18: 4228132.12 | V18: 15391466.19 | W18: 17877721.23 | X18: =+V18-W18 -> -2486255.037 | Y18: =IF(W18<0,IF(X18=0,0,IF(OR(W18=0,V18=0),"N.M.",IF(ABS(X18/W18)>=10,"N.M.",X18/(-W18)))),IF(X18=0,0,IF(OR(W18=0,V18=0),"N.M.",IF(ABS(X18/W18)>=10,"N.M.",X18/W18)))) -> -0.1390700193 | AA18: 1477857.36 | AC18: 1481484.38 | AD18: 1484204.84 | AE18: 1661825.57 | AF18: 1480652.1 | AG18: 1625043.72 | AH18: 1539571.93 | AI18: 1393684.33 | AJ18: 1489306.86 | AK18: 1325048.39 | AL18: 1413776.87 | AM18: 1378309.47 | AN18: 1331746.31 | AP18: 1548190.26 | AQ18: 1401376 | AR18: 1465250.36 | AS18: 1412047.01 | AT18: 1131525.36 | AU18: 1112011.19 | AV18: 1039373.23 | AW18: 1160625.513 | AX18: 1120136.81 | AY18: 1290874.68 | AZ18: -247525.25 | BA18: 0
A19: %,V4420006 | B19: 4420006 | C19: Sales to Pub Auth - Schools | F19: 1461433.71 | G19: 1349260.9 | H19: =+F19-G19 -> 112172.81 | I19: =IF(G19<0,IF(H19=0,0,IF(OR(G19=0,F19=0),"N.M.",IF(ABS(H19/G19)>=10,"N.M.",H19/(-G19)))),IF(H19=0,0,IF(OR(G19=0,F19=0),"N.M.",IF(ABS(H19/G19)>=10,"N.M.",H19/G19)))) -> 0.08313648606 | K19: 13485294.93 | L19: 13098060.31 | Q19: 4010221.436 | R19: 4044889.62 | V19: 16284129.95 | W19: 15405426.37 | X19: =+V19-W19 -> 878703.576 | Y19: =IF(W19<0,IF(X19=0,0,IF(OR(W19=0,V19=0),"N.M.",IF(ABS(X19/W19)>=10,"N.M.",X19/(-W19)))),IF(X19=0,0,IF(OR(W19=0,V19=0),"N.M.",IF(ABS(X19/W19)>=10,"N.M.",X19/W19)))) -> 0.05703857556 | AA19: 1092216.57 | AC19: 1348315.06 | AD19: 1304816.07 | AE19: 1389899.2 | AF19: 1111953.77 | AG19: 1584554.35 | AH19: 1184675.99 | AI19: 1128956.25 | AJ19: 1379601.12 | AK19: 1316027.6 | AL19: 1349260.9 | AM19: 1374729.87 | AN19: 1424105.15 | AP19: 1608928.86 | AQ19: 1407960.65 | AR19: 1507545.47 | AS19: 1297881.81 | AT19: 1136607.26 | AU19: 1463355.15 | AV19: 1052794.29 | AW19: 1264744.116 | AX19: 1284043.61 | AY19: 1461433.71 | AZ19: -405706.35 | BA19: 0
A20: %,V4420007 | B20: 4420007 | C20: Sales to Pub Auth - Ex Schools | F20: 1744257.49 | G20: 1606073.52 | H20: =+F20-G20 -> 138183.97 | I20: =IF(G20<0,IF(H20=0,0,IF(OR(G20=0,F20=0),"N.M.",IF(ABS(H20/G20)>=10,"N.M.",H20/(-G20)))),IF(H20=0,0,IF(OR(G20=0,F20=0),"N.M.",IF(ABS(H20/G20)>=10,"N.M.",H20/G20)))) -> 0.08603838385 | K20: 16274221 | L20: 16190340.63 | Q20: 4633910.504 | R20: 4762336.53 | V20: 20053357.71 | W20: 18909041.12 | X20: =+V20-W20 -> 1144316.594 | Y20: =IF(W20<0,IF(X20=0,0,IF(OR(W20=0,V20=0),"N.M.",IF(ABS(X20/W20)>=10,"N.M.",X20/(-W20)))),IF(X20=0,0,IF(OR(W20=0,V20=0),"N.M.",IF(ABS(X20/W20)>=10,"N.M.",X20/W20)))) -> 0.0605169023 | AA20: 1263523.93 | AC20: 1625209.84 | AD20: 1481640.32 | AE20: 1604444.33 | AF20: 1364747.74 | AG20: 1949357.39 | AH20: 1692556.86 | AI20: 1710047.62 | AJ20: 1742768.85 | AK20: 1413494.16 | AL20: 1606073.52 | AM20: 1691468.5 | AN20: 2087668.21 | AP20: 1955065.23 | AQ20: 1547060.4 | AR20: 1738135.35 | AS20: 1578642.63 | AT20: 1332337.03 | AU20: 1945278.57 | AV20: 1543791.29 | AW20: 1545420.074 | AX20: 1344232.94 | AY20: 1744257.49 | AZ20: -428721.67 | BA20: 0
A21: %,V4420013 | B21: 4420013 | C21: Commercial Fuel Rev | F21: 4136817.01 | G21: 4666589.91 | H21: =+F21-G21 -> -529772.9 | I21: =IF(G21<0,IF(H21=0,0,IF(OR(G21=0,F21=0),"N.M.",IF(ABS(H21/G21)>=10,"N.M.",H21/(-G21)))),IF(H21=0,0,IF(OR(G21=0,F21=0),"N.M.",IF(ABS(H21/G21)>=10,"N.M.",H21/G21)))) -> -0.1135246315 | K21: 49984206.12 | L21: 45841127.27 | Q21: 13539412.48 | R21: 14188106.53 | V21: 59279108.96 | W21: 53828659.34 | X21: =+V21-W21 -> 5450449.62 | Y21: =IF(W21<0,IF(X21=0,0,IF(OR(W21=0,V21=0),"N.M.",IF(ABS(X21/W21)>=10,"N.M.",X21/(-W21)))),IF(X21=0,0,IF(OR(W21=0,V21=0),"N.M.",IF(ABS(X21/W21)>=10,"N.M.",X21/W21)))) -> 0.1012555335 | AA21: 3939619.44 | AC21: 5358153.15 | AD21: 5017069.05 | AE21: 4533391.09 | AF21: 3734674.99 | AG21: 5033803.37 | AH21: 3804664.63 | AI21: 4171264.46 | AJ21: 5163497.42 | AK21: 4358019.2 | AL21: 4666589.91 | AM21: 4740589.8 | AN21: 4554313.04 | AP21: 5862942.98 | AQ21: 3298032.85 | AR21: 4842141.86 | AS21: 3232459.78 | AT21: 3670709.4 | AU21: 9559013.53 | AV21: 5979493.24 | AW21: 5382681.54 | AX21: 4019913.93 | AY21: 4136817.01 | AZ21: -2250458 | BA21: 0
A22: %,V4420016 | B22: 4420016 | C22: Industrial Fuel Rev | F22: 4454003.08 | G22: 6596663.46 | H22: =+F22-G22 -> -2142660.38 | I22: =IF(G22<0,IF(H22=0,0,IF(OR(G22=0,F22=0),"N.M.",IF(ABS(H22/G22)>=10,"N.M.",H22/(-G22)))),IF(H22=0,0,IF(OR(G22=0,F22=0),"N.M.",IF(ABS(H22/G22)>=10,"N.M.",H22/G22)))) -> -0.3248097152 | K22: 66689885.81 | L22: 63387995.68 | Q22: 17955219.9 | R22: 19711764.47 | V22: 79410543.06 | W22: 74718360.79 | X22: =+V22-W22 -> 4692182.27 | Y22: =IF(W22<0,IF(X22=0,0,IF(OR(W22=0,V22=0),"N.M.",IF(ABS(X22/W22)>=10,"N.M.",X22/(-W22)))),IF(X22=0,0,IF(OR(W22=0,V22=0),"N.M.",IF(ABS(X22/W22)>=10,"N.M.",X22/W22)))) -> 0.06279824959 | AA22: 5647944.87 | AC22: 6390830.93 | AD22: 6078361.79 | AE22: 7046107.06 | AF22: 6443923.27 | AG22: 6481963.49 | AH22: 6040359.61 | AI22: 5194685.06 | AJ22: 6822963.93 | AK22: 6292137.08 | AL22: 6596663.46 | AM22: 6564621.03 | AN22: 6156036.22 | AP22: 6561407.22 | AQ22: 5302396.38 | AR22: 5793588.24 | AS22: 5314347.11 | AT22: 6534812.22 | AU22: 12406794.84 | AV22: 6821319.9 | AW22: 6975137.68 | AX22: 6526079.14 | AY22: 4454003.08 | AZ22: -1173028.42 | BA22: 0
A23: %,R,FACCOUNT,TGL_FERC_ACCT,XDYYNNY01,N4420 | C23: Commercial Sales | F23: 28638128.29 | G23: 29757160.69 | H23: =+F23-G23 -> -1119032.4 | I23: =IF(G23<0,IF(H23=0,0,IF(OR(G23=0,F23=0),"N.M.",IF(ABS(H23/G23)>=10,"N.M.",H23/(-G23)))),IF(H23=0,0,IF(OR(G23=0,F23=0),"N.M.",IF(ABS(H23/G23)>=10,"N.M.",H23/G23)))) -> -0.03760548298 | K23: 299994110.9 | L23: 295689351.5 | Q23: 84837556.49 | R23: 90030461.17 | V23: 362882246.9 | W23: 346213891.9 | X23: =+V23-W23 -> 16668355 | Y23: =IF(W23<0,IF(X23=0,0,IF(OR(W23=0,V23=0),"N.M.",IF(ABS(X23/W23)>=10,"N.M.",X23/(-W23)))),IF(X23=0,0,IF(OR(W23=0,V23=0),"N.M.",IF(ABS(X23/W23)>=10,"N.M.",X23/W23)))) -> 0.04814467412 | AA23: 23738978.64 | AC23: 30293750.68 | AD23: 26496536.31 | AE23: 30082661.4 | AF23: 28112033.76 | AG23: 31471570.88 | AH23: 28858507.27 | AI23: 30343830.05 | AJ23: 32153094.07 | AK23: 28120206.41 | AL23: 29757160.69 | AM23: 30031862.17 | AN23: 32856273.78 | AP23: 33278284.4 | AQ23: 27284034.31 | AR23: 31360913.73 | AS23: 26911411.11 | AT23: 27372366.59 | AU23: 37420010.09 | AV23: 31529534.22 | AW23: 29901954.12 | AX23: 26297474.08 | AY23: 28638128.29 | AZ23: -7990530.71 | BA23: 0
A25: %,V4440000 | B25: 4440000 | C25: Public Street/Highway Lighting | F25: 154153.05 | G25: 149276.38 | H25: =+F25-G25 -> 4876.67 | I25: =IF(G25<0,IF(H25=0,0,IF(OR(G25=0,F25=0),"N.M.",IF(ABS(H25/G25)>=10,"N.M.",H25/(-G25)))),IF(H25=0,0,IF(OR(G25=0,F25=0),"N.M.",IF(ABS(H25/G25)>=10,"N.M.",H25/G25)))) -> 0.03266873165 | K25: 1530356.799 | L25: 1492911 | Q25: 456203.969 | R25: 446524.88 | V25: 1838208.879 | W25: 1763238.16 | X25: =+V25-W25 -> 74970.719 | Y25: =IF(W25<0,IF(X25=0,0,IF(OR(W25=0,V25=0),"N.M.",IF(ABS(X25/W25)>=10,"N.M.",X25/(-W25)))),IF(X25=0,0,IF(OR(W25=0,V25=0),"N.M.",IF(ABS(X25/W25)>=10,"N.M.",X25/W25)))) -> 0.04251877069 | AA25: 133483.41 | AC25: 149348.45 | AD25: 143095.86 | AE25: 150018.58 | AF25: 146901.73 | AG25: 156727.94 | AH25: 151699.3 | AI25: 148594.26 | AJ25: 150985.3 | AK25: 146263.2 | AL25: 149276.38 | AM25: 154347.63 | AN25: 153504.45 | AP25: 158477.95 | AQ25: 161221.96 | AR25: 151538.38 | AS25: 156242.37 | AT25: 151371.38 | AU25: 144242.97 | AV25: 151057.82 | AW25: 151856.169 | AX25: 150194.75 | AY25: 154153.05 | AZ25: -5285.79 | BA25: 0
A26: %,V4440002 | B26: 4440002 | C26: Public St & Hwy Light Fuel Rev | F26: 23033.25 | G26: 30719.47 | H26: =+F26-G26 -> -7686.22 | I26: =IF(G26<0,IF(H26=0,0,IF(OR(G26=0,F26=0),"N.M.",IF(ABS(H26/G26)>=10,"N.M.",H26/(-G26)))),IF(H26=0,0,IF(OR(G26=0,F26=0),"N.M.",IF(ABS(H26/G26)>=10,"N.M.",H26/G26)))) -> -0.2502067907 | K26: 277140.18 | L26: 270371.14 | Q26: 80471.55 | R26: 84362.06 | V26: 346819.54 | W26: 335028.57 | X26: =+V26-W26 -> 11790.97 | Y26: =IF(W26<0,IF(X26=0,0,IF(OR(W26=0,V26=0),"N.M.",IF(ABS(X26/W26)>=10,"N.M.",X26/(-W26)))),IF(X26=0,0,IF(OR(W26=0,V26=0),"N.M.",IF(ABS(X26/W26)>=10,"N.M.",X26/W26)))) -> 0.03519392391 | AA26: 33330.37 | AC26: 35272.55 | AD26: 35259.92 | AE26: 32659.83 | AF26: 22829.01 | AG26: 24487.5 | AH26: 18668.99 | AI26: 16831.28 | AJ26: 25369.7 | AK26: 28272.89 | AL26: 30719.47 | AM26: 35187.55 | AN26: 34491.81 | AP26: 36592.55 | AQ26: 21359.11 | AR26: 31209.55 | AS26: 17960.67 | AT26: 22593.3 | AU26: 43292.14 | AV26: 23661.31 | AW26: 28446.05 | AX26: 28992.25 | AY26: 23033.25 | AZ26: -1422.14 | BA26: 0
A27: %,R,FACCOUNT,TGL_FERC_ACCT,XDYYNNY01,N4440,N4450,N4460,N4480 | C27: Public Streets and Highway Lighting | F27: 177186.3 | G27: 179995.85 | H27: =+F27-G27 -> -2809.55 | I27: =IF(G27<0,IF(H27=0,0,IF(OR(G27=0,F27=0),"N.M.",IF(ABS(H27/G27)>=10,"N.M.",H27/(-G27)))),IF(H27=0,0,IF(OR(G27=0,F27=0),"N.M.",IF(ABS(H27/G27)>=10,"N.M.",H27/G27)))) -> -0.01560897098 | K27: 1807496.979 | L27: 1763282.14 | Q27: 536675.519 | R27: 530886.94 | V27: 2185028.419 | W27: 2098266.73 | X27: =+V27-W27 -> 86761.689 | Y27: =IF(W27<0,IF(X27=0,0,IF(OR(W27=0,V27=0),"N.M.",IF(ABS(X27/W27)>=10,"N.M.",X27/(-W27)))),IF(X27=0,0,IF(OR(W27=0,V27=0),"N.M.",IF(ABS(X27/W27)>=10,"N.M.",X27/W27)))) -> 0.04134921827 | AA27: 166813.78 | AC27: 184621 | AD27: 178355.78 | AE27: 182678.41 | AF27: 169730.74 | AG27: 181215.44 | AH27: 170368.29 | AI27: 165425.54 | AJ27: 176355 | AK27: 174536.09 | AL27: 179995.85 | AM27: 189535.18 | AN27: 187996.26 | AP27: 195070.5 | AQ27: 182581.07 | AR27: 182747.93 | AS27: 174203.04 | AT27: 173964.68 | AU27: 187535.11 | AV27: 174719.13 | AW27: 180302.219 | AX27: 179187 | AY27: 177186.3 | AZ27: -6707.93 | BA27: 0
A29: %,V4470010 | B29: 4470010 | C29: Sales for Resale-Bookout Purch | F29: 0 | G29: 0 | H29: =+F29-G29 -> 0 | I29: =IF(G29<0,IF(H29=0,0,IF(OR(G29=0,F29=0),"N.M.",IF(ABS(H29/G29)>=10,"N.M.",H29/(-G29)))),IF(H29=0,0,IF(OR(G29=0,F29=0),"N.M.",IF(ABS(H29/G29)>=10,"N.M.",H29/G29)))) -> 0 | K29: 0 | L29: -18.93 | Q29: 0 | R29: 0 | V29: 0 | W29: -321.05 | X29: =+V29-W29 -> 321.05 | Y29: =IF(W29<0,IF(X29=0,0,IF(OR(W29=0,V29=0),"N.M.",IF(ABS(X29/W29)>=10,"N.M.",X29/(-W29)))),IF(X29=0,0,IF(OR(W29=0,V29=0),"N.M.",IF(ABS(X29/W29)>=10,"N.M.",X29/W29)))) -> N.M. | AA29: -313.5 | AC29: 0 | AD29: 2.11 | AE29: -28.4 | AF29: 0.52 | AG29: 6.84 | AH29: 0 | AI29: 0 | AJ29: 0 | AK29: 0 | AL29: 0 | AM29: 0 | AN29: 0 | AP29: 0 | AQ29: 0 | AR29: 0 | AS29: 0 | AT29: 0 | AU29: 0 | AV29: 0 | AW29: 0 | AX29: 0 | AY29: 0 | AZ29: 0 | BA29: 0
A30: %,V4470027 | B30: 4470027 | C30: Whsal/Muni/Pb Ath Fuel Rev | F30: 0 | G30: 205487.08 | H30: =+F30-G30 -> -205487.08 | I30: =IF(G30<0,IF(H30=0,0,IF(OR(G30=0,F30=0),"N.M.",IF(ABS(H30/G30)>=10,"N.M.",H30/(-G30)))),IF(H30=0,0,IF(OR(G30=0,F30=0),"N.M.",IF(ABS(H30/G30)>=10,"N.M.",H30/G30)))) -> N.M. | K30: 1561568.66 | L30: 2067862.92 | Q30: 0 | R30: 559884.1 | V30: 2088916.75 | W30: 2600635.36 | X30: =+V30-W30 -> -511718.61 | Y30: =IF(W30<0,IF(X30=0,0,IF(OR(W30=0,V30=0),"N.M.",IF(ABS(X30/W30)>=10,"N.M.",X30/(-W30)))),IF(X30=0,0,IF(OR(W30=0,V30=0),"N.M.",IF(ABS(X30/W30)>=10,"N.M.",X30/W30)))) -> -0.1967667663 | AA30: 284739.77 | AC30: 325320.14 | AD30: 178237.76 | AE30: 214530.6 | AF30: 258699.92 | AG30: 177337.66 | AH30: 149156.43 | AI30: 204696.31 | AJ30: 200685.45 | AK30: 153711.57 | AL30: 205487.08 | AM30: 224672.77 | AN30: 302675.32 | AP30: 377771.11 | AQ30: 262886.07 | AR30: 281774.76 | AS30: 301957.53 | AT30: 290721.96 | AU30: 3490.5 | AV30: 42966.73 | AW30: 0 | AX30: 0 | AY30: 0 | AZ30: 0 | BA30: 0
A31: %,V4470033 | B31: 4470033 | C31: Whsal/Muni/Pub Auth Base Rev | F31: 0 | G31: 137342.52 | H31: =+F31-G31 -> -137342.52 | I31: =IF(G31<0,IF(H31=0,0,IF(OR(G31=0,F31=0),"N.M.",IF(ABS(H31/G31)>=10,"N.M.",H31/(-G31)))),IF(H31=0,0,IF(OR(G31=0,F31=0),"N.M.",IF(ABS(H31/G31)>=10,"N.M.",H31/G31)))) -> N.M. | K31: 1325054.69 | L31: 1467195.86 | Q31: 0 | R31: 494020.09 | V31: 1686288.3 | W31: 1453038.81 | X31: =+V31-W31 -> 233249.49 | Y31: =IF(W31<0,IF(X31=0,0,IF(OR(W31=0,V31=0),"N.M.",IF(ABS(X31/W31)>=10,"N.M.",X31/(-W31)))),IF(X31=0,0,IF(OR(W31=0,V31=0),"N.M.",IF(ABS(X31/W31)>=10,"N.M.",X31/W31)))) -> 0.1605252994 | AA31: -238971.46 | AC31: 267406.81 | AD31: 204126.43 | AE31: 191179.59 | AF31: 165612.21 | AG31: -244832.2 | AH31: 191012.26 | AI31: 198670.67 | AJ31: 196902.49 | AK31: 159775.08 | AL31: 137342.52 | AM31: 152721.97 | AN31: 208511.64 | AP31: 270507.72 | AQ31: 208315.58 | AR31: 176363.15 | AS31: 153614.26 | AT31: 516121.55 | AU31: 132.43 | AV31: 0 | AW31: 0 | AX31: 0 | AY31: 0 | AZ31: 0 | BA31: 0
A32: %,V4470074 | B32: 4470074 | C32: Sale for Resale-Aff-Trnf Price | F32: 0 | G32: 0 | H32: =+F32-G32 -> 0 | I32: =IF(G32<0,IF(H32=0,0,IF(OR(G32=0,F32=0),"N.M.",IF(ABS(H32/G32)>=10,"N.M.",H32/(-G32)))),IF(H32=0,0,IF(OR(G32=0,F32=0),"N.M.",IF(ABS(H32/G32)>=10,"N.M.",H32/G32)))) -> 0 | K32: 0 | L32: 0 | Q32: 0 | R32: 0 | V32: 0 | W32: 0 | X32: =+V32-W32 -> 0 | Y32: =IF(W32<0,IF(X32=0,0,IF(OR(W32=0,V32=0),"N.M.",IF(ABS(X32/W32)>=10,"N.M.",X32/(-W32)))),IF(X32=0,0,IF(OR(W32=0,V32=0),"N.M.",IF(ABS(X32/W32)>=10,"N.M.",X32/W32)))) -> 0 | AA32: 0 | AC32: 0 | AD32: 0 | AE32: 0 | AF32: 0 | AG32: 0 | AH32: 0 | AI32: 0 | AJ32: 0 | AK32: 0 | AL32: 0 | AM32: 0 | AN32: 0 | AP32: 0 | AQ32: 0 | AR32: 0 | AS32: 0 | AT32: 0 | AU32: 0 | AV32: 0 | AW32: 0 | AX32: 0 | AY32: 0 | AZ32: 359780628.6 | BA32: 0
A33: %,V4470082 | B33: 4470082 | C33: Financial Electric Realized | F33: -290.98 | G33: -1020.55 | H33: =+F33-G33 -> 729.57 | I33: =IF(G33<0,IF(H33=0,0,IF(OR(G33=0,F33=0),"N.M.",IF(ABS(H33/G33)>=10,"N.M.",H33/(-G33)))),IF(H33=0,0,IF(OR(G33=0,F33=0),"N.M.",IF(ABS(H33/G33)>=10,"N.M.",H33/G33)))) -> 0.7148792318 | K33: -3336.59 | L33: -5749.12 | Q33: -792.45 | R33: -2451.05 | V33: -4459.11 | W33: -7092.06 | X33: =+V33-W33 -> 2632.95 | Y33: =IF(W33<0,IF(X33=0,0,IF(OR(W33=0,V33=0),"N.M.",IF(ABS(X33/W33)>=10,"N.M.",X33/(-W33)))),IF(X33=0,0,IF(OR(W33=0,V33=0),"N.M.",IF(ABS(X33/W33)>=10,"N.M.",X33/W33)))) -> 0.3712532043 | AA33: -465.8 | AC33: -179.98 | AD33: -153.66 | AE33: -453.16 | AF33: -840.05 | AG33: -1173.58 | AH33: -301.65 | AI33: -195.99 | AJ33: -323.53 | AK33: -1106.97 | AL33: -1020.55 | AM33: -783.53 | AN33: -338.99 | AP33: -200.53 | AQ33: -956.48 | AR33: -211.94 | AS33: -498.85 | AT33: -158.6 | AU33: -220.65 | AV33: -297.09 | AW33: -207.38 | AX33: -294.09 | AY33: -290.98 | AZ33: 0 | BA33: 0
A34: %,V4470089 | B34: 4470089 | C34: PJM Energy Sales Margin | F34: 150746.48 | G34: -125157.4 | H34: =+F34-G34 -> 275903.88 | I34: =IF(G34<0,IF(H34=0,0,IF(OR(G34=0,F34=0),"N.M.",IF(ABS(H34/G34)>=10,"N.M.",H34/(-G34)))),IF(H34=0,0,IF(OR(G34=0,F34=0),"N.M.",IF(ABS(H34/G34)>=10,"N.M.",H34/G34)))) -> 2.20445519 | K34: 1375938.73 | L34: 243182.1 | Q34: 484473.06 | R34: -491284.57 | V34: 1175694.59 | W34: -73818.56 | X34: =+V34-W34 -> 1249513.15 | Y34: =IF(W34<0,IF(X34=0,0,IF(OR(W34=0,V34=0),"N.M.",IF(ABS(X34/W34)>=10,"N.M.",X34/(-W34)))),IF(X34=0,0,IF(OR(W34=0,V34=0),"N.M.",IF(ABS(X34/W34)>=10,"N.M.",X34/W34)))) -> N.M. | AA34: -321028.62 | AC34: 261613.8 | AD34: -31703.41 | AE34: -173736.1 | AF34: -28576.02 | AG34: 102214.41 | AH34: 689542.48 | AI34: -84888.49 | AJ34: -278872.66 | AK34: -87254.51 | AL34: -125157.4 | AM34: -36291.76 | AN34: -163952.38 | AP34: 215057.19 | AQ34: 177310.55 | AR34: -104566.51 | AS34: -25948.59 | AT34: 81981.73 | AU34: 1140661.57 | AV34: -593030.27 | AW34: 260906.18 | AX34: 72820.4 | AY34: 150746.48 | AZ34: -186781.02 | BA34: 0
A35: %,V4470098 | B35: 4470098 | C35: PJM Oper.Reserve Rev-OSS | F35: -4685.51 | G35: -1774.44 | H35: =+F35-G35 -> -2911.07 | I35: =IF(G35<0,IF(H35=0,0,IF(OR(G35=0,F35=0),"N.M.",IF(ABS(H35/G35)>=10,"N.M.",H35/(-G35)))),IF(H35=0,0,IF(OR(G35=0,F35=0),"N.M.",IF(ABS(H35/G35)>=10,"N.M.",H35/G35)))) -> -1.640557021 | K35: -74360.58 | L35: -37950.98 | Q35: -27130.98 | R35: -10882.83 | V35: -81487.56 | W35: -40865.5 | X35: =+V35-W35 -> -40622.06 | Y35: =IF(W35<0,IF(X35=0,0,IF(OR(W35=0,V35=0),"N.M.",IF(ABS(X35/W35)>=10,"N.M.",X35/(-W35)))),IF(X35=0,0,IF(OR(W35=0,V35=0),"N.M.",IF(ABS(X35/W35)>=10,"N.M.",X35/W35)))) -> -0.9940428968 | AA35: -1107.42 | AC35: -1195.89 | AD35: 1848.2 | AE35: -18.38 | AF35: -1215.64 | AG35: 55.77 | AH35: -13580.61 | AI35: -12961.6 | AJ35: -4116.63 | AK35: -4991.76 | AL35: -1774.44 | AM35: -1998.79 | AN35: -5128.19 | AP35: -6943.64 | AQ35: -8921.61 | AR35: -3947.07 | AS35: -6103.18 | AT35: -8662.52 | AU35: 1589.11 | AV35: -14240.69 | AW35: -14683.02 | AX35: -7762.45 | AY35: -4685.51 | AZ35: 1146.98 | BA35: 0
A36: %,V4470099 | B36: 4470099 | C36: Capacity Cr. Net Sales | F36: 0 | G36: -10092 | H36: =+F36-G36 -> 10092 | I36: =IF(G36<0,IF(H36=0,0,IF(OR(G36=0,F36=0),"N.M.",IF(ABS(H36/G36)>=10,"N.M.",H36/(-G36)))),IF(H36=0,0,IF(OR(G36=0,F36=0),"N.M.",IF(ABS(H36/G36)>=10,"N.M.",H36/G36)))) -> N.M. | K36: -50880.99 | L36: -51132.8 | Q36: 0 | R36: -30612.4 | V36: -71789.31 | W36: -51132.8 | X36: =+V36-W36 -> -20656.51 | Y36: =IF(W36<0,IF(X36=0,0,IF(OR(W36=0,V36=0),"N.M.",IF(ABS(X36/W36)>=10,"N.M.",X36/(-W36)))),IF(X36=0,0,IF(OR(W36=0,V36=0),"N.M.",IF(ABS(X36/W36)>=10,"N.M.",X36/W36)))) -> -0.4039776816 | AA36: 0 | AC36: 0 | AD36: 0 | AE36: 0 | AF36: 0 | AG36: 0 | AH36: 0 | AI36: -20520.4 | AJ36: -10428.4 | AK36: -10092 | AL36: -10092 | AM36: -10125.6 | AN36: -10782.72 | AP36: -10445.79 | AQ36: -9434.88 | AR36: -10445.76 | AS36: -10108.8 | AT36: -10445.76 | AU36: 0 | AV36: 0 | AW36: 0 | AX36: 0 | AY36: 0 | AZ36: 0 | BA36: 0
A37: %,V4470100 | B37: 4470100 | C37: PJM FTR Revenue-OSS | F37: 13167.68 | G37: 40996.85 | H37: =+F37-G37 -> -27829.17 | I37: =IF(G37<0,IF(H37=0,0,IF(OR(G37=0,F37=0),"N.M.",IF(ABS(H37/G37)>=10,"N.M.",H37/(-G37)))),IF(H37=0,0,IF(OR(G37=0,F37=0),"N.M.",IF(ABS(H37/G37)>=10,"N.M.",H37/G37)))) -> -0.6788123966 | K37: 63087.66 | L37: 196514.91 | Q37: 7175.92 | R37: 56748.58 | V37: 112146.74 | W37: 189465.3 | X37: =+V37-W37 -> -77318.56 | Y37: =IF(W37<0,IF(X37=0,0,IF(OR(W37=0,V37=0),"N.M.",IF(ABS(X37/W37)>=10,"N.M.",X37/(-W37)))),IF(X37=0,0,IF(OR(W37=0,V37=0),"N.M.",IF(ABS(X37/W37)>=10,"N.M.",X37/W37)))) -> -0.4080882357 | AA37: 1473.86 | AC37: 9568.4 | AD37: 5843.46 | AE37: 10205.81 | AF37: 25297.65 | AG37: 7298.61 | AH37: 13245.3 | AI37: 68307.1 | AJ37: 11874.73 | AK37: 3877 | AL37: 40996.85 | AM37: 14337.35 | AN37: 34721.73 | AP37: 24879.79 | AQ37: 11932.16 | AR37: 202.03 | AS37: 10033.5 | AT37: 30678.54 | AU37: -26837.99 | AV37: 5023.71 | AW37: -18991.87 | AX37: 13000.11 | AY37: 13167.68 | AZ37: -16028.58 | BA37: 0
A38: %,V4470103 | B38: 4470103 | C38: PJM Energy Sales Cost | F38: 2962191.55 | G38: 1063464.61 | H38: =+F38-G38 -> 1898726.94 | I38: =IF(G38<0,IF(H38=0,0,IF(OR(G38=0,F38=0),"N.M.",IF(ABS(H38/G38)>=10,"N.M.",H38/(-G38)))),IF(H38=0,0,IF(OR(G38=0,F38=0),"N.M.",IF(ABS(H38/G38)>=10,"N.M.",H38/G38)))) -> 1.785416197 | K38: 19015641.85 | L38: 11351734.24 | Q38: 6454156.8 | R38: 3314439.56 | V38: 21813098.97 | W38: 12951368.37 | X38: =+V38-W38 -> 8861730.6 | Y38: =IF(W38<0,IF(X38=0,0,IF(OR(W38=0,V38=0),"N.M.",IF(ABS(X38/W38)>=10,"N.M.",X38/(-W38)))),IF(X38=0,0,IF(OR(W38=0,V38=0),"N.M.",IF(ABS(X38/W38)>=10,"N.M.",X38/W38)))) -> 0.6842312215 | AA38: 1199569.48 | AC38: -483429.14 | AD38: 887839.16 | AE38: 982515.39 | AF38: 114453.19 | AG38: 779140.37 | AH38: 2934629.29 | AI38: 2822146.42 | AJ38: 1874172.77 | AK38: 376802.18 | AL38: 1063464.61 | AM38: 1446841.16 | AN38: 1350615.96 | AP38: 1294412.92 | AQ38: 757948 | AR38: 928576.47 | AS38: 1081945.58 | AT38: 879855.67 | AU38: 4740913.12 | AV38: 2877833.29 | AW38: 2304763.97 | AX38: 1187201.28 | AY38: 2962191.55 | AZ38: -2895348.04 | BA38: 0
A39: %,V4470110 | B39: 4470110 | C39: PJM TO Admin. Exp.-NonAff. | F39: 0 | G39: 0 | H39: =+F39-G39 -> 0 | I39: =IF(G39<0,IF(H39=0,0,IF(OR(G39=0,F39=0),"N.M.",IF(ABS(H39/G39)>=10,"N.M.",H39/(-G39)))),IF(H39=0,0,IF(OR(G39=0,F39=0),"N.M.",IF(ABS(H39/G39)>=10,"N.M.",H39/G39)))) -> 0 | K39: 0 | L39: 3.52 | Q39: 0 | R39: 0 | V39: 0 | W39: 3.52 | X39: =+V39-W39 -> -3.52 | Y39: =IF(W39<0,IF(X39=0,0,IF(OR(W39=0,V39=0),"N.M.",IF(ABS(X39/W39)>=10,"N.M.",X39/(-W39)))),IF(X39=0,0,IF(OR(W39=0,V39=0),"N.M.",IF(ABS(X39/W39)>=10,"N.M.",X39/W39)))) -> N.M. | AA39: 0 | AC39: 0 | AD39: 3.52 | AE39: 0 | AF39: 0 | AG39: 0 | AH39: 0 | AI39: 0 | AJ39: 0 | AK39: 0 | AL39: 0 | AM39: 0 | AN39: 0 | AP39: 0 | AQ39: 0 | AR39: 0 | AS39: 0 | AT39: 0 | AU39: 0 | AV39: 0 | AW39: 0 | AX39: 0 | AY39: 0 | AZ39: 0 | BA39: 0
A40: %,V4470115 | B40: 4470115 | C40: PJM Meter Corrections-OSS | F40: -5647.24 | G40: -356.2 | H40: =+F40-G40 -> -5291.04 | I40: =IF(G40<0,IF(H40=0,0,IF(OR(G40=0,F40=0),"N.M.",IF(ABS(H40/G40)>=10,"N.M.",H40/(-G40)))),IF(H40=0,0,IF(OR(G40=0,F40=0),"N.M.",IF(ABS(H40/G40)>=10,"N.M.",H40/G40)))) -> N.M. | K40: -275264.51 | L40: 41852.31 | Q40: -23457.51 | R40: 50641.09 | V40: -276523.79 | W40: 40534.02 | X40: =+V40-W40 -> -317057.81 | Y40: =IF(W40<0,IF(X40=0,0,IF(OR(W40=0,V40=0),"N.M.",IF(ABS(X40/W40)>=10,"N.M.",X40/(-W40)))),IF(X40=0,0,IF(OR(W40=0,V40=0),"N.M.",IF(ABS(X40/W40)>=10,"N.M.",X40/W40)))) -> -7.822017407 | AA40: -617.57 | AC40: 194.38 | AD40: -1804.36 | AE40: -1565.45 | AF40: -852.72 | AG40: -3161.04 | AH40: -1507.9 | AI40: -91.69 | AJ40: 43986.91 | AK40: 7010.38 | AL40: -356.2 | AM40: -725.32 | AN40: -533.96 | AP40: -925.65 | AQ40: 356.22 | AR40: -9292.75 | AS40: -107.51 | AT40: 12.76 | AU40: 6201.32 | AV40: -248051.39 | AW40: 3102.43 | AX40: -20912.7 | AY40: -5647.24 | AZ40: 3252.04 | BA40: 0
A41: %,V4470116 | B41: 4470116 | C41: PJM Meter Corrections-LSE | F41: -65059.98 | G41: -21483.88 | H41: =+F41-G41 -> -43576.1 | I41: =IF(G41<0,IF(H41=0,0,IF(OR(G41=0,F41=0),"N.M.",IF(ABS(H41/G41)>=10,"N.M.",H41/(-G41)))),IF(H41=0,0,IF(OR(G41=0,F41=0),"N.M.",IF(ABS(H41/G41)>=10,"N.M.",H41/G41)))) -> -2.028316114 | K41: -1577307.86 | L41: 263174.48 | Q41: 601128.14 | R41: 459725.1 | V41: -1594175.17 | W41: -139489.93 | X41: =+V41-W41 -> -1454685.24 | Y41: =IF(W41<0,IF(X41=0,0,IF(OR(W41=0,V41=0),"N.M.",IF(ABS(X41/W41)>=10,"N.M.",X41/(-W41)))),IF(X41=0,0,IF(OR(W41=0,V41=0),"N.M.",IF(ABS(X41/W41)>=10,"N.M.",X41/W41)))) -> N.M. | AA41: -31033.97 | AC41: -34385.55 | AD41: -67395.81 | AE41: 1521.9 | AF41: -19674.54 | AG41: -64356.7 | AH41: -11537.66 | AI41: -722.26 | AJ41: 399310.91 | AK41: 81898.07 | AL41: -21483.88 | AM41: -4229.12 | AN41: -12638.19 | AP41: -17119.72 | AQ41: 21912.53 | AR41: -153176 | AS41: -17930.13 | AT41: 249.32 | AU41: -672953.05 | AV41: -1339418.95 | AW41: 834884.08 | AX41: -168695.96 | AY41: -65059.98 | AZ41: 26754.58 | BA41: 0
A42: %,V4470126 | B42: 4470126 | C42: PJM Incremental Imp Cong-OSS | F42: -42945.85 | G42: -63.63 | H42: =+F42-G42 -> -42882.22 | I42: =IF(G42<0,IF(H42=0,0,IF(OR(G42=0,F42=0),"N.M.",IF(ABS(H42/G42)>=10,"N.M.",H42/(-G42)))),IF(H42=0,0,IF(OR(G42=0,F42=0),"N.M.",IF(ABS(H42/G42)>=10,"N.M.",H42/G42)))) -> N.M. | K42: -460431.89 | L42: -298896.49 | Q42: -89067.4 | R42: -9219.49 | V42: -477721.6 | W42: -318205.85 | X42: =+V42-W42 -> -159515.75 | Y42: =IF(W42<0,IF(X42=0,0,IF(OR(W42=0,V42=0),"N.M.",IF(ABS(X42/W42)>=10,"N.M.",X42/(-W42)))),IF(X42=0,0,IF(OR(W42=0,V42=0),"N.M.",IF(ABS(X42/W42)>=10,"N.M.",X42/W42)))) -> -0.501297352 | AA42: -4286.13 | AC42: 1744.12 | AD42: -4755.18 | AE42: 2797.4 | AF42: -13394.92 | AG42: -6104.13 | AH42: -59111.36 | AI42: -210852.93 | AJ42: -6600.35 | AK42: -2555.51 | AL42: -63.63 | AM42: -1484.64 | AN42: -15805.07 | AP42: -13135.32 | AQ42: -22116.36 | AR42: -7024.68 | AS42: -228.34 | AT42: -3811.11 | AU42: -272561.5 | AV42: -52487.18 | AW42: -18041.02 | AX42: -28080.53 | AY42: -42945.85 | AZ42: 43480.33 | BA42: 0
A43: %,V4470150 | B43: 4470150 | C43: Transm. Rev.-Dedic. Whlsl/Muni | F43: -8313 | G43: 10381.51 | H43: =+F43-G43 -> -18694.51 | I43: =IF(G43<0,IF(H43=0,0,IF(OR(G43=0,F43=0),"N.M.",IF(ABS(H43/G43)>=10,"N.M.",H43/(-G43)))),IF(H43=0,0,IF(OR(G43=0,F43=0),"N.M.",IF(ABS(H43/G43)>=10,"N.M.",H43/G43)))) -> -1.800750565 | K43: -40083.89 | L43: 137125.6 | Q43: -22004.75 | R43: 29673.64 | V43: 20032.15 | W43: 210233.2 | X43: =+V43-W43 -> -190201.05 | Y43: =IF(W43<0,IF(X43=0,0,IF(OR(W43=0,V43=0),"N.M.",IF(ABS(X43/W43)>=10,"N.M.",X43/(-W43)))),IF(X43=0,0,IF(OR(W43=0,V43=0),"N.M.",IF(ABS(X43/W43)>=10,"N.M.",X43/W43)))) -> -0.9047146217 | AA43: 66081.01 | AC43: 3905.78 | AD43: 12733.6 | AE43: 12277.29 | AF43: 9479.62 | AG43: 9884.78 | AH43: 50357.68 | AI43: 8813.21 | AJ43: 9496.05 | AK43: 9796.08 | AL43: 10381.51 | AM43: 9594.71 | AN43: 50521.33 | AP43: -2477.4 | AQ43: -3440.73 | AR43: 110.89 | AS43: -1157.1 | AT43: -3175.94 | AU43: 390.14 | AV43: -8329 | AW43: -5429.75 | AX43: -8262 | AY43: -8313 | AZ43: -2922 | BA43: 0
A44: %,V4470151 | B44: 4470151 | C44: Trading Auction Sales Affil | F44: 0 | G44: 0 | H44: =+F44-G44 -> 0 | I44: =IF(G44<0,IF(H44=0,0,IF(OR(G44=0,F44=0),"N.M.",IF(ABS(H44/G44)>=10,"N.M.",H44/(-G44)))),IF(H44=0,0,IF(OR(G44=0,F44=0),"N.M.",IF(ABS(H44/G44)>=10,"N.M.",H44/G44)))) -> 0 | K44: 0 | L44: 0 | Q44: 0 | R44: 0 | V44: 0 | W44: 0 | X44: =+V44-W44 -> 0 | Y44: =IF(W44<0,IF(X44=0,0,IF(OR(W44=0,V44=0),"N.M.",IF(ABS(X44/W44)>=10,"N.M.",X44/(-W44)))),IF(X44=0,0,IF(OR(W44=0,V44=0),"N.M.",IF(ABS(X44/W44)>=10,"N.M.",X44/W44)))) -> 0 | AA44: 0 | AC44: 0 | AD44: 0 | AE44: 0 | AF44: 0 | AG44: 0 | AH44: 114212.59 | AI44: -114212.59 | AJ44: 0 | AK44: 0 | AL44: 0 | AM44: 0 | AN44: 0 | AP44: 0 | AQ44: 0 | AR44: 0 | AS44: 0 | AT44: 0 | AU44: 0 | AV44: 0 | AW44: 0 | AX44: 0 | AY44: 0 | AZ44: 0 | BA44: 0
A45: %,V4470175 | B45: 4470175 | C45: OSS Sharing Reclass - Retail | F45: 205864.92 | G45: 191423.2 | H45: =+F45-G45 -> 14441.72 | I45: =IF(G45<0,IF(H45=0,0,IF(OR(G45=0,F45=0),"N.M.",IF(ABS(H45/G45)>=10,"N.M.",H45/(-G45)))),IF(H45=0,0,IF(OR(G45=0,F45=0),"N.M.",IF(ABS(H45/G45)>=10,"N.M.",H45/G45)))) -> 0.07544393783 | K45: 3986774.41 | L45: 3947601.45 | Q45: 889350.14 | R45: 645390.19 | V45: 4830298.95 | W45: 4019582.19 | X45: =+V45-W45 -> 810716.76 | Y45: =IF(W45<0,IF(X45=0,0,IF(OR(W45=0,V45=0),"N.M.",IF(ABS(X45/W45)>=10,"N.M.",X45/(-W45)))),IF(X45=0,0,IF(OR(W45=0,V45=0),"N.M.",IF(ABS(X45/W45)>=10,"N.M.",X45/W45)))) -> 0.2016917982 | AA45: -65555.47 | AC45: 598138.27 | AD45: 275014.33 | AE45: 387592.33 | AF45: 417611.14 | AG45: 317544.69 | AH45: 1148271.34 | AI45: 158039.16 | AJ45: 372252.49 | AK45: 81714.5 | AL45: 191423.2 | AM45: 638016.43 | AN45: 205508.11 | AP45: -599338.58 | AQ45: 1815828.59 | AR45: 395082.68 | AS45: 559141.1 | AT45: 502089.86 | AU45: 928453.77 | AV45: -503833.15 | AW45: 485975.18 | AX45: 197510.04 | AY45: 205864.92 | AZ45: 0 | BA45: 0
A46: %,V4470176 | B46: 4470176 | C46: OSS Sharing Reclass-Reduction | F46: -205864.92 | G46: -191423.2 | H46: =+F46-G46 -> -14441.72 | I46: =IF(G46<0,IF(H46=0,0,IF(OR(G46=0,F46=0),"N.M.",IF(ABS(H46/G46)>=10,"N.M.",H46/(-G46)))),IF(H46=0,0,IF(OR(G46=0,F46=0),"N.M.",IF(ABS(H46/G46)>=10,"N.M.",H46/G46)))) -> -0.07544393783 | K46: -3986774.41 | L46: -3947601.45 | Q46: -889350.14 | R46: -645390.19 | V46: -4830298.95 | W46: -4019582.19 | X46: =+V46-W46 -> -810716.76 | Y46: =IF(W46<0,IF(X46=0,0,IF(OR(W46=0,V46=0),"N.M.",IF(ABS(X46/W46)>=10,"N.M.",X46/(-W46)))),IF(X46=0,0,IF(OR(W46=0,V46=0),"N.M.",IF(ABS(X46/W46)>=10,"N.M.",X46/W46)))) -> -0.2016917982 | AA46: 65555.47 | AC46: -598138.27 | AD46: -275014.33 | AE46: -387592.33 | AF46: -417611.14 | AG46: -317544.69 | AH46: -1148271.34 | AI46: -158039.16 | AJ46: -372252.49 | AK46: -81714.5 | AL46: -191423.2 | AM46: -638016.43 | AN46: -205508.11 | AP46: 599338.58 | AQ46: -1815828.59 | AR46: -395082.68 | AS46: -559141.1 | AT46: -502089.86 | AU46: -928453.77 | AV46: 503833.15 | AW46: -485975.18 | AX46: -197510.04 | AY46: -205864.92 | AZ46: 0 | BA46: 0
A47: %,V4470206 | B47: 4470206 | C47: PJM Trans loss credits-OSS | F47: 21409.43 | G47: 459.29 | H47: =+F47-G47 -> 20950.14 | I47: =IF(G47<0,IF(H47=0,0,IF(OR(G47=0,F47=0),"N.M.",IF(ABS(H47/G47)>=10,"N.M.",H47/(-G47)))),IF(H47=0,0,IF(OR(G47=0,F47=0),"N.M.",IF(ABS(H47/G47)>=10,"N.M.",H47/G47)))) -> N.M. | K47: 140572.76 | L47: 67938.19 | Q47: 36063.47 | R47: 8811.89 | V47: 158450.01 | W47: 68863.79 | X47: =+V47-W47 -> 89586.22 | Y47: =IF(W47<0,IF(X47=0,0,IF(OR(W47=0,V47=0),"N.M.",IF(ABS(X47/W47)>=10,"N.M.",X47/(-W47)))),IF(X47=0,0,IF(OR(W47=0,V47=0),"N.M.",IF(ABS(X47/W47)>=10,"N.M.",X47/W47)))) -> 1.300919104 | AA47: 456.34 | AC47: 2683.59 | AD47: 2224.94 | AE47: 5199.69 | AF47: 5402.58 | AG47: 907.47 | AH47: 10272.65 | AI47: 32435.38 | AJ47: 4848.83 | AK47: 3503.77 | AL47: 459.29 | AM47: 1422.84 | AN47: 16454.41 | AP47: 10543.07 | AQ47: 21824.75 | AR47: 10767.14 | AS47: 3139.08 | AT47: 2024.79 | AU47: 39713.92 | AV47: 16496.54 | AW47: 1483.34 | AX47: 13170.7 | AY47: 21409.43 | AZ47: -20960.48 | BA47: 0
A48: %,V4470209 | B48: 4470209 | C48: PJM transm loss charges-OSS | F48: -18092.59 | G48: -1312.68 | H48: =+F48-G48 -> -16779.91 | I48: =IF(G48<0,IF(H48=0,0,IF(OR(G48=0,F48=0),"N.M.",IF(ABS(H48/G48)>=10,"N.M.",H48/(-G48)))),IF(H48=0,0,IF(OR(G48=0,F48=0),"N.M.",IF(ABS(H48/G48)>=10,"N.M.",H48/G48)))) -> N.M. | K48: -291729.56 | L48: -173847.76 | Q48: -69013.71 | R48: -29333.87 | V48: -326251.89 | W48: -177567.9 | X48: =+V48-W48 -> -148683.99 | Y48: =IF(W48<0,IF(X48=0,0,IF(OR(W48=0,V48=0),"N.M.",IF(ABS(X48/W48)>=10,"N.M.",X48/(-W48)))),IF(X48=0,0,IF(OR(W48=0,V48=0),"N.M.",IF(ABS(X48/W48)>=10,"N.M.",X48/W48)))) -> -0.8373359712 | AA48: -1720.43 | AC48: -6642.43 | AD48: -6516.43 | AE48: -13665.09 | AF48: -8388.59 | AG48: -5638.3 | AH48: -36227.81 | AI48: -67435.24 | AJ48: -20367.52 | AK48: -7653.67 | AL48: -1312.68 | AM48: -4869.69 | AN48: -29652.64 | AP48: -18613.39 | AQ48: -31490.14 | AR48: -16648.45 | AS48: -5500.54 | AT48: -2680.15 | AU48: -88606.82 | AV48: -59176.36 | AW48: -3677.22 | AX48: -47243.9 | AY48: -18092.59 | AZ48: 17336.28 | BA48: 0
A49: %,V4470215 | B49: 4470215 | C49: PJM 30m Suppl Reserve CH OSS | F49: 0 | G49: 0 | H49: =+F49-G49 -> 0 | I49: =IF(G49<0,IF(H49=0,0,IF(OR(G49=0,F49=0),"N.M.",IF(ABS(H49/G49)>=10,"N.M.",H49/(-G49)))),IF(H49=0,0,IF(OR(G49=0,F49=0),"N.M.",IF(ABS(H49/G49)>=10,"N.M.",H49/G49)))) -> 0 | K49: 0 | L49: 2730.93 | Q49: 0 | R49: 0 | V49: 0 | W49: 2730.93 | X49: =+V49-W49 -> -2730.93 | Y49: =IF(W49<0,IF(X49=0,0,IF(OR(W49=0,V49=0),"N.M.",IF(ABS(X49/W49)>=10,"N.M.",X49/(-W49)))),IF(X49=0,0,IF(OR(W49=0,V49=0),"N.M.",IF(ABS(X49/W49)>=10,"N.M.",X49/W49)))) -> N.M. | AA49: 0 | AC49: 0 | AD49: 2550.43 | AE49: 180.5 | AF49: 0 | AG49: 0 | AH49: 0 | AI49: 0 | AJ49: 0 | AK49: 0 | AL49: 0 | AM49: 0 | AN49: 0 | AP49: 0 | AQ49: 0 | AR49: 0 | AS49: 0 | AT49: 0 | AU49: 0 | AV49: 0 | AW49: 0 | AX49: 0 | AY49: 0 | AZ49: 0 | BA49: 0
A50: %,V4470220 | B50: 4470220 | C50: PJM Regulation - OSS | F50: 63996.65 | G50: 285996.47 | H50: =+F50-G50 -> -221999.82 | I50: =IF(G50<0,IF(H50=0,0,IF(OR(G50=0,F50=0),"N.M.",IF(ABS(H50/G50)>=10,"N.M.",H50/(-G50)))),IF(H50=0,0,IF(OR(G50=0,F50=0),"N.M.",IF(ABS(H50/G50)>=10,"N.M.",H50/G50)))) -> -0.7762327276 | K50: 3432489.99 | L50: 3958710.8 | Q50: 530649.69 | R50: 1092911.56 | V50: 4482461.86 | W50: 4375998.46 | X50: =+V50-W50 -> 106463.4 | Y50: =IF(W50<0,IF(X50=0,0,IF(OR(W50=0,V50=0),"N.M.",IF(ABS(X50/W50)>=10,"N.M.",X50/(-W50)))),IF(X50=0,0,IF(OR(W50=0,V50=0),"N.M.",IF(ABS(X50/W50)>=10,"N.M.",X50/W50)))) -> 0.02432893909 | AA50: 254131.51 | AC50: 342235.67 | AD50: 306341.21 | AE50: 557469.28 | AF50: 442549.06 | AG50: 209408.67 | AH50: 444043.5 | AI50: 563751.85 | AJ50: 623841.85 | AK50: 183073.24 | AL50: 285996.47 | AM50: 677522.23 | AN50: 372449.64 | AP50: 627126.58 | AQ50: 232646.66 | AR50: 541674.88 | AS50: 586031.62 | AT50: 410211.49 | AU50: 114346.43 | AV50: 389802.64 | AW50: 273252.59 | AX50: 193400.45 | AY50: 63996.65 | AZ50: -528.66 | BA50: 0
A51: %,V4470221 | B51: 4470221 | C51: PJM Spinning Reserve - OSS | F51: 27213.73 | G51: 5831.73 | H51: =+F51-G51 -> 21382 | I51: =IF(G51<0,IF(H51=0,0,IF(OR(G51=0,F51=0),"N.M.",IF(ABS(H51/G51)>=10,"N.M.",H51/(-G51)))),IF(H51=0,0,IF(OR(G51=0,F51=0),"N.M.",IF(ABS(H51/G51)>=10,"N.M.",H51/G51)))) -> 3.666493476 | K51: 156304.15 | L51: 51072.23 | Q51: 39844.65 | R51: 18131.26 | V51: 173410.79 | W51: 57900.26 | X51: =+V51-W51 -> 115510.53 | Y51: =IF(W51<0,IF(X51=0,0,IF(OR(W51=0,V51=0),"N.M.",IF(ABS(X51/W51)>=10,"N.M.",X51/(-W51)))),IF(X51=0,0,IF(OR(W51=0,V51=0),"N.M.",IF(ABS(X51/W51)>=10,"N.M.",X51/W51)))) -> 1.99499156 | AA51: 7173.88 | AC51: -5814.89 | AD51: 4026.86 | AE51: 5223.67 | AF51: 1695.57 | AG51: 17364.36 | AH51: 1156.82 | AI51: 9288.58 | AJ51: 13358.47 | AK51: -1058.94 | AL51: 5831.73 | AM51: 7426.73 | AN51: 9679.91 | AP51: 8819.03 | AQ51: 21730.89 | AR51: -1858.28 | AS51: 13366.32 | AT51: 7290.19 | AU51: 15059.88 | AV51: 52051.47 | AW51: 3497.27 | AX51: 9133.65 | AY51: 27213.73 | AZ51: -20951.35 | BA51: 0
A52: %,R,FACCOUNT,TGL_FERC_ACCT,XDYYNNY01,N4470 | C52: Sales for Resale | F52: 3093690.37 | G52: 1588699.28 | H52: =+F52-G52 -> 1504991.09 | I52: =IF(G52<0,IF(H52=0,0,IF(OR(G52=0,F52=0),"N.M.",IF(ABS(H52/G52)>=10,"N.M.",H52/(-G52)))),IF(H52=0,0,IF(OR(G52=0,F52=0),"N.M.",IF(ABS(H52/G52)>=10,"N.M.",H52/G52)))) -> 0.9473102361 | K52: 24297262.62 | L52: 19281502.01 | Q52: 7922024.93 | R52: 5511202.66 | V52: 28878091.73 | W52: 21142278.37 | X52: =+V52-W52 -> 7735813.36 | Y52: =IF(W52<0,IF(X52=0,0,IF(OR(W52=0,V52=0),"N.M.",IF(ABS(X52/W52)>=10,"N.M.",X52/(-W52)))),IF(X52=0,0,IF(OR(W52=0,V52=0),"N.M.",IF(ABS(X52/W52)>=10,"N.M.",X52/W52)))) -> 0.3658930804 | AA52: 1214080.95 | AC52: 683024.81 | AD52: 1493448.83 | AE52: 1793634.54 | AF52: 950247.84 | AG52: 978352.99 | AH52: 4475362.01 | AI52: 3396228.33 | AJ52: 3057769.37 | AK52: 864734.01 | AL52: 1588699.28 | AM52: 2474031.31 | AN52: 2106797.8 | AP52: 2759255.97 | AQ52: 1640503.21 | AR52: 1632297.88 | AS52: 2082504.85 | AT52: 2190213.92 | AU52: 5001318.41 | AV52: 1069143.45 | AW52: 3620859.6 | AX52: 1207474.96 | AY52: 3093690.37 | AZ52: 356729078.6 | BA52: 0
C53: Sales of Electricity | F53: =+F52+F27+#REF!+F23 ->  | G53: =+G52+G27+#REF!+G23 ->  | H53: =+F53-G53 ->  | I53: =IF(G53<0,IF(H53=0,0,IF(OR(G53=0,F53=0),"N.M.",IF(ABS(H53/G53)>=10,"N.M.",H53/(-G53)))),IF(H53=0,0,IF(OR(G53=0,F53=0),"N.M.",IF(ABS(H53/G53)>=10,"N.M.",H53/G53)))) ->  | K53: =+K52+K27+#REF!+K23 ->  | L53: =+L52+L27+#REF!+L23 ->  | M53: =+K53-L53 ->  | N53: =IF(L53<0,IF(M53=0,0,IF(OR(L53=0,K53=0),"N.M.",IF(ABS(M53/L53)>=10,"N.M.",M53/(-L53)))),IF(M53=0,0,IF(OR(L53=0,K53=0),"N.M.",IF(ABS(M53/L53)>=10,"N.M.",M53/L53)))) ->  | Q53: =+Q52+Q27+#REF!+Q23 ->  | R53: =+R52+R27+#REF!+R23 ->  | S53: =+Q53-R53 ->  | T53: =IF(R53<0,IF(S53=0,0,IF(OR(R53=0,Q53=0),"N.M.",IF(ABS(S53/R53)>=10,"N.M.",S53/(-R53)))),IF(S53=0,0,IF(OR(R53=0,Q53=0),"N.M.",IF(ABS(S53/R53)>=10,"N.M.",S53/R53)))) ->  | V53: =+V52+V27+#REF!+V23 ->  | W53: =+W52+W27+#REF!+W23 ->  | X53: =+V53-W53 ->  | Y53: =IF(W53<0,IF(X53=0,0,IF(OR(W53=0,V53=0),"N.M.",IF(ABS(X53/W53)>=10,"N.M.",X53/(-W53)))),IF(X53=0,0,IF(OR(W53=0,V53=0),"N.M.",IF(ABS(X53/W53)>=10,"N.M.",X53/W53)))) ->  | AA53: =+AA52+AA27+#REF!+AA23 ->  | AC53: =+AC52+AC27+#REF!+AC23 ->  | AD53: =+AD52+AD27+#REF!+AD23 ->  | AE53: =+AE52+AE27+#REF!+AE23 ->  | AF53: =+AF52+AF27+#REF!+AF23 ->  | AG53: =+AG52+AG27+#REF!+AG23 ->  | AH53: =+AH52+AH27+#REF!+AH23 ->  | AI53: =+AI52+AI27+#REF!+AI23 ->  | AJ53: =+AJ52+AJ27+#REF!+AJ23 ->  | AK53: =+AK52+AK27+#REF!+AK23 ->  | AL53: =+AL52+AL27+#REF!+AL23 ->  | AM53: =+AM52+AM27+#REF!+AM23 ->  | AN53: =+AN52+AN27+#REF!+AN23 ->  | AP53: =+AP52+AP27+#REF!+AP23 ->  | AQ53: =+AQ52+AQ27+#REF!+AQ23 ->  | AR53: =+AR52+AR27+#REF!+AR23 ->  | AS53: =+AS52+AS27+#REF!+AS23 ->  | AT53: =+AT52+AT27+#REF!+AT23 ->  | AU53: =+AU52+AU27+#REF!+AU23 ->  | AV53: =+AV52+AV27+#REF!+AV23 ->  | AW53: =+AW52+AW27+#REF!+AW23 ->  | AX53: =+AX52+AX27+#REF!+AX23 ->  | AY53: =+AY52+AY27+#REF!+AY23 ->  | AZ53: =+AZ52+AZ27+#REF!+AZ23 ->  | BA53: =+BA52+BA27+#REF!+BA23 -> 
A54: %,V4491002 | B54: 4491002 | C54: Non-Tran Prov Rate Ref Whlsale | F54: 0 | G54: -17115 | H54: =+F54-G54 -> 17115 | I54: =IF(G54<0,IF(H54=0,0,IF(OR(G54=0,F54=0),"N.M.",IF(ABS(H54/G54)>=10,"N.M.",H54/(-G54)))),IF(H54=0,0,IF(OR(G54=0,F54=0),"N.M.",IF(ABS(H54/G54)>=10,"N.M.",H54/G54)))) -> N.M. | K54: 0 | L54: -103014 | M54: =+K54-L54 -> 103014 | N54: =IF(L54<0,IF(M54=0,0,IF(OR(L54=0,K54=0),"N.M.",IF(ABS(M54/L54)>=10,"N.M.",M54/(-L54)))),IF(M54=0,0,IF(OR(L54=0,K54=0),"N.M.",IF(ABS(M54/L54)>=10,"N.M.",M54/L54)))) -> N.M. | Q54: 0 | R54: -50931 | S54: =+Q54-R54 -> 50931 | T54: =IF(R54<0,IF(S54=0,0,IF(OR(R54=0,Q54=0),"N.M.",IF(ABS(S54/R54)>=10,"N.M.",S54/(-R54)))),IF(S54=0,0,IF(OR(R54=0,Q54=0),"N.M.",IF(ABS(S54/R54)>=10,"N.M.",S54/R54)))) -> N.M. | V54: -718044 | W54: 701934 | X54: =+V54-W54 -> -1419978 | Y54: =IF(W54<0,IF(X54=0,0,IF(OR(W54=0,V54=0),"N.M.",IF(ABS(X54/W54)>=10,"N.M.",X54/(-W54)))),IF(X54=0,0,IF(OR(W54=0,V54=0),"N.M.",IF(ABS(X54/W54)>=10,"N.M.",X54/W54)))) -> -2.022950876 | AA54: 903607 | AC54: -66039 | AD54: -66039 | AE54: 94487 | AF54: -12703 | AG54: -33997 | AH54: -17060 | AI54: 49268 | AJ54: -16937 | AK54: -16879 | AL54: -17115 | AM54: -17050 | AN54: -700994 | AP54: -15607 | AQ54: -24369 | AR54: 39976 | AS54: 0 | AT54: 0 | AU54: 0 | AV54: 0 | AW54: 0 | AX54: 0 | AY54: 0 | AZ54: 0 | BA54: 0
A55: %,V4491003 | B55: 4491003 | C55: Non-Tran Prov Rate Ref Retail | F55: 0 | G55: -3891 | H55: =+F55-G55 -> 3891 | I55: =IF(G55<0,IF(H55=0,0,IF(OR(G55=0,F55=0),"N.M.",IF(ABS(H55/G55)>=10,"N.M.",H55/(-G55)))),IF(H55=0,0,IF(OR(G55=0,F55=0),"N.M.",IF(ABS(H55/G55)>=10,"N.M.",H55/G55)))) -> N.M. | K55: 0 | L55: -22740 | M55: =+K55-L55 -> 22740 | N55: =IF(L55<0,IF(M55=0,0,IF(OR(L55=0,K55=0),"N.M.",IF(ABS(M55/L55)>=10,"N.M.",M55/(-L55)))),IF(M55=0,0,IF(OR(L55=0,K55=0),"N.M.",IF(ABS(M55/L55)>=10,"N.M.",M55/L55)))) -> N.M. | Q55: 0 | R55: -11575 | S55: =+Q55-R55 -> 11575 | T55: =IF(R55<0,IF(S55=0,0,IF(OR(R55=0,Q55=0),"N.M.",IF(ABS(S55/R55)>=10,"N.M.",S55/(-R55)))),IF(S55=0,0,IF(OR(R55=0,Q55=0),"N.M.",IF(ABS(S55/R55)>=10,"N.M.",S55/R55)))) -> N.M. | V55: -158610 | W55: -149187 | X55: =+V55-W55 -> -9423 | Y55: =IF(W55<0,IF(X55=0,0,IF(OR(W55=0,V55=0),"N.M.",IF(ABS(X55/W55)>=10,"N.M.",X55/(-W55)))),IF(X55=0,0,IF(OR(W55=0,V55=0),"N.M.",IF(ABS(X55/W55)>=10,"N.M.",X55/W55)))) -> -0.06316233988 | AA55: -126447 | AC55: 0 | AD55: 0 | AE55: -8413 | AF55: -2843 | AG55: -7940 | AH55: -3883 | AI55: 11914 | AJ55: -3848 | AK55: -3836 | AL55: -3891 | AM55: -3877 | AN55: -154733 | AP55: -3541 | AQ55: -5497 | AR55: 9038 | AS55: 0 | AT55: 0 | AU55: 0 | AV55: 0 | AW55: 0 | AX55: 0 | AY55: 0 | AZ55: 0 | BA55: 0
A56: %,V4491004 | B56: 4491004 | C56: Prov Rate Refund - Affiliated | F56: 0 | G56: -114580 | H56: =+F56-G56 -> 114580 | I56: =IF(G56<0,IF(H56=0,0,IF(OR(G56=0,F56=0),"N.M.",IF(ABS(H56/G56)>=10,"N.M.",H56/(-G56)))),IF(H56=0,0,IF(OR(G56=0,F56=0),"N.M.",IF(ABS(H56/G56)>=10,"N.M.",H56/G56)))) -> N.M. | K56: 0 | L56: -667094 | M56: =+K56-L56 -> 667094 | N56: =IF(L56<0,IF(M56=0,0,IF(OR(L56=0,K56=0),"N.M.",IF(ABS(M56/L56)>=10,"N.M.",M56/(-L56)))),IF(M56=0,0,IF(OR(L56=0,K56=0),"N.M.",IF(ABS(M56/L56)>=10,"N.M.",M56/L56)))) -> N.M. | Q56: 0 | R56: -340947 | S56: =+Q56-R56 -> 340947 | T56: =IF(R56<0,IF(S56=0,0,IF(OR(R56=0,Q56=0),"N.M.",IF(ABS(S56/R56)>=10,"N.M.",S56/(-R56)))),IF(S56=0,0,IF(OR(R56=0,Q56=0),"N.M.",IF(ABS(S56/R56)>=10,"N.M.",S56/R56)))) -> N.M. | V56: -4777084 | W56: -4688902 | X56: =+V56-W56 -> -88182 | Y56: =IF(W56<0,IF(X56=0,0,IF(OR(W56=0,V56=0),"N.M.",IF(ABS(X56/W56)>=10,"N.M.",X56/(-W56)))),IF(X56=0,0,IF(OR(W56=0,V56=0),"N.M.",IF(ABS(X56/W56)>=10,"N.M.",X56/W56)))) -> -0.01880653509 | AA56: -4060797 | AC56: 0 | AD56: 0 | AE56: -250484 | AF56: -84643 | AG56: -230025 | AH56: -114363 | AI56: 353368 | AJ56: -113388 | AK56: -112979 | AL56: -114580 | AM56: -114134 | AN56: -4662950 | AP56: -104520 | AQ56: -162857 | AR56: 267377 | AS56: 0 | AT56: 0 | AU56: 0 | AV56: 0 | AW56: 0 | AX56: 0 | AY56: 0 | AZ56: 0 | BA56: 0
A57: %,V4491005 | B57: 4491005 | C57: Tran Prov Trans Ref NonAffil | F57: -107 | G57: 0 | H57: =+F57-G57 -> -107 | I57: =IF(G57<0,IF(H57=0,0,IF(OR(G57=0,F57=0),"N.M.",IF(ABS(H57/G57)>=10,"N.M.",H57/(-G57)))),IF(H57=0,0,IF(OR(G57=0,F57=0),"N.M.",IF(ABS(H57/G57)>=10,"N.M.",H57/G57)))) -> N.M. | K57: 523443 | L57: 0 | M57: =+K57-L57 -> 523443 | N57: =IF(L57<0,IF(M57=0,0,IF(OR(L57=0,K57=0),"N.M.",IF(ABS(M57/L57)>=10,"N.M.",M57/(-L57)))),IF(M57=0,0,IF(OR(L57=0,K57=0),"N.M.",IF(ABS(M57/L57)>=10,"N.M.",M57/L57)))) -> N.M. | Q57: -1074 | R57: 0 | S57: =+Q57-R57 -> -1074 | T57: =IF(R57<0,IF(S57=0,0,IF(OR(R57=0,Q57=0),"N.M.",IF(ABS(S57/R57)>=10,"N.M.",S57/(-R57)))),IF(S57=0,0,IF(OR(R57=0,Q57=0),"N.M.",IF(ABS(S57/R57)>=10,"N.M.",S57/R57)))) -> N.M. | V57: 523443 | W57: 0 | X57: =+V57-W57 -> 523443 | Y57: =IF(W57<0,IF(X57=0,0,IF(OR(W57=0,V57=0),"N.M.",IF(ABS(X57/W57)>=10,"N.M.",X57/(-W57)))),IF(X57=0,0,IF(OR(W57=0,V57=0),"N.M.",IF(ABS(X57/W57)>=10,"N.M.",X57/W57)))) -> N.M. | AA57: 0 | AC57: 0 | AD57: 0 | AE57: 0 | AF57: 0 | AG57: 0 | AH57: 0 | AI57: 0 | AJ57: 0 | AK57: 0 | AL57: 0 | AM57: 0 | AN57: 0 | AP57: 0 | AQ57: 0 | AR57: -60327 | AS57: -20067 | AT57: -20302 | AU57: 625314 | AV57: -101 | AW57: -101 | AX57: -866 | AY57: -107 | AZ57: 17604 | BA57: 0
A58: %,V4491006 | B58: 4491006 | C58: Tran Prov Trans Ref Frml Rate | F58: -27 | G58: 0 | H58: =+F58-G58 -> -27 | I58: =IF(G58<0,IF(H58=0,0,IF(OR(G58=0,F58=0),"N.M.",IF(ABS(H58/G58)>=10,"N.M.",H58/(-G58)))),IF(H58=0,0,IF(OR(G58=0,F58=0),"N.M.",IF(ABS(H58/G58)>=10,"N.M.",H58/G58)))) -> N.M. | K58: 100999 | L58: 0 | M58: =+K58-L58 -> 100999 | N58: =IF(L58<0,IF(M58=0,0,IF(OR(L58=0,K58=0),"N.M.",IF(ABS(M58/L58)>=10,"N.M.",M58/(-L58)))),IF(M58=0,0,IF(OR(L58=0,K58=0),"N.M.",IF(ABS(M58/L58)>=10,"N.M.",M58/L58)))) -> N.M. | Q58: -271 | R58: 0 | S58: =+Q58-R58 -> -271 | T58: =IF(R58<0,IF(S58=0,0,IF(OR(R58=0,Q58=0),"N.M.",IF(ABS(S58/R58)>=10,"N.M.",S58/(-R58)))),IF(S58=0,0,IF(OR(R58=0,Q58=0),"N.M.",IF(ABS(S58/R58)>=10,"N.M.",S58/R58)))) -> N.M. | V58: 100999 | W58: 0 | X58: =+V58-W58 -> 100999 | Y58: =IF(W58<0,IF(X58=0,0,IF(OR(W58=0,V58=0),"N.M.",IF(ABS(X58/W58)>=10,"N.M.",X58/(-W58)))),IF(X58=0,0,IF(OR(W58=0,V58=0),"N.M.",IF(ABS(X58/W58)>=10,"N.M.",X58/W58)))) -> N.M. | AA58: 0 | AC58: 0 | AD58: 0 | AE58: 0 | AF58: 0 | AG58: 0 | AH58: 0 | AI58: 0 | AJ58: 0 | AK58: 0 | AL58: 0 | AM58: 0 | AN58: 0 | AP58: 0 | AQ58: 0 | AR58: -13643 | AS58: -4535 | AT58: -4589 | AU58: 124062 | AV58: -25 | AW58: -25 | AX58: -219 | AY58: -27 | AZ58: 4450 | BA58: 0
A59: %,V4491007 | B59: 4491007 | C59: Trans Prov Trans Refunds Affil | F59: -797 | G59: 0 | H59: =+F59-G59 -> -797 | I59: =IF(G59<0,IF(H59=0,0,IF(OR(G59=0,F59=0),"N.M.",IF(ABS(H59/G59)>=10,"N.M.",H59/(-G59)))),IF(H59=0,0,IF(OR(G59=0,F59=0),"N.M.",IF(ABS(H59/G59)>=10,"N.M.",H59/G59)))) -> N.M. | K59: 2941204 | L59: 0 | M59: =+K59-L59 -> 2941204 | N59: =IF(L59<0,IF(M59=0,0,IF(OR(L59=0,K59=0),"N.M.",IF(ABS(M59/L59)>=10,"N.M.",M59/(-L59)))),IF(M59=0,0,IF(OR(L59=0,K59=0),"N.M.",IF(ABS(M59/L59)>=10,"N.M.",M59/L59)))) -> N.M. | Q59: -7991 | R59: 0 | S59: =+Q59-R59 -> -7991 | T59: =IF(R59<0,IF(S59=0,0,IF(OR(R59=0,Q59=0),"N.M.",IF(ABS(S59/R59)>=10,"N.M.",S59/(-R59)))),IF(S59=0,0,IF(OR(R59=0,Q59=0),"N.M.",IF(ABS(S59/R59)>=10,"N.M.",S59/R59)))) -> N.M. | V59: 2941204 | W59: 0 | X59: =+V59-W59 -> 2941204 | Y59: =IF(W59<0,IF(X59=0,0,IF(OR(W59=0,V59=0),"N.M.",IF(ABS(X59/W59)>=10,"N.M.",X59/(-W59)))),IF(X59=0,0,IF(OR(W59=0,V59=0),"N.M.",IF(ABS(X59/W59)>=10,"N.M.",X59/W59)))) -> N.M. | AA59: 0 | AC59: 0 | AD59: 0 | AE59: 0 | AF59: 0 | AG59: 0 | AH59: 0 | AI59: 0 | AJ59: 0 | AK59: 0 | AL59: 0 | AM59: 0 | AN59: 0 | AP59: 0 | AQ59: 0 | AR59: -403513 | AS59: -134198 | AT59: -135775 | AU59: 3623431 | AV59: -750 | AW59: -750 | AX59: -6444 | AY59: -797 | AZ59: 130993 | BA59: 0
A60: %,R,FACCOUNT,TGL_FERC_ACCT,XDYYNNY01,N449 | C60: Less Rate Refund Provision | F60: -931 | G60: -135586 | H60: =+F60-G60 -> 134655 | I60: =IF(G60<0,IF(H60=0,0,IF(OR(G60=0,F60=0),"N.M.",IF(ABS(H60/G60)>=10,"N.M.",H60/(-G60)))),IF(H60=0,0,IF(OR(G60=0,F60=0),"N.M.",IF(ABS(H60/G60)>=10,"N.M.",H60/G60)))) -> 0.9931335094 | K60: 3565646 | L60: -792848 | M60: =+K60-L60 -> 4358494 | N60: =IF(L60<0,IF(M60=0,0,IF(OR(L60=0,K60=0),"N.M.",IF(ABS(M60/L60)>=10,"N.M.",M60/(-L60)))),IF(M60=0,0,IF(OR(L60=0,K60=0),"N.M.",IF(ABS(M60/L60)>=10,"N.M.",M60/L60)))) -> 5.497263032 | Q60: -9336 | R60: -403453 | S60: =+Q60-R60 -> 394117 | T60: =IF(R60<0,IF(S60=0,0,IF(OR(R60=0,Q60=0),"N.M.",IF(ABS(S60/R60)>=10,"N.M.",S60/(-R60)))),IF(S60=0,0,IF(OR(R60=0,Q60=0),"N.M.",IF(ABS(S60/R60)>=10,"N.M.",S60/R60)))) -> 0.9768597581 | V60: -2088092 | W60: -4136155 | X60: =+V60-W60 -> 2048063 | Y60: =IF(W60<0,IF(X60=0,0,IF(OR(W60=0,V60=0),"N.M.",IF(ABS(X60/W60)>=10,"N.M.",X60/(-W60)))),IF(X60=0,0,IF(OR(W60=0,V60=0),"N.M.",IF(ABS(X60/W60)>=10,"N.M.",X60/W60)))) -> 0.4951610856 | AA60: -3283637 | AC60: -66039 | AD60: -66039 | AE60: -164410 | AF60: -100189 | AG60: -271962 | AH60: -135306 | AI60: 414550 | AJ60: -134173 | AK60: -133694 | AL60: -135586 | AM60: -135061 | AN60: -5518677 | AP60: -123668 | AQ60: -192723 | AR60: -161092 | AS60: -158800 | AT60: -160666 | AU60: 4372807 | AV60: -876 | AW60: -876 | AX60: -7529 | AY60: -931 | AZ60: 153047 | BA60: 0
A62: %,V4500000 | B62: 4500000 | C62: Forfeited Discounts | F62: 143924.36 | G62: 50006.93 | H62: =+F62-G62 -> 93917.43 | I62: =IF(G62<0,IF(H62=0,0,IF(OR(G62=0,F62=0),"N.M.",IF(ABS(H62/G62)>=10,"N.M.",H62/(-G62)))),IF(H62=0,0,IF(OR(G62=0,F62=0),"N.M.",IF(ABS(H62/G62)>=10,"N.M.",H62/G62)))) -> 1.878088297 | K62: 1204916.68 | L62: 706993.89 | M62: =+K62-L62 -> 497922.79 | N62: =IF(L62<0,IF(M62=0,0,IF(OR(L62=0,K62=0),"N.M.",IF(ABS(M62/L62)>=10,"N.M.",M62/(-L62)))),IF(M62=0,0,IF(OR(L62=0,K62=0),"N.M.",IF(ABS(M62/L62)>=10,"N.M.",M62/L62)))) -> 0.7042816028 | Q62: 392655.99 | R62: 218864.06 | S62: =+Q62-R62 -> 173791.93 | T62: =IF(R62<0,IF(S62=0,0,IF(OR(R62=0,Q62=0),"N.M.",IF(ABS(S62/R62)>=10,"N.M.",S62/(-R62)))),IF(S62=0,0,IF(OR(R62=0,Q62=0),"N.M.",IF(ABS(S62/R62)>=10,"N.M.",S62/R62)))) -> 0.794063356 | V62: 1364390.98 | W62: 932398.33 | X62: =+V62-W62 -> 431992.65 | Y62: =IF(W62<0,IF(X62=0,0,IF(OR(W62=0,V62=0),"N.M.",IF(ABS(X62/W62)>=10,"N.M.",X62/(-W62)))),IF(X62=0,0,IF(OR(W62=0,V62=0),"N.M.",IF(ABS(X62/W62)>=10,"N.M.",X62/W62)))) -> 0.4633134103 | AA62: 119734.01 | AC62: 64391.66 | AD62: 85640.83 | AE62: 88713.73 | AF62: 51134.82 | AG62: 97825.05 | AH62: 24866.65 | AI62: 75557.09 | AJ62: 64870.57 | AK62: 103986.56 | AL62: 50006.93 | AM62: 82071.97 | AN62: 77402.33 | AP62: 118690.44 | AQ62: 105048.23 | AR62: 110399.91 | AS62: 102579.11 | AT62: 119621.94 | AU62: 124423.59 | AV62: 131497.47 | AW62: 149009.76 | AX62: 99721.87 | AY62: 143924.36 | AZ62: 0 | BA62: 0
A63: %,V4510001 | B63: 4510001 | C63: Misc Service Rev - Nonaffil | F63: 7727.85 | G63: 8459.74 | H63: =+F63-G63 -> -731.89 | I63: =IF(G63<0,IF(H63=0,0,IF(OR(G63=0,F63=0),"N.M.",IF(ABS(H63/G63)>=10,"N.M.",H63/(-G63)))),IF(H63=0,0,IF(OR(G63=0,F63=0),"N.M.",IF(ABS(H63/G63)>=10,"N.M.",H63/G63)))) -> -0.08651447917 | K63: 77847.01 | L63: 108775.99 | M63: =+K63-L63 -> -30928.98 | N63: =IF(L63<0,IF(M63=0,0,IF(OR(L63=0,K63=0),"N.M.",IF(ABS(M63/L63)>=10,"N.M.",M63/(-L63)))),IF(M63=0,0,IF(OR(L63=0,K63=0),"N.M.",IF(ABS(M63/L63)>=10,"N.M.",M63/L63)))) -> -0.2843364606 | Q63: 16751.76 | R63: 21755.25 | S63: =+Q63-R63 -> -5003.49 | T63: =IF(R63<0,IF(S63=0,0,IF(OR(R63=0,Q63=0),"N.M.",IF(ABS(S63/R63)>=10,"N.M.",S63/(-R63)))),IF(S63=0,0,IF(OR(R63=0,Q63=0),"N.M.",IF(ABS(S63/R63)>=10,"N.M.",S63/R63)))) -> -0.2299900024 | V63: 92324.26 | W63: 123903.79 | X63: =+V63-W63 -> -31579.53 | Y63: =IF(W63<0,IF(X63=0,0,IF(OR(W63=0,V63=0),"N.M.",IF(ABS(X63/W63)>=10,"N.M.",X63/(-W63)))),IF(X63=0,0,IF(OR(W63=0,V63=0),"N.M.",IF(ABS(X63/W63)>=10,"N.M.",X63/W63)))) -> -0.2548713804 | AA63: 8611.03 | AC63: 8519.01 | AD63: 9567.91 | AE63: 14438.34 | AF63: 20513.65 | AG63: 10842.78 | AH63: 10471.69 | AI63: 12667.36 | AJ63: 7478.07 | AK63: 5817.44 | AL63: 8459.74 | AM63: 5247.81 | AN63: 9229.44 | AP63: 6667.37 | AQ63: 2008.69 | AR63: 13707.79 | AS63: 4911.74 | AT63: 11573.02 | AU63: 9475.14 | AV63: 12751.5 | AW63: 10697.33 | AX63: -1673.42 | AY63: 7727.85 | AZ63: 100 | BA63: 0
A64: %,V4540001 | B64: 4540001 | C64: Rent From Elect Property - Af | F64: 149022.995 | G64: 130536.815 | H64: =+F64-G64 -> 18486.18 | I64: =IF(G64<0,IF(H64=0,0,IF(OR(G64=0,F64=0),"N.M.",IF(ABS(H64/G64)>=10,"N.M.",H64/(-G64)))),IF(H64=0,0,IF(OR(G64=0,F64=0),"N.M.",IF(ABS(H64/G64)>=10,"N.M.",H64/G64)))) -> 0.1416166007 | K64: 1543815.95 | L64: 997028.64 | M64: =+K64-L64 -> 546787.31 | N64: =IF(L64<0,IF(M64=0,0,IF(OR(L64=0,K64=0),"N.M.",IF(ABS(M64/L64)>=10,"N.M.",M64/(-L64)))),IF(M64=0,0,IF(OR(L64=0,K64=0),"N.M.",IF(ABS(M64/L64)>=10,"N.M.",M64/L64)))) -> 0.5484168539 | Q64: 523551.175 | R64: 322595.015 | S64: =+Q64-R64 -> 200956.16 | T64: =IF(R64<0,IF(S64=0,0,IF(OR(R64=0,Q64=0),"N.M.",IF(ABS(S64/R64)>=10,"N.M.",S64/(-R64)))),IF(S64=0,0,IF(OR(R64=0,Q64=0),"N.M.",IF(ABS(S64/R64)>=10,"N.M.",S64/R64)))) -> 0.6229363464 | V64: 1775663.56 | W64: 1169746.41 | X64: =+V64-W64 -> 605917.15 | Y64: =IF(W64<0,IF(X64=0,0,IF(OR(W64=0,V64=0),"N.M.",IF(ABS(X64/W64)>=10,"N.M.",X64/(-W64)))),IF(X64=0,0,IF(OR(W64=0,V64=0),"N.M.",IF(ABS(X64/W64)>=10,"N.M.",X64/W64)))) -> 0.517990177 | AA64: 86328.65 | AC64: 93243.085 | AD64: 93066.075 | AE64: 93123.915 | AF64: 115143.785 | AG64: 93079.935 | AH64: 93424.855 | AI64: 93351.975 | AJ64: 93248.605 | AK64: 98809.595 | AL64: 130536.815 | AM64: 102060.935 | AN64: 129786.675 | AP64: 186737.245 | AQ64: 148899.075 | AR64: 148812.865 | AS64: 148739.795 | AT64: 148748.575 | AU64: 121231.235 | AV64: 117095.985 | AW64: 226451.425 | AX64: 148076.755 | AY64: 149022.995 | AZ64: 340036.05 | BA64: 0
A65: %,V4540002 | B65: 4540002 | C65: Rent From Elect Property-NAC | F65: 176972.26 | G65: 216239.5 | H65: =+F65-G65 -> -39267.24 | I65: =IF(G65<0,IF(H65=0,0,IF(OR(G65=0,F65=0),"N.M.",IF(ABS(H65/G65)>=10,"N.M.",H65/(-G65)))),IF(H65=0,0,IF(OR(G65=0,F65=0),"N.M.",IF(ABS(H65/G65)>=10,"N.M.",H65/G65)))) -> -0.1815914299 | K65: 1980213.19 | L65: 2827157.07 | M65: =+K65-L65 -> -846943.88 | N65: =IF(L65<0,IF(M65=0,0,IF(OR(L65=0,K65=0),"N.M.",IF(ABS(M65/L65)>=10,"N.M.",M65/(-L65)))),IF(M65=0,0,IF(OR(L65=0,K65=0),"N.M.",IF(ABS(M65/L65)>=10,"N.M.",M65/L65)))) -> -0.299574399 | Q65: 714571.97 | R65: 632180.13 | S65: =+Q65-R65 -> 82391.84 | T65: =IF(R65<0,IF(S65=0,0,IF(OR(R65=0,Q65=0),"N.M.",IF(ABS(S65/R65)>=10,"N.M.",S65/(-R65)))),IF(S65=0,0,IF(OR(R65=0,Q65=0),"N.M.",IF(ABS(S65/R65)>=10,"N.M.",S65/R65)))) -> 0.1303296894 | V65: 2362513.78 | W65: 3499726.53 | X65: =+V65-W65 -> -1137212.75 | Y65: =IF(W65<0,IF(X65=0,0,IF(OR(W65=0,V65=0),"N.M.",IF(ABS(X65/W65)>=10,"N.M.",X65/(-W65)))),IF(X65=0,0,IF(OR(W65=0,V65=0),"N.M.",IF(ABS(X65/W65)>=10,"N.M.",X65/W65)))) -> -0.3249433178 | AA65: 369707.88 | AC65: 321742.5 | AD65: 360075.31 | AE65: 354251.31 | AF65: 412664.58 | AG65: 253025.64 | AH65: 255401.04 | AI65: 237816.56 | AJ65: 216051.21 | AK65: 199889.42 | AL65: 216239.5 | AM65: 196054.2 | AN65: 186246.39 | AP65: 211328.39 | AQ65: 175 | AR65: 493669.1 | AS65: 298994.46 | AT65: 175 | AU65: 261124.27 | AV65: 175 | AW65: 375839.37 | AX65: 161760.34 | AY65: 176972.26 | AZ65: 156781.32 | BA65: 0
A66: %,V4540004 | B66: 4540004 | C66: Rent From Elect Prop-ABD-Nonaf | F66: 0 | G66: 0 | H66: =+F66-G66 -> 0 | I66: =IF(G66<0,IF(H66=0,0,IF(OR(G66=0,F66=0),"N.M.",IF(ABS(H66/G66)>=10,"N.M.",H66/(-G66)))),IF(H66=0,0,IF(OR(G66=0,F66=0),"N.M.",IF(ABS(H66/G66)>=10,"N.M.",H66/G66)))) -> 0 | K66: -8941.71 | L66: 1674.35 | M66: =+K66-L66 -> -10616.06 | N66: =IF(L66<0,IF(M66=0,0,IF(OR(L66=0,K66=0),"N.M.",IF(ABS(M66/L66)>=10,"N.M.",M66/(-L66)))),IF(M66=0,0,IF(OR(L66=0,K66=0),"N.M.",IF(ABS(M66/L66)>=10,"N.M.",M66/L66)))) -> -6.340406725 | Q66: 0 | R66: 0 | S66: =+Q66-R66 -> 0 | T66: =IF(R66<0,IF(S66=0,0,IF(OR(R66=0,Q66=0),"N.M.",IF(ABS(S66/R66)>=10,"N.M.",S66/(-R66)))),IF(S66=0,0,IF(OR(R66=0,Q66=0),"N.M.",IF(ABS(S66/R66)>=10,"N.M.",S66/R66)))) -> 0 | V66: -8941.71 | W66: 8670.37 | X66: =+V66-W66 -> -17612.08 | Y66: =IF(W66<0,IF(X66=0,0,IF(OR(W66=0,V66=0),"N.M.",IF(ABS(X66/W66)>=10,"N.M.",X66/(-W66)))),IF(X66=0,0,IF(OR(W66=0,V66=0),"N.M.",IF(ABS(X66/W66)>=10,"N.M.",X66/W66)))) -> -2.031295089 | AA66: 3498.01 | AC66: -16325.65 | AD66: 3498.01 | AE66: -3498.01 | AF66: 0 | AG66: 0 | AH66: 0 | AI66: 18000 | AJ66: 0 | AK66: 0 | AL66: 0 | AM66: 0 | AN66: 0 | AP66: 0 | AQ66: 0 | AR66: 0 | AS66: 0 | AT66: 0 | AU66: 0 | AV66: -8941.71 | AW66: 0 | AX66: 0 | AY66: 0 | AZ66: 0 | BA66: 0
A67: %,V4540005 | B67: 4540005 | C67: Rent from Elec Prop-Pole Attch | F67: 473759.75 | G67: 417697.63 | H67: =+F67-G67 -> 56062.12 | I67: =IF(G67<0,IF(H67=0,0,IF(OR(G67=0,F67=0),"N.M.",IF(ABS(H67/G67)>=10,"N.M.",H67/(-G67)))),IF(H67=0,0,IF(OR(G67=0,F67=0),"N.M.",IF(ABS(H67/G67)>=10,"N.M.",H67/G67)))) -> 0.1342169933 | K67: 4688168.76 | L67: 4171127.54 | M67: =+K67-L67 -> 517041.22 | N67: =IF(L67<0,IF(M67=0,0,IF(OR(L67=0,K67=0),"N.M.",IF(ABS(M67/L67)>=10,"N.M.",M67/(-L67)))),IF(M67=0,0,IF(OR(L67=0,K67=0),"N.M.",IF(ABS(M67/L67)>=10,"N.M.",M67/L67)))) -> 0.123957183 | Q67: 1420562.94 | R67: 1254266.59 | S67: =+Q67-R67 -> 166296.35 | T67: =IF(R67<0,IF(S67=0,0,IF(OR(R67=0,Q67=0),"N.M.",IF(ABS(S67/R67)>=10,"N.M.",S67/(-R67)))),IF(S67=0,0,IF(OR(R67=0,Q67=0),"N.M.",IF(ABS(S67/R67)>=10,"N.M.",S67/R67)))) -> 0.1325845329 | V67: 5524737.68 | W67: 4912986.49 | X67: =+V67-W67 -> 611751.19 | Y67: =IF(W67<0,IF(X67=0,0,IF(OR(W67=0,V67=0),"N.M.",IF(ABS(X67/W67)>=10,"N.M.",X67/(-W67)))),IF(X67=0,0,IF(OR(W67=0,V67=0),"N.M.",IF(ABS(X67/W67)>=10,"N.M.",X67/W67)))) -> 0.1245171733 | AA67: 370929.48 | AC67: 373468.78 | AD67: 374876.03 | AE67: 337547.54 | AF67: 374047.54 | AG67: 374047.54 | AH67: 664589.04 | AI67: 418284.48 | AJ67: 418284.48 | AK67: 418284.48 | AL67: 417697.63 | AM67: 418284.48 | AN67: 418284.44 | AP67: 395186.98 | AQ67: 393462.25 | AR67: 395095.5 | AS67: 395084.32 | AT67: 395084.32 | AU67: 819804.66 | AV67: 473887.79 | AW67: 473759.75 | AX67: 473043.44 | AY67: 473759.75 | AZ67: 0 | BA67: 0
A68: %,V4560001 | B68: 4560001 | C68: Oth Elect Rev - Affiliated | F68: 24072.88 | G68: 0 | H68: =+F68-G68 -> 24072.88 | I68: =IF(G68<0,IF(H68=0,0,IF(OR(G68=0,F68=0),"N.M.",IF(ABS(H68/G68)>=10,"N.M.",H68/(-G68)))),IF(H68=0,0,IF(OR(G68=0,F68=0),"N.M.",IF(ABS(H68/G68)>=10,"N.M.",H68/G68)))) -> N.M. | K68: 110735.25 | L68: 0 | M68: =+K68-L68 -> 110735.25 | N68: =IF(L68<0,IF(M68=0,0,IF(OR(L68=0,K68=0),"N.M.",IF(ABS(M68/L68)>=10,"N.M.",M68/(-L68)))),IF(M68=0,0,IF(OR(L68=0,K68=0),"N.M.",IF(ABS(M68/L68)>=10,"N.M.",M68/L68)))) -> N.M. | Q68: 72218.64 | R68: 0 | S68: =+Q68-R68 -> 72218.64 | T68: =IF(R68<0,IF(S68=0,0,IF(OR(R68=0,Q68=0),"N.M.",IF(ABS(S68/R68)>=10,"N.M.",S68/(-R68)))),IF(S68=0,0,IF(OR(R68=0,Q68=0),"N.M.",IF(ABS(S68/R68)>=10,"N.M.",S68/R68)))) -> N.M. | V68: 110735.25 | W68: 0 | X68: =+V68-W68 -> 110735.25 | Y68: =IF(W68<0,IF(X68=0,0,IF(OR(W68=0,V68=0),"N.M.",IF(ABS(X68/W68)>=10,"N.M.",X68/(-W68)))),IF(X68=0,0,IF(OR(W68=0,V68=0),"N.M.",IF(ABS(X68/W68)>=10,"N.M.",X68/W68)))) -> N.M. | AA68: 0 | AC68: 0 | AD68: 0 | AE68: 0 | AF68: 0 | AG68: 0 | AH68: 0 | AI68: 0 | AJ68: 0 | AK68: 0 | AL68: 0 | AM68: 0 | AN68: 0 | AP68: 0 | AQ68: 0 | AR68: 0 | AS68: 0 | AT68: 0 | AU68: 14443.73 | AV68: 24072.88 | AW68: 24072.88 | AX68: 24072.88 | AY68: 24072.88 | AZ68: 0 | BA68: 0
A69: %,V4560007 | B69: 4560007 | C69: Oth Elect Rev - DSM Program | F69: 115032.11 | G69: 15339.32 | H69: =+F69-G69 -> 99692.79 | I69: =IF(G69<0,IF(H69=0,0,IF(OR(G69=0,F69=0),"N.M.",IF(ABS(H69/G69)>=10,"N.M.",H69/(-G69)))),IF(H69=0,0,IF(OR(G69=0,F69=0),"N.M.",IF(ABS(H69/G69)>=10,"N.M.",H69/G69)))) -> 6.499166195 | K69: 1123373.59 | L69: 375052.71 | M69: =+K69-L69 -> 748320.88 | N69: =IF(L69<0,IF(M69=0,0,IF(OR(L69=0,K69=0),"N.M.",IF(ABS(M69/L69)>=10,"N.M.",M69/(-L69)))),IF(M69=0,0,IF(OR(L69=0,K69=0),"N.M.",IF(ABS(M69/L69)>=10,"N.M.",M69/L69)))) -> 1.995241895 | Q69: 411290.54 | R69: 56200.89 | S69: =+Q69-R69 -> 355089.65 | T69: =IF(R69<0,IF(S69=0,0,IF(OR(R69=0,Q69=0),"N.M.",IF(ABS(S69/R69)>=10,"N.M.",S69/(-R69)))),IF(S69=0,0,IF(OR(R69=0,Q69=0),"N.M.",IF(ABS(S69/R69)>=10,"N.M.",S69/R69)))) -> 6.318221117 | V69: 1164559.5 | W69: 465388.77 | X69: =+V69-W69 -> 699170.73 | Y69: =IF(W69<0,IF(X69=0,0,IF(OR(W69=0,V69=0),"N.M.",IF(ABS(X69/W69)>=10,"N.M.",X69/(-W69)))),IF(X69=0,0,IF(OR(W69=0,V69=0),"N.M.",IF(ABS(X69/W69)>=10,"N.M.",X69/W69)))) -> 1.502336917 | AA69: 60030.4 | AC69: 188266.06 | AD69: 30016.02 | AE69: 22035.08 | AF69: 17976.27 | AG69: 14628.25 | AH69: 22901.15 | AI69: 23028.99 | AJ69: 22012.24 | AK69: 18849.33 | AL69: 15339.32 | AM69: 14966.96 | AN69: 26218.95 | AP69: 35556.09 | AQ69: 34155.5 | AR69: 119647.75 | AS69: 126267.94 | AT69: 114648.56 | AU69: 120168.05 | AV69: 161639.16 | AW69: 160297.7 | AX69: 135960.73 | AY69: 115032.11 | AZ69: 0 | BA69: 0
A70: %,V4560012 | B70: 4560012 | C70: Oth Elect Rev - Nonaffiliated | F70: 100000 | G70: 0 | H70: =+F70-G70 -> 100000 | I70: =IF(G70<0,IF(H70=0,0,IF(OR(G70=0,F70=0),"N.M.",IF(ABS(H70/G70)>=10,"N.M.",H70/(-G70)))),IF(H70=0,0,IF(OR(G70=0,F70=0),"N.M.",IF(ABS(H70/G70)>=10,"N.M.",H70/G70)))) -> N.M. | K70: 100000 | L70: 0 | M70: =+K70-L70 -> 100000 | N70: =IF(L70<0,IF(M70=0,0,IF(OR(L70=0,K70=0),"N.M.",IF(ABS(M70/L70)>=10,"N.M.",M70/(-L70)))),IF(M70=0,0,IF(OR(L70=0,K70=0),"N.M.",IF(ABS(M70/L70)>=10,"N.M.",M70/L70)))) -> N.M. | Q70: 100000 | R70: 0 | S70: =+Q70-R70 -> 100000 | T70: =IF(R70<0,IF(S70=0,0,IF(OR(R70=0,Q70=0),"N.M.",IF(ABS(S70/R70)>=10,"N.M.",S70/(-R70)))),IF(S70=0,0,IF(OR(R70=0,Q70=0),"N.M.",IF(ABS(S70/R70)>=10,"N.M.",S70/R70)))) -> N.M. | V70: 100000 | W70: 11200 | X70: =+V70-W70 -> 88800 | Y70: =IF(W70<0,IF(X70=0,0,IF(OR(W70=0,V70=0),"N.M.",IF(ABS(X70/W70)>=10,"N.M.",X70/(-W70)))),IF(X70=0,0,IF(OR(W70=0,V70=0),"N.M.",IF(ABS(X70/W70)>=10,"N.M.",X70/W70)))) -> 7.928571429 | AA70: 11200 | AC70: 0 | AD70: 0 | AE70: 0 | AF70: 0 | AG70: 0 | AH70: 0 | AI70: 0 | AJ70: 0 | AK70: 0 | AL70: 0 | AM70: 0 | AN70: 0 | AP70: 0 | AQ70: 0 | AR70: 0 | AS70: 0 | AT70: 0 | AU70: 0 | AV70: 0 | AW70: 0 | AX70: 0 | AY70: 100000 | AZ70: 0 | BA70: 0
A71: %,V4560015 | B71: 4560015 | C71: Other Electric Revenues - ABD | F71: 16020.2 | G71: 20140.37 | H71: =+F71-G71 -> -4120.17 | I71: =IF(G71<0,IF(H71=0,0,IF(OR(G71=0,F71=0),"N.M.",IF(ABS(H71/G71)>=10,"N.M.",H71/(-G71)))),IF(H71=0,0,IF(OR(G71=0,F71=0),"N.M.",IF(ABS(H71/G71)>=10,"N.M.",H71/G71)))) -> -0.2045727065 | K71: 374119.99 | L71: 529966.31 | M71: =+K71-L71 -> -155846.32 | N71: =IF(L71<0,IF(M71=0,0,IF(OR(L71=0,K71=0),"N.M.",IF(ABS(M71/L71)>=10,"N.M.",M71/(-L71)))),IF(M71=0,0,IF(OR(L71=0,K71=0),"N.M.",IF(ABS(M71/L71)>=10,"N.M.",M71/L71)))) -> -0.2940683531 | Q71: 144392.46 | R71: 182248.17 | S71: =+Q71-R71 -> -37855.71 | T71: =IF(R71<0,IF(S71=0,0,IF(OR(R71=0,Q71=0),"N.M.",IF(ABS(S71/R71)>=10,"N.M.",S71/(-R71)))),IF(S71=0,0,IF(OR(R71=0,Q71=0),"N.M.",IF(ABS(S71/R71)>=10,"N.M.",S71/R71)))) -> -0.2077151721 | V71: 475798.58 | W71: 615187.4 | X71: =+V71-W71 -> -139388.82 | Y71: =IF(W71<0,IF(X71=0,0,IF(OR(W71=0,V71=0),"N.M.",IF(ABS(X71/W71)>=10,"N.M.",X71/(-W71)))),IF(X71=0,0,IF(OR(W71=0,V71=0),"N.M.",IF(ABS(X71/W71)>=10,"N.M.",X71/W71)))) -> -0.2265794455 | AA71: 69677.86 | AC71: 174970.37 | AD71: 68630.45 | AE71: 24701.32 | AF71: 14980.79 | AG71: 33964.71 | AH71: 18726.05 | AI71: 11744.45 | AJ71: 151489.73 | AK71: 10618.07 | AL71: 20140.37 | AM71: 42898.57 | AN71: 58780.02 | AP71: 61700.75 | AQ71: 38014 | AR71: 42933.51 | AS71: 10196.64 | AT71: 36018.98 | AU71: 16488.22 | AV71: 24375.43 | AW71: 88451.69 | AX71: 39920.57 | AY71: 16020.2 | AZ71: 9577.35 | BA71: 0
A72: %,V4560041 | B72: 4560041 | C72: Miscellaneous Revenue-NonAffil | F72: 100 | G72: 0 | H72: =+F72-G72 -> 100 | I72: =IF(G72<0,IF(H72=0,0,IF(OR(G72=0,F72=0),"N.M.",IF(ABS(H72/G72)>=10,"N.M.",H72/(-G72)))),IF(H72=0,0,IF(OR(G72=0,F72=0),"N.M.",IF(ABS(H72/G72)>=10,"N.M.",H72/G72)))) -> N.M. | K72: 2224.39 | L72: 0 | M72: =+K72-L72 -> 2224.39 | N72: =IF(L72<0,IF(M72=0,0,IF(OR(L72=0,K72=0),"N.M.",IF(ABS(M72/L72)>=10,"N.M.",M72/(-L72)))),IF(M72=0,0,IF(OR(L72=0,K72=0),"N.M.",IF(ABS(M72/L72)>=10,"N.M.",M72/L72)))) -> N.M. | Q72: 100 | R72: 0 | S72: =+Q72-R72 -> 100 | T72: =IF(R72<0,IF(S72=0,0,IF(OR(R72=0,Q72=0),"N.M.",IF(ABS(S72/R72)>=10,"N.M.",S72/(-R72)))),IF(S72=0,0,IF(OR(R72=0,Q72=0),"N.M.",IF(ABS(S72/R72)>=10,"N.M.",S72/R72)))) -> N.M. | V72: 2224.39 | W72: 0 | X72: =+V72-W72 -> 2224.39 | Y72: =IF(W72<0,IF(X72=0,0,IF(OR(W72=0,V72=0),"N.M.",IF(ABS(X72/W72)>=10,"N.M.",X72/(-W72)))),IF(X72=0,0,IF(OR(W72=0,V72=0),"N.M.",IF(ABS(X72/W72)>=10,"N.M.",X72/W72)))) -> N.M. | AA72: 0 | AC72: 0 | AD72: 0 | AE72: 0 | AF72: 0 | AG72: 0 | AH72: 0 | AI72: 0 | AJ72: 0 | AK72: 0 | AL72: 0 | AM72: 0 | AN72: 0 | AP72: 0 | AQ72: 0 | AR72: 0 | AS72: 0 | AT72: 0 | AU72: 1881.94 | AV72: 242.45 | AW72: 0 | AX72: 0 | AY72: 100 | AZ72: 0 | BA72: 0
A73: %,V4560043 | B73: 4560043 | C73: Oth Elec Rv-Trn-Aff-Trnf Price | F73: 0 | G73: 0 | H73: =+F73-G73 -> 0 | I73: =IF(G73<0,IF(H73=0,0,IF(OR(G73=0,F73=0),"N.M.",IF(ABS(H73/G73)>=10,"N.M.",H73/(-G73)))),IF(H73=0,0,IF(OR(G73=0,F73=0),"N.M.",IF(ABS(H73/G73)>=10,"N.M.",H73/G73)))) -> 0 | K73: 0 | L73: 0 | M73: =+K73-L73 -> 0 | N73: =IF(L73<0,IF(M73=0,0,IF(OR(L73=0,K73=0),"N.M.",IF(ABS(M73/L73)>=10,"N.M.",M73/(-L73)))),IF(M73=0,0,IF(OR(L73=0,K73=0),"N.M.",IF(ABS(M73/L73)>=10,"N.M.",M73/L73)))) -> 0 | Q73: 0 | R73: 0 | S73: =+Q73-R73 -> 0 | T73: =IF(R73<0,IF(S73=0,0,IF(OR(R73=0,Q73=0),"N.M.",IF(ABS(S73/R73)>=10,"N.M.",S73/(-R73)))),IF(S73=0,0,IF(OR(R73=0,Q73=0),"N.M.",IF(ABS(S73/R73)>=10,"N.M.",S73/R73)))) -> 0 | V73: 0 | W73: 0 | X73: =+V73-W73 -> 0 | Y73: =IF(W73<0,IF(X73=0,0,IF(OR(W73=0,V73=0),"N.M.",IF(ABS(X73/W73)>=10,"N.M.",X73/(-W73)))),IF(X73=0,0,IF(OR(W73=0,V73=0),"N.M.",IF(ABS(X73/W73)>=10,"N.M.",X73/W73)))) -> 0 | AA73: 0 | AC73: 0 | AD73: 0 | AE73: 0 | AF73: 0 | AG73: 0 | AH73: 0 | AI73: 0 | AJ73: 0 | AK73: 0 | AL73: 0 | AM73: 0 | AN73: 0 | AP73: 0 | AQ73: 0 | AR73: 0 | AS73: 0 | AT73: 0 | AU73: 0 | AV73: 0 | AW73: 0 | AX73: 0 | AY73: 0 | AZ73: 71873775.04 | BA73: 0
A74: %,V4560180 | B74: 4560180 | C74: Amort of Defer Equity Inc | F74: 37933.99 | G74: 0 | H74: =+F74-G74 -> 37933.99 | I74: =IF(G74<0,IF(H74=0,0,IF(OR(G74=0,F74=0),"N.M.",IF(ABS(H74/G74)>=10,"N.M.",H74/(-G74)))),IF(H74=0,0,IF(OR(G74=0,F74=0),"N.M.",IF(ABS(H74/G74)>=10,"N.M.",H74/G74)))) -> N.M. | K74: 151735.96 | L74: 0 | M74: =+K74-L74 -> 151735.96 | N74: =IF(L74<0,IF(M74=0,0,IF(OR(L74=0,K74=0),"N.M.",IF(ABS(M74/L74)>=10,"N.M.",M74/(-L74)))),IF(M74=0,0,IF(OR(L74=0,K74=0),"N.M.",IF(ABS(M74/L74)>=10,"N.M.",M74/L74)))) -> N.M. | Q74: 113801.97 | R74: 0 | S74: =+Q74-R74 -> 113801.97 | T74: =IF(R74<0,IF(S74=0,0,IF(OR(R74=0,Q74=0),"N.M.",IF(ABS(S74/R74)>=10,"N.M.",S74/(-R74)))),IF(S74=0,0,IF(OR(R74=0,Q74=0),"N.M.",IF(ABS(S74/R74)>=10,"N.M.",S74/R74)))) -> N.M. | V74: 151735.96 | W74: 0 | X74: =+V74-W74 -> 151735.96 | Y74: =IF(W74<0,IF(X74=0,0,IF(OR(W74=0,V74=0),"N.M.",IF(ABS(X74/W74)>=10,"N.M.",X74/(-W74)))),IF(X74=0,0,IF(OR(W74=0,V74=0),"N.M.",IF(ABS(X74/W74)>=10,"N.M.",X74/W74)))) -> N.M. | AA74: 0 | AC74: 0 | AD74: 0 | AE74: 0 | AF74: 0 | AG74: 0 | AH74: 0 | AI74: 0 | AJ74: 0 | AK74: 0 | AL74: 0 | AM74: 0 | AN74: 0 | AP74: 0 | AQ74: 0 | AR74: 0 | AS74: 0 | AT74: 0 | AU74: 0 | AV74: 37933.99 | AW74: 37933.99 | AX74: 37933.99 | AY74: 37933.99 | AZ74: 0 | BA74: 0
A75: %,V4561005 | B75: 4561005 | C75: PJM Point to Point Trans Svc | F75: 221770.7 | G75: 168119.25 | H75: =+F75-G75 -> 53651.45 | I75: =IF(G75<0,IF(H75=0,0,IF(OR(G75=0,F75=0),"N.M.",IF(ABS(H75/G75)>=10,"N.M.",H75/(-G75)))),IF(H75=0,0,IF(OR(G75=0,F75=0),"N.M.",IF(ABS(H75/G75)>=10,"N.M.",H75/G75)))) -> 0.3191273456 | K75: 2180966.17 | L75: 1816094.77 | M75: =+K75-L75 -> 364871.4 | N75: =IF(L75<0,IF(M75=0,0,IF(OR(L75=0,K75=0),"N.M.",IF(ABS(M75/L75)>=10,"N.M.",M75/(-L75)))),IF(M75=0,0,IF(OR(L75=0,K75=0),"N.M.",IF(ABS(M75/L75)>=10,"N.M.",M75/L75)))) -> 0.2009098897 | Q75: 658319.11 | R75: 439618.98 | S75: =+Q75-R75 -> 218700.13 | T75: =IF(R75<0,IF(S75=0,0,IF(OR(R75=0,Q75=0),"N.M.",IF(ABS(S75/R75)>=10,"N.M.",S75/(-R75)))),IF(S75=0,0,IF(OR(R75=0,Q75=0),"N.M.",IF(ABS(S75/R75)>=10,"N.M.",S75/R75)))) -> 0.4974765421 | V75: 2522787.41 | W75: 2081555.17 | X75: =+V75-W75 -> 441232.24 | Y75: =IF(W75<0,IF(X75=0,0,IF(OR(W75=0,V75=0),"N.M.",IF(ABS(X75/W75)>=10,"N.M.",X75/(-W75)))),IF(X75=0,0,IF(OR(W75=0,V75=0),"N.M.",IF(ABS(X75/W75)>=10,"N.M.",X75/W75)))) -> 0.2119723975 | AA75: 193701.8 | AC75: 338660.56 | AD75: 106665.92 | AE75: 307667.74 | AF75: 137109.12 | AG75: 128057.65 | AH75: 154030.01 | AI75: 204284.79 | AJ75: 148955.77 | AK75: 122543.96 | AL75: 168119.25 | AM75: 151074.75 | AN75: 190746.49 | AP75: 338806.06 | AQ75: 190931.29 | AR75: 125614.5 | AS75: 225133.31 | AT75: 177108.09 | AU75: -22977.47 | AV75: 488031.28 | AW75: 234203.96 | AX75: 202344.45 | AY75: 221770.7 | AZ75: -217143.35 | BA75: 0
A76: %,V4561006 | B76: 4561006 | C76: PJM Trans Owner Admin Rev | F76: 5324 | G76: 5823.35 | H76: =+F76-G76 -> -499.35 | I76: =IF(G76<0,IF(H76=0,0,IF(OR(G76=0,F76=0),"N.M.",IF(ABS(H76/G76)>=10,"N.M.",H76/(-G76)))),IF(H76=0,0,IF(OR(G76=0,F76=0),"N.M.",IF(ABS(H76/G76)>=10,"N.M.",H76/G76)))) -> -0.08574961148 | K76: 80331.22 | L76: 73946.24 | M76: =+K76-L76 -> 6384.98 | N76: =IF(L76<0,IF(M76=0,0,IF(OR(L76=0,K76=0),"N.M.",IF(ABS(M76/L76)>=10,"N.M.",M76/(-L76)))),IF(M76=0,0,IF(OR(L76=0,K76=0),"N.M.",IF(ABS(M76/L76)>=10,"N.M.",M76/L76)))) -> 0.08634624289 | Q76: 24636.69 | R76: 21371.47 | S76: =+Q76-R76 -> 3265.22 | T76: =IF(R76<0,IF(S76=0,0,IF(OR(R76=0,Q76=0),"N.M.",IF(ABS(S76/R76)>=10,"N.M.",S76/(-R76)))),IF(S76=0,0,IF(OR(R76=0,Q76=0),"N.M.",IF(ABS(S76/R76)>=10,"N.M.",S76/R76)))) -> 0.1527840621 | V76: 94258.01 | W76: 92313.41 | X76: =+V76-W76 -> 1944.6 | Y76: =IF(W76<0,IF(X76=0,0,IF(OR(W76=0,V76=0),"N.M.",IF(ABS(X76/W76)>=10,"N.M.",X76/(-W76)))),IF(X76=0,0,IF(OR(W76=0,V76=0),"N.M.",IF(ABS(X76/W76)>=10,"N.M.",X76/W76)))) -> 0.02106519519 | AA76: 10220.61 | AC76: 9078.15 | AD76: 7497.43 | AE76: 7432.48 | AF76: 6372.21 | AG76: 6051.97 | AH76: 8657.67 | AI76: 7484.86 | AJ76: 8431.43 | AK76: 7116.69 | AL76: 5823.35 | AM76: 6109.77 | AN76: 7817.02 | AP76: 9761.51 | AQ76: 8208.91 | AR76: 7694.76 | AS76: 6471.39 | AT76: 7045.6 | AU76: 8103.53 | AV76: 8408.83 | AW76: 10925.78 | AX76: 8386.91 | AY76: 5324 | AZ76: -5632.33 | BA76: 0
A77: %,V4561007 | B77: 4561007 | C77: PJM Network Integ Trans Svc | F77: 1024149.55 | G77: 938258.3 | H77: =+F77-G77 -> 85891.25 | I77: =IF(G77<0,IF(H77=0,0,IF(OR(G77=0,F77=0),"N.M.",IF(ABS(H77/G77)>=10,"N.M.",H77/(-G77)))),IF(H77=0,0,IF(OR(G77=0,F77=0),"N.M.",IF(ABS(H77/G77)>=10,"N.M.",H77/G77)))) -> 0.09154328824 | K77: 9989811.2 | L77: 9228085.6 | M77: =+K77-L77 -> 761725.6 | N77: =IF(L77<0,IF(M77=0,0,IF(OR(L77=0,K77=0),"N.M.",IF(ABS(M77/L77)>=10,"N.M.",M77/(-L77)))),IF(M77=0,0,IF(OR(L77=0,K77=0),"N.M.",IF(ABS(M77/L77)>=10,"N.M.",M77/L77)))) -> 0.08254427115 | Q77: 3039006.24 | R77: 2784262.07 | S77: =+Q77-R77 -> 254744.17 | T77: =IF(R77<0,IF(S77=0,0,IF(OR(R77=0,Q77=0),"N.M.",IF(ABS(S77/R77)>=10,"N.M.",S77/(-R77)))),IF(S77=0,0,IF(OR(R77=0,Q77=0),"N.M.",IF(ABS(S77/R77)>=10,"N.M.",S77/R77)))) -> 0.09149432187 | V77: 11820408.06 | W77: 10967140.67 | X77: =+V77-W77 -> 853267.39 | Y77: =IF(W77<0,IF(X77=0,0,IF(OR(W77=0,V77=0),"N.M.",IF(ABS(X77/W77)>=10,"N.M.",X77/(-W77)))),IF(X77=0,0,IF(OR(W77=0,V77=0),"N.M.",IF(ABS(X77/W77)>=10,"N.M.",X77/W77)))) -> 0.0778021743 | AA77: 883900.28 | AC77: 937668.24 | AD77: 876312.31 | AE77: 937764.69 | AF77: 907773.72 | AG77: 938272.46 | AH77: 907773.79 | AI77: 938258.32 | AJ77: 938244.16 | AK77: 907759.61 | AL77: 938258.3 | AM77: 907759.6 | AN77: 922837.26 | AP77: 1016242.7 | AQ77: 916971.66 | AR77: 1008675.17 | AS77: 980820.86 | AT77: 1013080.51 | AU77: 990773.91 | AV77: 1024240.15 | AW77: 1024058.98 | AX77: 990797.71 | AY77: 1024149.55 | AZ77: -1024149.55 | BA77: 0
A78: %,V4561019 | B78: 4561019 | C78: Oth Elec Rev Trans Non Affil | F78: 3639 | G78: 3613.5 | H78: =+F78-G78 -> 25.5 | I78: =IF(G78<0,IF(H78=0,0,IF(OR(G78=0,F78=0),"N.M.",IF(ABS(H78/G78)>=10,"N.M.",H78/(-G78)))),IF(H78=0,0,IF(OR(G78=0,F78=0),"N.M.",IF(ABS(H78/G78)>=10,"N.M.",H78/G78)))) -> 0.007056870071 | K78: 45186 | L78: 43240.5 | M78: =+K78-L78 -> 1945.5 | N78: =IF(L78<0,IF(M78=0,0,IF(OR(L78=0,K78=0),"N.M.",IF(ABS(M78/L78)>=10,"N.M.",M78/(-L78)))),IF(M78=0,0,IF(OR(L78=0,K78=0),"N.M.",IF(ABS(M78/L78)>=10,"N.M.",M78/L78)))) -> 0.04499254171 | Q78: 11644.5 | R78: 11862 | S78: =+Q78-R78 -> -217.5 | T78: =IF(R78<0,IF(S78=0,0,IF(OR(R78=0,Q78=0),"N.M.",IF(ABS(S78/R78)>=10,"N.M.",S78/(-R78)))),IF(S78=0,0,IF(OR(R78=0,Q78=0),"N.M.",IF(ABS(S78/R78)>=10,"N.M.",S78/R78)))) -> -0.01833586242 | V78: 54574.5 | W78: 52594.5 | X78: =+V78-W78 -> 1980 | Y78: =IF(W78<0,IF(X78=0,0,IF(OR(W78=0,V78=0),"N.M.",IF(ABS(X78/W78)>=10,"N.M.",X78/(-W78)))),IF(X78=0,0,IF(OR(W78=0,V78=0),"N.M.",IF(ABS(X78/W78)>=10,"N.M.",X78/W78)))) -> 0.03764652197 | AA78: 4980 | AC78: 6219 | AD78: 4581 | AE78: 4059 | AF78: 3429 | AG78: 3798 | AH78: 4449 | AI78: 4843.5 | AJ78: 4545 | AK78: 3703.5 | AL78: 3613.5 | AM78: 3888 | AN78: 5500.5 | AP78: 7192.5 | AQ78: 5176.5 | AR78: 4389 | AS78: 3643.5 | AT78: 3448.5 | AU78: 4519.5 | AV78: 5172 | AW78: 4468.5 | AX78: 3537 | AY78: 3639 | AZ78: 0 | BA78: 0
A79: %,V4561027 | B79: 4561027 | C79: PJM Transm Dist/Meter - NonAff | F79: 6492 | G79: 0 | H79: =+F79-G79 -> 6492 | I79: =IF(G79<0,IF(H79=0,0,IF(OR(G79=0,F79=0),"N.M.",IF(ABS(H79/G79)>=10,"N.M.",H79/(-G79)))),IF(H79=0,0,IF(OR(G79=0,F79=0),"N.M.",IF(ABS(H79/G79)>=10,"N.M.",H79/G79)))) -> N.M. | K79: 32460 | L79: 0 | M79: =+K79-L79 -> 32460 | N79: =IF(L79<0,IF(M79=0,0,IF(OR(L79=0,K79=0),"N.M.",IF(ABS(M79/L79)>=10,"N.M.",M79/(-L79)))),IF(M79=0,0,IF(OR(L79=0,K79=0),"N.M.",IF(ABS(M79/L79)>=10,"N.M.",M79/L79)))) -> N.M. | Q79: 25968 | R79: 0 | S79: =+Q79-R79 -> 25968 | T79: =IF(R79<0,IF(S79=0,0,IF(OR(R79=0,Q79=0),"N.M.",IF(ABS(S79/R79)>=10,"N.M.",S79/(-R79)))),IF(S79=0,0,IF(OR(R79=0,Q79=0),"N.M.",IF(ABS(S79/R79)>=10,"N.M.",S79/R79)))) -> N.M. | V79: 32460 | W79: 0 | X79: =+V79-W79 -> 32460 | Y79: =IF(W79<0,IF(X79=0,0,IF(OR(W79=0,V79=0),"N.M.",IF(ABS(X79/W79)>=10,"N.M.",X79/(-W79)))),IF(X79=0,0,IF(OR(W79=0,V79=0),"N.M.",IF(ABS(X79/W79)>=10,"N.M.",X79/W79)))) -> N.M. | AA79: 0 | AC79: 0 | AD79: 0 | AE79: 0 | AF79: 0 | AG79: 0 | AH79: 0 | AI79: 0 | AJ79: 0 | AK79: 0 | AL79: 0 | AM79: 0 | AN79: 0 | AP79: 0 | AQ79: 0 | AR79: 0 | AS79: 0 | AT79: 0 | AU79: 0 | AV79: 6492 | AW79: 12984 | AX79: 6492 | AY79: 6492 | AZ79: -6492 | BA79: 0
A80: %,V4561028 | B80: 4561028 | C80: PJM Pow Fac Cre Rev Whsl Cu-NA | F80: 0 | G80: 316.24 | H80: =+F80-G80 -> -316.24 | I80: =IF(G80<0,IF(H80=0,0,IF(OR(G80=0,F80=0),"N.M.",IF(ABS(H80/G80)>=10,"N.M.",H80/(-G80)))),IF(H80=0,0,IF(OR(G80=0,F80=0),"N.M.",IF(ABS(H80/G80)>=10,"N.M.",H80/G80)))) -> N.M. | K80: 955.69 | L80: 4157.17 | M80: =+K80-L80 -> -3201.48 | N80: =IF(L80<0,IF(M80=0,0,IF(OR(L80=0,K80=0),"N.M.",IF(ABS(M80/L80)>=10,"N.M.",M80/(-L80)))),IF(M80=0,0,IF(OR(L80=0,K80=0),"N.M.",IF(ABS(M80/L80)>=10,"N.M.",M80/L80)))) -> -0.7701104357 | Q80: 0 | R80: 1622.04 | S80: =+Q80-R80 -> -1622.04 | T80: =IF(R80<0,IF(S80=0,0,IF(OR(R80=0,Q80=0),"N.M.",IF(ABS(S80/R80)>=10,"N.M.",S80/(-R80)))),IF(S80=0,0,IF(OR(R80=0,Q80=0),"N.M.",IF(ABS(S80/R80)>=10,"N.M.",S80/R80)))) -> N.M. | V80: 1185.62 | W80: 4873.43 | X80: =+V80-W80 -> -3687.81 | Y80: =IF(W80<0,IF(X80=0,0,IF(OR(W80=0,V80=0),"N.M.",IF(ABS(X80/W80)>=10,"N.M.",X80/(-W80)))),IF(X80=0,0,IF(OR(W80=0,V80=0),"N.M.",IF(ABS(X80/W80)>=10,"N.M.",X80/W80)))) -> -0.756717548 | AA80: 375.62 | AC80: -494.22 | AD80: 12.69 | AE80: 154.61 | AF80: 558.05 | AG80: 511.14 | AH80: 639.41 | AI80: 1153.45 | AJ80: 426.84 | AK80: 878.96 | AL80: 316.24 | AM80: 112.67 | AN80: 117.26 | AP80: 21.93 | AQ80: 31.26 | AR80: -18.3 | AS80: 409.02 | AT80: 399.95 | AU80: 111.83 | AV80: 0 | AW80: 0 | AX80: 0 | AY80: 0 | AZ80: 0 | BA80: 0
A81: %,V4561029 | B81: 4561029 | C81: PJM NITS Revenue Whsl Cus-NAff | F81: 245235.61 | G81: 209793.03 | H81: =+F81-G81 -> 35442.58 | I81: =IF(G81<0,IF(H81=0,0,IF(OR(G81=0,F81=0),"N.M.",IF(ABS(H81/G81)>=10,"N.M.",H81/(-G81)))),IF(H81=0,0,IF(OR(G81=0,F81=0),"N.M.",IF(ABS(H81/G81)>=10,"N.M.",H81/G81)))) -> 0.1689406936 | K81: 2457547.62 | L81: 2063846.32 | M81: =+K81-L81 -> 393701.3 | N81: =IF(L81<0,IF(M81=0,0,IF(OR(L81=0,K81=0),"N.M.",IF(ABS(M81/L81)>=10,"N.M.",M81/(-L81)))),IF(M81=0,0,IF(OR(L81=0,K81=0),"N.M.",IF(ABS(M81/L81)>=10,"N.M.",M81/L81)))) -> 0.1907609574 | Q81: 727722.83 | R81: 622555.97 | S81: =+Q81-R81 -> 105166.86 | T81: =IF(R81<0,IF(S81=0,0,IF(OR(R81=0,Q81=0),"N.M.",IF(ABS(S81/R81)>=10,"N.M.",S81/(-R81)))),IF(S81=0,0,IF(OR(R81=0,Q81=0),"N.M.",IF(ABS(S81/R81)>=10,"N.M.",S81/R81)))) -> 0.1689275584 | V81: 2870044.75 | W81: 2477999.75 | X81: =+V81-W81 -> 392045 | Y81: =IF(W81<0,IF(X81=0,0,IF(OR(W81=0,V81=0),"N.M.",IF(ABS(X81/W81)>=10,"N.M.",X81/(-W81)))),IF(X81=0,0,IF(OR(W81=0,V81=0),"N.M.",IF(ABS(X81/W81)>=10,"N.M.",X81/W81)))) -> 0.1582102662 | AA81: 210499.84 | AC81: 209769.72 | AD81: 196182.75 | AE81: 209796.19 | AF81: 202976.24 | AG81: 209796.19 | AH81: 202976.24 | AI81: 209793.02 | AJ81: 209789.87 | AK81: 202973.07 | AL81: 209793.03 | AM81: 202973.07 | AN81: 209524.06 | AP81: 256640.43 | AQ81: 231590.6 | AR81: 254888 | AS81: 247940 | AT81: 256289.95 | AU81: 237243.05 | AV81: 245232.76 | AW81: 245238.46 | AX81: 237248.76 | AY81: 245235.61 | AZ81: -245235.61 | BA81: 0
A82: %,V4561030 | B82: 4561030 | C82: PJM TO Serv Rev Whls Cus-NAff | F82: 523.76 | G82: 733.94 | H82: =+F82-G82 -> -210.18 | I82: =IF(G82<0,IF(H82=0,0,IF(OR(G82=0,F82=0),"N.M.",IF(ABS(H82/G82)>=10,"N.M.",H82/(-G82)))),IF(H82=0,0,IF(OR(G82=0,F82=0),"N.M.",IF(ABS(H82/G82)>=10,"N.M.",H82/G82)))) -> -0.286372183 | K82: 5707.73 | L82: 7737.14 | M82: =+K82-L82 -> -2029.41 | N82: =IF(L82<0,IF(M82=0,0,IF(OR(L82=0,K82=0),"N.M.",IF(ABS(M82/L82)>=10,"N.M.",M82/(-L82)))),IF(M82=0,0,IF(OR(L82=0,K82=0),"N.M.",IF(ABS(M82/L82)>=10,"N.M.",M82/L82)))) -> -0.2622945946 | Q82: 1649.92 | R82: 2301.05 | S82: =+Q82-R82 -> -651.13 | T82: =IF(R82<0,IF(S82=0,0,IF(OR(R82=0,Q82=0),"N.M.",IF(ABS(S82/R82)>=10,"N.M.",S82/(-R82)))),IF(S82=0,0,IF(OR(R82=0,Q82=0),"N.M.",IF(ABS(S82/R82)>=10,"N.M.",S82/R82)))) -> -0.2829708177 | V82: 7258.55 | W82: 8812.25 | X82: =+V82-W82 -> -1553.7 | Y82: =IF(W82<0,IF(X82=0,0,IF(OR(W82=0,V82=0),"N.M.",IF(ABS(X82/W82)>=10,"N.M.",X82/(-W82)))),IF(X82=0,0,IF(OR(W82=0,V82=0),"N.M.",IF(ABS(X82/W82)>=10,"N.M.",X82/W82)))) -> -0.1763113847 | AA82: 552.32 | AC82: 861.92 | AD82: 755.47 | AE82: 743.3 | AF82: 689.38 | AG82: 747.81 | AH82: 811.32 | AI82: 826.89 | AJ82: 821.14 | AK82: 745.97 | AL82: 733.94 | AM82: 743.51 | AN82: 807.31 | AP82: 647.03 | AQ82: 557.63 | AR82: 563.34 | AS82: 533.61 | AT82: 531.68 | AU82: 570.03 | AV82: 654.49 | AW82: 592.44 | AX82: 533.72 | AY82: 523.76 | AZ82: -526.98 | BA82: 0
A83: %,V4561033 | B83: 4561033 | C83: PJM NITS Revenue - Affiliated | F83: 7544173.89 | G83: 6245334.71 | H83: =+F83-G83 -> 1298839.18 | I83: =IF(G83<0,IF(H83=0,0,IF(OR(G83=0,F83=0),"N.M.",IF(ABS(H83/G83)>=10,"N.M.",H83/(-G83)))),IF(H83=0,0,IF(OR(G83=0,F83=0),"N.M.",IF(ABS(H83/G83)>=10,"N.M.",H83/G83)))) -> 0.2079695069 | K83: 73940772.18 | L83: 61440775.6 | M83: =+K83-L83 -> 12499996.58 | N83: =IF(L83<0,IF(M83=0,0,IF(OR(L83=0,K83=0),"N.M.",IF(ABS(M83/L83)>=10,"N.M.",M83/(-L83)))),IF(M83=0,0,IF(OR(L83=0,K83=0),"N.M.",IF(ABS(M83/L83)>=10,"N.M.",M83/L83)))) -> 0.2034478969 | Q83: 22386910.23 | R83: 18532886.51 | S83: =+Q83-R83 -> 3854023.72 | T83: =IF(R83<0,IF(S83=0,0,IF(OR(R83=0,Q83=0),"N.M.",IF(ABS(S83/R83)>=10,"N.M.",S83/(-R83)))),IF(S83=0,0,IF(OR(R83=0,Q83=0),"N.M.",IF(ABS(S83/R83)>=10,"N.M.",S83/R83)))) -> 0.2079559338 | V83: 86220411.17 | W83: 73701509.16 | X83: =+V83-W83 -> 12518902.01 | Y83: =IF(W83<0,IF(X83=0,0,IF(OR(W83=0,V83=0),"N.M.",IF(ABS(X83/W83)>=10,"N.M.",X83/(-W83)))),IF(X83=0,0,IF(OR(W83=0,V83=0),"N.M.",IF(ABS(X83/W83)>=10,"N.M.",X83/W83)))) -> 0.169859507 | AA83: 6231706.12 | AC83: 6245126.63 | AD83: 5841251.23 | AE83: 6245936.64 | AF83: 6042405.48 | AG83: 6245428.91 | AH83: 6042405.48 | AI83: 6245334.72 | AJ83: 6245240.51 | AK83: 6042311.29 | AL83: 6245334.71 | AM83: 6042311.29 | AN83: 6237327.7 | AP83: 7552626.05 | AQ83: 6815525.85 | AR83: 7501683.07 | AS83: 7297555.39 | AT83: 7544086.16 | AU83: 7298299.27 | AV83: 7544086.16 | AW83: 7544261.62 | AX83: 7298474.72 | AY83: 7544173.89 | AZ83: -7544173.89 | BA83: 0
A84: %,V4561034 | B84: 4561034 | C84: PJM TO Adm. Serv Rev - Aff | F84: 15869.93 | G84: 18970.34 | H84: =+F84-G84 -> -3100.41 | I84: =IF(G84<0,IF(H84=0,0,IF(OR(G84=0,F84=0),"N.M.",IF(ABS(H84/G84)>=10,"N.M.",H84/(-G84)))),IF(H84=0,0,IF(OR(G84=0,F84=0),"N.M.",IF(ABS(H84/G84)>=10,"N.M.",H84/G84)))) -> -0.1634346037 | K84: 166165.22 | L84: 209512.58 | M84: =+K84-L84 -> -43347.36 | N84: =IF(L84<0,IF(M84=0,0,IF(OR(L84=0,K84=0),"N.M.",IF(ABS(M84/L84)>=10,"N.M.",M84/(-L84)))),IF(M84=0,0,IF(OR(L84=0,K84=0),"N.M.",IF(ABS(M84/L84)>=10,"N.M.",M84/L84)))) -> -0.206896216 | Q84: 49835.58 | R84: 61809.86 | S84: =+Q84-R84 -> -11974.28 | T84: =IF(R84<0,IF(S84=0,0,IF(OR(R84=0,Q84=0),"N.M.",IF(ABS(S84/R84)>=10,"N.M.",S84/(-R84)))),IF(S84=0,0,IF(OR(R84=0,Q84=0),"N.M.",IF(ABS(S84/R84)>=10,"N.M.",S84/R84)))) -> -0.1937276674 | V84: 208452.85 | W84: 238485.29 | X84: =+V84-W84 -> -30032.44 | Y84: =IF(W84<0,IF(X84=0,0,IF(OR(W84=0,V84=0),"N.M.",IF(ABS(X84/W84)>=10,"N.M.",X84/(-W84)))),IF(X84=0,0,IF(OR(W84=0,V84=0),"N.M.",IF(ABS(X84/W84)>=10,"N.M.",X84/W84)))) -> -0.1259299473 | AA84: 15207.71 | AC84: 24124.23 | AD84: 20167.31 | AE84: 20103.6 | AF84: 18280.52 | AG84: 19962.83 | AH84: 22068.42 | AI84: 22995.81 | AJ84: 22795.87 | AK84: 20043.65 | AL84: 18970.34 | AM84: 19367.79 | AN84: 22919.84 | AP84: 19433.2 | AQ84: 16031.13 | AR84: 15576.67 | AS84: 14333.09 | AT84: 14568.46 | AU84: 17174.5 | AV84: 19212.59 | AW84: 18120.42 | AX84: 15845.23 | AY84: 15869.93 | AZ84: -15886.59 | BA84: 0
A85: %,V4561035 | B85: 4561035 | C85: PJM Affiliated Trans NITS Cost | F85: -4909779.93 | G85: -5147951.29 | H85: =+F85-G85 -> 238171.36 | I85: =IF(G85<0,IF(H85=0,0,IF(OR(G85=0,F85=0),"N.M.",IF(ABS(H85/G85)>=10,"N.M.",H85/(-G85)))),IF(H85=0,0,IF(OR(G85=0,F85=0),"N.M.",IF(ABS(H85/G85)>=10,"N.M.",H85/G85)))) -> 0.0462652707 | K85: -48124330.53 | L85: -50643152.8 | M85: =+K85-L85 -> 2518822.27 | N85: =IF(L85<0,IF(M85=0,0,IF(OR(L85=0,K85=0),"N.M.",IF(ABS(M85/L85)>=10,"N.M.",M85/(-L85)))),IF(M85=0,0,IF(OR(L85=0,K85=0),"N.M.",IF(ABS(M85/L85)>=10,"N.M.",M85/L85)))) -> 0.0497366797 | Q85: -14569494.84 | R85: -15276426.55 | S85: =+Q85-R85 -> 706931.71 | T85: =IF(R85<0,IF(S85=0,0,IF(OR(R85=0,Q85=0),"N.M.",IF(ABS(S85/R85)>=10,"N.M.",S85/(-R85)))),IF(S85=0,0,IF(OR(R85=0,Q85=0),"N.M.",IF(ABS(S85/R85)>=10,"N.M.",S85/R85)))) -> 0.04627598658 | V85: -58246283.36 | W85: -60403119.8 | X85: =+V85-W85 -> 2156836.44 | Y85: =IF(W85<0,IF(X85=0,0,IF(OR(W85=0,V85=0),"N.M.",IF(ABS(X85/W85)>=10,"N.M.",X85/(-W85)))),IF(X85=0,0,IF(OR(W85=0,V85=0),"N.M.",IF(ABS(X85/W85)>=10,"N.M.",X85/W85)))) -> 0.03570736821 | AA85: -4960653.11 | AC85: -5147379.34 | AD85: -4813979.2 | AE85: -5148028.94 | AF85: -4980679.27 | AG85: -5148028.94 | AH85: -4980679.27 | AI85: -5147951.29 | AJ85: -5147873.64 | AK85: -4980601.62 | AL85: -5147951.29 | AM85: -4980601.62 | AN85: -5141351.21 | AP85: -4916437.05 | AQ85: -4436559.62 | AR85: -4882865.98 | AS85: -4749763.69 | AT85: -4909722.83 | AU85: -4749763.69 | AV85: -4909722.83 | AW85: -4909837.02 | AX85: -4749877.89 | AY85: -4909779.93 | AZ85: 4909779.93 | BA85: 0
A86: %,V4561036 | B86: 4561036 | C86: PJM Affiliated Trans TO Cost | F86: -6626.47 | G86: -12207.23 | H86: =+F86-G86 -> 5580.76 | I86: =IF(G86<0,IF(H86=0,0,IF(OR(G86=0,F86=0),"N.M.",IF(ABS(H86/G86)>=10,"N.M.",H86/(-G86)))),IF(H86=0,0,IF(OR(G86=0,F86=0),"N.M.",IF(ABS(H86/G86)>=10,"N.M.",H86/G86)))) -> 0.4571684158 | K86: -79999.44 | L86: -137087.41 | M86: =+K86-L86 -> 57087.97 | N86: =IF(L86<0,IF(M86=0,0,IF(OR(L86=0,K86=0),"N.M.",IF(ABS(M86/L86)>=10,"N.M.",M86/(-L86)))),IF(M86=0,0,IF(OR(L86=0,K86=0),"N.M.",IF(ABS(M86/L86)>=10,"N.M.",M86/L86)))) -> 0.4164348134 | Q86: -21422.26 | R86: -38795.06 | S86: =+Q86-R86 -> 17372.8 | T86: =IF(R86<0,IF(S86=0,0,IF(OR(R86=0,Q86=0),"N.M.",IF(ABS(S86/R86)>=10,"N.M.",S86/(-R86)))),IF(S86=0,0,IF(OR(R86=0,Q86=0),"N.M.",IF(ABS(S86/R86)>=10,"N.M.",S86/R86)))) -> 0.4478095923 | V86: -108034.7 | W86: -150356.56 | X86: =+V86-W86 -> 42321.86 | Y86: =IF(W86<0,IF(X86=0,0,IF(OR(W86=0,V86=0),"N.M.",IF(ABS(X86/W86)>=10,"N.M.",X86/(-W86)))),IF(X86=0,0,IF(OR(W86=0,V86=0),"N.M.",IF(ABS(X86/W86)>=10,"N.M.",X86/W86)))) -> 0.2814766446 | AA86: -7066.78 | AC86: -17823.75 | AD86: -13933.93 | AE86: -13518.48 | AF86: -11693.99 | AG86: -12552.66 | AH86: -13679.29 | AI86: -15090.25 | AJ86: -14229.96 | AK86: -12357.87 | AL86: -12207.23 | AM86: -12253.89 | AN86: -15781.37 | AP86: -11216.7 | AQ86: -8542.78 | AR86: -7998.52 | AS86: -7031.69 | AT86: -6746.27 | AU86: -7968.23 | AV86: -9072.99 | AW86: -8058.55 | AX86: -6737.24 | AY86: -6626.47 | AZ86: 6632.03 | BA86: 0
A87: %,V4561045 | B87: 4561045 | C87: PJM Non-Aff Gen IPP Rev | F87: 1728 | G87: 1994 | H87: =+F87-G87 -> -266 | I87: =IF(G87<0,IF(H87=0,0,IF(OR(G87=0,F87=0),"N.M.",IF(ABS(H87/G87)>=10,"N.M.",H87/(-G87)))),IF(H87=0,0,IF(OR(G87=0,F87=0),"N.M.",IF(ABS(H87/G87)>=10,"N.M.",H87/G87)))) -> -0.1334002006 | K87: 18876.01 | L87: 7976 | M87: =+K87-L87 -> 10900.01 | N87: =IF(L87<0,IF(M87=0,0,IF(OR(L87=0,K87=0),"N.M.",IF(ABS(M87/L87)>=10,"N.M.",M87/(-L87)))),IF(M87=0,0,IF(OR(L87=0,K87=0),"N.M.",IF(ABS(M87/L87)>=10,"N.M.",M87/L87)))) -> 1.366601053 | Q87: 5184.01 | R87: 6065 | S87: =+Q87-R87 -> -880.99 | T87: =IF(R87<0,IF(S87=0,0,IF(OR(R87=0,Q87=0),"N.M.",IF(ABS(S87/R87)>=10,"N.M.",S87/(-R87)))),IF(S87=0,0,IF(OR(R87=0,Q87=0),"N.M.",IF(ABS(S87/R87)>=10,"N.M.",S87/R87)))) -> -0.1452580379 | V87: 22864.01 | W87: 7976 | X87: =+V87-W87 -> 14888.01 | Y87: =IF(W87<0,IF(X87=0,0,IF(OR(W87=0,V87=0),"N.M.",IF(ABS(X87/W87)>=10,"N.M.",X87/(-W87)))),IF(X87=0,0,IF(OR(W87=0,V87=0),"N.M.",IF(ABS(X87/W87)>=10,"N.M.",X87/W87)))) -> 1.866601053 | AA87: 0 | AC87: 0 | AD87: 0 | AE87: 0 | AF87: 0 | AG87: 0 | AH87: 0 | AI87: 1911 | AJ87: 2077 | AK87: 1994 | AL87: 1994 | AM87: 1994 | AN87: 1994 | AP87: 1994 | AQ87: 1994 | AR87: 1994 | AS87: 1994 | AT87: 1994 | AU87: 1994 | AV87: 1728 | AW87: 1728 | AX87: 1728.01 | AY87: 1728 | AZ87: -1728 | BA87: 0
A88: %,V4561058 | B88: 4561058 | C88: NonAffil PJM Trans Enhncmt Rev | F88: 157873.97 | G88: 143179.57 | H88: =+F88-G88 -> 14694.4 | I88: =IF(G88<0,IF(H88=0,0,IF(OR(G88=0,F88=0),"N.M.",IF(ABS(H88/G88)>=10,"N.M.",H88/(-G88)))),IF(H88=0,0,IF(OR(G88=0,F88=0),"N.M.",IF(ABS(H88/G88)>=10,"N.M.",H88/G88)))) -> 0.102629167 | K88: 1577830.68 | L88: 1431751.45 | M88: =+K88-L88 -> 146079.23 | N88: =IF(L88<0,IF(M88=0,0,IF(OR(L88=0,K88=0),"N.M.",IF(ABS(M88/L88)>=10,"N.M.",M88/(-L88)))),IF(M88=0,0,IF(OR(L88=0,K88=0),"N.M.",IF(ABS(M88/L88)>=10,"N.M.",M88/L88)))) -> 0.1020283444 | Q88: 473621.91 | R88: 429538.71 | S88: =+Q88-R88 -> 44083.2 | T88: =IF(R88<0,IF(S88=0,0,IF(OR(R88=0,Q88=0),"N.M.",IF(ABS(S88/R88)>=10,"N.M.",S88/(-R88)))),IF(S88=0,0,IF(OR(R88=0,Q88=0),"N.M.",IF(ABS(S88/R88)>=10,"N.M.",S88/R88)))) -> 0.102629167 | V88: 1864189.82 | W88: 1733628.23 | X88: =+V88-W88 -> 130561.59 | Y88: =IF(W88<0,IF(X88=0,0,IF(OR(W88=0,V88=0),"N.M.",IF(ABS(X88/W88)>=10,"N.M.",X88/(-W88)))),IF(X88=0,0,IF(OR(W88=0,V88=0),"N.M.",IF(ABS(X88/W88)>=10,"N.M.",X88/W88)))) -> 0.07531118134 | AA88: 150938.39 | AC88: 143169.56 | AD88: 143155.93 | AE88: 143168.97 | AF88: 143179.57 | AG88: 143179.57 | AH88: 143179.57 | AI88: 143179.57 | AJ88: 143179.57 | AK88: 143179.57 | AL88: 143179.57 | AM88: 143179.57 | AN88: 143179.57 | AP88: 157704.9 | AQ88: 157703.19 | AR88: 157693.48 | AS88: 157686.63 | AT88: 157672.63 | AU88: 157873.97 | AV88: 157873.97 | AW88: 157873.97 | AX88: 157873.97 | AY88: 157873.97 | AZ88: -157873.93 | BA88: 0
A89: %,V4561059 | B89: 4561059 | C89: Affil PJM Trans Enhancmnt Rev | F89: 137371.08 | G89: 130246.52 | H89: =+F89-G89 -> 7124.56 | I89: =IF(G89<0,IF(H89=0,0,IF(OR(G89=0,F89=0),"N.M.",IF(ABS(H89/G89)>=10,"N.M.",H89/(-G89)))),IF(H89=0,0,IF(OR(G89=0,F89=0),"N.M.",IF(ABS(H89/G89)>=10,"N.M.",H89/G89)))) -> 0.05470057856 | K89: 1373613.08 | L89: 1302509.57 | M89: =+K89-L89 -> 71103.51 | N89: =IF(L89<0,IF(M89=0,0,IF(OR(L89=0,K89=0),"N.M.",IF(ABS(M89/L89)>=10,"N.M.",M89/(-L89)))),IF(M89=0,0,IF(OR(L89=0,K89=0),"N.M.",IF(ABS(M89/L89)>=10,"N.M.",M89/L89)))) -> 0.05458962578 | Q89: 412113.24 | R89: 390739.56 | S89: =+Q89-R89 -> 21373.68 | T89: =IF(R89<0,IF(S89=0,0,IF(OR(R89=0,Q89=0),"N.M.",IF(ABS(S89/R89)>=10,"N.M.",S89/(-R89)))),IF(S89=0,0,IF(OR(R89=0,Q89=0),"N.M.",IF(ABS(S89/R89)>=10,"N.M.",S89/R89)))) -> 0.05470057856 | V89: 1634106.12 | W89: 1545418.25 | X89: =+V89-W89 -> 88687.87 | Y89: =IF(W89<0,IF(X89=0,0,IF(OR(W89=0,V89=0),"N.M.",IF(ABS(X89/W89)>=10,"N.M.",X89/(-W89)))),IF(X89=0,0,IF(OR(W89=0,V89=0),"N.M.",IF(ABS(X89/W89)>=10,"N.M.",X89/W89)))) -> 0.05738761659 | AA89: 121454.34 | AC89: 130256.66 | AD89: 130270.16 | AE89: 130257.11 | AF89: 130246.52 | AG89: 130246.52 | AH89: 130246.52 | AI89: 130246.52 | AJ89: 130246.52 | AK89: 130246.52 | AL89: 130246.52 | AM89: 130246.52 | AN89: 130246.52 | AP89: 137338.77 | AQ89: 137340.52 | AR89: 137350.23 | AS89: 137357.08 | AT89: 137371.08 | AU89: 137371.08 | AV89: 137371.08 | AW89: 137371.08 | AX89: 137371.08 | AY89: 137371.08 | AZ89: -137371.08 | BA89: 0
A90: %,V4561060 | B90: 4561060 | C90: Affil PJM Trans Enhancmnt Cost | F90: -89401.67 | G90: -107360.58 | H90: =+F90-G90 -> 17958.91 | I90: =IF(G90<0,IF(H90=0,0,IF(OR(G90=0,F90=0),"N.M.",IF(ABS(H90/G90)>=10,"N.M.",H90/(-G90)))),IF(H90=0,0,IF(OR(G90=0,F90=0),"N.M.",IF(ABS(H90/G90)>=10,"N.M.",H90/G90)))) -> 0.167276574 | K90: -894016.7 | L90: -1073605.8 | M90: =+K90-L90 -> 179589.1 | N90: =IF(L90<0,IF(M90=0,0,IF(OR(L90=0,K90=0),"N.M.",IF(ABS(M90/L90)>=10,"N.M.",M90/(-L90)))),IF(M90=0,0,IF(OR(L90=0,K90=0),"N.M.",IF(ABS(M90/L90)>=10,"N.M.",M90/L90)))) -> 0.167276574 | Q90: -268205.01 | R90: -322081.74 | S90: =+Q90-R90 -> 53876.73 | T90: =IF(R90<0,IF(S90=0,0,IF(OR(R90=0,Q90=0),"N.M.",IF(ABS(S90/R90)>=10,"N.M.",S90/(-R90)))),IF(S90=0,0,IF(OR(R90=0,Q90=0),"N.M.",IF(ABS(S90/R90)>=10,"N.M.",S90/R90)))) -> 0.167276574 | V90: -1108737.86 | W90: -1266969.48 | X90: =+V90-W90 -> 158231.62 | Y90: =IF(W90<0,IF(X90=0,0,IF(OR(W90=0,V90=0),"N.M.",IF(ABS(X90/W90)>=10,"N.M.",X90/(-W90)))),IF(X90=0,0,IF(OR(W90=0,V90=0),"N.M.",IF(ABS(X90/W90)>=10,"N.M.",X90/W90)))) -> 0.1248898434 | AA90: -96681.84 | AC90: -107360.58 | AD90: -107360.58 | AE90: -107360.58 | AF90: -107360.58 | AG90: -107360.58 | AH90: -107360.58 | AI90: -107360.58 | AJ90: -107360.58 | AK90: -107360.58 | AL90: -107360.58 | AM90: -107360.58 | AN90: -107360.58 | AP90: -89401.67 | AQ90: -89401.67 | AR90: -89401.67 | AS90: -89401.67 | AT90: -89401.67 | AU90: -89401.67 | AV90: -89401.67 | AW90: -89401.67 | AX90: -89401.67 | AY90: -89401.67 | AZ90: 89401.67 | BA90: 0
A91: %,V4561061 | B91: 4561061 | C91: NAff PJM RTEP Rev for Whsl-FR | F91: 4465.47 | G91: 4375.24 | H91: =+F91-G91 -> 90.23 | I91: =IF(G91<0,IF(H91=0,0,IF(OR(G91=0,F91=0),"N.M.",IF(ABS(H91/G91)>=10,"N.M.",H91/(-G91)))),IF(H91=0,0,IF(OR(G91=0,F91=0),"N.M.",IF(ABS(H91/G91)>=10,"N.M.",H91/G91)))) -> 0.02062286869 | K91: 45661.4 | L91: 43752.39 | M91: =+K91-L91 -> 1909.01 | N91: =IF(L91<0,IF(M91=0,0,IF(OR(L91=0,K91=0),"N.M.",IF(ABS(M91/L91)>=10,"N.M.",M91/(-L91)))),IF(M91=0,0,IF(OR(L91=0,K91=0),"N.M.",IF(ABS(M91/L91)>=10,"N.M.",M91/L91)))) -> 0.04363213072 | Q91: 13396.41 | R91: 13125.71 | S91: =+Q91-R91 -> 270.7 | T91: =IF(R91<0,IF(S91=0,0,IF(OR(R91=0,Q91=0),"N.M.",IF(ABS(S91/R91)>=10,"N.M.",S91/(-R91)))),IF(S91=0,0,IF(OR(R91=0,Q91=0),"N.M.",IF(ABS(S91/R91)>=10,"N.M.",S91/R91)))) -> 0.02062364626 | V91: 54411.88 | W91: 51957.57 | X91: =+V91-W91 -> 2454.31 | Y91: =IF(W91<0,IF(X91=0,0,IF(OR(W91=0,V91=0),"N.M.",IF(ABS(X91/W91)>=10,"N.M.",X91/(-W91)))),IF(X91=0,0,IF(OR(W91=0,V91=0),"N.M.",IF(ABS(X91/W91)>=10,"N.M.",X91/W91)))) -> 0.04723681265 | AA91: 4102.61 | AC91: 4375.22 | AD91: 4375.25 | AE91: 4375.23 | AF91: 4375.26 | AG91: 4375.25 | AH91: 4375.23 | AI91: 4375.24 | AJ91: 4375.23 | AK91: 4375.24 | AL91: 4375.24 | AM91: 4375.24 | AN91: 4375.24 | AP91: 4666.81 | AQ91: 4666.81 | AR91: 4666.81 | AS91: 4666.81 | AT91: 4666.81 | AU91: 4465.47 | AV91: 4465.47 | AW91: 4465.47 | AX91: 4465.47 | AY91: 4465.47 | AZ91: -4465.47 | BA91: 0
A92: %,V4561062 | B92: 4561062 | C92: PROVISION RTO Tran Cost Affi | F92: 94426 | G92: 145399 | H92: =+F92-G92 -> -50973 | I92: =IF(G92<0,IF(H92=0,0,IF(OR(G92=0,F92=0),"N.M.",IF(ABS(H92/G92)>=10,"N.M.",H92/(-G92)))),IF(H92=0,0,IF(OR(G92=0,F92=0),"N.M.",IF(ABS(H92/G92)>=10,"N.M.",H92/G92)))) -> -0.3505732502 | K92: -496745 | L92: 800995 | M92: =+K92-L92 -> -1297740 | N92: =IF(L92<0,IF(M92=0,0,IF(OR(L92=0,K92=0),"N.M.",IF(ABS(M92/L92)>=10,"N.M.",M92/(-L92)))),IF(M92=0,0,IF(OR(L92=0,K92=0),"N.M.",IF(ABS(M92/L92)>=10,"N.M.",M92/L92)))) -> -1.620159926 | Q92: 274970 | R92: 435139 | S92: =+Q92-R92 -> -160169 | T92: =IF(R92<0,IF(S92=0,0,IF(OR(R92=0,Q92=0),"N.M.",IF(ABS(S92/R92)>=10,"N.M.",S92/(-R92)))),IF(S92=0,0,IF(OR(R92=0,Q92=0),"N.M.",IF(ABS(S92/R92)>=10,"N.M.",S92/R92)))) -> -0.3680869791 | V92: 714150 | W92: 1360625 | X92: =+V92-W92 -> -646475 | Y92: =IF(W92<0,IF(X92=0,0,IF(OR(W92=0,V92=0),"N.M.",IF(ABS(X92/W92)>=10,"N.M.",X92/(-W92)))),IF(X92=0,0,IF(OR(W92=0,V92=0),"N.M.",IF(ABS(X92/W92)>=10,"N.M.",X92/W92)))) -> -0.4751309141 | AA92: 414811 | AC92: 101879 | AD92: 101879 | AE92: 198080 | AF92: 134388 | AG92: 180327 | AH92: -538175 | AI92: 187478 | AJ92: 144940 | AK92: 144800 | AL92: 145399 | AM92: 145243 | AN92: 1065652 | AP92: 138615 | AQ92: 129352 | AR92: 131320 | AS92: 132925 | AT92: 133368 | AU92: -1469769 | AV92: 32474 | AW92: 95918 | AX92: 84626 | AY92: 94426 | AZ92: 405865 | BA92: 0
A93: %,V4561063 | B93: 4561063 | C93: PROVISION RTO Tran Rev Aff | F93: -16993 | G93: 226375 | H93: =+F93-G93 -> -243368 | I93: =IF(G93<0,IF(H93=0,0,IF(OR(G93=0,F93=0),"N.M.",IF(ABS(H93/G93)>=10,"N.M.",H93/(-G93)))),IF(H93=0,0,IF(OR(G93=0,F93=0),"N.M.",IF(ABS(H93/G93)>=10,"N.M.",H93/G93)))) -> -1.07506571 | K93: 508439 | L93: 2945774 | M93: =+K93-L93 -> -2437335 | N93: =IF(L93<0,IF(M93=0,0,IF(OR(L93=0,K93=0),"N.M.",IF(ABS(M93/L93)>=10,"N.M.",M93/(-L93)))),IF(M93=0,0,IF(OR(L93=0,K93=0),"N.M.",IF(ABS(M93/L93)>=10,"N.M.",M93/L93)))) -> -0.8274005406 | Q93: -22820 | R93: 679125 | S93: =+Q93-R93 -> -701945 | T93: =IF(R93<0,IF(S93=0,0,IF(OR(R93=0,Q93=0),"N.M.",IF(ABS(S93/R93)>=10,"N.M.",S93/(-R93)))),IF(S93=0,0,IF(OR(R93=0,Q93=0),"N.M.",IF(ABS(S93/R93)>=10,"N.M.",S93/R93)))) -> -1.033602061 | V93: 961189 | W93: 3008991 | X93: =+V93-W93 -> -2047802 | Y93: =IF(W93<0,IF(X93=0,0,IF(OR(W93=0,V93=0),"N.M.",IF(ABS(X93/W93)>=10,"N.M.",X93/(-W93)))),IF(X93=0,0,IF(OR(W93=0,V93=0),"N.M.",IF(ABS(X93/W93)>=10,"N.M.",X93/W93)))) -> -0.6805610253 | AA93: 533297 | AC93: 226375 | AD93: 226375 | AE93: 226375 | AF93: 226375 | AG93: 226375 | AH93: 908399 | AI93: 226375 | AJ93: 226375 | AK93: 226375 | AL93: 226375 | AM93: 226375 | AN93: 226375 | AP93: -27389 | AQ93: -27389 | AR93: -27389 | AS93: -27389 | AT93: -27389 | AU93: 689219 | AV93: -21015 | AW93: -21015 | AX93: 15188 | AY93: -16993 | AZ93: -1234573 | BA93: 0
A94: %,V4561064 | B94: 4561064 | C94: PROVISION RTO Tran Rv Frml Rts | F94: -522 | G94: 7641 | H94: =+F94-G94 -> -8163 | I94: =IF(G94<0,IF(H94=0,0,IF(OR(G94=0,F94=0),"N.M.",IF(ABS(H94/G94)>=10,"N.M.",H94/(-G94)))),IF(H94=0,0,IF(OR(G94=0,F94=0),"N.M.",IF(ABS(H94/G94)>=10,"N.M.",H94/G94)))) -> -1.068315665 | K94: 17554 | L94: 99132 | M94: =+K94-L94 -> -81578 | N94: =IF(L94<0,IF(M94=0,0,IF(OR(L94=0,K94=0),"N.M.",IF(ABS(M94/L94)>=10,"N.M.",M94/(-L94)))),IF(M94=0,0,IF(OR(L94=0,K94=0),"N.M.",IF(ABS(M94/L94)>=10,"N.M.",M94/L94)))) -> -0.8229229714 | Q94: -613 | R94: 22923 | S94: =+Q94-R94 -> -23536 | T94: =IF(R94<0,IF(S94=0,0,IF(OR(R94=0,Q94=0),"N.M.",IF(ABS(S94/R94)>=10,"N.M.",S94/(-R94)))),IF(S94=0,0,IF(OR(R94=0,Q94=0),"N.M.",IF(ABS(S94/R94)>=10,"N.M.",S94/R94)))) -> -1.0267417 | V94: 32837 | W94: 98314 | X94: =+V94-W94 -> -65477 | Y94: =IF(W94<0,IF(X94=0,0,IF(OR(W94=0,V94=0),"N.M.",IF(ABS(X94/W94)>=10,"N.M.",X94/(-W94)))),IF(X94=0,0,IF(OR(W94=0,V94=0),"N.M.",IF(ABS(X94/W94)>=10,"N.M.",X94/W94)))) -> -0.6659987387 | AA94: 16538 | AC94: 7641 | AD94: 7641 | AE94: 7641 | AF94: 7641 | AG94: 7641 | AH94: 30363 | AI94: 7641 | AJ94: 7641 | AK94: 7641 | AL94: 7641 | AM94: 7641 | AN94: 7642 | AP94: -920 | AQ94: -920 | AR94: -920 | AS94: -920 | AT94: -920 | AU94: 23428 | AV94: -661 | AW94: -660 | AX94: 569 | AY94: -522 | AZ94: -41946 | BA94: 0
A95: %,V4561065 | B95: 4561065 | C95: PROVISION RTO Tran Rev NonAff | F95: -4508 | G95: 31916 | H95: =+F95-G95 -> -36424 | I95: =IF(G95<0,IF(H95=0,0,IF(OR(G95=0,F95=0),"N.M.",IF(ABS(H95/G95)>=10,"N.M.",H95/(-G95)))),IF(H95=0,0,IF(OR(G95=0,F95=0),"N.M.",IF(ABS(H95/G95)>=10,"N.M.",H95/G95)))) -> -1.14124577 | K95: 56828 | L95: 430034 | M95: =+K95-L95 -> -373206 | N95: =IF(L95<0,IF(M95=0,0,IF(OR(L95=0,K95=0),"N.M.",IF(ABS(M95/L95)>=10,"N.M.",M95/(-L95)))),IF(M95=0,0,IF(OR(L95=0,K95=0),"N.M.",IF(ABS(M95/L95)>=10,"N.M.",M95/L95)))) -> -0.8678523094 | Q95: -9739 | R95: 95748 | S95: =+Q95-R95 -> -105487 | T95: =IF(R95<0,IF(S95=0,0,IF(OR(R95=0,Q95=0),"N.M.",IF(ABS(S95/R95)>=10,"N.M.",S95/(-R95)))),IF(S95=0,0,IF(OR(R95=0,Q95=0),"N.M.",IF(ABS(S95/R95)>=10,"N.M.",S95/R95)))) -> -1.101714918 | V95: 120662 | W95: 431576 | X95: =+V95-W95 -> -310914 | Y95: =IF(W95<0,IF(X95=0,0,IF(OR(W95=0,V95=0),"N.M.",IF(ABS(X95/W95)>=10,"N.M.",X95/(-W95)))),IF(X95=0,0,IF(OR(W95=0,V95=0),"N.M.",IF(ABS(X95/W95)>=10,"N.M.",X95/W95)))) -> -0.7204154077 | AA95: 71924 | AC95: 31911 | AD95: 31916 | AE95: 31916 | AF95: 31916 | AG95: 31916 | AH95: 142795 | AI95: 31916 | AJ95: 31916 | AK95: 31916 | AL95: 31916 | AM95: 31916 | AN95: 31918 | AP95: -4115 | AQ95: -4115 | AR95: -4115 | AS95: -4115 | AT95: -4115 | AU95: 92190 | AV95: -5048 | AW95: -5049 | AX95: -182 | AY95: -4508 | AZ95: -165914 | BA95: 0
A96: %,V4561075 | B96: 4561075 | C96: PJM-Nonaff Power Factor Credit | F96: 349.98 | G96: 0 | H96: =+F96-G96 -> 349.98 | I96: =IF(G96<0,IF(H96=0,0,IF(OR(G96=0,F96=0),"N.M.",IF(ABS(H96/G96)>=10,"N.M.",H96/(-G96)))),IF(H96=0,0,IF(OR(G96=0,F96=0),"N.M.",IF(ABS(H96/G96)>=10,"N.M.",H96/G96)))) -> N.M. | K96: 3587.66 | L96: 0 | M96: =+K96-L96 -> 3587.66 | N96: =IF(L96<0,IF(M96=0,0,IF(OR(L96=0,K96=0),"N.M.",IF(ABS(M96/L96)>=10,"N.M.",M96/(-L96)))),IF(M96=0,0,IF(OR(L96=0,K96=0),"N.M.",IF(ABS(M96/L96)>=10,"N.M.",M96/L96)))) -> N.M. | Q96: 1772.92 | R96: 0 | S96: =+Q96-R96 -> 1772.92 | T96: =IF(R96<0,IF(S96=0,0,IF(OR(R96=0,Q96=0),"N.M.",IF(ABS(S96/R96)>=10,"N.M.",S96/(-R96)))),IF(S96=0,0,IF(OR(R96=0,Q96=0),"N.M.",IF(ABS(S96/R96)>=10,"N.M.",S96/R96)))) -> N.M. | V96: 3587.66 | W96: 0 | X96: =+V96-W96 -> 3587.66 | Y96: =IF(W96<0,IF(X96=0,0,IF(OR(W96=0,V96=0),"N.M.",IF(ABS(X96/W96)>=10,"N.M.",X96/(-W96)))),IF(X96=0,0,IF(OR(W96=0,V96=0),"N.M.",IF(ABS(X96/W96)>=10,"N.M.",X96/W96)))) -> N.M. | AA96: 0 | AC96: 0 | AD96: 0 | AE96: 0 | AF96: 0 | AG96: 0 | AH96: 0 | AI96: 0 | AJ96: 0 | AK96: 0 | AL96: 0 | AM96: 0 | AN96: 0 | AP96: 0 | AQ96: 0 | AR96: 0 | AS96: 0 | AT96: 0 | AU96: 421.26 | AV96: 1393.48 | AW96: 620.05 | AX96: 802.89 | AY96: 349.98 | AZ96: -566.64 | BA96: 0
A97: %,R,FACCOUNT,TGL_FERC_ACCT,XDYYNNY01,NOTHER_OPER_REVENUES | C97: Other Operating Revenues | F97: 5680128.265 | G97: 3872990.195 | H97: =+F97-G97 -> 1807138.07 | I97: =IF(G97<0,IF(H97=0,0,IF(OR(G97=0,F97=0),"N.M.",IF(ABS(H97/G97)>=10,"N.M.",H97/(-G97)))),IF(H97=0,0,IF(OR(G97=0,F97=0),"N.M.",IF(ABS(H97/G97)>=10,"N.M.",H97/G97)))) -> 0.4666002182 | K97: 54255410.25 | L97: 39813250.82 | M97: =+K97-L97 -> 14442159.43 | N97: =IF(L97<0,IF(M97=0,0,IF(OR(L97=0,K97=0),"N.M.",IF(ABS(M97/L97)>=10,"N.M.",M97/(-L97)))),IF(M97=0,0,IF(OR(L97=0,K97=0),"N.M.",IF(ABS(M97/L97)>=10,"N.M.",M97/L97)))) -> 0.362747556 | Q97: 17124354.93 | R97: 11601500.69 | S97: =+Q97-R97 -> 5522854.24 | T97: =IF(R97<0,IF(S97=0,0,IF(OR(R97=0,Q97=0),"N.M.",IF(ABS(S97/R97)>=10,"N.M.",S97/(-R97)))),IF(S97=0,0,IF(OR(R97=0,Q97=0),"N.M.",IF(ABS(S97/R97)>=10,"N.M.",S97/R97)))) -> 0.4760465383 | V97: 62892524.72 | W97: 47782531.93 | X97: =+V97-W97 -> 15109992.79 | Y97: =IF(W97<0,IF(X97=0,0,IF(OR(W97=0,V97=0),"N.M.",IF(ABS(X97/W97)>=10,"N.M.",X97/(-W97)))),IF(X97=0,0,IF(OR(W97=0,V97=0),"N.M.",IF(ABS(X97/W97)>=10,"N.M.",X97/W97)))) -> 0.316224197 | AA97: 4899525.23 | AC97: 4352333.815 | AD97: 3789135.375 | AE97: 4137876.785 | AF97: 3904442.665 | AG97: 3886159.025 | AH97: 4153655.995 | AI97: 3988146.475 | AJ97: 3973971.635 | AK97: 3754538.855 | AL97: 3872990.195 | AM97: 3786679.615 | AN97: 4850434.855 | AP97: 5608078.735 | AQ97: 4770916.025 | AR97: 5663666.985 | AS97: 5419622.645 | AT97: 5239207.045 | AU97: 4812919.175 | AV97: 5616644.715 | AW97: 6005323.385 | AX97: 5438903.275 | AY97: 5680128.265 | AZ97: 66988269.97 | BA97: 0
B98: Line 2 | C98: Operating Revenues (400) | F98: =+F14+F23+F27+F52+F60+F97 -> 56923373.62 | G98: =+G14+G23+G27+G52+G60+G97 -> 53142028.47 | H98: =+F98-G98 -> 3781345.16 | I98: =IF(G98<0,IF(H98=0,0,IF(OR(G98=0,F98=0),"N.M.",IF(ABS(H98/G98)>=10,"N.M.",H98/(-G98)))),IF(H98=0,0,IF(OR(G98=0,F98=0),"N.M.",IF(ABS(H98/G98)>=10,"N.M.",H98/G98)))) -> 0.07115545396 | K98: =+K14+K23+K27+K52+K60+K97 -> 634333153 | L98: =+L14+L23+L27+L52+L60+L97 -> 582488042.3 | M98: =+K98-L98 -> 51845110.63 | N98: =IF(L98<0,IF(M98=0,0,IF(OR(L98=0,K98=0),"N.M.",IF(ABS(M98/L98)>=10,"N.M.",M98/(-L98)))),IF(M98=0,0,IF(OR(L98=0,K98=0),"N.M.",IF(ABS(M98/L98)>=10,"N.M.",M98/L98)))) -> 0.08900630891 | Q98: =+Q14+Q23+Q27+Q52+Q60+Q97 -> 172416525.2 | R98: =+R14+R23+R27+R52+R60+R97 -> 168603107.6 | S98: =+Q98-R98 -> 3813417.65 | T98: =IF(R98<0,IF(S98=0,0,IF(OR(R98=0,Q98=0),"N.M.",IF(ABS(S98/R98)>=10,"N.M.",S98/(-R98)))),IF(S98=0,0,IF(OR(R98=0,Q98=0),"N.M.",IF(ABS(S98/R98)>=10,"N.M.",S98/R98)))) -> 0.02261771864 | V98: =+V14+V23+V27+V52+V60+V97 -> 758427478.9 | W98: =+W14+W23+W27+W52+W60+W97 -> 682428949.1 | X98: =+V98-W98 -> 75998529.86 | Y98: =IF(W98<0,IF(X98=0,0,IF(OR(W98=0,V98=0),"N.M.",IF(ABS(X98/W98)>=10,"N.M.",X98/(-W98)))),IF(X98=0,0,IF(OR(W98=0,V98=0),"N.M.",IF(ABS(X98/W98)>=10,"N.M.",X98/W98)))) -> 0.1113647508 | AA98: =+AA14+AA23+AA27+AA52+AA60+AA97 -> 47788863.94 | AC98: =+AC14+AC23+AC27+AC52+AC60+AC97 -> 67085831.84 | AD98: =+AD14+AD23+AD27+AD52+AD60+AD97 -> 59803847.48 | AE98: =+AE14+AE23+AE27+AE52+AE60+AE97 -> 58984766.12 | AF98: =+AF14+AF23+AF27+AF52+AF60+AF97 -> 49769038.79 | AG98: =+AG14+AG23+AG27+AG52+AG60+AG97 -> 57815442.87 | AH98: =+AH14+AH23+AH27+AH52+AH60+AH97 -> 56386492.93 | AI98: =+AI14+AI23+AI27+AI52+AI60+AI97 -> 64039514.7 | AJ98: =+AJ14+AJ23+AJ27+AJ52+AJ60+AJ97 -> 64720606.46 | AK98: =+AK14+AK23+AK27+AK52+AK60+AK97 -> 50740472.67 | AL98: =+AL14+AL23+AL27+AL52+AL60+AL97 -> 53142028.47 | AM98: =+AM14+AM23+AM27+AM52+AM60+AM97 -> 57023806.31 | AN98: =+AN14+AN23+AN27+AN52+AN60+AN97 -> 67070519.64 | AP98: =+AP14+AP23+AP27+AP52+AP60+AP97 -> 82864908.61 | AQ98: =+AQ14+AQ23+AQ27+AQ52+AQ60+AQ97 -> 62306403.6 | AR98: =+AR14+AR23+AR27+AR52+AR60+AR97 -> 66662575.7 | AS98: =+AS14+AS23+AS27+AS52+AS60+AS97 -> 52815642.09 | AT98: =+AT14+AT23+AT27+AT52+AT60+AT97 -> 49668783.77 | AU98: =+AU14+AU23+AU27+AU52+AU60+AU97 -> 80265747.05 | AV98: =+AV14+AV23+AV27+AV52+AV60+AV97 -> 67332566.89 | AW98: =+AW14+AW23+AW27+AW52+AW60+AW97 -> 65046326.7 | AX98: =+AX14+AX23+AX27+AX52+AX60+AX97 -> 50446824.92 | AY98: =+AY14+AY23+AY27+AY52+AY60+AY97 -> 56923373.62 | AZ98: =+AZ14+AZ23+AZ27+AZ52+AZ60+AZ97 -> 409947864 | BA98: =+BA14+BA23+BA27+BA52+BA60+BA97 -> 0
B99: Line 3 | C99: Operating Expenses
A101: %,V5010000 | B101: 5010000 | C101: Fuel | F101: 534269.35 | G101: 208202.56 | H101: =+F101-G101 -> 326066.79 | I101: =IF(G101<0,IF(H101=0,0,IF(OR(G101=0,F101=0),"N.M.",IF(ABS(H101/G101)>=10,"N.M.",H101/(-G101)))),IF(H101=0,0,IF(OR(G101=0,F101=0),"N.M.",IF(ABS(H101/G101)>=10,"N.M.",H101/G101)))) -> 1.566103654 | K101: 6587808.13 | L101: 5490530.41 | M101: =+K101-L101 -> 1097277.72 | N101: =IF(L101<0,IF(M101=0,0,IF(OR(L101=0,K101=0),"N.M.",IF(ABS(M101/L101)>=10,"N.M.",M101/(-L101)))),IF(M101=0,0,IF(OR(L101=0,K101=0),"N.M.",IF(ABS(M101/L101)>=10,"N.M.",M101/L101)))) -> 0.199849129 | Q101: 1817003.92 | R101: 1941317.36 | S101: =+Q101-R101 -> -124313.44 | T101: =IF(R101<0,IF(S101=0,0,IF(OR(R101=0,Q101=0),"N.M.",IF(ABS(S101/R101)>=10,"N.M.",S101/(-R101)))),IF(S101=0,0,IF(OR(R101=0,Q101=0),"N.M.",IF(ABS(S101/R101)>=10,"N.M.",S101/R101)))) -> -0.0640356093 | V101: 7446117.73 | W101: 7297457.96 | X101: =+V101-W101 -> 148659.77 | Y101: =IF(W101<0,IF(X101=0,0,IF(OR(W101=0,V101=0),"N.M.",IF(ABS(X101/W101)>=10,"N.M.",X101/(-W101)))),IF(X101=0,0,IF(OR(W101=0,V101=0),"N.M.",IF(ABS(X101/W101)>=10,"N.M.",X101/W101)))) -> 0.02037144589 | AA101: 1035031.41 | AC101: 872626.16 | AD101: 542641.95 | AE101: -196190.17 | AF101: 971461.29 | AG101: 423039.91 | AH101: 461656.61 | AI101: 473977.3 | AJ101: 941381.32 | AK101: 791733.48 | AL101: 208202.56 | AM101: 390265.39 | AN101: 468044.21 | AP101: 618298.26 | AQ101: 692259.2 | AR101: 1391713.84 | AS101: 422235.9 | AT101: 536336.11 | AU101: 438840.56 | AV101: 671120.34 | AW101: 615530.47 | AX101: 667204.1 | AY101: 534269.35 | AZ101: 0 | BA101: 0
A102: %,V5010001 | B102: 5010001 | C102: Fuel Consumed | F102: 9776000.93 | G102: 5748105.71 | H102: =+F102-G102 -> 4027895.22 | I102: =IF(G102<0,IF(H102=0,0,IF(OR(G102=0,F102=0),"N.M.",IF(ABS(H102/G102)>=10,"N.M.",H102/(-G102)))),IF(H102=0,0,IF(OR(G102=0,F102=0),"N.M.",IF(ABS(H102/G102)>=10,"N.M.",H102/G102)))) -> 0.7007343677 | K102: 58089542.65 | L102: 64166304.05 | M102: =+K102-L102 -> -6076761.4 | N102: =IF(L102<0,IF(M102=0,0,IF(OR(L102=0,K102=0),"N.M.",IF(ABS(M102/L102)>=10,"N.M.",M102/(-L102)))),IF(M102=0,0,IF(OR(L102=0,K102=0),"N.M.",IF(ABS(M102/L102)>=10,"N.M.",M102/L102)))) -> -0.09470331025 | Q102: 19460885.74 | R102: 15480083.14 | S102: =+Q102-R102 -> 3980802.6 | T102: =IF(R102<0,IF(S102=0,0,IF(OR(R102=0,Q102=0),"N.M.",IF(ABS(S102/R102)>=10,"N.M.",S102/(-R102)))),IF(S102=0,0,IF(OR(R102=0,Q102=0),"N.M.",IF(ABS(S102/R102)>=10,"N.M.",S102/R102)))) -> 0.2571564096 | V102: 76120162.9 | W102: 72122256.21 | X102: =+V102-W102 -> 3997906.69 | Y102: =IF(W102<0,IF(X102=0,0,IF(OR(W102=0,V102=0),"N.M.",IF(ABS(X102/W102)>=10,"N.M.",X102/(-W102)))),IF(X102=0,0,IF(OR(W102=0,V102=0),"N.M.",IF(ABS(X102/W102)>=10,"N.M.",X102/W102)))) -> 0.0554323575 | AA102: 5926775.22 | AC102: 6815301.18 | AD102: 8255204.4 | AE102: 8366721.76 | AF102: 2942490.98 | AG102: 1304469.51 | AH102: 10602993.08 | AI102: 10399040 | AJ102: 8665987.11 | AK102: 1065990.32 | AL102: 5748105.71 | AM102: 8015514.63 | AN102: 10015105.62 | AP102: 12290393.29 | AQ102: 3464421.5 | AR102: 1240119.13 | AS102: 5166295.41 | AT102: 1362557.52 | AU102: 5465171.12 | AV102: 9639698.94 | AW102: 7211243.8 | AX102: 2473641.01 | AY102: 9776000.93 | AZ102: 0 | BA102: 0
A103: %,V5010003 | B103: 5010003 | C103: Fuel - Procure Unload & Handle | F103: 464300.85 | G103: 279714.02 | H103: =+F103-G103 -> 184586.83 | I103: =IF(G103<0,IF(H103=0,0,IF(OR(G103=0,F103=0),"N.M.",IF(ABS(H103/G103)>=10,"N.M.",H103/(-G103)))),IF(H103=0,0,IF(OR(G103=0,F103=0),"N.M.",IF(ABS(H103/G103)>=10,"N.M.",H103/G103)))) -> 0.6599126851 | K103: 3253415.96 | L103: 2669796.85 | M103: =+K103-L103 -> 583619.11 | N103: =IF(L103<0,IF(M103=0,0,IF(OR(L103=0,K103=0),"N.M.",IF(ABS(M103/L103)>=10,"N.M.",M103/(-L103)))),IF(M103=0,0,IF(OR(L103=0,K103=0),"N.M.",IF(ABS(M103/L103)>=10,"N.M.",M103/L103)))) -> 0.2186005688 | Q103: 984298.47 | R103: 726102.17 | S103: =+Q103-R103 -> 258196.3 | T103: =IF(R103<0,IF(S103=0,0,IF(OR(R103=0,Q103=0),"N.M.",IF(ABS(S103/R103)>=10,"N.M.",S103/(-R103)))),IF(S103=0,0,IF(OR(R103=0,Q103=0),"N.M.",IF(ABS(S103/R103)>=10,"N.M.",S103/R103)))) -> 0.355592244 | V103: 4134409.19 | W103: 2934277.27 | X103: =+V103-W103 -> 1200131.92 | Y103: =IF(W103<0,IF(X103=0,0,IF(OR(W103=0,V103=0),"N.M.",IF(ABS(X103/W103)>=10,"N.M.",X103/(-W103)))),IF(X103=0,0,IF(OR(W103=0,V103=0),"N.M.",IF(ABS(X103/W103)>=10,"N.M.",X103/W103)))) -> 0.4090042656 | AA103: 206879.68 | AC103: 251776.31 | AD103: 241917.34 | AE103: 330129.3 | AF103: 119005.12 | AG103: 84110.31 | AH103: 468389.37 | AI103: 448366.93 | AJ103: 395660.87 | AK103: 50727.28 | AL103: 279714.02 | AM103: 398927.76 | AN103: 482065.47 | AP103: 617385.32 | AQ103: 176267.9 | AR103: 64924.42 | AS103: 309300.95 | AT103: 80402.99 | AU103: 500918.55 | AV103: 519917.36 | AW103: 387404.5 | AX103: 132593.12 | AY103: 464300.85 | AZ103: 0 | BA103: 0
A104: %,V5010005 | B104: 5010005 | C104: Fuel - Deferred | F104: -4067343.391 | G104: 765316.16 | H104: =+F104-G104 -> -4832659.551 | I104: =IF(G104<0,IF(H104=0,0,IF(OR(G104=0,F104=0),"N.M.",IF(ABS(H104/G104)>=10,"N.M.",H104/(-G104)))),IF(H104=0,0,IF(OR(G104=0,F104=0),"N.M.",IF(ABS(H104/G104)>=10,"N.M.",H104/G104)))) -> -6.314592326 | K104: 3597380.24 | L104: 3190865.31 | M104: =+K104-L104 -> 406514.93 | N104: =IF(L104<0,IF(M104=0,0,IF(OR(L104=0,K104=0),"N.M.",IF(ABS(M104/L104)>=10,"N.M.",M104/(-L104)))),IF(M104=0,0,IF(OR(L104=0,K104=0),"N.M.",IF(ABS(M104/L104)>=10,"N.M.",M104/L104)))) -> 0.1273995893 | Q104: 3357961 | R104: 2715647 | S104: =+Q104-R104 -> 642314 | T104: =IF(R104<0,IF(S104=0,0,IF(OR(R104=0,Q104=0),"N.M.",IF(ABS(S104/R104)>=10,"N.M.",S104/(-R104)))),IF(S104=0,0,IF(OR(R104=0,Q104=0),"N.M.",IF(ABS(S104/R104)>=10,"N.M.",S104/R104)))) -> 0.2365233773 | V104: 2459739 | W104: -2788074 | X104: =+V104-W104 -> 5247813 | Y104: =IF(W104<0,IF(X104=0,0,IF(OR(W104=0,V104=0),"N.M.",IF(ABS(X104/W104)>=10,"N.M.",X104/(-W104)))),IF(X104=0,0,IF(OR(W104=0,V104=0),"N.M.",IF(ABS(X104/W104)>=10,"N.M.",X104/W104)))) -> 1.882235909 | AA104: -5130859.31 | AC104: -2906738.69 | AD104: 3050820 | AE104: 2532334.04 | AF104: 776544.96 | AG104: 4562616 | AH104: -4139638.98 | AI104: -3400719.02 | AJ104: 1180481 | AK104: 769849.84 | AL104: 765316.16 | AM104: 536171 | AN104: -1673812.24 | AP104: -5123318.9 | AQ104: 2751467.731 | AR104: 1805156.56 | AS104: 1044760.324 | AT104: 4417871.505 | AU104: -3340582.92 | AV104: -1315935.06 | AW104: 6623129 | AX104: 802175.391 | AY104: -4067343.391 | AZ104: 2772087 | BA104: 2265113
A105: %,V5010012 | B105: 5010012 | C105: Ash Sales Proceeds | F105: 880.4 | G105: 584.27 | H105: =+F105-G105 -> 296.13 | I105: =IF(G105<0,IF(H105=0,0,IF(OR(G105=0,F105=0),"N.M.",IF(ABS(H105/G105)>=10,"N.M.",H105/(-G105)))),IF(H105=0,0,IF(OR(G105=0,F105=0),"N.M.",IF(ABS(H105/G105)>=10,"N.M.",H105/G105)))) -> 0.5068375922 | K105: 5109.5 | L105: 15673.29 | M105: =+K105-L105 -> -10563.79 | N105: =IF(L105<0,IF(M105=0,0,IF(OR(L105=0,K105=0),"N.M.",IF(ABS(M105/L105)>=10,"N.M.",M105/(-L105)))),IF(M105=0,0,IF(OR(L105=0,K105=0),"N.M.",IF(ABS(M105/L105)>=10,"N.M.",M105/L105)))) -> -0.673999524 | Q105: 2089.95 | R105: 4999.45 | S105: =+Q105-R105 -> -2909.5 | T105: =IF(R105<0,IF(S105=0,0,IF(OR(R105=0,Q105=0),"N.M.",IF(ABS(S105/R105)>=10,"N.M.",S105/(-R105)))),IF(S105=0,0,IF(OR(R105=0,Q105=0),"N.M.",IF(ABS(S105/R105)>=10,"N.M.",S105/R105)))) -> -0.581964016 | V105: 8290.26 | W105: 15673.29 | X105: =+V105-W105 -> -7383.03 | Y105: =IF(W105<0,IF(X105=0,0,IF(OR(W105=0,V105=0),"N.M.",IF(ABS(X105/W105)>=10,"N.M.",X105/(-W105)))),IF(X105=0,0,IF(OR(W105=0,V105=0),"N.M.",IF(ABS(X105/W105)>=10,"N.M.",X105/W105)))) -> -0.4710580867 | AA105: 0 | AC105: 0 | AD105: 0 | AE105: 0 | AF105: 2495.48 | AG105: 3982.69 | AH105: 2065.77 | AI105: 2129.9 | AJ105: 1997.07 | AK105: 2418.11 | AL105: 584.27 | AM105: 1944.45 | AN105: 1236.31 | AP105: 992.95 | AQ105: 2082.52 | AR105: 259.49 | AS105: -1356.98 | AT105: 1777.24 | AU105: -1796.76 | AV105: 1061.09 | AW105: 489.78 | AX105: 719.77 | AY105: 880.4 | AZ105: 0 | BA105: 0
A106: %,V5010013 | B106: 5010013 | C106: Fuel Survey Activity | F106: 0 | G106: 0 | H106: =+F106-G106 -> 0 | I106: =IF(G106<0,IF(H106=0,0,IF(OR(G106=0,F106=0),"N.M.",IF(ABS(H106/G106)>=10,"N.M.",H106/(-G106)))),IF(H106=0,0,IF(OR(G106=0,F106=0),"N.M.",IF(ABS(H106/G106)>=10,"N.M.",H106/G106)))) -> 0 | K106: 4136038.43 | L106: 49281.13 | M106: =+K106-L106 -> 4086757.3 | N106: =IF(L106<0,IF(M106=0,0,IF(OR(L106=0,K106=0),"N.M.",IF(ABS(M106/L106)>=10,"N.M.",M106/(-L106)))),IF(M106=0,0,IF(OR(L106=0,K106=0),"N.M.",IF(ABS(M106/L106)>=10,"N.M.",M106/L106)))) -> N.M. | Q106: 0 | R106: 0 | S106: =+Q106-R106 -> 0 | T106: =IF(R106<0,IF(S106=0,0,IF(OR(R106=0,Q106=0),"N.M.",IF(ABS(S106/R106)>=10,"N.M.",S106/(-R106)))),IF(S106=0,0,IF(OR(R106=0,Q106=0),"N.M.",IF(ABS(S106/R106)>=10,"N.M.",S106/R106)))) -> 0 | V106: 4136038.43 | W106: 49281.13 | X106: =+V106-W106 -> 4086757.3 | Y106: =IF(W106<0,IF(X106=0,0,IF(OR(W106=0,V106=0),"N.M.",IF(ABS(X106/W106)>=10,"N.M.",X106/(-W106)))),IF(X106=0,0,IF(OR(W106=0,V106=0),"N.M.",IF(ABS(X106/W106)>=10,"N.M.",X106/W106)))) -> N.M. | AA106: 0 | AC106: 0 | AD106: 0 | AE106: 0 | AF106: 0 | AG106: 49281.13 | AH106: 0 | AI106: 0 | AJ106: 0 | AK106: 0 | AL106: 0 | AM106: 0 | AN106: 0 | AP106: 0 | AQ106: 0 | AR106: 0 | AS106: 0 | AT106: 0 | AU106: 4136038.43 | AV106: 0 | AW106: 0 | AX106: 0 | AY106: 0 | AZ106: 0 | BA106: 0
A107: %,V5010019 | B107: 5010019 | C107: Fuel Oil Consumed | F107: 299158.57 | G107: 712070.8 | H107: =+F107-G107 -> -412912.23 | I107: =IF(G107<0,IF(H107=0,0,IF(OR(G107=0,F107=0),"N.M.",IF(ABS(H107/G107)>=10,"N.M.",H107/(-G107)))),IF(H107=0,0,IF(OR(G107=0,F107=0),"N.M.",IF(ABS(H107/G107)>=10,"N.M.",H107/G107)))) -> -0.5798752456 | K107: 3420445.51 | L107: 3426610.51 | M107: =+K107-L107 -> -6165 | N107: =IF(L107<0,IF(M107=0,0,IF(OR(L107=0,K107=0),"N.M.",IF(ABS(M107/L107)>=10,"N.M.",M107/(-L107)))),IF(M107=0,0,IF(OR(L107=0,K107=0),"N.M.",IF(ABS(M107/L107)>=10,"N.M.",M107/L107)))) -> -0.001799153998 | Q107: 720293.21 | R107: 1265222.88 | S107: =+Q107-R107 -> -544929.67 | T107: =IF(R107<0,IF(S107=0,0,IF(OR(R107=0,Q107=0),"N.M.",IF(ABS(S107/R107)>=10,"N.M.",S107/(-R107)))),IF(S107=0,0,IF(OR(R107=0,Q107=0),"N.M.",IF(ABS(S107/R107)>=10,"N.M.",S107/R107)))) -> -0.430698558 | V107: 3723166.32 | W107: 4197678.55 | X107: =+V107-W107 -> -474512.23 | Y107: =IF(W107<0,IF(X107=0,0,IF(OR(W107=0,V107=0),"N.M.",IF(ABS(X107/W107)>=10,"N.M.",X107/(-W107)))),IF(X107=0,0,IF(OR(W107=0,V107=0),"N.M.",IF(ABS(X107/W107)>=10,"N.M.",X107/W107)))) -> -0.1130415834 | AA107: 445710.76 | AC107: 209165.03 | AD107: 532032.34 | AE107: 328573.79 | AF107: 52688.09 | AG107: 347955.04 | AH107: 342039.11 | AI107: 348934.23 | AJ107: 213404.01 | AK107: 339748.07 | AL107: 712070.8 | AM107: 142901.44 | AN107: 159819.37 | AP107: 170057.37 | AQ107: 269009.72 | AR107: 666930.93 | AS107: 96647.53 | AT107: 160652.59 | AU107: 1026257.44 | AV107: 310596.72 | AW107: 229206.49 | AX107: 191928.15 | AY107: 299158.57 | AZ107: 0 | BA107: 0
A108: %,V5010020 | B108: 5010020 | C108: Nat Gas Consumed Steam | F108: 10346.29 | G108: -20.64 | H108: =+F108-G108 -> 10366.93 | I108: =IF(G108<0,IF(H108=0,0,IF(OR(G108=0,F108=0),"N.M.",IF(ABS(H108/G108)>=10,"N.M.",H108/(-G108)))),IF(H108=0,0,IF(OR(G108=0,F108=0),"N.M.",IF(ABS(H108/G108)>=10,"N.M.",H108/G108)))) -> N.M. | K108: 30926113.95 | L108: 24588025.92 | M108: =+K108-L108 -> 6338088.03 | N108: =IF(L108<0,IF(M108=0,0,IF(OR(L108=0,K108=0),"N.M.",IF(ABS(M108/L108)>=10,"N.M.",M108/(-L108)))),IF(M108=0,0,IF(OR(L108=0,K108=0),"N.M.",IF(ABS(M108/L108)>=10,"N.M.",M108/L108)))) -> 0.2577713254 | Q108: 5509339.33 | R108: 4324252.82 | S108: =+Q108-R108 -> 1185086.51 | T108: =IF(R108<0,IF(S108=0,0,IF(OR(R108=0,Q108=0),"N.M.",IF(ABS(S108/R108)>=10,"N.M.",S108/(-R108)))),IF(S108=0,0,IF(OR(R108=0,Q108=0),"N.M.",IF(ABS(S108/R108)>=10,"N.M.",S108/R108)))) -> 0.2740557871 | V108: 34103214.8 | W108: 28707778.4 | X108: =+V108-W108 -> 5395436.4 | Y108: =IF(W108<0,IF(X108=0,0,IF(OR(W108=0,V108=0),"N.M.",IF(ABS(X108/W108)>=10,"N.M.",X108/(-W108)))),IF(X108=0,0,IF(OR(W108=0,V108=0),"N.M.",IF(ABS(X108/W108)>=10,"N.M.",X108/W108)))) -> 0.1879433624 | AA108: 2253817.05 | AC108: 3036479.56 | AD108: 3605427.52 | AE108: 2852729.58 | AF108: 2538606.5 | AG108: 2490780.35 | AH108: 2607257.08 | AI108: 3132492.51 | AJ108: 3547914.08 | AK108: 776359.38 | AL108: -20.64 | AM108: 49.17 | AN108: 3177051.68 | AP108: 4815547.63 | AQ108: 5005197.61 | AR108: 3092259.22 | AS108: 1956384.15 | AT108: 2453953.33 | AU108: 3625585.34 | AV108: 4467847.34 | AW108: 3920242.98 | AX108: 1578750.06 | AY108: 10346.29 | AZ108: -10269.54 | BA108: 0
A109: %,V5010021 | B109: 5010021 | C109: Transp Gas Consumed Steam | F109: 105032.69 | G109: 65739.41 | H109: =+F109-G109 -> 39293.28 | I109: =IF(G109<0,IF(H109=0,0,IF(OR(G109=0,F109=0),"N.M.",IF(ABS(H109/G109)>=10,"N.M.",H109/(-G109)))),IF(H109=0,0,IF(OR(G109=0,F109=0),"N.M.",IF(ABS(H109/G109)>=10,"N.M.",H109/G109)))) -> 0.5977126962 | K109: 544774.08 | L109: 667036.33 | M109: =+K109-L109 -> -122262.25 | N109: =IF(L109<0,IF(M109=0,0,IF(OR(L109=0,K109=0),"N.M.",IF(ABS(M109/L109)>=10,"N.M.",M109/(-L109)))),IF(M109=0,0,IF(OR(L109=0,K109=0),"N.M.",IF(ABS(M109/L109)>=10,"N.M.",M109/L109)))) -> -0.1832917406 | Q109: 229641.14 | R109: 91958.26 | S109: =+Q109-R109 -> 137682.88 | T109: =IF(R109<0,IF(S109=0,0,IF(OR(R109=0,Q109=0),"N.M.",IF(ABS(S109/R109)>=10,"N.M.",S109/(-R109)))),IF(S109=0,0,IF(OR(R109=0,Q109=0),"N.M.",IF(ABS(S109/R109)>=10,"N.M.",S109/R109)))) -> 1.497232331 | V109: 502233.66 | W109: 713102.06 | X109: =+V109-W109 -> -210868.4 | Y109: =IF(W109<0,IF(X109=0,0,IF(OR(W109=0,V109=0),"N.M.",IF(ABS(X109/W109)>=10,"N.M.",X109/(-W109)))),IF(X109=0,0,IF(OR(W109=0,V109=0),"N.M.",IF(ABS(X109/W109)>=10,"N.M.",X109/W109)))) -> -0.2957057788 | AA109: 10442.07 | AC109: 43110.1 | AD109: 380679.99 | AE109: 35985.78 | AF109: 30861.41 | AG109: 5662.69 | AH109: 20964.58 | AI109: 57813.52 | AJ109: 16573.64 | AK109: 9645.21 | AL109: 65739.41 | AM109: -2183.55 | AN109: -40356.87 | AP109: 27014.1 | AQ109: 40059.22 | AR109: 41972.07 | AS109: 44452.54 | AT109: 40535.42 | AU109: 86157.96 | AV109: 34941.63 | AW109: 55139.12 | AX109: 69469.33 | AY109: 105032.69 | AZ109: -143441.05 | BA109: 0
A110: %,V5010027 | B110: 5010027 | C110: Gypsum handling/disposal costs | F110: 136617.8 | G110: 122197.09 | H110: =+F110-G110 -> 14420.71 | I110: =IF(G110<0,IF(H110=0,0,IF(OR(G110=0,F110=0),"N.M.",IF(ABS(H110/G110)>=10,"N.M.",H110/(-G110)))),IF(H110=0,0,IF(OR(G110=0,F110=0),"N.M.",IF(ABS(H110/G110)>=10,"N.M.",H110/G110)))) -> 0.1180118937 | K110: 1173401.8 | L110: 1136677.8 | M110: =+K110-L110 -> 36724 | N110: =IF(L110<0,IF(M110=0,0,IF(OR(L110=0,K110=0),"N.M.",IF(ABS(M110/L110)>=10,"N.M.",M110/(-L110)))),IF(M110=0,0,IF(OR(L110=0,K110=0),"N.M.",IF(ABS(M110/L110)>=10,"N.M.",M110/L110)))) -> 0.03230818795 | Q110: 403798.9 | R110: 343722.14 | S110: =+Q110-R110 -> 60076.76 | T110: =IF(R110<0,IF(S110=0,0,IF(OR(R110=0,Q110=0),"N.M.",IF(ABS(S110/R110)>=10,"N.M.",S110/(-R110)))),IF(S110=0,0,IF(OR(R110=0,Q110=0),"N.M.",IF(ABS(S110/R110)>=10,"N.M.",S110/R110)))) -> 0.174782922 | V110: 1426995.68 | W110: 1373851.1 | X110: =+V110-W110 -> 53144.58 | Y110: =IF(W110<0,IF(X110=0,0,IF(OR(W110=0,V110=0),"N.M.",IF(ABS(X110/W110)>=10,"N.M.",X110/(-W110)))),IF(X110=0,0,IF(OR(W110=0,V110=0),"N.M.",IF(ABS(X110/W110)>=10,"N.M.",X110/W110)))) -> 0.03868292568 | AA110: 184449.12 | AC110: 70654.37 | AD110: 106802.58 | AE110: 49508 | AF110: 74964.81 | AG110: 168309.59 | AH110: 210826.82 | AI110: 111889.49 | AJ110: 170292.64 | AK110: 51232.41 | AL110: 122197.09 | AM110: 125888.53 | AN110: 127705.35 | AP110: 65968.69 | AQ110: 149021.03 | AR110: 152673.25 | AS110: 106262.46 | AT110: 52426.61 | AU110: 119621.95 | AV110: 123628.91 | AW110: 175772.97 | AX110: 91408.13 | AY110: 136617.8 | AZ110: 0 | BA110: 0
A111: %,V5010028 | B111: 5010028 | C111: Gypsum Sales Proceeds | F111: -100916.97 | G111: -59705.71 | H111: =+F111-G111 -> -41211.26 | I111: =IF(G111<0,IF(H111=0,0,IF(OR(G111=0,F111=0),"N.M.",IF(ABS(H111/G111)>=10,"N.M.",H111/(-G111)))),IF(H111=0,0,IF(OR(G111=0,F111=0),"N.M.",IF(ABS(H111/G111)>=10,"N.M.",H111/G111)))) -> -0.6902398447 | K111: -1044148.64 | L111: -1110370.39 | M111: =+K111-L111 -> 66221.75 | N111: =IF(L111<0,IF(M111=0,0,IF(OR(L111=0,K111=0),"N.M.",IF(ABS(M111/L111)>=10,"N.M.",M111/(-L111)))),IF(M111=0,0,IF(OR(L111=0,K111=0),"N.M.",IF(ABS(M111/L111)>=10,"N.M.",M111/L111)))) -> 0.0596393335 | Q111: -344402.39 | R111: -320304.58 | S111: =+Q111-R111 -> -24097.81 | T111: =IF(R111<0,IF(S111=0,0,IF(OR(R111=0,Q111=0),"N.M.",IF(ABS(S111/R111)>=10,"N.M.",S111/(-R111)))),IF(S111=0,0,IF(OR(R111=0,Q111=0),"N.M.",IF(ABS(S111/R111)>=10,"N.M.",S111/R111)))) -> -0.07523404754 | V111: -1219455.76 | W111: -1241293.51 | X111: =+V111-W111 -> 21837.75 | Y111: =IF(W111<0,IF(X111=0,0,IF(OR(W111=0,V111=0),"N.M.",IF(ABS(X111/W111)>=10,"N.M.",X111/(-W111)))),IF(X111=0,0,IF(OR(W111=0,V111=0),"N.M.",IF(ABS(X111/W111)>=10,"N.M.",X111/W111)))) -> 0.01759273679 | AA111: -80002.25 | AC111: 0 | AD111: -327903.21 | AE111: -115514.48 | AF111: -96854.21 | AG111: -57989.73 | AH111: -71261.65 | AI111: -120542.53 | AJ111: -152093.33 | AK111: -108505.54 | AL111: -59705.71 | AM111: -85231.73 | AN111: -90075.39 | AP111: -242087.17 | AQ111: -120703.2 | AR111: -36655.22 | AS111: -55250.53 | AT111: -96967.84 | AU111: -57542.76 | AV111: -90539.53 | AW111: -126577.74 | AX111: -116907.68 | AY111: -100916.97 | AZ111: 0 | BA111: 0
A112: %,V5010034 | B112: 5010034 | C112: Gas Transp Res Fees-Steam | F112: 503208 | G112: 549928.84 | H112: =+F112-G112 -> -46720.84 | I112: =IF(G112<0,IF(H112=0,0,IF(OR(G112=0,F112=0),"N.M.",IF(ABS(H112/G112)>=10,"N.M.",H112/(-G112)))),IF(H112=0,0,IF(OR(G112=0,F112=0),"N.M.",IF(ABS(H112/G112)>=10,"N.M.",H112/G112)))) -> -0.08495797384 | K112: 5095673.27 | L112: 5332168.12 | M112: =+K112-L112 -> -236494.85 | N112: =IF(L112<0,IF(M112=0,0,IF(OR(L112=0,K112=0),"N.M.",IF(ABS(M112/L112)>=10,"N.M.",M112/(-L112)))),IF(M112=0,0,IF(OR(L112=0,K112=0),"N.M.",IF(ABS(M112/L112)>=10,"N.M.",M112/L112)))) -> -0.04435247439 | Q112: 1495216.79 | R112: 1635400.84 | S112: =+Q112-R112 -> -140184.05 | T112: =IF(R112<0,IF(S112=0,0,IF(OR(R112=0,Q112=0),"N.M.",IF(ABS(S112/R112)>=10,"N.M.",S112/(-R112)))),IF(S112=0,0,IF(OR(R112=0,Q112=0),"N.M.",IF(ABS(S112/R112)>=10,"N.M.",S112/R112)))) -> -0.08571846521 | V112: 6001664.55 | W112: 6352835.8 | X112: =+V112-W112 -> -351171.25 | Y112: =IF(W112<0,IF(X112=0,0,IF(OR(W112=0,V112=0),"N.M.",IF(ABS(X112/W112)>=10,"N.M.",X112/(-W112)))),IF(X112=0,0,IF(OR(W112=0,V112=0),"N.M.",IF(ABS(X112/W112)>=10,"N.M.",X112/W112)))) -> -0.05527787291 | AA112: 517533.84 | AC112: 517533.84 | AD112: 487573.2 | AE112: 515244.24 | AF112: 501989.04 | AG112: 588954.96 | AH112: 538272 | AI112: 547200 | AJ112: 549936 | AK112: 535536 | AL112: 549928.84 | AM112: 444712.48 | AN112: 461278.8 | AP112: 554413.68 | AQ112: 508975.2 | AR112: 552175.2 | AS112: 537775.2 | AT112: 455968.8 | AU112: 487940.4 | AV112: 503208 | AW112: 503204.39 | AX112: 488804.4 | AY112: 503208 | AZ112: -503208 | BA112: 0
A113: %,V5010040 | B113: 5010040 | C113: Gas Procuremnt Sales Net | F113: 312992.9 | G113: 638344.962 | H113: =+F113-G113 -> -325352.062 | I113: =IF(G113<0,IF(H113=0,0,IF(OR(G113=0,F113=0),"N.M.",IF(ABS(H113/G113)>=10,"N.M.",H113/(-G113)))),IF(H113=0,0,IF(OR(G113=0,F113=0),"N.M.",IF(ABS(H113/G113)>=10,"N.M.",H113/G113)))) -> -0.5096806294 | K113: 660196.66 | L113: 1780041.71 | M113: =+K113-L113 -> -1119845.05 | N113: =IF(L113<0,IF(M113=0,0,IF(OR(L113=0,K113=0),"N.M.",IF(ABS(M113/L113)>=10,"N.M.",M113/(-L113)))),IF(M113=0,0,IF(OR(L113=0,K113=0),"N.M.",IF(ABS(M113/L113)>=10,"N.M.",M113/L113)))) -> -0.6291116909 | Q113: 422212.91 | R113: 639344.85 | S113: =+Q113-R113 -> -217131.94 | T113: =IF(R113<0,IF(S113=0,0,IF(OR(R113=0,Q113=0),"N.M.",IF(ABS(S113/R113)>=10,"N.M.",S113/(-R113)))),IF(S113=0,0,IF(OR(R113=0,Q113=0),"N.M.",IF(ABS(S113/R113)>=10,"N.M.",S113/R113)))) -> -0.3396163119 | V113: 1578957.65 | W113: 1865936.37 | X113: =+V113-W113 -> -286978.72 | Y113: =IF(W113<0,IF(X113=0,0,IF(OR(W113=0,V113=0),"N.M.",IF(ABS(X113/W113)>=10,"N.M.",X113/(-W113)))),IF(X113=0,0,IF(OR(W113=0,V113=0),"N.M.",IF(ABS(X113/W113)>=10,"N.M.",X113/W113)))) -> -0.1537987707 | AA113: 91095.42 | AC113: 238539.78 | AD113: 463132.93 | AE113: 357814.79 | AF113: -177.83 | AG113: 5400.41 | AH113: 75987 | AI113: -0.22 | AJ113: 999.98 | AK113: -0.092 | AL113: 638344.962 | AM113: 918760.78 | AN113: 0.21 | AP113: 122978.916 | AQ113: 172291.543 | AR113: 158017.731 | AS113: -219487.01 | AT113: 4182.54 | AU113: -0.045 | AV113: 0.075 | AW113: -0.11 | AX113: 109220.12 | AY113: 312992.9 | AZ113: -312992.96 | BA113: 0
A114: %,FACCOUNT,TGL_FERC_ACCT,XDYYNNY01,N5010 | C114: Fuel Expense | F114: 7974547.419 | G114: 9030477.472 | H114: =+F114-G114 -> -1055930.053 | I114: =IF(G114<0,IF(H114=0,0,IF(OR(G114=0,F114=0),"N.M.",IF(ABS(H114/G114)>=10,"N.M.",H114/(-G114)))),IF(H114=0,0,IF(OR(G114=0,F114=0),"N.M.",IF(ABS(H114/G114)>=10,"N.M.",H114/G114)))) -> -0.1169295927 | K114: 116445751.5 | L114: 111402641 | M114: =+K114-L114 -> 5043110.5 | N114: =IF(L114<0,IF(M114=0,0,IF(OR(L114=0,K114=0),"N.M.",IF(ABS(M114/L114)>=10,"N.M.",M114/(-L114)))),IF(M114=0,0,IF(OR(L114=0,K114=0),"N.M.",IF(ABS(M114/L114)>=10,"N.M.",M114/L114)))) -> 0.04526921851 | Q114: 34058338.97 | R114: 28847746.33 | S114: =+Q114-R114 -> 5210592.64 | T114: =IF(R114<0,IF(S114=0,0,IF(OR(R114=0,Q114=0),"N.M.",IF(ABS(S114/R114)>=10,"N.M.",S114/(-R114)))),IF(S114=0,0,IF(OR(R114=0,Q114=0),"N.M.",IF(ABS(S114/R114)>=10,"N.M.",S114/R114)))) -> 0.1806239066 | V114: 140421534.4 | W114: 121600760.6 | X114: =+V114-W114 -> 18820773.78 | Y114: =IF(W114<0,IF(X114=0,0,IF(OR(W114=0,V114=0),"N.M.",IF(ABS(X114/W114)>=10,"N.M.",X114/(-W114)))),IF(X114=0,0,IF(OR(W114=0,V114=0),"N.M.",IF(ABS(X114/W114)>=10,"N.M.",X114/W114)))) -> 0.154775132 | AA114: 5460873.01 | AC114: 9148447.64 | AD114: 17338329.04 | AE114: 15057336.63 | AF114: 7914075.64 | AG114: 9976572.86 | AH114: 11119550.79 | AI114: 12000582.11 | AJ114: 15532534.39 | AK114: 4284734.468 | AL114: 9030477.472 | AM114: 10887720.35 | AN114: 13088062.52 | AP114: 13917644.14 | AQ114: 13110349.97 | AR114: 9129546.621 | AS114: 9408019.944 | AT114: 9469696.815 | AU114: 12486609.27 | AV114: 14865545.81 | AW114: 19594785.65 | AX114: 6489005.901 | AY114: 7974547.419 | AZ114: 1802175.45 | BA114: 2265113
A116: %,V5000000 | B116: 5000000 | C116: Oper Supervision & Engineering | F116: 366881.03 | G116: 248673.26 | H116: =+F116-G116 -> 118207.77 | I116: =IF(G116<0,IF(H116=0,0,IF(OR(G116=0,F116=0),"N.M.",IF(ABS(H116/G116)>=10,"N.M.",H116/(-G116)))),IF(H116=0,0,IF(OR(G116=0,F116=0),"N.M.",IF(ABS(H116/G116)>=10,"N.M.",H116/G116)))) -> 0.4753537634 | K116: 3539314.92 | L116: 3780152.19 | M116: =+K116-L116 -> -240837.27 | N116: =IF(L116<0,IF(M116=0,0,IF(OR(L116=0,K116=0),"N.M.",IF(ABS(M116/L116)>=10,"N.M.",M116/(-L116)))),IF(M116=0,0,IF(OR(L116=0,K116=0),"N.M.",IF(ABS(M116/L116)>=10,"N.M.",M116/L116)))) -> -0.06371099837 | Q116: 1146527.51 | R116: 1038949.45 | S116: =+Q116-R116 -> 107578.06 | T116: =IF(R116<0,IF(S116=0,0,IF(OR(R116=0,Q116=0),"N.M.",IF(ABS(S116/R116)>=10,"N.M.",S116/(-R116)))),IF(S116=0,0,IF(OR(R116=0,Q116=0),"N.M.",IF(ABS(S116/R116)>=10,"N.M.",S116/R116)))) -> 0.1035450377 | V116: 4186087.45 | W116: 4589310.6 | X116: =+V116-W116 -> -403223.15 | Y116: =IF(W116<0,IF(X116=0,0,IF(OR(W116=0,V116=0),"N.M.",IF(ABS(X116/W116)>=10,"N.M.",X116/(-W116)))),IF(X116=0,0,IF(OR(W116=0,V116=0),"N.M.",IF(ABS(X116/W116)>=10,"N.M.",X116/W116)))) -> -0.08786137726 | AA116: 421795.31 | AC116: 372031.84 | AD116: 391866.57 | AE116: 426000.98 | AF116: 352953.66 | AG116: 420061.15 | AH116: 374170.73 | AI116: 404117.81 | AJ116: 427027.19 | AK116: 363249 | AL116: 248673.26 | AM116: 319519.15 | AN116: 327253.38 | AP116: 336540.33 | AQ116: 344075.13 | AR116: 306873.26 | AS116: 318921.29 | AT116: 304828.88 | AU116: 340471.02 | AV116: 441077.5 | AW116: 405316.32 | AX116: 374330.16 | AY116: 366881.03 | AZ116: -12146.25 | BA116: 0
A117: %,V5000003 | B117: 5000003 | C117: Cnstr Srchrge Op Sup & Eng Exp | F117: 0 | G117: 0 | H117: =+F117-G117 -> 0 | I117: =IF(G117<0,IF(H117=0,0,IF(OR(G117=0,F117=0),"N.M.",IF(ABS(H117/G117)>=10,"N.M.",H117/(-G117)))),IF(H117=0,0,IF(OR(G117=0,F117=0),"N.M.",IF(ABS(H117/G117)>=10,"N.M.",H117/G117)))) -> 0 | K117: 64.34 | L117: 0 | M117: =+K117-L117 -> 64.34 | N117: =IF(L117<0,IF(M117=0,0,IF(OR(L117=0,K117=0),"N.M.",IF(ABS(M117/L117)>=10,"N.M.",M117/(-L117)))),IF(M117=0,0,IF(OR(L117=0,K117=0),"N.M.",IF(ABS(M117/L117)>=10,"N.M.",M117/L117)))) -> N.M. | Q117: 64.34 | R117: 0 | S117: =+Q117-R117 -> 64.34 | T117: =IF(R117<0,IF(S117=0,0,IF(OR(R117=0,Q117=0),"N.M.",IF(ABS(S117/R117)>=10,"N.M.",S117/(-R117)))),IF(S117=0,0,IF(OR(R117=0,Q117=0),"N.M.",IF(ABS(S117/R117)>=10,"N.M.",S117/R117)))) -> N.M. | V117: 64.34 | W117: 0 | X117: =+V117-W117 -> 64.34 | Y117: =IF(W117<0,IF(X117=0,0,IF(OR(W117=0,V117=0),"N.M.",IF(ABS(X117/W117)>=10,"N.M.",X117/(-W117)))),IF(X117=0,0,IF(OR(W117=0,V117=0),"N.M.",IF(ABS(X117/W117)>=10,"N.M.",X117/W117)))) -> N.M. | AA117: 0 | AC117: 0 | AD117: 0 | AE117: 0 | AF117: 0 | AG117: 0 | AH117: 0 | AI117: 0 | AJ117: 0 | AK117: 0 | AL117: 0 | AM117: 0 | AN117: 0 | AP117: 0 | AQ117: 0 | AR117: 0 | AS117: 0 | AT117: 0 | AU117: 0 | AV117: 0 | AW117: 64.34 | AX117: 0 | AY117: 0 | AZ117: 0 | BA117: 0
A118: %,V5000005 | B118: 5000005 | C118: Deferred OM - 20% Non FMR | F118: 0 | G118: 0 | H118: =+F118-G118 -> 0 | I118: =IF(G118<0,IF(H118=0,0,IF(OR(G118=0,F118=0),"N.M.",IF(ABS(H118/G118)>=10,"N.M.",H118/(-G118)))),IF(H118=0,0,IF(OR(G118=0,F118=0),"N.M.",IF(ABS(H118/G118)>=10,"N.M.",H118/G118)))) -> 0 | K118: 0 | L118: 0 | M118: =+K118-L118 -> 0 | N118: =IF(L118<0,IF(M118=0,0,IF(OR(L118=0,K118=0),"N.M.",IF(ABS(M118/L118)>=10,"N.M.",M118/(-L118)))),IF(M118=0,0,IF(OR(L118=0,K118=0),"N.M.",IF(ABS(M118/L118)>=10,"N.M.",M118/L118)))) -> 0 | Q118: 0 | R118: 0 | S118: =+Q118-R118 -> 0 | T118: =IF(R118<0,IF(S118=0,0,IF(OR(R118=0,Q118=0),"N.M.",IF(ABS(S118/R118)>=10,"N.M.",S118/(-R118)))),IF(S118=0,0,IF(OR(R118=0,Q118=0),"N.M.",IF(ABS(S118/R118)>=10,"N.M.",S118/R118)))) -> 0 | V118: 0 | W118: 0 | X118: =+V118-W118 -> 0 | Y118: =IF(W118<0,IF(X118=0,0,IF(OR(W118=0,V118=0),"N.M.",IF(ABS(X118/W118)>=10,"N.M.",X118/(-W118)))),IF(X118=0,0,IF(OR(W118=0,V118=0),"N.M.",IF(ABS(X118/W118)>=10,"N.M.",X118/W118)))) -> 0 | AA118: 0 | AC118: 0 | AD118: 0 | AE118: 0 | AF118: 17.08 | AG118: -17.08 | AH118: 0 | AI118: 0 | AJ118: 0 | AK118: 0 | AL118: 0 | AM118: 0 | AN118: 0 | AP118: 0 | AQ118: 0 | AR118: 0 | AS118: 0 | AT118: 0 | AU118: 0 | AV118: 0 | AW118: 0 | AX118: 0 | AY118: 0 | AZ118: 0 | BA118: 0
A119: %,V5020000 | B119: 5020000 | C119: Steam Expenses | F119: 168965.39 | G119: 109282.58 | H119: =+F119-G119 -> 59682.81 | I119: =IF(G119<0,IF(H119=0,0,IF(OR(G119=0,F119=0),"N.M.",IF(ABS(H119/G119)>=10,"N.M.",H119/(-G119)))),IF(H119=0,0,IF(OR(G119=0,F119=0),"N.M.",IF(ABS(H119/G119)>=10,"N.M.",H119/G119)))) -> 0.5461328786 | K119: 1677403.5 | L119: 1259576.64 | M119: =+K119-L119 -> 417826.86 | N119: =IF(L119<0,IF(M119=0,0,IF(OR(L119=0,K119=0),"N.M.",IF(ABS(M119/L119)>=10,"N.M.",M119/(-L119)))),IF(M119=0,0,IF(OR(L119=0,K119=0),"N.M.",IF(ABS(M119/L119)>=10,"N.M.",M119/L119)))) -> 0.331720077 | Q119: 487136.15 | R119: 353345.39 | S119: =+Q119-R119 -> 133790.76 | T119: =IF(R119<0,IF(S119=0,0,IF(OR(R119=0,Q119=0),"N.M.",IF(ABS(S119/R119)>=10,"N.M.",S119/(-R119)))),IF(S119=0,0,IF(OR(R119=0,Q119=0),"N.M.",IF(ABS(S119/R119)>=10,"N.M.",S119/R119)))) -> 0.3786401741 | V119: 1917558.51 | W119: 1505593.66 | X119: =+V119-W119 -> 411964.85 | Y119: =IF(W119<0,IF(X119=0,0,IF(OR(W119=0,V119=0),"N.M.",IF(ABS(X119/W119)>=10,"N.M.",X119/(-W119)))),IF(X119=0,0,IF(OR(W119=0,V119=0),"N.M.",IF(ABS(X119/W119)>=10,"N.M.",X119/W119)))) -> 0.2736228645 | AA119: 122911.96 | AC119: 115485.12 | AD119: 108492.7 | AE119: 134855.71 | AF119: 134616.76 | AG119: 171132.59 | AH119: 125604.92 | AI119: 116043.45 | AJ119: 133384.15 | AK119: 110678.66 | AL119: 109282.58 | AM119: 137591.82 | AN119: 102563.19 | AP119: 263752.04 | AQ119: 99111.26 | AR119: 132712.56 | AS119: 183480.07 | AT119: 147448.07 | AU119: 161081.79 | AV119: 202681.56 | AW119: 163552.9 | AX119: 154617.86 | AY119: 168965.39 | AZ119: 0 | BA119: 0
A120: %,V5020002 | B120: 5020002 | C120: Urea Expense | F120: 137585.53 | G120: 95424.8 | H120: =+F120-G120 -> 42160.73 | I120: =IF(G120<0,IF(H120=0,0,IF(OR(G120=0,F120=0),"N.M.",IF(ABS(H120/G120)>=10,"N.M.",H120/(-G120)))),IF(H120=0,0,IF(OR(G120=0,F120=0),"N.M.",IF(ABS(H120/G120)>=10,"N.M.",H120/G120)))) -> 0.4418215181 | K120: 728972.96 | L120: 1004576.45 | M120: =+K120-L120 -> -275603.49 | N120: =IF(L120<0,IF(M120=0,0,IF(OR(L120=0,K120=0),"N.M.",IF(ABS(M120/L120)>=10,"N.M.",M120/(-L120)))),IF(M120=0,0,IF(OR(L120=0,K120=0),"N.M.",IF(ABS(M120/L120)>=10,"N.M.",M120/L120)))) -> -0.2743479503 | Q120: 248345.87 | R120: 230969.87 | S120: =+Q120-R120 -> 17376 | T120: =IF(R120<0,IF(S120=0,0,IF(OR(R120=0,Q120=0),"N.M.",IF(ABS(S120/R120)>=10,"N.M.",S120/(-R120)))),IF(S120=0,0,IF(OR(R120=0,Q120=0),"N.M.",IF(ABS(S120/R120)>=10,"N.M.",S120/R120)))) -> 0.07523059177 | V120: 1002191.06 | W120: 1310727.1 | X120: =+V120-W120 -> -308536.04 | Y120: =IF(W120<0,IF(X120=0,0,IF(OR(W120=0,V120=0),"N.M.",IF(ABS(X120/W120)>=10,"N.M.",X120/(-W120)))),IF(X120=0,0,IF(OR(W120=0,V120=0),"N.M.",IF(ABS(X120/W120)>=10,"N.M.",X120/W120)))) -> -0.2353930425 | AA120: 188912.43 | AC120: 162136.21 | AD120: 154546.36 | AE120: 83655.59 | AF120: 46219.23 | AG120: 59042.27 | AH120: 160407.34 | AI120: 107599.58 | AJ120: 122742.36 | AK120: 12802.71 | AL120: 95424.8 | AM120: 115114.25 | AN120: 158103.85 | AP120: 178812.53 | AQ120: 40869.72 | AR120: 13553.71 | AS120: 73029.31 | AT120: 1813.2 | AU120: 82902.21 | AV120: 89646.41 | AW120: 88624.99 | AX120: 22135.35 | AY120: 137585.53 | AZ120: 0 | BA120: 0
A121: %,V5020004 | B121: 5020004 | C121: Lime-Related Expenses | F121: 358832.84 | G121: 187378.03 | H121: =+F121-G121 -> 171454.81 | I121: =IF(G121<0,IF(H121=0,0,IF(OR(G121=0,F121=0),"N.M.",IF(ABS(H121/G121)>=10,"N.M.",H121/(-G121)))),IF(H121=0,0,IF(OR(G121=0,F121=0),"N.M.",IF(ABS(H121/G121)>=10,"N.M.",H121/G121)))) -> 0.9150208805 | K121: 1877841.53 | L121: 1678025.8 | M121: =+K121-L121 -> 199815.73 | N121: =IF(L121<0,IF(M121=0,0,IF(OR(L121=0,K121=0),"N.M.",IF(ABS(M121/L121)>=10,"N.M.",M121/(-L121)))),IF(M121=0,0,IF(OR(L121=0,K121=0),"N.M.",IF(ABS(M121/L121)>=10,"N.M.",M121/L121)))) -> 0.1190778652 | Q121: 717781.05 | R121: 496324.81 | S121: =+Q121-R121 -> 221456.24 | T121: =IF(R121<0,IF(S121=0,0,IF(OR(R121=0,Q121=0),"N.M.",IF(ABS(S121/R121)>=10,"N.M.",S121/(-R121)))),IF(S121=0,0,IF(OR(R121=0,Q121=0),"N.M.",IF(ABS(S121/R121)>=10,"N.M.",S121/R121)))) -> 0.4461921619 | V121: 2475532.62 | W121: 1965056.94 | X121: =+V121-W121 -> 510475.68 | Y121: =IF(W121<0,IF(X121=0,0,IF(OR(W121=0,V121=0),"N.M.",IF(ABS(X121/W121)>=10,"N.M.",X121/(-W121)))),IF(X121=0,0,IF(OR(W121=0,V121=0),"N.M.",IF(ABS(X121/W121)>=10,"N.M.",X121/W121)))) -> 0.2597765335 | AA121: 198194.17 | AC121: 171562.82 | AD121: 113800.15 | AE121: 192909.48 | AF121: 73195.99 | AG121: 26350.34 | AH121: 297633.69 | AI121: 306248.52 | AJ121: 260968.33 | AK121: 47978.45 | AL121: 187378.03 | AM121: 277619.22 | AN121: 320071.87 | AP121: 293674.01 | AQ121: 108042.89 | AR121: 28337.16 | AS121: 201531.73 | AT121: 56715.14 | AU121: 92368.08 | AV121: 379391.47 | AW121: 285011.39 | AX121: 73936.82 | AY121: 358832.84 | AZ121: 0 | BA121: 0
A122: %,V5020005 | B122: 5020005 | C122: Polymer expense | F122: 0 | G122: 0 | H122: =+F122-G122 -> 0 | I122: =IF(G122<0,IF(H122=0,0,IF(OR(G122=0,F122=0),"N.M.",IF(ABS(H122/G122)>=10,"N.M.",H122/(-G122)))),IF(H122=0,0,IF(OR(G122=0,F122=0),"N.M.",IF(ABS(H122/G122)>=10,"N.M.",H122/G122)))) -> 0 | K122: 0 | L122: 0 | M122: =+K122-L122 -> 0 | N122: =IF(L122<0,IF(M122=0,0,IF(OR(L122=0,K122=0),"N.M.",IF(ABS(M122/L122)>=10,"N.M.",M122/(-L122)))),IF(M122=0,0,IF(OR(L122=0,K122=0),"N.M.",IF(ABS(M122/L122)>=10,"N.M.",M122/L122)))) -> 0 | Q122: 0 | R122: 0 | S122: =+Q122-R122 -> 0 | T122: =IF(R122<0,IF(S122=0,0,IF(OR(R122=0,Q122=0),"N.M.",IF(ABS(S122/R122)>=10,"N.M.",S122/(-R122)))),IF(S122=0,0,IF(OR(R122=0,Q122=0),"N.M.",IF(ABS(S122/R122)>=10,"N.M.",S122/R122)))) -> 0 | V122: 0 | W122: -16103.08 | X122: =+V122-W122 -> 16103.08 | Y122: =IF(W122<0,IF(X122=0,0,IF(OR(W122=0,V122=0),"N.M.",IF(ABS(X122/W122)>=10,"N.M.",X122/(-W122)))),IF(X122=0,0,IF(OR(W122=0,V122=0),"N.M.",IF(ABS(X122/W122)>=10,"N.M.",X122/W122)))) -> N.M. | AA122: -19725.08 | AC122: 0 | AD122: 0 | AE122: 0 | AF122: 0 | AG122: 0 | AH122: 0 | AI122: 0 | AJ122: 0 | AK122: 0 | AL122: 0 | AM122: 0 | AN122: 0 | AP122: 0 | AQ122: 0 | AR122: 0 | AS122: 0 | AT122: 0 | AU122: 0 | AV122: 0 | AW122: 0 | AX122: 0 | AY122: 0 | AZ122: 0 | BA122: 0
A123: %,V5050000 | B123: 5050000 | C123: Electric Expenses | F123: 4963.2 | G123: 5479.62 | H123: =+F123-G123 -> -516.42 | I123: =IF(G123<0,IF(H123=0,0,IF(OR(G123=0,F123=0),"N.M.",IF(ABS(H123/G123)>=10,"N.M.",H123/(-G123)))),IF(H123=0,0,IF(OR(G123=0,F123=0),"N.M.",IF(ABS(H123/G123)>=10,"N.M.",H123/G123)))) -> -0.09424376143 | K123: 68091.36 | L123: 35702.5 | M123: =+K123-L123 -> 32388.86 | N123: =IF(L123<0,IF(M123=0,0,IF(OR(L123=0,K123=0),"N.M.",IF(ABS(M123/L123)>=10,"N.M.",M123/(-L123)))),IF(M123=0,0,IF(OR(L123=0,K123=0),"N.M.",IF(ABS(M123/L123)>=10,"N.M.",M123/L123)))) -> 0.9071874519 | Q123: 21652.95 | R123: 10738.77 | S123: =+Q123-R123 -> 10914.18 | T123: =IF(R123<0,IF(S123=0,0,IF(OR(R123=0,Q123=0),"N.M.",IF(ABS(S123/R123)>=10,"N.M.",S123/(-R123)))),IF(S123=0,0,IF(OR(R123=0,Q123=0),"N.M.",IF(ABS(S123/R123)>=10,"N.M.",S123/R123)))) -> 1.016334273 | V123: 76809.07 | W123: 38644.36 | X123: =+V123-W123 -> 38164.71 | Y123: =IF(W123<0,IF(X123=0,0,IF(OR(W123=0,V123=0),"N.M.",IF(ABS(X123/W123)>=10,"N.M.",X123/(-W123)))),IF(X123=0,0,IF(OR(W123=0,V123=0),"N.M.",IF(ABS(X123/W123)>=10,"N.M.",X123/W123)))) -> 0.9875880982 | AA123: 4333.17 | AC123: 5801.35 | AD123: 857.08 | AE123: 4719.11 | AF123: 618.24 | AG123: 254.96 | AH123: 6030.3 | AI123: 6682.69 | AJ123: 2315.26 | AK123: 2943.89 | AL123: 5479.62 | AM123: 9491.08 | AN123: -773.37 | AP123: 1444.38 | AQ123: -433.93 | AR123: 1801.63 | AS123: 16578.74 | AT123: 6537.93 | AU123: 13658.29 | AV123: 6851.37 | AW123: 12544.92 | AX123: 4144.83 | AY123: 4963.2 | AZ123: 0 | BA123: 0
A124: %,V5060000 | B124: 5060000 | C124: Misc Steam Power Expenses | F124: 402701.312 | G124: 355781.25 | H124: =+F124-G124 -> 46920.062 | I124: =IF(G124<0,IF(H124=0,0,IF(OR(G124=0,F124=0),"N.M.",IF(ABS(H124/G124)>=10,"N.M.",H124/(-G124)))),IF(H124=0,0,IF(OR(G124=0,F124=0),"N.M.",IF(ABS(H124/G124)>=10,"N.M.",H124/G124)))) -> 0.1318789621 | K124: 3852697.926 | L124: 5385405.37 | M124: =+K124-L124 -> -1532707.444 | N124: =IF(L124<0,IF(M124=0,0,IF(OR(L124=0,K124=0),"N.M.",IF(ABS(M124/L124)>=10,"N.M.",M124/(-L124)))),IF(M124=0,0,IF(OR(L124=0,K124=0),"N.M.",IF(ABS(M124/L124)>=10,"N.M.",M124/L124)))) -> -0.2846039135 | Q124: 1010862.43 | R124: 1397971.17 | S124: =+Q124-R124 -> -387108.74 | T124: =IF(R124<0,IF(S124=0,0,IF(OR(R124=0,Q124=0),"N.M.",IF(ABS(S124/R124)>=10,"N.M.",S124/(-R124)))),IF(S124=0,0,IF(OR(R124=0,Q124=0),"N.M.",IF(ABS(S124/R124)>=10,"N.M.",S124/R124)))) -> -0.2769075274 | V124: 4670656.386 | W124: 6461013.47 | X124: =+V124-W124 -> -1790357.084 | Y124: =IF(W124<0,IF(X124=0,0,IF(OR(W124=0,V124=0),"N.M.",IF(ABS(X124/W124)>=10,"N.M.",X124/(-W124)))),IF(X124=0,0,IF(OR(W124=0,V124=0),"N.M.",IF(ABS(X124/W124)>=10,"N.M.",X124/W124)))) -> -0.2771015867 | AA124: 387516.82 | AC124: 535082.45 | AD124: 391184.84 | AE124: 504702.22 | AF124: 393753.88 | AG124: 335032.79 | AH124: 1478949.49 | AI124: 348728.53 | AJ124: 658988.77 | AK124: 383201.15 | AL124: 355781.25 | AM124: 373319.78 | AN124: 444638.68 | AP124: 417841.51 | AQ124: 352355.376 | AR124: 381726.44 | AS124: 374041.75 | AT124: 455065.62 | AU124: 412492.9 | AV124: 448311.9 | AW124: 264385.36 | AX124: 343775.758 | AY124: 402701.312 | AZ124: -2595.71 | BA124: 0
A125: %,V5060002 | B125: 5060002 | C125: Misc Steam Power Exp-Assoc | F125: 3162.2 | G125: 3617.8 | H125: =+F125-G125 -> -455.6 | I125: =IF(G125<0,IF(H125=0,0,IF(OR(G125=0,F125=0),"N.M.",IF(ABS(H125/G125)>=10,"N.M.",H125/(-G125)))),IF(H125=0,0,IF(OR(G125=0,F125=0),"N.M.",IF(ABS(H125/G125)>=10,"N.M.",H125/G125)))) -> -0.1259328874 | K125: 40399.03 | L125: 42518.96 | M125: =+K125-L125 -> -2119.93 | N125: =IF(L125<0,IF(M125=0,0,IF(OR(L125=0,K125=0),"N.M.",IF(ABS(M125/L125)>=10,"N.M.",M125/(-L125)))),IF(M125=0,0,IF(OR(L125=0,K125=0),"N.M.",IF(ABS(M125/L125)>=10,"N.M.",M125/L125)))) -> -0.04985846314 | Q125: 10773.16 | R125: 11639.63 | S125: =+Q125-R125 -> -866.47 | T125: =IF(R125<0,IF(S125=0,0,IF(OR(R125=0,Q125=0),"N.M.",IF(ABS(S125/R125)>=10,"N.M.",S125/(-R125)))),IF(S125=0,0,IF(OR(R125=0,Q125=0),"N.M.",IF(ABS(S125/R125)>=10,"N.M.",S125/R125)))) -> -0.0744413697 | V125: 49873.42 | W125: 50600.49 | X125: =+V125-W125 -> -727.07 | Y125: =IF(W125<0,IF(X125=0,0,IF(OR(W125=0,V125=0),"N.M.",IF(ABS(X125/W125)>=10,"N.M.",X125/(-W125)))),IF(X125=0,0,IF(OR(W125=0,V125=0),"N.M.",IF(ABS(X125/W125)>=10,"N.M.",X125/W125)))) -> -0.01436883319 | AA125: 4552.96 | AC125: 4014 | AD125: 4692.68 | AE125: 4482.46 | AF125: 4342 | AG125: 3972.35 | AH125: 5250.72 | AI125: 4125.12 | AJ125: 4268.49 | AK125: 3753.34 | AL125: 3617.8 | AM125: 4441.55 | AN125: 5032.84 | AP125: 4967.41 | AQ125: 5161.98 | AR125: 4254.84 | AS125: 4662.2 | AT125: 3472.2 | AU125: 3074.38 | AV125: 4032.86 | AW125: 3702.6 | AX125: 3908.36 | AY125: 3162.2 | AZ125: 0 | BA125: 0
A126: %,V5060004 | B126: 5060004 | C126: NSR Settlement Expense | F126: 0 | G126: 0 | H126: =+F126-G126 -> 0 | I126: =IF(G126<0,IF(H126=0,0,IF(OR(G126=0,F126=0),"N.M.",IF(ABS(H126/G126)>=10,"N.M.",H126/(-G126)))),IF(H126=0,0,IF(OR(G126=0,F126=0),"N.M.",IF(ABS(H126/G126)>=10,"N.M.",H126/G126)))) -> 0 | K126: 0 | L126: 10130 | M126: =+K126-L126 -> -10130 | N126: =IF(L126<0,IF(M126=0,0,IF(OR(L126=0,K126=0),"N.M.",IF(ABS(M126/L126)>=10,"N.M.",M126/(-L126)))),IF(M126=0,0,IF(OR(L126=0,K126=0),"N.M.",IF(ABS(M126/L126)>=10,"N.M.",M126/L126)))) -> N.M. | Q126: 0 | R126: 0 | S126: =+Q126-R126 -> 0 | T126: =IF(R126<0,IF(S126=0,0,IF(OR(R126=0,Q126=0),"N.M.",IF(ABS(S126/R126)>=10,"N.M.",S126/(-R126)))),IF(S126=0,0,IF(OR(R126=0,Q126=0),"N.M.",IF(ABS(S126/R126)>=10,"N.M.",S126/R126)))) -> 0 | V126: 0 | W126: 10130 | X126: =+V126-W126 -> -10130 | Y126: =IF(W126<0,IF(X126=0,0,IF(OR(W126=0,V126=0),"N.M.",IF(ABS(X126/W126)>=10,"N.M.",X126/(-W126)))),IF(X126=0,0,IF(OR(W126=0,V126=0),"N.M.",IF(ABS(X126/W126)>=10,"N.M.",X126/W126)))) -> N.M. | AA126: 0 | AC126: 0 | AD126: 0 | AE126: 10130 | AF126: 0 | AG126: 0 | AH126: 0 | AI126: 0 | AJ126: 0 | AK126: 0 | AL126: 0 | AM126: 0 | AN126: 0 | AP126: 0 | AQ126: 0 | AR126: 0 | AS126: 0 | AT126: 0 | AU126: 0 | AV126: 0 | AW126: 0 | AX126: 0 | AY126: 0 | AZ126: 0 | BA126: 0
A127: %,V5060011 | B127: 5060011 | C127: BSRR O/U Recovery-Oper Costs | F127: 0 | G127: 0 | H127: =+F127-G127 -> 0 | I127: =IF(G127<0,IF(H127=0,0,IF(OR(G127=0,F127=0),"N.M.",IF(ABS(H127/G127)>=10,"N.M.",H127/(-G127)))),IF(H127=0,0,IF(OR(G127=0,F127=0),"N.M.",IF(ABS(H127/G127)>=10,"N.M.",H127/G127)))) -> 0 | K127: 0 | L127: 367.46 | M127: =+K127-L127 -> -367.46 | N127: =IF(L127<0,IF(M127=0,0,IF(OR(L127=0,K127=0),"N.M.",IF(ABS(M127/L127)>=10,"N.M.",M127/(-L127)))),IF(M127=0,0,IF(OR(L127=0,K127=0),"N.M.",IF(ABS(M127/L127)>=10,"N.M.",M127/L127)))) -> N.M. | Q127: 0 | R127: 0 | S127: =+Q127-R127 -> 0 | T127: =IF(R127<0,IF(S127=0,0,IF(OR(R127=0,Q127=0),"N.M.",IF(ABS(S127/R127)>=10,"N.M.",S127/(-R127)))),IF(S127=0,0,IF(OR(R127=0,Q127=0),"N.M.",IF(ABS(S127/R127)>=10,"N.M.",S127/R127)))) -> 0 | V127: 0 | W127: 489.34 | X127: =+V127-W127 -> -489.34 | Y127: =IF(W127<0,IF(X127=0,0,IF(OR(W127=0,V127=0),"N.M.",IF(ABS(X127/W127)>=10,"N.M.",X127/(-W127)))),IF(X127=0,0,IF(OR(W127=0,V127=0),"N.M.",IF(ABS(X127/W127)>=10,"N.M.",X127/W127)))) -> N.M. | AA127: 121.88 | AC127: -0.49 | AD127: 0 | AE127: 157.27 | AF127: -3.17 | AG127: 214.95 | AH127: -1.1 | AI127: 0 | AJ127: 0 | AK127: 0 | AL127: 0 | AM127: 0 | AN127: 0 | AP127: 0 | AQ127: 0 | AR127: 0 | AS127: 0 | AT127: 0 | AU127: 0 | AV127: 0 | AW127: 0 | AX127: 0 | AY127: 0 | AZ127: 0 | BA127: 0
A128: %,V5070006 | B128: 5070006 | C128: Rents - Associated | F128: 193.17 | G128: 0 | H128: =+F128-G128 -> 193.17 | I128: =IF(G128<0,IF(H128=0,0,IF(OR(G128=0,F128=0),"N.M.",IF(ABS(H128/G128)>=10,"N.M.",H128/(-G128)))),IF(H128=0,0,IF(OR(G128=0,F128=0),"N.M.",IF(ABS(H128/G128)>=10,"N.M.",H128/G128)))) -> N.M. | K128: 1931.7 | L128: 0 | M128: =+K128-L128 -> 1931.7 | N128: =IF(L128<0,IF(M128=0,0,IF(OR(L128=0,K128=0),"N.M.",IF(ABS(M128/L128)>=10,"N.M.",M128/(-L128)))),IF(M128=0,0,IF(OR(L128=0,K128=0),"N.M.",IF(ABS(M128/L128)>=10,"N.M.",M128/L128)))) -> N.M. | Q128: 579.51 | R128: 0 | S128: =+Q128-R128 -> 579.51 | T128: =IF(R128<0,IF(S128=0,0,IF(OR(R128=0,Q128=0),"N.M.",IF(ABS(S128/R128)>=10,"N.M.",S128/(-R128)))),IF(S128=0,0,IF(OR(R128=0,Q128=0),"N.M.",IF(ABS(S128/R128)>=10,"N.M.",S128/R128)))) -> N.M. | V128: 1931.7 | W128: 0 | X128: =+V128-W128 -> 1931.7 | Y128: =IF(W128<0,IF(X128=0,0,IF(OR(W128=0,V128=0),"N.M.",IF(ABS(X128/W128)>=10,"N.M.",X128/(-W128)))),IF(X128=0,0,IF(OR(W128=0,V128=0),"N.M.",IF(ABS(X128/W128)>=10,"N.M.",X128/W128)))) -> N.M. | AA128: 0 | AC128: 0 | AD128: 0 | AE128: 0 | AF128: 0 | AG128: 0 | AH128: 0 | AI128: 0 | AJ128: 0 | AK128: 0 | AL128: 0 | AM128: 0 | AN128: 0 | AP128: 193.17 | AQ128: 193.17 | AR128: 193.17 | AS128: 193.17 | AT128: 193.17 | AU128: 193.17 | AV128: 193.17 | AW128: 193.17 | AX128: 193.17 | AY128: 193.17 | AZ128: 0 | BA128: 0
A129: %,V5090000 | B129: 5090000 | C129: Allow Consum Title IV SO2 | F129: 1737.28 | G129: 4250.03 | H129: =+F129-G129 -> -2512.75 | I129: =IF(G129<0,IF(H129=0,0,IF(OR(G129=0,F129=0),"N.M.",IF(ABS(H129/G129)>=10,"N.M.",H129/(-G129)))),IF(H129=0,0,IF(OR(G129=0,F129=0),"N.M.",IF(ABS(H129/G129)>=10,"N.M.",H129/G129)))) -> -0.5912311207 | K129: 13979.19 | L129: 31749.14 | M129: =+K129-L129 -> -17769.95 | N129: =IF(L129<0,IF(M129=0,0,IF(OR(L129=0,K129=0),"N.M.",IF(ABS(M129/L129)>=10,"N.M.",M129/(-L129)))),IF(M129=0,0,IF(OR(L129=0,K129=0),"N.M.",IF(ABS(M129/L129)>=10,"N.M.",M129/L129)))) -> -0.5596986249 | Q129: 3852.24 | R129: 11819.14 | S129: =+Q129-R129 -> -7966.9 | T129: =IF(R129<0,IF(S129=0,0,IF(OR(R129=0,Q129=0),"N.M.",IF(ABS(S129/R129)>=10,"N.M.",S129/(-R129)))),IF(S129=0,0,IF(OR(R129=0,Q129=0),"N.M.",IF(ABS(S129/R129)>=10,"N.M.",S129/R129)))) -> -0.6740676564 | V129: 20414.94 | W129: 33845.54 | X129: =+V129-W129 -> -13430.6 | Y129: =IF(W129<0,IF(X129=0,0,IF(OR(W129=0,V129=0),"N.M.",IF(ABS(X129/W129)>=10,"N.M.",X129/(-W129)))),IF(X129=0,0,IF(OR(W129=0,V129=0),"N.M.",IF(ABS(X129/W129)>=10,"N.M.",X129/W129)))) -> -0.3968203787 | AA129: 1834.86 | AC129: 1756.06 | AD129: 1133.34 | AE129: 2590.5 | AF129: 1254.77 | AG129: 1214.3 | AH129: 5019.08 | AI129: 6961.95 | AJ129: 7083.39 | AK129: 485.72 | AL129: 4250.03 | AM129: 3238.11 | AN129: 3197.64 | AP129: 2913.47 | AQ129: 2114.95 | AR129: 226.6 | AS129: 944.17 | AT129: 339.9 | AU129: 1321.84 | AV129: 2266.02 | AW129: 1548.45 | AX129: 566.51 | AY129: 1737.28 | AZ129: 0 | BA129: 0
A130: %,V5090001 | B130: 5090001 | C130: Allowance Consumption - NOx | F130: 0 | G130: 0 | H130: =+F130-G130 -> 0 | I130: =IF(G130<0,IF(H130=0,0,IF(OR(G130=0,F130=0),"N.M.",IF(ABS(H130/G130)>=10,"N.M.",H130/(-G130)))),IF(H130=0,0,IF(OR(G130=0,F130=0),"N.M.",IF(ABS(H130/G130)>=10,"N.M.",H130/G130)))) -> 0 | K130: -157142.86 | L130: 42857.15 | M130: =+K130-L130 -> -200000.01 | N130: =IF(L130<0,IF(M130=0,0,IF(OR(L130=0,K130=0),"N.M.",IF(ABS(M130/L130)>=10,"N.M.",M130/(-L130)))),IF(M130=0,0,IF(OR(L130=0,K130=0),"N.M.",IF(ABS(M130/L130)>=10,"N.M.",M130/L130)))) -> -4.666666122 | Q130: -157142.86 | R130: 42857.15 | S130: =+Q130-R130 -> -200000.01 | T130: =IF(R130<0,IF(S130=0,0,IF(OR(R130=0,Q130=0),"N.M.",IF(ABS(S130/R130)>=10,"N.M.",S130/(-R130)))),IF(S130=0,0,IF(OR(R130=0,Q130=0),"N.M.",IF(ABS(S130/R130)>=10,"N.M.",S130/R130)))) -> -4.666666122 | V130: -157142.86 | W130: 42857.15 | X130: =+V130-W130 -> -200000.01 | Y130: =IF(W130<0,IF(X130=0,0,IF(OR(W130=0,V130=0),"N.M.",IF(ABS(X130/W130)>=10,"N.M.",X130/(-W130)))),IF(X130=0,0,IF(OR(W130=0,V130=0),"N.M.",IF(ABS(X130/W130)>=10,"N.M.",X130/W130)))) -> -4.666666122 | AA130: 0 | AC130: 0 | AD130: 0 | AE130: 0 | AF130: 0 | AG130: 0 | AH130: 0 | AI130: 0 | AJ130: 0 | AK130: 42857.15 | AL130: 0 | AM130: 0 | AN130: 0 | AP130: 0 | AQ130: 0 | AR130: 0 | AS130: 0 | AT130: 0 | AU130: 0 | AV130: 0 | AW130: 0 | AX130: -157142.86 | AY130: 0 | AZ130: 0 | BA130: 0
A131: %,V5090009 | B131: 5090009 | C131: Allow Consumpt CSAPR SO2 | F131: 8.38 | G131: 20.37 | H131: =+F131-G131 -> -11.99 | I131: =IF(G131<0,IF(H131=0,0,IF(OR(G131=0,F131=0),"N.M.",IF(ABS(H131/G131)>=10,"N.M.",H131/(-G131)))),IF(H131=0,0,IF(OR(G131=0,F131=0),"N.M.",IF(ABS(H131/G131)>=10,"N.M.",H131/G131)))) -> -0.588610702 | K131: 67.9 | L131: 152.2 | M131: =+K131-L131 -> -84.3 | N131: =IF(L131<0,IF(M131=0,0,IF(OR(L131=0,K131=0),"N.M.",IF(ABS(M131/L131)>=10,"N.M.",M131/(-L131)))),IF(M131=0,0,IF(OR(L131=0,K131=0),"N.M.",IF(ABS(M131/L131)>=10,"N.M.",M131/L131)))) -> -0.5538764783 | Q131: 18.57 | R131: 56.64 | S131: =+Q131-R131 -> -38.07 | T131: =IF(R131<0,IF(S131=0,0,IF(OR(R131=0,Q131=0),"N.M.",IF(ABS(S131/R131)>=10,"N.M.",S131/(-R131)))),IF(S131=0,0,IF(OR(R131=0,Q131=0),"N.M.",IF(ABS(S131/R131)>=10,"N.M.",S131/R131)))) -> -0.6721398305 | V131: 98.74 | W131: 162.87 | X131: =+V131-W131 -> -64.13 | Y131: =IF(W131<0,IF(X131=0,0,IF(OR(W131=0,V131=0),"N.M.",IF(ABS(X131/W131)>=10,"N.M.",X131/(-W131)))),IF(X131=0,0,IF(OR(W131=0,V131=0),"N.M.",IF(ABS(X131/W131)>=10,"N.M.",X131/W131)))) -> -0.3937496163 | AA131: 9.36 | AC131: 8.46 | AD131: 5.43 | AE131: 12.41 | AF131: 6.01 | AG131: 5.82 | AH131: 24.05 | AI131: 33.38 | AJ131: 33.95 | AK131: 2.32 | AL131: 20.37 | AM131: 15.52 | AN131: 15.32 | AP131: 14.22 | AQ131: 10.33 | AR131: 1.11 | AS131: 4.62 | AT131: 1.66 | AU131: 6.46 | AV131: 10.93 | AW131: 7.46 | AX131: 2.73 | AY131: 8.38 | AZ131: 0 | BA131: 0
A132: %,FACCOUNT,TGL_FERC_ACCT,XDYYNNY01,N500-509_EXC_501 | C132: Steam Power Operations | F132: 1445030.332 | G132: 1009907.74 | H132: =+F132-G132 -> 435122.592 | I132: =IF(G132<0,IF(H132=0,0,IF(OR(G132=0,F132=0),"N.M.",IF(ABS(H132/G132)>=10,"N.M.",H132/(-G132)))),IF(H132=0,0,IF(OR(G132=0,F132=0),"N.M.",IF(ABS(H132/G132)>=10,"N.M.",H132/G132)))) -> 0.4308538045 | K132: 11643621.5 | L132: 13271213.86 | M132: =+K132-L132 -> -1627592.364 | N132: =IF(L132<0,IF(M132=0,0,IF(OR(L132=0,K132=0),"N.M.",IF(ABS(M132/L132)>=10,"N.M.",M132/(-L132)))),IF(M132=0,0,IF(OR(L132=0,K132=0),"N.M.",IF(ABS(M132/L132)>=10,"N.M.",M132/L132)))) -> -0.122640806 | Q132: 3490450.92 | R132: 3594672.02 | S132: =+Q132-R132 -> -104221.1 | T132: =IF(R132<0,IF(S132=0,0,IF(OR(R132=0,Q132=0),"N.M.",IF(ABS(S132/R132)>=10,"N.M.",S132/(-R132)))),IF(S132=0,0,IF(OR(R132=0,Q132=0),"N.M.",IF(ABS(S132/R132)>=10,"N.M.",S132/R132)))) -> -0.02899321535 | V132: 14244075.38 | W132: 15992328.44 | X132: =+V132-W132 -> -1748253.064 | Y132: =IF(W132<0,IF(X132=0,0,IF(OR(W132=0,V132=0),"N.M.",IF(ABS(X132/W132)>=10,"N.M.",X132/(-W132)))),IF(X132=0,0,IF(OR(W132=0,V132=0),"N.M.",IF(ABS(X132/W132)>=10,"N.M.",X132/W132)))) -> -0.1093182316 | AA132: 1310457.84 | AC132: 1367877.82 | AD132: 1166579.15 | AE132: 1364215.73 | AF132: 1006974.45 | AG132: 1017264.44 | AH132: 2453089.22 | AI132: 1300541.03 | AJ132: 1616811.89 | AK132: 967952.39 | AL132: 1009907.74 | AM132: 1240350.48 | AN132: 1360103.4 | AP132: 1500153.07 | AQ132: 951500.876 | AR132: 869680.48 | AS132: 1173387.05 | AT132: 976415.77 | AU132: 1107570.14 | AV132: 1574463.19 | AW132: 1224951.9 | AX132: 820468.688 | AY132: 1445030.332 | AZ132: -14741.96 | BA132: 0
A134: %,FACCOUNT,TGL_FERC_ACCT,XDYYNNY01,N517-525 | C134: Nuclear Power Operations | F134: 0 | G134: 0 | H134: =+F134-G134 -> 0 | I134: =IF(G134<0,IF(H134=0,0,IF(OR(G134=0,F134=0),"N.M.",IF(ABS(H134/G134)>=10,"N.M.",H134/(-G134)))),IF(H134=0,0,IF(OR(G134=0,F134=0),"N.M.",IF(ABS(H134/G134)>=10,"N.M.",H134/G134)))) -> 0 | K134: 0 | L134: 0 | M134: =+K134-L134 -> 0 | N134: =IF(L134<0,IF(M134=0,0,IF(OR(L134=0,K134=0),"N.M.",IF(ABS(M134/L134)>=10,"N.M.",M134/(-L134)))),IF(M134=0,0,IF(OR(L134=0,K134=0),"N.M.",IF(ABS(M134/L134)>=10,"N.M.",M134/L134)))) -> 0 | Q134: 0 | R134: 0 | S134: =+Q134-R134 -> 0 | T134: =IF(R134<0,IF(S134=0,0,IF(OR(R134=0,Q134=0),"N.M.",IF(ABS(S134/R134)>=10,"N.M.",S134/(-R134)))),IF(S134=0,0,IF(OR(R134=0,Q134=0),"N.M.",IF(ABS(S134/R134)>=10,"N.M.",S134/R134)))) -> 0 | V134: 0 | W134: 0 | X134: =+V134-W134 -> 0 | Y134: =IF(W134<0,IF(X134=0,0,IF(OR(W134=0,V134=0),"N.M.",IF(ABS(X134/W134)>=10,"N.M.",X134/(-W134)))),IF(X134=0,0,IF(OR(W134=0,V134=0),"N.M.",IF(ABS(X134/W134)>=10,"N.M.",X134/W134)))) -> 0 | AA134: 0 | AC134: 0 | AD134: 0 | AE134: 0 | AF134: 0 | AG134: 0 | AH134: 0 | AI134: 0 | AJ134: 0 | AK134: 0 | AL134: 0 | AM134: 0 | AN134: 0 | AP134: 0 | AQ134: 0 | AR134: 0 | AS134: 0 | AT134: 0 | AU134: 0 | AV134: 0 | AW134: 0 | AX134: 0 | AY134: 0 | AZ134: 0 | BA134: 0
A136: %,FACCOUNT,TGL_FERC_ACCT,XDYYNNY01,N535-540 | C136: Hydraulic Power Operations | F136: 0 | G136: 0 | H136: =+F136-G136 -> 0 | I136: =IF(G136<0,IF(H136=0,0,IF(OR(G136=0,F136=0),"N.M.",IF(ABS(H136/G136)>=10,"N.M.",H136/(-G136)))),IF(H136=0,0,IF(OR(G136=0,F136=0),"N.M.",IF(ABS(H136/G136)>=10,"N.M.",H136/G136)))) -> 0 | K136: 0 | L136: 0 | M136: =+K136-L136 -> 0 | N136: =IF(L136<0,IF(M136=0,0,IF(OR(L136=0,K136=0),"N.M.",IF(ABS(M136/L136)>=10,"N.M.",M136/(-L136)))),IF(M136=0,0,IF(OR(L136=0,K136=0),"N.M.",IF(ABS(M136/L136)>=10,"N.M.",M136/L136)))) -> 0 | Q136: 0 | R136: 0 | S136: =+Q136-R136 -> 0 | T136: =IF(R136<0,IF(S136=0,0,IF(OR(R136=0,Q136=0),"N.M.",IF(ABS(S136/R136)>=10,"N.M.",S136/(-R136)))),IF(S136=0,0,IF(OR(R136=0,Q136=0),"N.M.",IF(ABS(S136/R136)>=10,"N.M.",S136/R136)))) -> 0 | V136: 0 | W136: 0 | X136: =+V136-W136 -> 0 | Y136: =IF(W136<0,IF(X136=0,0,IF(OR(W136=0,V136=0),"N.M.",IF(ABS(X136/W136)>=10,"N.M.",X136/(-W136)))),IF(X136=0,0,IF(OR(W136=0,V136=0),"N.M.",IF(ABS(X136/W136)>=10,"N.M.",X136/W136)))) -> 0 | AA136: 0 | AC136: 0 | AD136: 0 | AE136: 0 | AF136: 0 | AG136: 0 | AH136: 0 | AI136: 0 | AJ136: 0 | AK136: 0 | AL136: 0 | AM136: 0 | AN136: 0 | AP136: 0 | AQ136: 0 | AR136: 0 | AS136: 0 | AT136: 0 | AU136: 0 | AV136: 0 | AW136: 0 | AX136: 0 | AY136: 0 | AZ136: 0 | BA136: 0
A138: %,V5490000 | B138: 5490000 | C138: Misc Other Pwer Generation Exp | F138: 0 | G138: 0 | H138: =+F138-G138 -> 0 | I138: =IF(G138<0,IF(H138=0,0,IF(OR(G138=0,F138=0),"N.M.",IF(ABS(H138/G138)>=10,"N.M.",H138/(-G138)))),IF(H138=0,0,IF(OR(G138=0,F138=0),"N.M.",IF(ABS(H138/G138)>=10,"N.M.",H138/G138)))) -> 0 | K138: 0.01 | L138: 0 | M138: =+K138-L138 -> 0.01 | N138: =IF(L138<0,IF(M138=0,0,IF(OR(L138=0,K138=0),"N.M.",IF(ABS(M138/L138)>=10,"N.M.",M138/(-L138)))),IF(M138=0,0,IF(OR(L138=0,K138=0),"N.M.",IF(ABS(M138/L138)>=10,"N.M.",M138/L138)))) -> N.M. | Q138: 0.01 | R138: 0 | S138: =+Q138-R138 -> 0.01 | T138: =IF(R138<0,IF(S138=0,0,IF(OR(R138=0,Q138=0),"N.M.",IF(ABS(S138/R138)>=10,"N.M.",S138/(-R138)))),IF(S138=0,0,IF(OR(R138=0,Q138=0),"N.M.",IF(ABS(S138/R138)>=10,"N.M.",S138/R138)))) -> N.M. | V138: 0.01 | W138: 0 | X138: =+V138-W138 -> 0.01 | Y138: =IF(W138<0,IF(X138=0,0,IF(OR(W138=0,V138=0),"N.M.",IF(ABS(X138/W138)>=10,"N.M.",X138/(-W138)))),IF(X138=0,0,IF(OR(W138=0,V138=0),"N.M.",IF(ABS(X138/W138)>=10,"N.M.",X138/W138)))) -> N.M. | AA138: 0 | AC138: 0 | AD138: 0 | AE138: 0 | AF138: 0 | AG138: 0 | AH138: 0 | AI138: 0 | AJ138: 0 | AK138: 0 | AL138: 0 | AM138: 0 | AN138: 0 | AP138: 0 | AQ138: 0 | AR138: 0 | AS138: 0 | AT138: 0 | AU138: 0 | AV138: 0 | AW138: 0 | AX138: 0.01 | AY138: 0 | AZ138: 0 | BA138: 0
A139: %,V8140000 | B139: 8140000 | C139: Underground Storage Expenses | F139: 0 | G139: 0 | H139: =+F139-G139 -> 0 | I139: =IF(G139<0,IF(H139=0,0,IF(OR(G139=0,F139=0),"N.M.",IF(ABS(H139/G139)>=10,"N.M.",H139/(-G139)))),IF(H139=0,0,IF(OR(G139=0,F139=0),"N.M.",IF(ABS(H139/G139)>=10,"N.M.",H139/G139)))) -> 0 | K139: 0 | L139: 1637.46 | M139: =+K139-L139 -> -1637.46 | N139: =IF(L139<0,IF(M139=0,0,IF(OR(L139=0,K139=0),"N.M.",IF(ABS(M139/L139)>=10,"N.M.",M139/(-L139)))),IF(M139=0,0,IF(OR(L139=0,K139=0),"N.M.",IF(ABS(M139/L139)>=10,"N.M.",M139/L139)))) -> N.M. | Q139: 0 | R139: 0 | S139: =+Q139-R139 -> 0 | T139: =IF(R139<0,IF(S139=0,0,IF(OR(R139=0,Q139=0),"N.M.",IF(ABS(S139/R139)>=10,"N.M.",S139/(-R139)))),IF(S139=0,0,IF(OR(R139=0,Q139=0),"N.M.",IF(ABS(S139/R139)>=10,"N.M.",S139/R139)))) -> 0 | V139: -1637.46 | W139: 1637.46 | X139: =+V139-W139 -> -3274.92 | Y139: =IF(W139<0,IF(X139=0,0,IF(OR(W139=0,V139=0),"N.M.",IF(ABS(X139/W139)>=10,"N.M.",X139/(-W139)))),IF(X139=0,0,IF(OR(W139=0,V139=0),"N.M.",IF(ABS(X139/W139)>=10,"N.M.",X139/W139)))) -> -2 | AA139: 0 | AC139: 0 | AD139: 0 | AE139: 0 | AF139: 0 | AG139: 0 | AH139: 0 | AI139: 1637.46 | AJ139: 0 | AK139: 0 | AL139: 0 | AM139: 0 | AN139: -1637.46 | AP139: 0 | AQ139: 0 | AR139: 0 | AS139: 0 | AT139: 0 | AU139: 0 | AV139: 0 | AW139: 0 | AX139: 0 | AY139: 0 | AZ139: 0 | BA139: 0
A140: %,FACCOUNT,TGL_FERC_ACCT,XDYYNNY01,N546-550 | C140: Other Power Operations | F140: 0 | G140: 0 | H140: =+F140-G140 -> 0 | I140: =IF(G140<0,IF(H140=0,0,IF(OR(G140=0,F140=0),"N.M.",IF(ABS(H140/G140)>=10,"N.M.",H140/(-G140)))),IF(H140=0,0,IF(OR(G140=0,F140=0),"N.M.",IF(ABS(H140/G140)>=10,"N.M.",H140/G140)))) -> 0 | K140: 0.01 | L140: 1637.46 | M140: =+K140-L140 -> -1637.45 | N140: =IF(L140<0,IF(M140=0,0,IF(OR(L140=0,K140=0),"N.M.",IF(ABS(M140/L140)>=10,"N.M.",M140/(-L140)))),IF(M140=0,0,IF(OR(L140=0,K140=0),"N.M.",IF(ABS(M140/L140)>=10,"N.M.",M140/L140)))) -> -0.999993893 | Q140: 0.01 | R140: 0 | S140: =+Q140-R140 -> 0.01 | T140: =IF(R140<0,IF(S140=0,0,IF(OR(R140=0,Q140=0),"N.M.",IF(ABS(S140/R140)>=10,"N.M.",S140/(-R140)))),IF(S140=0,0,IF(OR(R140=0,Q140=0),"N.M.",IF(ABS(S140/R140)>=10,"N.M.",S140/R140)))) -> N.M. | V140: -1637.45 | W140: 1637.46 | X140: =+V140-W140 -> -3274.91 | Y140: =IF(W140<0,IF(X140=0,0,IF(OR(W140=0,V140=0),"N.M.",IF(ABS(X140/W140)>=10,"N.M.",X140/(-W140)))),IF(X140=0,0,IF(OR(W140=0,V140=0),"N.M.",IF(ABS(X140/W140)>=10,"N.M.",X140/W140)))) -> -1.999993893 | AA140: 0 | AC140: 0 | AD140: 0 | AE140: 0 | AF140: 0 | AG140: 0 | AH140: 0 | AI140: 1637.46 | AJ140: 0 | AK140: 0 | AL140: 0 | AM140: 0 | AN140: -1637.46 | AP140: 0 | AQ140: 0 | AR140: 0 | AS140: 0 | AT140: 0 | AU140: 0 | AV140: 0 | AW140: 0 | AX140: 0.01 | AY140: 0 | AZ140: 0 | BA140: 0
A142: %,V5550001 | B142: 5550001 | C142: Purch Pwr-NonTrading-Nonassoc | F142: 8213710.37 | G142: 8938031.02 | H142: =+F142-G142 -> -724320.65 | I142: =IF(G142<0,IF(H142=0,0,IF(OR(G142=0,F142=0),"N.M.",IF(ABS(H142/G142)>=10,"N.M.",H142/(-G142)))),IF(H142=0,0,IF(OR(G142=0,F142=0),"N.M.",IF(ABS(H142/G142)>=10,"N.M.",H142/G142)))) -> -0.08103805507 | K142: 98834824.83 | L142: 75101853.08 | M142: =+K142-L142 -> 23732971.75 | N142: =IF(L142<0,IF(M142=0,0,IF(OR(L142=0,K142=0),"N.M.",IF(ABS(M142/L142)>=10,"N.M.",M142/(-L142)))),IF(M142=0,0,IF(OR(L142=0,K142=0),"N.M.",IF(ABS(M142/L142)>=10,"N.M.",M142/L142)))) -> 0.3160104681 | Q142: 22438980.91 | R142: 26381437.35 | S142: =+Q142-R142 -> -3942456.44 | T142: =IF(R142<0,IF(S142=0,0,IF(OR(R142=0,Q142=0),"N.M.",IF(ABS(S142/R142)>=10,"N.M.",S142/(-R142)))),IF(S142=0,0,IF(OR(R142=0,Q142=0),"N.M.",IF(ABS(S142/R142)>=10,"N.M.",S142/R142)))) -> -0.1494405474 | V142: 112740687.6 | W142: 94803085.36 | X142: =+V142-W142 -> 17937602.25 | Y142: =IF(W142<0,IF(X142=0,0,IF(OR(W142=0,V142=0),"N.M.",IF(ABS(X142/W142)>=10,"N.M.",X142/(-W142)))),IF(X142=0,0,IF(OR(W142=0,V142=0),"N.M.",IF(ABS(X142/W142)>=10,"N.M.",X142/W142)))) -> 0.1892090556 | AA142: 10107771.3 | AC142: 17773264.03 | AD142: 5535959.61 | AE142: 3448491.5 | AF142: 7214323.63 | AG142: 8158723.03 | AH142: 3209524.98 | AI142: 3380128.95 | AJ142: 4704623.14 | AK142: 12738783.19 | AL142: 8938031.02 | AM142: 6995636.33 | AN142: 6910226.45 | AP142: 15205502.66 | AQ142: 14508733.28 | AR142: 14301194.83 | AS142: 7405117.81 | AT142: 10541889.76 | AU142: 6715935.28 | AV142: 7717470.3 | AW142: 3967199.65 | AX142: 10258070.89 | AY142: 8213710.37 | AZ142: -7692458.23 | BA142: 0
A143: %,V5550004 | B143: 5550004 | C143: Purchased Power-Pool Capacity | F143: 32587.75 | G143: 0 | H143: =+F143-G143 -> 32587.75 | I143: =IF(G143<0,IF(H143=0,0,IF(OR(G143=0,F143=0),"N.M.",IF(ABS(H143/G143)>=10,"N.M.",H143/(-G143)))),IF(H143=0,0,IF(OR(G143=0,F143=0),"N.M.",IF(ABS(H143/G143)>=10,"N.M.",H143/G143)))) -> N.M. | K143: 160836.33 | L143: 373078.23 | M143: =+K143-L143 -> -212241.9 | N143: =IF(L143<0,IF(M143=0,0,IF(OR(L143=0,K143=0),"N.M.",IF(ABS(M143/L143)>=10,"N.M.",M143/(-L143)))),IF(M143=0,0,IF(OR(L143=0,K143=0),"N.M.",IF(ABS(M143/L143)>=10,"N.M.",M143/L143)))) -> -0.5688938215 | Q143: 96712.04 | R143: 0 | S143: =+Q143-R143 -> 96712.04 | T143: =IF(R143<0,IF(S143=0,0,IF(OR(R143=0,Q143=0),"N.M.",IF(ABS(S143/R143)>=10,"N.M.",S143/(-R143)))),IF(S143=0,0,IF(OR(R143=0,Q143=0),"N.M.",IF(ABS(S143/R143)>=10,"N.M.",S143/R143)))) -> N.M. | V143: 160836.33 | W143: 522800.41 | X143: =+V143-W143 -> -361964.08 | Y143: =IF(W143<0,IF(X143=0,0,IF(OR(W143=0,V143=0),"N.M.",IF(ABS(X143/W143)>=10,"N.M.",X143/(-W143)))),IF(X143=0,0,IF(OR(W143=0,V143=0),"N.M.",IF(ABS(X143/W143)>=10,"N.M.",X143/W143)))) -> -0.6923561517 | AA143: 76088.32 | AC143: 76088.32 | AD143: 71179.39 | AE143: 76088.32 | AF143: 73633.86 | AG143: 76088.34 | AH143: 0 | AI143: 0 | AJ143: 0 | AK143: 0 | AL143: 0 | AM143: 0 | AN143: 0 | AP143: 0 | AQ143: 0 | AR143: 0 | AS143: 0 | AT143: 0 | AU143: 0 | AV143: 64124.29 | AW143: 32587.75 | AX143: 31536.54 | AY143: 32587.75 | AZ143: 0 | BA143: 0
A144: %,V5550023 | B144: 5550023 | C144: Purch Power Capacity -NA | F144: -32126.82 | G144: 201548.44 | H144: =+F144-G144 -> -233675.26 | I144: =IF(G144<0,IF(H144=0,0,IF(OR(G144=0,F144=0),"N.M.",IF(ABS(H144/G144)>=10,"N.M.",H144/(-G144)))),IF(H144=0,0,IF(OR(G144=0,F144=0),"N.M.",IF(ABS(H144/G144)>=10,"N.M.",H144/G144)))) -> -1.159399993 | K144: 1852152.69 | L144: 1016160.01 | M144: =+K144-L144 -> 835992.68 | N144: =IF(L144<0,IF(M144=0,0,IF(OR(L144=0,K144=0),"N.M.",IF(ABS(M144/L144)>=10,"N.M.",M144/(-L144)))),IF(M144=0,0,IF(OR(L144=0,K144=0),"N.M.",IF(ABS(M144/L144)>=10,"N.M.",M144/L144)))) -> 0.8226978741 | Q144: -480389.31 | R144: 604645.32 | S144: =+Q144-R144 -> -1085034.63 | T144: =IF(R144<0,IF(S144=0,0,IF(OR(R144=0,Q144=0),"N.M.",IF(ABS(S144/R144)>=10,"N.M.",S144/(-R144)))),IF(S144=0,0,IF(OR(R144=0,Q144=0),"N.M.",IF(ABS(S144/R144)>=10,"N.M.",S144/R144)))) -> -1.79449769 | V144: 2255249.57 | W144: 1016160.01 | X144: =+V144-W144 -> 1239089.56 | Y144: =IF(W144<0,IF(X144=0,0,IF(OR(W144=0,V144=0),"N.M.",IF(ABS(X144/W144)>=10,"N.M.",X144/(-W144)))),IF(X144=0,0,IF(OR(W144=0,V144=0),"N.M.",IF(ABS(X144/W144)>=10,"N.M.",X144/W144)))) -> 1.219384298 | AA144: 0 | AC144: 0 | AD144: 0 | AE144: 0 | AF144: 0 | AG144: 0 | AH144: 220058.25 | AI144: 191456.44 | AJ144: 201548.44 | AK144: 201548.44 | AL144: 201548.44 | AM144: 201548.44 | AN144: 201548.44 | AP144: 201548.44 | AQ144: 201548.44 | AR144: 201548.44 | AS144: 201548.44 | AT144: 1043329.69 | AU144: 483018.55 | AV144: 0 | AW144: -448262.49 | AX144: 0 | AY144: -32126.82 | AZ144: 17829.73 | BA144: 0
A145: %,V5550029 | B145: 5550029 | C145: Purch Power-Assoc-Trnsfr Price | F145: 0 | G145: 0 | H145: =+F145-G145 -> 0 | I145: =IF(G145<0,IF(H145=0,0,IF(OR(G145=0,F145=0),"N.M.",IF(ABS(H145/G145)>=10,"N.M.",H145/(-G145)))),IF(H145=0,0,IF(OR(G145=0,F145=0),"N.M.",IF(ABS(H145/G145)>=10,"N.M.",H145/G145)))) -> 0 | K145: 0 | L145: 0 | M145: =+K145-L145 -> 0 | N145: =IF(L145<0,IF(M145=0,0,IF(OR(L145=0,K145=0),"N.M.",IF(ABS(M145/L145)>=10,"N.M.",M145/(-L145)))),IF(M145=0,0,IF(OR(L145=0,K145=0),"N.M.",IF(ABS(M145/L145)>=10,"N.M.",M145/L145)))) -> 0 | Q145: 0 | R145: 0 | S145: =+Q145-R145 -> 0 | T145: =IF(R145<0,IF(S145=0,0,IF(OR(R145=0,Q145=0),"N.M.",IF(ABS(S145/R145)>=10,"N.M.",S145/(-R145)))),IF(S145=0,0,IF(OR(R145=0,Q145=0),"N.M.",IF(ABS(S145/R145)>=10,"N.M.",S145/R145)))) -> 0 | V145: 0 | W145: 0 | X145: =+V145-W145 -> 0 | Y145: =IF(W145<0,IF(X145=0,0,IF(OR(W145=0,V145=0),"N.M.",IF(ABS(X145/W145)>=10,"N.M.",X145/(-W145)))),IF(X145=0,0,IF(OR(W145=0,V145=0),"N.M.",IF(ABS(X145/W145)>=10,"N.M.",X145/W145)))) -> 0 | AA145: 0 | AC145: 0 | AD145: 0 | AE145: 0 | AF145: 0 | AG145: 0 | AH145: 0 | AI145: 0 | AJ145: 0 | AK145: 0 | AL145: 0 | AM145: 0 | AN145: 0 | AP145: 0 | AQ145: 0 | AR145: 0 | AS145: 0 | AT145: 0 | AU145: 0 | AV145: 0 | AW145: 0 | AX145: 0 | AY145: 0 | AZ145: 359780628.6 | BA145: 0
A146: %,V5550039 | B146: 5550039 | C146: PJM Inadvertent Mtr Res-OSS | F146: -993.12 | G146: 224.95 | H146: =+F146-G146 -> -1218.07 | I146: =IF(G146<0,IF(H146=0,0,IF(OR(G146=0,F146=0),"N.M.",IF(ABS(H146/G146)>=10,"N.M.",H146/(-G146)))),IF(H146=0,0,IF(OR(G146=0,F146=0),"N.M.",IF(ABS(H146/G146)>=10,"N.M.",H146/G146)))) -> -5.414847744 | K146: -2212.11 | L146: 5604.8 | M146: =+K146-L146 -> -7816.91 | N146: =IF(L146<0,IF(M146=0,0,IF(OR(L146=0,K146=0),"N.M.",IF(ABS(M146/L146)>=10,"N.M.",M146/(-L146)))),IF(M146=0,0,IF(OR(L146=0,K146=0),"N.M.",IF(ABS(M146/L146)>=10,"N.M.",M146/L146)))) -> -1.394681345 | Q146: -605.4 | R146: 1257.42 | S146: =+Q146-R146 -> -1862.82 | T146: =IF(R146<0,IF(S146=0,0,IF(OR(R146=0,Q146=0),"N.M.",IF(ABS(S146/R146)>=10,"N.M.",S146/(-R146)))),IF(S146=0,0,IF(OR(R146=0,Q146=0),"N.M.",IF(ABS(S146/R146)>=10,"N.M.",S146/R146)))) -> -1.481462041 | V146: -2904.62 | W146: 5792.68 | X146: =+V146-W146 -> -8697.3 | Y146: =IF(W146<0,IF(X146=0,0,IF(OR(W146=0,V146=0),"N.M.",IF(ABS(X146/W146)>=10,"N.M.",X146/(-W146)))),IF(X146=0,0,IF(OR(W146=0,V146=0),"N.M.",IF(ABS(X146/W146)>=10,"N.M.",X146/W146)))) -> -1.50142939 | AA146: -17.54 | AC146: 21.15 | AD146: -113.36 | AE146: -64.02 | AF146: -71.12 | AG146: 440.4 | AH146: 1324.51 | AI146: 2809.82 | AJ146: 835.77 | AK146: 196.7 | AL146: 224.95 | AM146: -52.28 | AN146: -640.23 | AP146: -507.21 | AQ146: -183.3 | AR146: -448.96 | AS146: -477.24 | AT146: -806.03 | AU146: 891.5 | AV146: -75.47 | AW146: 666.12 | AX146: -278.4 | AY146: -993.12 | AZ146: 973.72 | BA146: 0
A147: %,V5550040 | B147: 5550040 | C147: PJM Inadvertent Mtr Res-LSE | F147: -8561.5 | G147: 2240.5 | H147: =+F147-G147 -> -10802 | I147: =IF(G147<0,IF(H147=0,0,IF(OR(G147=0,F147=0),"N.M.",IF(ABS(H147/G147)>=10,"N.M.",H147/(-G147)))),IF(H147=0,0,IF(OR(G147=0,F147=0),"N.M.",IF(ABS(H147/G147)>=10,"N.M.",H147/G147)))) -> -4.821245258 | K147: -50600.93 | L147: 59909.81 | M147: =+K147-L147 -> -110510.74 | N147: =IF(L147<0,IF(M147=0,0,IF(OR(L147=0,K147=0),"N.M.",IF(ABS(M147/L147)>=10,"N.M.",M147/(-L147)))),IF(M147=0,0,IF(OR(L147=0,K147=0),"N.M.",IF(ABS(M147/L147)>=10,"N.M.",M147/L147)))) -> -1.844618436 | Q147: -9898.03 | R147: 16217.11 | S147: =+Q147-R147 -> -26115.14 | T147: =IF(R147<0,IF(S147=0,0,IF(OR(R147=0,Q147=0),"N.M.",IF(ABS(S147/R147)>=10,"N.M.",S147/(-R147)))),IF(S147=0,0,IF(OR(R147=0,Q147=0),"N.M.",IF(ABS(S147/R147)>=10,"N.M.",S147/R147)))) -> -1.610344876 | V147: -54444.74 | W147: 68136.24 | X147: =+V147-W147 -> -122580.98 | Y147: =IF(W147<0,IF(X147=0,0,IF(OR(W147=0,V147=0),"N.M.",IF(ABS(X147/W147)>=10,"N.M.",X147/(-W147)))),IF(X147=0,0,IF(OR(W147=0,V147=0),"N.M.",IF(ABS(X147/W147)>=10,"N.M.",X147/W147)))) -> -1.799057007 | AA147: 2096.95 | AC147: 5866.19 | AD147: -103.19 | AE147: -592.6 | AF147: 2261.93 | AG147: 6777.75 | AH147: 8576.02 | AI147: 20906.6 | AJ147: 9290.45 | AK147: 4686.16 | AL147: 2240.5 | AM147: 327 | AN147: -4170.81 | AP147: -3524.71 | AQ147: -5794.71 | AR147: -7222.49 | AS147: -8456.78 | AT147: -9252.3 | AU147: -4019.14 | AV147: -2432.77 | AW147: 3370.29 | AX147: -4706.82 | AY147: -8561.5 | AZ147: 7720.94 | BA147: 0
A148: %,V5550074 | B148: 5550074 | C148: PJM Reactive-Charge | F148: 262768.6 | G148: 282186.28 | H148: =+F148-G148 -> -19417.68 | I148: =IF(G148<0,IF(H148=0,0,IF(OR(G148=0,F148=0),"N.M.",IF(ABS(H148/G148)>=10,"N.M.",H148/(-G148)))),IF(H148=0,0,IF(OR(G148=0,F148=0),"N.M.",IF(ABS(H148/G148)>=10,"N.M.",H148/G148)))) -> -0.0688115666 | K148: 2713469.56 | L148: 2990777.1 | M148: =+K148-L148 -> -277307.54 | N148: =IF(L148<0,IF(M148=0,0,IF(OR(L148=0,K148=0),"N.M.",IF(ABS(M148/L148)>=10,"N.M.",M148/(-L148)))),IF(M148=0,0,IF(OR(L148=0,K148=0),"N.M.",IF(ABS(M148/L148)>=10,"N.M.",M148/L148)))) -> -0.09272089853 | Q148: 797563.63 | R148: 865147.27 | S148: =+Q148-R148 -> -67583.64 | T148: =IF(R148<0,IF(S148=0,0,IF(OR(R148=0,Q148=0),"N.M.",IF(ABS(S148/R148)>=10,"N.M.",S148/(-R148)))),IF(S148=0,0,IF(OR(R148=0,Q148=0),"N.M.",IF(ABS(S148/R148)>=10,"N.M.",S148/R148)))) -> -0.07811807578 | V148: 3310163.94 | W148: 3423273.9 | X148: =+V148-W148 -> -113109.96 | Y148: =IF(W148<0,IF(X148=0,0,IF(OR(W148=0,V148=0),"N.M.",IF(ABS(X148/W148)>=10,"N.M.",X148/(-W148)))),IF(X148=0,0,IF(OR(W148=0,V148=0),"N.M.",IF(ABS(X148/W148)>=10,"N.M.",X148/W148)))) -> -0.03304145777 | AA148: 221082.71 | AC148: 343952.17 | AD148: 295559.1 | AE148: 297206.9 | AF148: 286920.78 | AG148: 322672.51 | AH148: 301057.2 | AI148: 278261.17 | AJ148: 290583.41 | AK148: 292377.58 | AL148: 282186.28 | AM148: 306532.84 | AN148: 290161.54 | AP148: 286667.43 | AQ148: 273119.37 | AR148: 271025.49 | AS148: 273005.67 | AT148: 274383.7 | AU148: 271549.29 | AV148: 266154.98 | AW148: 268149.33 | AX148: 266645.7 | AY148: 262768.6 | AZ148: -266269.36 | BA148: 0
A149: %,V5550075 | B149: 5550075 | C149: PJM Reactive-Credit | F149: -119573 | G149: -119573 | H149: =+F149-G149 -> 0 | I149: =IF(G149<0,IF(H149=0,0,IF(OR(G149=0,F149=0),"N.M.",IF(ABS(H149/G149)>=10,"N.M.",H149/(-G149)))),IF(H149=0,0,IF(OR(G149=0,F149=0),"N.M.",IF(ABS(H149/G149)>=10,"N.M.",H149/G149)))) -> 0 | K149: -1195730 | L149: -1195730 | M149: =+K149-L149 -> 0 | N149: =IF(L149<0,IF(M149=0,0,IF(OR(L149=0,K149=0),"N.M.",IF(ABS(M149/L149)>=10,"N.M.",M149/(-L149)))),IF(M149=0,0,IF(OR(L149=0,K149=0),"N.M.",IF(ABS(M149/L149)>=10,"N.M.",M149/L149)))) -> 0 | Q149: -358719 | R149: -358719 | S149: =+Q149-R149 -> 0 | T149: =IF(R149<0,IF(S149=0,0,IF(OR(R149=0,Q149=0),"N.M.",IF(ABS(S149/R149)>=10,"N.M.",S149/(-R149)))),IF(S149=0,0,IF(OR(R149=0,Q149=0),"N.M.",IF(ABS(S149/R149)>=10,"N.M.",S149/R149)))) -> 0 | V149: -1434876 | W149: -1434876 | X149: =+V149-W149 -> 0 | Y149: =IF(W149<0,IF(X149=0,0,IF(OR(W149=0,V149=0),"N.M.",IF(ABS(X149/W149)>=10,"N.M.",X149/(-W149)))),IF(X149=0,0,IF(OR(W149=0,V149=0),"N.M.",IF(ABS(X149/W149)>=10,"N.M.",X149/W149)))) -> 0 | AA149: -119573 | AC149: -119573 | AD149: -119573 | AE149: -119573 | AF149: -119573 | AG149: -119573 | AH149: -119573 | AI149: -119573 | AJ149: -119573 | AK149: -119573 | AL149: -119573 | AM149: -119573 | AN149: -119573 | AP149: -119573 | AQ149: -119573 | AR149: -119573 | AS149: -119573 | AT149: -119573 | AU149: -119573 | AV149: -119573 | AW149: -119573 | AX149: -119573 | AY149: -119573 | AZ149: 119573 | BA149: 0
A150: %,V5550076 | B150: 5550076 | C150: PJM Black Start-Charge | F150: 46995.64 | G150: 95438.39 | H150: =+F150-G150 -> -48442.75 | I150: =IF(G150<0,IF(H150=0,0,IF(OR(G150=0,F150=0),"N.M.",IF(ABS(H150/G150)>=10,"N.M.",H150/(-G150)))),IF(H150=0,0,IF(OR(G150=0,F150=0),"N.M.",IF(ABS(H150/G150)>=10,"N.M.",H150/G150)))) -> -0.5075813831 | K150: 378428.73 | L150: 906888.32 | M150: =+K150-L150 -> -528459.59 | N150: =IF(L150<0,IF(M150=0,0,IF(OR(L150=0,K150=0),"N.M.",IF(ABS(M150/L150)>=10,"N.M.",M150/(-L150)))),IF(M150=0,0,IF(OR(L150=0,K150=0),"N.M.",IF(ABS(M150/L150)>=10,"N.M.",M150/L150)))) -> -0.5827173846 | Q150: 142930 | R150: 286640.57 | S150: =+Q150-R150 -> -143710.57 | T150: =IF(R150<0,IF(S150=0,0,IF(OR(R150=0,Q150=0),"N.M.",IF(ABS(S150/R150)>=10,"N.M.",S150/(-R150)))),IF(S150=0,0,IF(OR(R150=0,Q150=0),"N.M.",IF(ABS(S150/R150)>=10,"N.M.",S150/R150)))) -> -0.5013615833 | V150: 570355.68 | W150: 1051474.51 | X150: =+V150-W150 -> -481118.83 | Y150: =IF(W150<0,IF(X150=0,0,IF(OR(W150=0,V150=0),"N.M.",IF(ABS(X150/W150)>=10,"N.M.",X150/(-W150)))),IF(X150=0,0,IF(OR(W150=0,V150=0),"N.M.",IF(ABS(X150/W150)>=10,"N.M.",X150/W150)))) -> -0.457565852 | AA150: 70955.91 | AC150: 91879.98 | AD150: 77452.86 | AE150: 86439.48 | AF150: 87197.85 | AG150: 87178.65 | AH150: 95135.13 | AI150: 94963.8 | AJ150: 95302.24 | AK150: 95899.94 | AL150: 95438.39 | AM150: 96936.35 | AN150: 94990.6 | AP150: 3383.75 | AQ150: 46795.03 | AR150: 47260.05 | AS150: 46811.54 | AT150: 37522.05 | AU150: 26888.6 | AV150: 26837.71 | AW150: 58868.57 | AX150: 37065.79 | AY150: 46995.64 | AZ150: -42665.55 | BA150: 0
A151: %,V5550078 | B151: 5550078 | C151: PJM Regulation-Charge | F151: 395562.56 | G151: 67924.42 | H151: =+F151-G151 -> 327638.14 | I151: =IF(G151<0,IF(H151=0,0,IF(OR(G151=0,F151=0),"N.M.",IF(ABS(H151/G151)>=10,"N.M.",H151/(-G151)))),IF(H151=0,0,IF(OR(G151=0,F151=0),"N.M.",IF(ABS(H151/G151)>=10,"N.M.",H151/G151)))) -> 4.823569196 | K151: 1085202.12 | L151: 529653.51 | M151: =+K151-L151 -> 555548.61 | N151: =IF(L151<0,IF(M151=0,0,IF(OR(L151=0,K151=0),"N.M.",IF(ABS(M151/L151)>=10,"N.M.",M151/(-L151)))),IF(M151=0,0,IF(OR(L151=0,K151=0),"N.M.",IF(ABS(M151/L151)>=10,"N.M.",M151/L151)))) -> 1.048890642 | Q151: 505209.06 | R151: 160793.26 | S151: =+Q151-R151 -> 344415.8 | T151: =IF(R151<0,IF(S151=0,0,IF(OR(R151=0,Q151=0),"N.M.",IF(ABS(S151/R151)>=10,"N.M.",S151/(-R151)))),IF(S151=0,0,IF(OR(R151=0,Q151=0),"N.M.",IF(ABS(S151/R151)>=10,"N.M.",S151/R151)))) -> 2.141979085 | V151: 1154071.7 | W151: 619995.8 | X151: =+V151-W151 -> 534075.9 | Y151: =IF(W151<0,IF(X151=0,0,IF(OR(W151=0,V151=0),"N.M.",IF(ABS(X151/W151)>=10,"N.M.",X151/(-W151)))),IF(X151=0,0,IF(OR(W151=0,V151=0),"N.M.",IF(ABS(X151/W151)>=10,"N.M.",X151/W151)))) -> 0.8614185774 | AA151: 48878.97 | AC151: 75534.5 | AD151: 45628.26 | AE151: 33935.97 | AF151: 45967.59 | AG151: 66854.82 | AH151: 36486.33 | AI151: 64452.78 | AJ151: 41150.63 | AK151: 51718.21 | AL151: 67924.42 | AM151: 25831.31 | AN151: 43038.27 | AP151: 127637.02 | AQ151: 72549.02 | AR151: 76947.6 | AS151: 72784.06 | AT151: 47347.26 | AU151: 108302.07 | AV151: 74426.03 | AW151: 49743.75 | AX151: 59902.75 | AY151: 395562.56 | AZ151: -370427.69 | BA151: 0
A152: %,V5550079 | B152: 5550079 | C152: PJM Regulation-Credit | F152: -384669.63 | G152: -838.15 | H152: =+F152-G152 -> -383831.48 | I152: =IF(G152<0,IF(H152=0,0,IF(OR(G152=0,F152=0),"N.M.",IF(ABS(H152/G152)>=10,"N.M.",H152/(-G152)))),IF(H152=0,0,IF(OR(G152=0,F152=0),"N.M.",IF(ABS(H152/G152)>=10,"N.M.",H152/G152)))) -> N.M. | K152: -180755.66 | L152: -13013.32 | M152: =+K152-L152 -> -167742.34 | N152: =IF(L152<0,IF(M152=0,0,IF(OR(L152=0,K152=0),"N.M.",IF(ABS(M152/L152)>=10,"N.M.",M152/(-L152)))),IF(M152=0,0,IF(OR(L152=0,K152=0),"N.M.",IF(ABS(M152/L152)>=10,"N.M.",M152/L152)))) -> N.M. | Q152: -388655.51 | R152: -2169.27 | S152: =+Q152-R152 -> -386486.24 | T152: =IF(R152<0,IF(S152=0,0,IF(OR(R152=0,Q152=0),"N.M.",IF(ABS(S152/R152)>=10,"N.M.",S152/(-R152)))),IF(S152=0,0,IF(OR(R152=0,Q152=0),"N.M.",IF(ABS(S152/R152)>=10,"N.M.",S152/R152)))) -> N.M. | V152: -407381.34 | W152: -14907.54 | X152: =+V152-W152 -> -392473.8 | Y152: =IF(W152<0,IF(X152=0,0,IF(OR(W152=0,V152=0),"N.M.",IF(ABS(X152/W152)>=10,"N.M.",X152/(-W152)))),IF(X152=0,0,IF(OR(W152=0,V152=0),"N.M.",IF(ABS(X152/W152)>=10,"N.M.",X152/W152)))) -> N.M. | AA152: -1088.77 | AC152: -12297.58 | AD152: 6922.12 | AE152: -1249.72 | AF152: -1151.67 | AG152: -1269.57 | AH152: -368.62 | AI152: -1429.01 | AJ152: -915.66 | AK152: -415.46 | AL152: -838.15 | AM152: -415.21 | AN152: -226210.47 | AP152: 215934.81 | AQ152: -1993.79 | AR152: -1023.06 | AS152: -274.49 | AT152: -585.84 | AU152: -961.09 | AV152: -3196.69 | AW152: -2761.37 | AX152: -1224.51 | AY152: -384669.63 | AZ152: 384515.29 | BA152: 0
A153: %,V5550080 | B153: 5550080 | C153: PJM Hourly Net Purch.-FERC | F153: 2318897.42 | G153: 892702.72 | H153: =+F153-G153 -> 1426194.7 | I153: =IF(G153<0,IF(H153=0,0,IF(OR(G153=0,F153=0),"N.M.",IF(ABS(H153/G153)>=10,"N.M.",H153/(-G153)))),IF(H153=0,0,IF(OR(G153=0,F153=0),"N.M.",IF(ABS(H153/G153)>=10,"N.M.",H153/G153)))) -> 1.597614377 | K153: 12893116.63 | L153: 6720215.71 | M153: =+K153-L153 -> 6172900.92 | N153: =IF(L153<0,IF(M153=0,0,IF(OR(L153=0,K153=0),"N.M.",IF(ABS(M153/L153)>=10,"N.M.",M153/(-L153)))),IF(M153=0,0,IF(OR(L153=0,K153=0),"N.M.",IF(ABS(M153/L153)>=10,"N.M.",M153/L153)))) -> 0.918556961 | Q153: 4555637.75 | R153: 2366926.11 | S153: =+Q153-R153 -> 2188711.64 | T153: =IF(R153<0,IF(S153=0,0,IF(OR(R153=0,Q153=0),"N.M.",IF(ABS(S153/R153)>=10,"N.M.",S153/(-R153)))),IF(S153=0,0,IF(OR(R153=0,Q153=0),"N.M.",IF(ABS(S153/R153)>=10,"N.M.",S153/R153)))) -> 0.9247063653 | V153: 14785347.99 | W153: 8187253.7 | X153: =+V153-W153 -> 6598094.29 | Y153: =IF(W153<0,IF(X153=0,0,IF(OR(W153=0,V153=0),"N.M.",IF(ABS(X153/W153)>=10,"N.M.",X153/(-W153)))),IF(X153=0,0,IF(OR(W153=0,V153=0),"N.M.",IF(ABS(X153/W153)>=10,"N.M.",X153/W153)))) -> 0.8058983551 | AA153: 1126033.59 | AC153: -668644.78 | AD153: 623788.69 | AE153: 417183.27 | AF153: -238954.63 | AG153: 479388.52 | AH153: 1941715.06 | AI153: 1798813.47 | AJ153: 1355816.86 | AK153: 118406.53 | AL153: 892702.72 | AM153: 1176708.82 | AN153: 715522.54 | AP153: 783482.6 | AQ153: 147910.84 | AR153: 407887.99 | AS153: 784752.9 | AT153: 754909.63 | AU153: 3619595.03 | AV153: 1838939.89 | AW153: 1322426.52 | AX153: 914313.81 | AY153: 2318897.42 | AZ153: -2320743.07 | BA153: 0
A154: %,V5550083 | B154: 5550083 | C154: PJM Sync & Non Sync-Charge | F154: 77606.97 | G154: 70002.99 | H154: =+F154-G154 -> 7603.98 | I154: =IF(G154<0,IF(H154=0,0,IF(OR(G154=0,F154=0),"N.M.",IF(ABS(H154/G154)>=10,"N.M.",H154/(-G154)))),IF(H154=0,0,IF(OR(G154=0,F154=0),"N.M.",IF(ABS(H154/G154)>=10,"N.M.",H154/G154)))) -> 0.1086236459 | K154: 925206.03 | L154: 428912.02 | M154: =+K154-L154 -> 496294.01 | N154: =IF(L154<0,IF(M154=0,0,IF(OR(L154=0,K154=0),"N.M.",IF(ABS(M154/L154)>=10,"N.M.",M154/(-L154)))),IF(M154=0,0,IF(OR(L154=0,K154=0),"N.M.",IF(ABS(M154/L154)>=10,"N.M.",M154/L154)))) -> 1.157099794 | Q154: 239888 | R154: 159653.35 | S154: =+Q154-R154 -> 80234.65 | T154: =IF(R154<0,IF(S154=0,0,IF(OR(R154=0,Q154=0),"N.M.",IF(ABS(S154/R154)>=10,"N.M.",S154/(-R154)))),IF(S154=0,0,IF(OR(R154=0,Q154=0),"N.M.",IF(ABS(S154/R154)>=10,"N.M.",S154/R154)))) -> 0.5025553801 | V154: 966270.04 | W154: 515794.24 | X154: =+V154-W154 -> 450475.8 | Y154: =IF(W154<0,IF(X154=0,0,IF(OR(W154=0,V154=0),"N.M.",IF(ABS(X154/W154)>=10,"N.M.",X154/(-W154)))),IF(X154=0,0,IF(OR(W154=0,V154=0),"N.M.",IF(ABS(X154/W154)>=10,"N.M.",X154/W154)))) -> 0.8733633784 | AA154: -16570.76 | AC154: 22601.9 | AD154: 15333.01 | AE154: 20764.8 | AF154: 48655.67 | AG154: 58105.59 | AH154: 53689.01 | AI154: 50108.69 | AJ154: 39734.11 | AK154: 49916.25 | AL154: 70002.99 | AM154: 18994.22 | AN154: 22069.79 | AP154: 102438.71 | AQ154: 38724.19 | AR154: 133141.66 | AS154: 111429.76 | AT154: 63425.69 | AU154: 95618.73 | AV154: 140539.29 | AW154: 107907.97 | AX154: 54373.06 | AY154: 77606.97 | AZ154: -66586.32 | BA154: 0
A155: %,V5550084 | B155: 5550084 | C155: PJM Sync & Non Sync-Credit | F155: -27942.9 | G155: -9647.17 | H155: =+F155-G155 -> -18295.73 | I155: =IF(G155<0,IF(H155=0,0,IF(OR(G155=0,F155=0),"N.M.",IF(ABS(H155/G155)>=10,"N.M.",H155/(-G155)))),IF(H155=0,0,IF(OR(G155=0,F155=0),"N.M.",IF(ABS(H155/G155)>=10,"N.M.",H155/G155)))) -> -1.896486742 | K155: -151551.01 | L155: -42496.69 | M155: =+K155-L155 -> -109054.32 | N155: =IF(L155<0,IF(M155=0,0,IF(OR(L155=0,K155=0),"N.M.",IF(ABS(M155/L155)>=10,"N.M.",M155/(-L155)))),IF(M155=0,0,IF(OR(L155=0,K155=0),"N.M.",IF(ABS(M155/L155)>=10,"N.M.",M155/L155)))) -> -2.56618386 | Q155: -39635.85 | R155: -14967.47 | S155: =+Q155-R155 -> -24668.38 | T155: =IF(R155<0,IF(S155=0,0,IF(OR(R155=0,Q155=0),"N.M.",IF(ABS(S155/R155)>=10,"N.M.",S155/(-R155)))),IF(S155=0,0,IF(OR(R155=0,Q155=0),"N.M.",IF(ABS(S155/R155)>=10,"N.M.",S155/R155)))) -> -1.648132918 | V155: -144939.48 | W155: -36186.87 | X155: =+V155-W155 -> -108752.61 | Y155: =IF(W155<0,IF(X155=0,0,IF(OR(W155=0,V155=0),"N.M.",IF(ABS(X155/W155)>=10,"N.M.",X155/(-W155)))),IF(X155=0,0,IF(OR(W155=0,V155=0),"N.M.",IF(ABS(X155/W155)>=10,"N.M.",X155/W155)))) -> -3.005305792 | AA155: 8057.24 | AC155: -4050.03 | AD155: 2871.71 | AE155: 9214.36 | AF155: 4580.64 | AG155: -1331.14 | AH155: -25283.12 | AI155: -13531.64 | AJ155: 1800.21 | AK155: -7120.51 | AL155: -9647.17 | AM155: 3151.53 | AN155: 3460 | AP155: -8869.23 | AQ155: 786.63 | AR155: -34856.53 | AS155: -28724.06 | AT155: -21726.2 | AU155: -5237.44 | AV155: -13288.33 | AW155: -9614.59 | AX155: -2078.36 | AY155: -27942.9 | AZ155: 22369.38 | BA155: 0
A156: %,V5550094 | B156: 5550094 | C156: Purchased Power - Fuel | F156: 0 | G156: 0 | H156: =+F156-G156 -> 0 | I156: =IF(G156<0,IF(H156=0,0,IF(OR(G156=0,F156=0),"N.M.",IF(ABS(H156/G156)>=10,"N.M.",H156/(-G156)))),IF(H156=0,0,IF(OR(G156=0,F156=0),"N.M.",IF(ABS(H156/G156)>=10,"N.M.",H156/G156)))) -> 0 | K156: 0 | L156: 0 | M156: =+K156-L156 -> 0 | N156: =IF(L156<0,IF(M156=0,0,IF(OR(L156=0,K156=0),"N.M.",IF(ABS(M156/L156)>=10,"N.M.",M156/(-L156)))),IF(M156=0,0,IF(OR(L156=0,K156=0),"N.M.",IF(ABS(M156/L156)>=10,"N.M.",M156/L156)))) -> 0 | Q156: 0 | R156: 0 | S156: =+Q156-R156 -> 0 | T156: =IF(R156<0,IF(S156=0,0,IF(OR(R156=0,Q156=0),"N.M.",IF(ABS(S156/R156)>=10,"N.M.",S156/(-R156)))),IF(S156=0,0,IF(OR(R156=0,Q156=0),"N.M.",IF(ABS(S156/R156)>=10,"N.M.",S156/R156)))) -> 0 | V156: 0 | W156: 0 | X156: =+V156-W156 -> 0 | Y156: =IF(W156<0,IF(X156=0,0,IF(OR(W156=0,V156=0),"N.M.",IF(ABS(X156/W156)>=10,"N.M.",X156/(-W156)))),IF(X156=0,0,IF(OR(W156=0,V156=0),"N.M.",IF(ABS(X156/W156)>=10,"N.M.",X156/W156)))) -> 0 | AA156: 0 | AC156: 0 | AD156: 0 | AE156: 0 | AF156: 0 | AG156: 0 | AH156: 0 | AI156: 0 | AJ156: 0 | AK156: 0 | AL156: 0 | AM156: 0 | AN156: 0 | AP156: 0 | AQ156: 0 | AR156: 0 | AS156: 0 | AT156: 0 | AU156: 0 | AV156: 0 | AW156: 0 | AX156: 0 | AY156: 0 | AZ156: 0 | BA156: 0
A157: %,V5550123 | B157: 5550123 | C157: PJM OpRes-LSE-Charge | F157: 229398.45 | G157: 73840.56 | H157: =+F157-G157 -> 155557.89 | I157: =IF(G157<0,IF(H157=0,0,IF(OR(G157=0,F157=0),"N.M.",IF(ABS(H157/G157)>=10,"N.M.",H157/(-G157)))),IF(H157=0,0,IF(OR(G157=0,F157=0),"N.M.",IF(ABS(H157/G157)>=10,"N.M.",H157/G157)))) -> 2.106672674 | K157: 4270355.43 | L157: 1096543.18 | M157: =+K157-L157 -> 3173812.25 | N157: =IF(L157<0,IF(M157=0,0,IF(OR(L157=0,K157=0),"N.M.",IF(ABS(M157/L157)>=10,"N.M.",M157/(-L157)))),IF(M157=0,0,IF(OR(L157=0,K157=0),"N.M.",IF(ABS(M157/L157)>=10,"N.M.",M157/L157)))) -> 2.894379636 | Q157: 350060.95 | R157: 203555.97 | S157: =+Q157-R157 -> 146504.98 | T157: =IF(R157<0,IF(S157=0,0,IF(OR(R157=0,Q157=0),"N.M.",IF(ABS(S157/R157)>=10,"N.M.",S157/(-R157)))),IF(S157=0,0,IF(OR(R157=0,Q157=0),"N.M.",IF(ABS(S157/R157)>=10,"N.M.",S157/R157)))) -> 0.7197282399 | V157: 4464209.64 | W157: 1189743.22 | X157: =+V157-W157 -> 3274466.42 | Y157: =IF(W157<0,IF(X157=0,0,IF(OR(W157=0,V157=0),"N.M.",IF(ABS(X157/W157)>=10,"N.M.",X157/(-W157)))),IF(X157=0,0,IF(OR(W157=0,V157=0),"N.M.",IF(ABS(X157/W157)>=10,"N.M.",X157/W157)))) -> 2.752246338 | AA157: 86031 | AC157: 376439.96 | AD157: 14457.05 | AE157: 27749.86 | AF157: 103994.7 | AG157: 133110.39 | AH157: 165939.33 | AI157: 71295.92 | AJ157: 79936.1 | AK157: 49779.31 | AL157: 73840.56 | AM157: 71136.07 | AN157: 122718.14 | AP157: 2956748.73 | AQ157: 184745.69 | AR157: 171586 | AS157: 195018.63 | AT157: 131393.69 | AU157: 115041.68 | AV157: 165760.06 | AW157: 79512.82 | AX157: 41149.68 | AY157: 229398.45 | AZ157: -49575.25 | BA157: 0
A158: %,V5550124 | B158: 5550124 | C158: PJM Implicit Congestion-LSE | F158: 352130.73 | G158: 853123.14 | H158: =+F158-G158 -> -500992.41 | I158: =IF(G158<0,IF(H158=0,0,IF(OR(G158=0,F158=0),"N.M.",IF(ABS(H158/G158)>=10,"N.M.",H158/(-G158)))),IF(H158=0,0,IF(OR(G158=0,F158=0),"N.M.",IF(ABS(H158/G158)>=10,"N.M.",H158/G158)))) -> -0.5872451309 | K158: 3796126.06 | L158: 5783557.2 | M158: =+K158-L158 -> -1987431.14 | N158: =IF(L158<0,IF(M158=0,0,IF(OR(L158=0,K158=0),"N.M.",IF(ABS(M158/L158)>=10,"N.M.",M158/(-L158)))),IF(M158=0,0,IF(OR(L158=0,K158=0),"N.M.",IF(ABS(M158/L158)>=10,"N.M.",M158/L158)))) -> -0.343634734 | Q158: 1035957.23 | R158: 1641070.48 | S158: =+Q158-R158 -> -605113.25 | T158: =IF(R158<0,IF(S158=0,0,IF(OR(R158=0,Q158=0),"N.M.",IF(ABS(S158/R158)>=10,"N.M.",S158/(-R158)))),IF(S158=0,0,IF(OR(R158=0,Q158=0),"N.M.",IF(ABS(S158/R158)>=10,"N.M.",S158/R158)))) -> -0.3687308116 | V158: 4956312.22 | W158: 6530244.14 | X158: =+V158-W158 -> -1573931.92 | Y158: =IF(W158<0,IF(X158=0,0,IF(OR(W158=0,V158=0),"N.M.",IF(ABS(X158/W158)>=10,"N.M.",X158/(-W158)))),IF(X158=0,0,IF(OR(W158=0,V158=0),"N.M.",IF(ABS(X158/W158)>=10,"N.M.",X158/W158)))) -> -0.2410219107 | AA158: 441828.95 | AC158: 180862.84 | AD158: 268807.24 | AE158: 407981.07 | AF158: 481032.21 | AG158: 322176.43 | AH158: 814272.95 | AI158: 1667353.98 | AJ158: 403971.15 | AK158: 383976.19 | AL158: 853123.14 | AM158: 322603.07 | AN158: 837583.09 | AP158: 1254434.87 | AQ158: 539257.41 | AR158: 671542.15 | AS158: 638168.13 | AT158: -356477.75 | AU158: 652934.32 | AV158: -639690.3 | AW158: 176273.08 | AX158: 507553.42 | AY158: 352130.73 | AZ158: -347143.68 | BA158: 0
A159: %,V5550132 | B159: 5550132 | C159: PJM FTR Revenue-LSE | F159: -933982.99 | G159: -1162769.67 | H159: =+F159-G159 -> 228786.68 | I159: =IF(G159<0,IF(H159=0,0,IF(OR(G159=0,F159=0),"N.M.",IF(ABS(H159/G159)>=10,"N.M.",H159/(-G159)))),IF(H159=0,0,IF(OR(G159=0,F159=0),"N.M.",IF(ABS(H159/G159)>=10,"N.M.",H159/G159)))) -> 0.196760103 | K159: -7827862.1 | L159: -6522722.28 | M159: =+K159-L159 -> -1305139.82 | N159: =IF(L159<0,IF(M159=0,0,IF(OR(L159=0,K159=0),"N.M.",IF(ABS(M159/L159)>=10,"N.M.",M159/(-L159)))),IF(M159=0,0,IF(OR(L159=0,K159=0),"N.M.",IF(ABS(M159/L159)>=10,"N.M.",M159/L159)))) -> -0.2000912754 | Q159: -1478689.93 | R159: -2014194.79 | S159: =+Q159-R159 -> 535504.86 | T159: =IF(R159<0,IF(S159=0,0,IF(OR(R159=0,Q159=0),"N.M.",IF(ABS(S159/R159)>=10,"N.M.",S159/(-R159)))),IF(S159=0,0,IF(OR(R159=0,Q159=0),"N.M.",IF(ABS(S159/R159)>=10,"N.M.",S159/R159)))) -> 0.2658654777 | V159: -8860266.14 | W159: -7028387.39 | X159: =+V159-W159 -> -1831878.75 | Y159: =IF(W159<0,IF(X159=0,0,IF(OR(W159=0,V159=0),"N.M.",IF(ABS(X159/W159)>=10,"N.M.",X159/(-W159)))),IF(X159=0,0,IF(OR(W159=0,V159=0),"N.M.",IF(ABS(X159/W159)>=10,"N.M.",X159/W159)))) -> -0.2606399802 | AA159: -249040.19 | AC159: -982881.57 | AD159: -196844.43 | AE159: -664425.31 | AF159: -509625.93 | AG159: -1060831.49 | AH159: -356099.49 | AI159: -737819.27 | AJ159: -379914.83 | AK159: -471510.29 | AL159: -1162769.67 | AM159: -468053.3 | AN159: -564350.74 | AP159: -4080094.46 | AQ159: -461599.88 | AR159: -236460.55 | AS159: -617167.97 | AT159: -647292.26 | AU159: -77097.56 | AV159: -229459.49 | AW159: 96096.39 | AX159: -640803.33 | AY159: -933982.99 | AZ159: 868776.81 | BA159: 0
A160: %,V5550137 | B160: 5550137 | C160: PJM OpRes-LSE-Credit | F160: -53378.42 | G160: -5.95 | H160: =+F160-G160 -> -53372.47 | I160: =IF(G160<0,IF(H160=0,0,IF(OR(G160=0,F160=0),"N.M.",IF(ABS(H160/G160)>=10,"N.M.",H160/(-G160)))),IF(H160=0,0,IF(OR(G160=0,F160=0),"N.M.",IF(ABS(H160/G160)>=10,"N.M.",H160/G160)))) -> N.M. | K160: -131714.01 | L160: -56271.56 | M160: =+K160-L160 -> -75442.45 | N160: =IF(L160<0,IF(M160=0,0,IF(OR(L160=0,K160=0),"N.M.",IF(ABS(M160/L160)>=10,"N.M.",M160/(-L160)))),IF(M160=0,0,IF(OR(L160=0,K160=0),"N.M.",IF(ABS(M160/L160)>=10,"N.M.",M160/L160)))) -> -1.340685241 | Q160: -81857.48 | R160: -20202.52 | S160: =+Q160-R160 -> -61654.96 | T160: =IF(R160<0,IF(S160=0,0,IF(OR(R160=0,Q160=0),"N.M.",IF(ABS(S160/R160)>=10,"N.M.",S160/(-R160)))),IF(S160=0,0,IF(OR(R160=0,Q160=0),"N.M.",IF(ABS(S160/R160)>=10,"N.M.",S160/R160)))) -> -3.051845017 | V160: -139716.77 | W160: -46376.91 | X160: =+V160-W160 -> -93339.86 | Y160: =IF(W160<0,IF(X160=0,0,IF(OR(W160=0,V160=0),"N.M.",IF(ABS(X160/W160)>=10,"N.M.",X160/(-W160)))),IF(X160=0,0,IF(OR(W160=0,V160=0),"N.M.",IF(ABS(X160/W160)>=10,"N.M.",X160/W160)))) -> -2.012636461 | AA160: 11679.2 | AC160: -12245.48 | AD160: -43.87 | AE160: 1.53 | AF160: -204.5 | AG160: -15484.78 | AH160: -8086.54 | AI160: -5.4 | AJ160: -13543.07 | AK160: -6653.5 | AL160: -5.95 | AM160: -3826.88 | AN160: -4175.88 | AP160: -11216.43 | AQ160: -2505.76 | AR160: -2365.08 | AS160: -2498.53 | AT160: -18184.94 | AU160: -356.27 | AV160: -12729.52 | AW160: -9779.79 | AX160: -18699.27 | AY160: -53378.42 | AZ160: 54691.19 | BA160: 0
A161: %,V5550139 | B161: 5550139 | C161: Generation Deactivation expens | F161: 48466.54 | G161: 0 | H161: =+F161-G161 -> 48466.54 | I161: =IF(G161<0,IF(H161=0,0,IF(OR(G161=0,F161=0),"N.M.",IF(ABS(H161/G161)>=10,"N.M.",H161/(-G161)))),IF(H161=0,0,IF(OR(G161=0,F161=0),"N.M.",IF(ABS(H161/G161)>=10,"N.M.",H161/G161)))) -> N.M. | K161: 63951.45 | L161: 0 | M161: =+K161-L161 -> 63951.45 | N161: =IF(L161<0,IF(M161=0,0,IF(OR(L161=0,K161=0),"N.M.",IF(ABS(M161/L161)>=10,"N.M.",M161/(-L161)))),IF(M161=0,0,IF(OR(L161=0,K161=0),"N.M.",IF(ABS(M161/L161)>=10,"N.M.",M161/L161)))) -> N.M. | Q161: 64236.72 | R161: 0 | S161: =+Q161-R161 -> 64236.72 | T161: =IF(R161<0,IF(S161=0,0,IF(OR(R161=0,Q161=0),"N.M.",IF(ABS(S161/R161)>=10,"N.M.",S161/(-R161)))),IF(S161=0,0,IF(OR(R161=0,Q161=0),"N.M.",IF(ABS(S161/R161)>=10,"N.M.",S161/R161)))) -> N.M. | V161: 63951.45 | W161: 0 | X161: =+V161-W161 -> 63951.45 | Y161: =IF(W161<0,IF(X161=0,0,IF(OR(W161=0,V161=0),"N.M.",IF(ABS(X161/W161)>=10,"N.M.",X161/(-W161)))),IF(X161=0,0,IF(OR(W161=0,V161=0),"N.M.",IF(ABS(X161/W161)>=10,"N.M.",X161/W161)))) -> N.M. | AA161: 0 | AC161: 0 | AD161: 0 | AE161: 0 | AF161: 0 | AG161: 0 | AH161: 0 | AI161: 0 | AJ161: 0 | AK161: 0 | AL161: 0 | AM161: 0 | AN161: 0 | AP161: 0 | AQ161: 0 | AR161: 0 | AS161: 0 | AT161: 0 | AU161: 0 | AV161: -285.27 | AW161: 0 | AX161: 15770.18 | AY161: 48466.54 | AZ161: -24233.27 | BA161: 0
A162: %,V5550153 | B162: 5550153 | C162: PurchPower-Rockport Def-NonAff | F162: 0 | G162: 0 | H162: =+F162-G162 -> 0 | I162: =IF(G162<0,IF(H162=0,0,IF(OR(G162=0,F162=0),"N.M.",IF(ABS(H162/G162)>=10,"N.M.",H162/(-G162)))),IF(H162=0,0,IF(OR(G162=0,F162=0),"N.M.",IF(ABS(H162/G162)>=10,"N.M.",H162/G162)))) -> 0 | K162: 0 | L162: 152679.92 | M162: =+K162-L162 -> -152679.92 | N162: =IF(L162<0,IF(M162=0,0,IF(OR(L162=0,K162=0),"N.M.",IF(ABS(M162/L162)>=10,"N.M.",M162/(-L162)))),IF(M162=0,0,IF(OR(L162=0,K162=0),"N.M.",IF(ABS(M162/L162)>=10,"N.M.",M162/L162)))) -> N.M. | Q162: 0 | R162: 0 | S162: =+Q162-R162 -> 0 | T162: =IF(R162<0,IF(S162=0,0,IF(OR(R162=0,Q162=0),"N.M.",IF(ABS(S162/R162)>=10,"N.M.",S162/(-R162)))),IF(S162=0,0,IF(OR(R162=0,Q162=0),"N.M.",IF(ABS(S162/R162)>=10,"N.M.",S162/R162)))) -> 0 | V162: 0 | W162: 1631169.17 | X162: =+V162-W162 -> -1631169.17 | Y162: =IF(W162<0,IF(X162=0,0,IF(OR(W162=0,V162=0),"N.M.",IF(ABS(X162/W162)>=10,"N.M.",X162/(-W162)))),IF(X162=0,0,IF(OR(W162=0,V162=0),"N.M.",IF(ABS(X162/W162)>=10,"N.M.",X162/W162)))) -> N.M. | AA162: 741125.62 | AC162: 162567.01 | AD162: 738834.34 | AE162: -748721.43 | AF162: 0 | AG162: 0 | AH162: 0 | AI162: 0 | AJ162: 0 | AK162: 0 | AL162: 0 | AM162: 0 | AN162: 0 | AP162: 0 | AQ162: 0 | AR162: 0 | AS162: 0 | AT162: 0 | AU162: 0 | AV162: 0 | AW162: 0 | AX162: 0 | AY162: 0 | AZ162: 0 | BA162: 0
A163: %,V5550326 | B163: 5550326 | C163: PJM Transm Loss Charges - LSE | F163: 169132.19 | G163: 399474.89 | H163: =+F163-G163 -> -230342.7 | I163: =IF(G163<0,IF(H163=0,0,IF(OR(G163=0,F163=0),"N.M.",IF(ABS(H163/G163)>=10,"N.M.",H163/(-G163)))),IF(H163=0,0,IF(OR(G163=0,F163=0),"N.M.",IF(ABS(H163/G163)>=10,"N.M.",H163/G163)))) -> -0.5766137141 | K163: 5909375.9 | L163: 4615130.02 | M163: =+K163-L163 -> 1294245.88 | N163: =IF(L163<0,IF(M163=0,0,IF(OR(L163=0,K163=0),"N.M.",IF(ABS(M163/L163)>=10,"N.M.",M163/(-L163)))),IF(M163=0,0,IF(OR(L163=0,K163=0),"N.M.",IF(ABS(M163/L163)>=10,"N.M.",M163/L163)))) -> 0.2804354101 | Q163: 1278474.93 | R163: 1162666.64 | S163: =+Q163-R163 -> 115808.29 | T163: =IF(R163<0,IF(S163=0,0,IF(OR(R163=0,Q163=0),"N.M.",IF(ABS(S163/R163)>=10,"N.M.",S163/(-R163)))),IF(S163=0,0,IF(OR(R163=0,Q163=0),"N.M.",IF(ABS(S163/R163)>=10,"N.M.",S163/R163)))) -> 0.0996057563 | V163: 6945687.53 | W163: 5457284.06 | X163: =+V163-W163 -> 1488403.47 | Y163: =IF(W163<0,IF(X163=0,0,IF(OR(W163=0,V163=0),"N.M.",IF(ABS(X163/W163)>=10,"N.M.",X163/(-W163)))),IF(X163=0,0,IF(OR(W163=0,V163=0),"N.M.",IF(ABS(X163/W163)>=10,"N.M.",X163/W163)))) -> 0.2727370343 | AA163: 390342.23 | AC163: 1086234.28 | AD163: 337365.55 | AE163: 311775.13 | AF163: 253246.82 | AG163: 261156.69 | AH163: 514991.33 | AI163: 687693.58 | AJ163: 495765.16 | AK163: 267426.59 | AL163: 399474.89 | AM163: 446469.41 | AN163: 589842.22 | AP163: 1575293.84 | AQ163: 603005.29 | AR163: 166161.61 | AS163: 428411.6 | AT163: 203143.94 | AU163: 547423.21 | AV163: 1107461.48 | AW163: 794704.73 | AX163: 314638.01 | AY163: 169132.19 | AZ163: -161271.96 | BA163: 0
A164: %,V5550327 | B164: 5550327 | C164: PJM Transm Loss Credits-LSE | F164: -249617.73 | G164: -174055.51 | H164: =+F164-G164 -> -75562.22 | I164: =IF(G164<0,IF(H164=0,0,IF(OR(G164=0,F164=0),"N.M.",IF(ABS(H164/G164)>=10,"N.M.",H164/(-G164)))),IF(H164=0,0,IF(OR(G164=0,F164=0),"N.M.",IF(ABS(H164/G164)>=10,"N.M.",H164/G164)))) -> -0.4341271356 | K164: -3002185.32 | L164: -1924550.37 | M164: =+K164-L164 -> -1077634.95 | N164: =IF(L164<0,IF(M164=0,0,IF(OR(L164=0,K164=0),"N.M.",IF(ABS(M164/L164)>=10,"N.M.",M164/(-L164)))),IF(M164=0,0,IF(OR(L164=0,K164=0),"N.M.",IF(ABS(M164/L164)>=10,"N.M.",M164/L164)))) -> -0.5599411513 | Q164: -687187.37 | R164: -560385.93 | S164: =+Q164-R164 -> -126801.44 | T164: =IF(R164<0,IF(S164=0,0,IF(OR(R164=0,Q164=0),"N.M.",IF(ABS(S164/R164)>=10,"N.M.",S164/(-R164)))),IF(S164=0,0,IF(OR(R164=0,Q164=0),"N.M.",IF(ABS(S164/R164)>=10,"N.M.",S164/R164)))) -> -0.2262752029 | V164: -3412209.71 | W164: -2261254.8 | X164: =+V164-W164 -> -1150954.91 | Y164: =IF(W164<0,IF(X164=0,0,IF(OR(W164=0,V164=0),"N.M.",IF(ABS(X164/W164)>=10,"N.M.",X164/(-W164)))),IF(X164=0,0,IF(OR(W164=0,V164=0),"N.M.",IF(ABS(X164/W164)>=10,"N.M.",X164/W164)))) -> -0.5089894823 | AA164: -178377.94 | AC164: -348522.83 | AD164: -119399.23 | AE164: -99483 | AF164: -103147.88 | AG164: -189871.04 | AH164: -184463.02 | AI164: -319277.44 | AJ164: -252490.44 | AK164: -133839.98 | AL164: -174055.51 | AM164: -115998.35 | AN164: -294026.04 | AP164: -720312.77 | AQ164: -267904.83 | AR164: -230131.31 | AS164: -212977.36 | AT164: -178636.44 | AU164: -279161.09 | AV164: -425874.15 | AW164: -239304.5 | AX164: -198265.14 | AY164: -249617.73 | AZ164: 244443.64 | BA164: 0
A165: %,V5550328 | B165: 5550328 | C165: PJM FC Penalty Credit | F165: 0 | G165: -5.06 | H165: =+F165-G165 -> 5.06 | I165: =IF(G165<0,IF(H165=0,0,IF(OR(G165=0,F165=0),"N.M.",IF(ABS(H165/G165)>=10,"N.M.",H165/(-G165)))),IF(H165=0,0,IF(OR(G165=0,F165=0),"N.M.",IF(ABS(H165/G165)>=10,"N.M.",H165/G165)))) -> N.M. | K165: -2584.24 | L165: -2883.27 | M165: =+K165-L165 -> 299.03 | N165: =IF(L165<0,IF(M165=0,0,IF(OR(L165=0,K165=0),"N.M.",IF(ABS(M165/L165)>=10,"N.M.",M165/(-L165)))),IF(M165=0,0,IF(OR(L165=0,K165=0),"N.M.",IF(ABS(M165/L165)>=10,"N.M.",M165/L165)))) -> 0.1037121047 | Q165: -327.29 | R165: -430.18 | S165: =+Q165-R165 -> 102.89 | T165: =IF(R165<0,IF(S165=0,0,IF(OR(R165=0,Q165=0),"N.M.",IF(ABS(S165/R165)>=10,"N.M.",S165/(-R165)))),IF(S165=0,0,IF(OR(R165=0,Q165=0),"N.M.",IF(ABS(S165/R165)>=10,"N.M.",S165/R165)))) -> 0.2391789483 | V165: -2618.75 | W165: -3175.28 | X165: =+V165-W165 -> 556.53 | Y165: =IF(W165<0,IF(X165=0,0,IF(OR(W165=0,V165=0),"N.M.",IF(ABS(X165/W165)>=10,"N.M.",X165/(-W165)))),IF(X165=0,0,IF(OR(W165=0,V165=0),"N.M.",IF(ABS(X165/W165)>=10,"N.M.",X165/W165)))) -> 0.1752695825 | AA165: -96.46 | AC165: 0 | AD165: -8.8 | AE165: -1514.08 | AF165: -428.93 | AG165: -519.13 | AH165: 75.58 | AI165: -57.73 | AJ165: -395.26 | AK165: -29.86 | AL165: -5.06 | AM165: -21.7 | AN165: -12.81 | AP165: -934.65 | AQ165: -419.65 | AR165: -242.85 | AS165: -371.77 | AT165: 0 | AU165: -288.03 | AV165: 0 | AW165: 0 | AX165: -327.29 | AY165: 0 | AZ165: 0 | BA165: 0
A166: %,V5560000 | B166: 5560000 | C166: Sys Control & Load Dispatching | F166: 4293.59 | G166: 7474.29 | H166: =+F166-G166 -> -3180.7 | I166: =IF(G166<0,IF(H166=0,0,IF(OR(G166=0,F166=0),"N.M.",IF(ABS(H166/G166)>=10,"N.M.",H166/(-G166)))),IF(H166=0,0,IF(OR(G166=0,F166=0),"N.M.",IF(ABS(H166/G166)>=10,"N.M.",H166/G166)))) -> -0.425552126 | K166: 41875.47 | L166: 56777.09 | M166: =+K166-L166 -> -14901.62 | N166: =IF(L166<0,IF(M166=0,0,IF(OR(L166=0,K166=0),"N.M.",IF(ABS(M166/L166)>=10,"N.M.",M166/(-L166)))),IF(M166=0,0,IF(OR(L166=0,K166=0),"N.M.",IF(ABS(M166/L166)>=10,"N.M.",M166/L166)))) -> -0.2624583261 | Q166: 12555.59 | R166: 20105.57 | S166: =+Q166-R166 -> -7549.98 | T166: =IF(R166<0,IF(S166=0,0,IF(OR(R166=0,Q166=0),"N.M.",IF(ABS(S166/R166)>=10,"N.M.",S166/(-R166)))),IF(S166=0,0,IF(OR(R166=0,Q166=0),"N.M.",IF(ABS(S166/R166)>=10,"N.M.",S166/R166)))) -> -0.3755168344 | V166: 54973.65 | W166: 72468.81 | X166: =+V166-W166 -> -17495.16 | Y166: =IF(W166<0,IF(X166=0,0,IF(OR(W166=0,V166=0),"N.M.",IF(ABS(X166/W166)>=10,"N.M.",X166/(-W166)))),IF(X166=0,0,IF(OR(W166=0,V166=0),"N.M.",IF(ABS(X166/W166)>=10,"N.M.",X166/W166)))) -> -0.2414164107 | AA166: 4177.21 | AC166: 5548.93 | AD166: 5216.77 | AE166: 5759.68 | AF166: 5316.04 | AG166: 4751.27 | AH166: 4278.08 | AI166: 5800.75 | AJ166: 6203.04 | AK166: 6428.24 | AL166: 7474.29 | AM166: 6743.02 | AN166: 6355.16 | AP166: 5359.34 | AQ166: 4293.06 | AR166: 3576.8 | AS166: 3967.26 | AT166: 2782.06 | AU166: 3584.03 | AV166: 5757.33 | AW166: 3313.8 | AX166: 4948.2 | AY166: 4293.59 | AZ166: 0 | BA166: 0
A167: %,V5570000 | B167: 5570000 | C167: Other Expenses | F167: 68234.29 | G167: 58441.39 | H167: =+F167-G167 -> 9792.9 | I167: =IF(G167<0,IF(H167=0,0,IF(OR(G167=0,F167=0),"N.M.",IF(ABS(H167/G167)>=10,"N.M.",H167/(-G167)))),IF(H167=0,0,IF(OR(G167=0,F167=0),"N.M.",IF(ABS(H167/G167)>=10,"N.M.",H167/G167)))) -> 0.167567883 | K167: 655694.9 | L167: 693511.07 | M167: =+K167-L167 -> -37816.17 | N167: =IF(L167<0,IF(M167=0,0,IF(OR(L167=0,K167=0),"N.M.",IF(ABS(M167/L167)>=10,"N.M.",M167/(-L167)))),IF(M167=0,0,IF(OR(L167=0,K167=0),"N.M.",IF(ABS(M167/L167)>=10,"N.M.",M167/L167)))) -> -0.05452857443 | Q167: 196407.32 | R167: 179830.93 | S167: =+Q167-R167 -> 16576.39 | T167: =IF(R167<0,IF(S167=0,0,IF(OR(R167=0,Q167=0),"N.M.",IF(ABS(S167/R167)>=10,"N.M.",S167/(-R167)))),IF(S167=0,0,IF(OR(R167=0,Q167=0),"N.M.",IF(ABS(S167/R167)>=10,"N.M.",S167/R167)))) -> 0.09217763596 | V167: 760493.38 | W167: 801151.79 | X167: =+V167-W167 -> -40658.41 | Y167: =IF(W167<0,IF(X167=0,0,IF(OR(W167=0,V167=0),"N.M.",IF(ABS(X167/W167)>=10,"N.M.",X167/(-W167)))),IF(X167=0,0,IF(OR(W167=0,V167=0),"N.M.",IF(ABS(X167/W167)>=10,"N.M.",X167/W167)))) -> -0.0507499459 | AA167: 45218.71 | AC167: 63905.75 | AD167: 67993.4 | AE167: 59577.44 | AF167: 62928.36 | AG167: 65870.64 | AH167: 137783.09 | AI167: 55621.46 | AJ167: 63735.52 | AK167: 57654.02 | AL167: 58441.39 | AM167: 53459.02 | AN167: 51339.46 | AP167: 65627.83 | AQ167: 64770.11 | AR167: 62054.19 | AS167: 59972.58 | AT167: 62901.43 | AU167: 61090.1 | AV167: 82871.34 | AW167: 64405.17 | AX167: 63767.86 | AY167: 68234.29 | AZ167: 0 | BA167: 0
A168: %,V5570007 | B168: 5570007 | C168: Other Pwr Exp - Wholesale RECs | F168: 0 | G168: 0 | H168: =+F168-G168 -> 0 | I168: =IF(G168<0,IF(H168=0,0,IF(OR(G168=0,F168=0),"N.M.",IF(ABS(H168/G168)>=10,"N.M.",H168/(-G168)))),IF(H168=0,0,IF(OR(G168=0,F168=0),"N.M.",IF(ABS(H168/G168)>=10,"N.M.",H168/G168)))) -> 0 | K168: 243.15 | L168: 245.05 | M168: =+K168-L168 -> -1.9 | N168: =IF(L168<0,IF(M168=0,0,IF(OR(L168=0,K168=0),"N.M.",IF(ABS(M168/L168)>=10,"N.M.",M168/(-L168)))),IF(M168=0,0,IF(OR(L168=0,K168=0),"N.M.",IF(ABS(M168/L168)>=10,"N.M.",M168/L168)))) -> -0.00775351969 | Q168: 0 | R168: 0 | S168: =+Q168-R168 -> 0 | T168: =IF(R168<0,IF(S168=0,0,IF(OR(R168=0,Q168=0),"N.M.",IF(ABS(S168/R168)>=10,"N.M.",S168/(-R168)))),IF(S168=0,0,IF(OR(R168=0,Q168=0),"N.M.",IF(ABS(S168/R168)>=10,"N.M.",S168/R168)))) -> 0 | V168: 243.15 | W168: 245.05 | X168: =+V168-W168 -> -1.9 | Y168: =IF(W168<0,IF(X168=0,0,IF(OR(W168=0,V168=0),"N.M.",IF(ABS(X168/W168)>=10,"N.M.",X168/(-W168)))),IF(X168=0,0,IF(OR(W168=0,V168=0),"N.M.",IF(ABS(X168/W168)>=10,"N.M.",X168/W168)))) -> -0.00775351969 | AA168: 0 | AC168: 245.05 | AD168: 0 | AE168: 0 | AF168: 0 | AG168: 0 | AH168: 0 | AI168: 0 | AJ168: 0 | AK168: 0 | AL168: 0 | AM168: 0 | AN168: 0 | AP168: 243.15 | AQ168: 0 | AR168: 0 | AS168: 0 | AT168: 0 | AU168: 0 | AV168: 0 | AW168: 0 | AX168: 0 | AY168: 0 | AZ168: 0 | BA168: 0
A169: %,V5570009 | B169: 5570009 | C169: Other Pwr Exp- REC's - RETAIL | F169: 0 | G169: 0 | H169: =+F169-G169 -> 0 | I169: =IF(G169<0,IF(H169=0,0,IF(OR(G169=0,F169=0),"N.M.",IF(ABS(H169/G169)>=10,"N.M.",H169/(-G169)))),IF(H169=0,0,IF(OR(G169=0,F169=0),"N.M.",IF(ABS(H169/G169)>=10,"N.M.",H169/G169)))) -> 0 | K169: 0 | L169: 446.4 | M169: =+K169-L169 -> -446.4 | N169: =IF(L169<0,IF(M169=0,0,IF(OR(L169=0,K169=0),"N.M.",IF(ABS(M169/L169)>=10,"N.M.",M169/(-L169)))),IF(M169=0,0,IF(OR(L169=0,K169=0),"N.M.",IF(ABS(M169/L169)>=10,"N.M.",M169/L169)))) -> N.M. | Q169: 0 | R169: 0 | S169: =+Q169-R169 -> 0 | T169: =IF(R169<0,IF(S169=0,0,IF(OR(R169=0,Q169=0),"N.M.",IF(ABS(S169/R169)>=10,"N.M.",S169/(-R169)))),IF(S169=0,0,IF(OR(R169=0,Q169=0),"N.M.",IF(ABS(S169/R169)>=10,"N.M.",S169/R169)))) -> 0 | V169: 0 | W169: 446.4 | X169: =+V169-W169 -> -446.4 | Y169: =IF(W169<0,IF(X169=0,0,IF(OR(W169=0,V169=0),"N.M.",IF(ABS(X169/W169)>=10,"N.M.",X169/(-W169)))),IF(X169=0,0,IF(OR(W169=0,V169=0),"N.M.",IF(ABS(X169/W169)>=10,"N.M.",X169/W169)))) -> N.M. | AA169: 0 | AC169: 0 | AD169: 0 | AE169: 0 | AF169: 0 | AG169: 446.4 | AH169: 0 | AI169: 0 | AJ169: 0 | AK169: 0 | AL169: 0 | AM169: 0 | AN169: 0 | AP169: 0 | AQ169: 0 | AR169: 0 | AS169: 0 | AT169: 0 | AU169: 0 | AV169: 0 | AW169: 0 | AX169: 0 | AY169: 0 | AZ169: 0 | BA169: 0
A170: %,V5570010 | B170: 5570010 | C170: OH Auction Exp - Incremental | F170: 0 | G170: 0 | H170: =+F170-G170 -> 0 | I170: =IF(G170<0,IF(H170=0,0,IF(OR(G170=0,F170=0),"N.M.",IF(ABS(H170/G170)>=10,"N.M.",H170/(-G170)))),IF(H170=0,0,IF(OR(G170=0,F170=0),"N.M.",IF(ABS(H170/G170)>=10,"N.M.",H170/G170)))) -> 0 | K170: 0 | L170: 5.79 | M170: =+K170-L170 -> -5.79 | N170: =IF(L170<0,IF(M170=0,0,IF(OR(L170=0,K170=0),"N.M.",IF(ABS(M170/L170)>=10,"N.M.",M170/(-L170)))),IF(M170=0,0,IF(OR(L170=0,K170=0),"N.M.",IF(ABS(M170/L170)>=10,"N.M.",M170/L170)))) -> N.M. | Q170: 0 | R170: 0 | S170: =+Q170-R170 -> 0 | T170: =IF(R170<0,IF(S170=0,0,IF(OR(R170=0,Q170=0),"N.M.",IF(ABS(S170/R170)>=10,"N.M.",S170/(-R170)))),IF(S170=0,0,IF(OR(R170=0,Q170=0),"N.M.",IF(ABS(S170/R170)>=10,"N.M.",S170/R170)))) -> 0 | V170: 0 | W170: 5.94 | X170: =+V170-W170 -> -5.94 | Y170: =IF(W170<0,IF(X170=0,0,IF(OR(W170=0,V170=0),"N.M.",IF(ABS(X170/W170)>=10,"N.M.",X170/(-W170)))),IF(X170=0,0,IF(OR(W170=0,V170=0),"N.M.",IF(ABS(X170/W170)>=10,"N.M.",X170/W170)))) -> N.M. | AA170: 0.15 | AC170: 0 | AD170: 0 | AE170: 0 | AF170: 0 | AG170: 0.11 | AH170: 5.68 | AI170: 0 | AJ170: 0 | AK170: 0 | AL170: 0 | AM170: 0 | AN170: 0 | AP170: 0 | AQ170: 0 | AR170: 0 | AS170: 0 | AT170: 0 | AU170: 0 | AV170: 0 | AW170: 0 | AX170: 0 | AY170: 0 | AZ170: 0 | BA170: 0
A171: %,V5570025 | B171: 5570025 | C171: MATL-SAFETY | F171: 0 | G171: 0 | H171: =+F171-G171 -> 0 | I171: =IF(G171<0,IF(H171=0,0,IF(OR(G171=0,F171=0),"N.M.",IF(ABS(H171/G171)>=10,"N.M.",H171/(-G171)))),IF(H171=0,0,IF(OR(G171=0,F171=0),"N.M.",IF(ABS(H171/G171)>=10,"N.M.",H171/G171)))) -> 0 | K171: 0.93 | L171: 0 | M171: =+K171-L171 -> 0.93 | N171: =IF(L171<0,IF(M171=0,0,IF(OR(L171=0,K171=0),"N.M.",IF(ABS(M171/L171)>=10,"N.M.",M171/(-L171)))),IF(M171=0,0,IF(OR(L171=0,K171=0),"N.M.",IF(ABS(M171/L171)>=10,"N.M.",M171/L171)))) -> N.M. | Q171: 0 | R171: 0 | S171: =+Q171-R171 -> 0 | T171: =IF(R171<0,IF(S171=0,0,IF(OR(R171=0,Q171=0),"N.M.",IF(ABS(S171/R171)>=10,"N.M.",S171/(-R171)))),IF(S171=0,0,IF(OR(R171=0,Q171=0),"N.M.",IF(ABS(S171/R171)>=10,"N.M.",S171/R171)))) -> 0 | V171: 0.93 | W171: 0 | X171: =+V171-W171 -> 0.93 | Y171: =IF(W171<0,IF(X171=0,0,IF(OR(W171=0,V171=0),"N.M.",IF(ABS(X171/W171)>=10,"N.M.",X171/(-W171)))),IF(X171=0,0,IF(OR(W171=0,V171=0),"N.M.",IF(ABS(X171/W171)>=10,"N.M.",X171/W171)))) -> N.M. | AA171: 0 | AC171: 0 | AD171: 0 | AE171: 0 | AF171: 0 | AG171: 0 | AH171: 0 | AI171: 0 | AJ171: 0 | AK171: 0 | AL171: 0 | AM171: 0 | AN171: 0 | AP171: 0 | AQ171: 0 | AR171: 0 | AS171: 0.93 | AT171: 0 | AU171: 0 | AV171: 0 | AW171: 0 | AX171: 0 | AY171: 0 | AZ171: 0 | BA171: 0
A172: %,FACCOUNT,TGL_FERC_ACCT,XDYYNNY01,N555-557 | C172: Purchased Power | F172: 10408938.99 | G172: 10475759.47 | H172: =+F172-G172 -> -66820.48 | I172: =IF(G172<0,IF(H172=0,0,IF(OR(G172=0,F172=0),"N.M.",IF(ABS(H172/G172)>=10,"N.M.",H172/(-G172)))),IF(H172=0,0,IF(OR(G172=0,F172=0),"N.M.",IF(ABS(H172/G172)>=10,"N.M.",H172/G172)))) -> -0.00637858097 | K172: 121035664.8 | L172: 90774280.82 | M172: =+K172-L172 -> 30261384.01 | N172: =IF(L172<0,IF(M172=0,0,IF(OR(L172=0,K172=0),"N.M.",IF(ABS(M172/L172)>=10,"N.M.",M172/(-L172)))),IF(M172=0,0,IF(OR(L172=0,K172=0),"N.M.",IF(ABS(M172/L172)>=10,"N.M.",M172/L172)))) -> 0.3333695815 | Q172: 28188648.96 | R172: 31078878.19 | S172: =+Q172-R172 -> -2890229.23 | T172: =IF(R172<0,IF(S172=0,0,IF(OR(R172=0,Q172=0),"N.M.",IF(ABS(S172/R172)>=10,"N.M.",S172/(-R172)))),IF(S172=0,0,IF(OR(R172=0,Q172=0),"N.M.",IF(ABS(S172/R172)>=10,"N.M.",S172/R172)))) -> -0.09299657511 | V172: 138729497.3 | W172: 115071360.6 | X172: =+V172-W172 -> 23658136.62 | Y172: =IF(W172<0,IF(X172=0,0,IF(OR(W172=0,V172=0),"N.M.",IF(ABS(X172/W172)>=10,"N.M.",X172/(-W172)))),IF(X172=0,0,IF(OR(W172=0,V172=0),"N.M.",IF(ABS(X172/W172)>=10,"N.M.",X172/W172)))) -> 0.2055953496 | AA172: 12816603.4 | AC172: 18116796.79 | AD172: 7671283.22 | AE172: 3566546.15 | AF172: 7696902.42 | AG172: 8654861.39 | AH172: 6811038.74 | AI172: 7177973.92 | AJ172: 7023463.97 | AK172: 13579654.75 | AL172: 10475759.47 | AM172: 9018136.71 | AN172: 8675695.72 | AP172: 17839270.72 | AQ172: 15826263.44 | AR172: 15881602.98 | AS172: 9230468.11 | AT172: 11810494.14 | AU172: 12215178.77 | AV172: 10043737.71 | AW172: 6195930.2 | AX172: 11583779.77 | AY172: 10408938.99 | AZ172: 350160147.9 | BA172: 0
A174: %,V5581000 | B174: 5581000 | C174: Oper Supervision & Engineering | F174: 122.28 | G174: 0 | H174: =+F174-G174 -> 122.28 | I174: =IF(G174<0,IF(H174=0,0,IF(OR(G174=0,F174=0),"N.M.",IF(ABS(H174/G174)>=10,"N.M.",H174/(-G174)))),IF(H174=0,0,IF(OR(G174=0,F174=0),"N.M.",IF(ABS(H174/G174)>=10,"N.M.",H174/G174)))) -> N.M. | K174: 993.55 | L174: 0 | M174: =+K174-L174 -> 993.55 | N174: =IF(L174<0,IF(M174=0,0,IF(OR(L174=0,K174=0),"N.M.",IF(ABS(M174/L174)>=10,"N.M.",M174/(-L174)))),IF(M174=0,0,IF(OR(L174=0,K174=0),"N.M.",IF(ABS(M174/L174)>=10,"N.M.",M174/L174)))) -> N.M. | Q174: 525.55 | R174: 0 | S174: =+Q174-R174 -> 525.55 | V174: 993.55 | W174: 0 | X174: =+V174-W174 -> 993.55 | Y174: =IF(W174<0,IF(X174=0,0,IF(OR(W174=0,V174=0),"N.M.",IF(ABS(X174/W174)>=10,"N.M.",X174/(-W174)))),IF(X174=0,0,IF(OR(W174=0,V174=0),"N.M.",IF(ABS(X174/W174)>=10,"N.M.",X174/W174)))) -> N.M. | AA174: 0 | AC174: 0 | AD174: 0 | AE174: 0 | AF174: 0 | AG174: 0 | AH174: 0 | AI174: 0 | AJ174: 0 | AK174: 0 | AL174: 0 | AM174: 0 | AN174: 0 | AP174: 0 | AQ174: 0 | AR174: 0 | AS174: 25.32 | AT174: 120.97 | AU174: 78.59 | AV174: 243.12 | AW174: 249.48 | AX174: 153.79 | AY174: 122.28 | AZ174: 0 | BA174: 0
A175: %,V5581300 | B175: 5581300 | C175: Oper Supervision & Engineering | F175: 751.76 | G175: 0 | H175: =+F175-G175 -> 751.76 | I175: =IF(G175<0,IF(H175=0,0,IF(OR(G175=0,F175=0),"N.M.",IF(ABS(H175/G175)>=10,"N.M.",H175/(-G175)))),IF(H175=0,0,IF(OR(G175=0,F175=0),"N.M.",IF(ABS(H175/G175)>=10,"N.M.",H175/G175)))) -> N.M. | K175: 6747.3 | L175: 0 | M175: =+K175-L175 -> 6747.3 | N175: =IF(L175<0,IF(M175=0,0,IF(OR(L175=0,K175=0),"N.M.",IF(ABS(M175/L175)>=10,"N.M.",M175/(-L175)))),IF(M175=0,0,IF(OR(L175=0,K175=0),"N.M.",IF(ABS(M175/L175)>=10,"N.M.",M175/L175)))) -> N.M. | Q175: 2000.19 | R175: 0 | S175: =+Q175-R175 -> 2000.19 | V175: 6747.3 | W175: 0 | X175: =+V175-W175 -> 6747.3 | Y175: =IF(W175<0,IF(X175=0,0,IF(OR(W175=0,V175=0),"N.M.",IF(ABS(X175/W175)>=10,"N.M.",X175/(-W175)))),IF(X175=0,0,IF(OR(W175=0,V175=0),"N.M.",IF(ABS(X175/W175)>=10,"N.M.",X175/W175)))) -> N.M. | AA175: 0 | AC175: 0 | AD175: 0 | AE175: 0 | AF175: 0 | AG175: 0 | AH175: 0 | AI175: 0 | AJ175: 0 | AK175: 0 | AL175: 0 | AM175: 0 | AN175: 0 | AP175: 0 | AQ175: 154.41 | AR175: 217.33 | AS175: -136.13 | AT175: 2099.44 | AU175: 1636.25 | AV175: 775.81 | AW175: 616.48 | AX175: 631.95 | AY175: 751.76 | AZ175: 0 | BA175: 0
A176: %,V5581400 | B176: 5581400 | C176: Wind Turb Gen&Oth Plnt Op-Mjr | F176: -645.16 | G176: 0 | H176: =+F176-G176 -> -645.16 | I176: =IF(G176<0,IF(H176=0,0,IF(OR(G176=0,F176=0),"N.M.",IF(ABS(H176/G176)>=10,"N.M.",H176/(-G176)))),IF(H176=0,0,IF(OR(G176=0,F176=0),"N.M.",IF(ABS(H176/G176)>=10,"N.M.",H176/G176)))) -> N.M. | K176: 429.28 | L176: 0 | M176: =+K176-L176 -> 429.28 | N176: =IF(L176<0,IF(M176=0,0,IF(OR(L176=0,K176=0),"N.M.",IF(ABS(M176/L176)>=10,"N.M.",M176/(-L176)))),IF(M176=0,0,IF(OR(L176=0,K176=0),"N.M.",IF(ABS(M176/L176)>=10,"N.M.",M176/L176)))) -> N.M. | Q176: -166.74 | R176: 0 | S176: =+Q176-R176 -> -166.74 | V176: 429.28 | W176: 0 | X176: =+V176-W176 -> 429.28 | Y176: =IF(W176<0,IF(X176=0,0,IF(OR(W176=0,V176=0),"N.M.",IF(ABS(X176/W176)>=10,"N.M.",X176/(-W176)))),IF(X176=0,0,IF(OR(W176=0,V176=0),"N.M.",IF(ABS(X176/W176)>=10,"N.M.",X176/W176)))) -> N.M. | AA176: 0 | AC176: 0 | AD176: 0 | AE176: 0 | AF176: 0 | AG176: 0 | AH176: 0 | AI176: 0 | AJ176: 0 | AK176: 0 | AL176: 0 | AM176: 0 | AN176: 0 | AP176: 412.87 | AQ176: -14.26 | AR176: 633.47 | AS176: 167.23 | AT176: -788.53 | AU176: 103.28 | AV176: 81.96 | AW176: 171.49 | AX176: 306.93 | AY176: -645.16 | AZ176: 0 | BA176: 0
A177: %,V5581601 | B177: 5581601 | C177: Wind - Variable Production Exp | F177: -62.92 | G177: 0 | H177: =+F177-G177 -> -62.92 | I177: =IF(G177<0,IF(H177=0,0,IF(OR(G177=0,F177=0),"N.M.",IF(ABS(H177/G177)>=10,"N.M.",H177/(-G177)))),IF(H177=0,0,IF(OR(G177=0,F177=0),"N.M.",IF(ABS(H177/G177)>=10,"N.M.",H177/G177)))) -> N.M. | K177: 46.27 | L177: 0 | M177: =+K177-L177 -> 46.27 | N177: =IF(L177<0,IF(M177=0,0,IF(OR(L177=0,K177=0),"N.M.",IF(ABS(M177/L177)>=10,"N.M.",M177/(-L177)))),IF(M177=0,0,IF(OR(L177=0,K177=0),"N.M.",IF(ABS(M177/L177)>=10,"N.M.",M177/L177)))) -> N.M. | Q177: -60.41 | R177: 0 | S177: =+Q177-R177 -> -60.41 | V177: 46.27 | W177: 0 | X177: =+V177-W177 -> 46.27 | Y177: =IF(W177<0,IF(X177=0,0,IF(OR(W177=0,V177=0),"N.M.",IF(ABS(X177/W177)>=10,"N.M.",X177/(-W177)))),IF(X177=0,0,IF(OR(W177=0,V177=0),"N.M.",IF(ABS(X177/W177)>=10,"N.M.",X177/W177)))) -> N.M. | AA177: 0 | AC177: 0 | AD177: 0 | AE177: 0 | AF177: 0 | AG177: 0 | AH177: 0 | AI177: 0 | AJ177: 0 | AK177: 0 | AL177: 0 | AM177: 0 | AN177: 0 | AP177: 0 | AQ177: 0 | AR177: 0 | AS177: 0 | AT177: 0 | AU177: 53.61 | AV177: 53.07 | AW177: -9.42 | AX177: 11.93 | AY177: -62.92 | AZ177: 0 | BA177: 0
A178: %,V5582000 | B178: 5582000 | C178: Solar Panel Gen&Oth Plt Op-Mjr | F178: 0 | G178: 0 | H178: =+F178-G178 -> 0 | I178: =IF(G178<0,IF(H178=0,0,IF(OR(G178=0,F178=0),"N.M.",IF(ABS(H178/G178)>=10,"N.M.",H178/(-G178)))),IF(H178=0,0,IF(OR(G178=0,F178=0),"N.M.",IF(ABS(H178/G178)>=10,"N.M.",H178/G178)))) -> 0 | K178: 2.07 | L178: 0 | M178: =+K178-L178 -> 2.07 | N178: =IF(L178<0,IF(M178=0,0,IF(OR(L178=0,K178=0),"N.M.",IF(ABS(M178/L178)>=10,"N.M.",M178/(-L178)))),IF(M178=0,0,IF(OR(L178=0,K178=0),"N.M.",IF(ABS(M178/L178)>=10,"N.M.",M178/L178)))) -> N.M. | Q178: 0 | R178: 0 | S178: =+Q178-R178 -> 0 | V178: 2.07 | W178: 0 | X178: =+V178-W178 -> 2.07 | Y178: =IF(W178<0,IF(X178=0,0,IF(OR(W178=0,V178=0),"N.M.",IF(ABS(X178/W178)>=10,"N.M.",X178/(-W178)))),IF(X178=0,0,IF(OR(W178=0,V178=0),"N.M.",IF(ABS(X178/W178)>=10,"N.M.",X178/W178)))) -> N.M. | AA178: 0 | AC178: 0 | AD178: 0 | AE178: 0 | AF178: 0 | AG178: 0 | AH178: 0 | AI178: 0 | AJ178: 0 | AK178: 0 | AL178: 0 | AM178: 0 | AN178: 0 | AP178: 0 | AQ178: 2.07 | AR178: 8.32 | AS178: -8.32 | AT178: 0 | AU178: 0 | AV178: 0 | AW178: 0 | AX178: 0 | AY178: 0 | AZ178: 0 | BA178: 0
A179: %,FACCOUNT,TGL_FERC_ACCT,XDYYNNY01,N5580 | C179: Solar and Wind Operations Expenses | F179: 165.96 | G179: 0 | H179: =+F179-G179 -> 165.96 | I179: =IF(G179<0,IF(H179=0,0,IF(OR(G179=0,F179=0),"N.M.",IF(ABS(H179/G179)>=10,"N.M.",H179/(-G179)))),IF(H179=0,0,IF(OR(G179=0,F179=0),"N.M.",IF(ABS(H179/G179)>=10,"N.M.",H179/G179)))) -> N.M. | K179: 8218.47 | L179: 0 | M179: =+K179-L179 -> 8218.47 | N179: =IF(L179<0,IF(M179=0,0,IF(OR(L179=0,K179=0),"N.M.",IF(ABS(M179/L179)>=10,"N.M.",M179/(-L179)))),IF(M179=0,0,IF(OR(L179=0,K179=0),"N.M.",IF(ABS(M179/L179)>=10,"N.M.",M179/L179)))) -> N.M. | Q179: 2298.59 | R179: 0 | S179: =+Q179-R179 -> 2298.59 | V179: 8218.47 | W179: 0 | X179: =+V179-W179 -> 8218.47 | Y179: =IF(W179<0,IF(X179=0,0,IF(OR(W179=0,V179=0),"N.M.",IF(ABS(X179/W179)>=10,"N.M.",X179/(-W179)))),IF(X179=0,0,IF(OR(W179=0,V179=0),"N.M.",IF(ABS(X179/W179)>=10,"N.M.",X179/W179)))) -> N.M. | AA179: 0 | AC179: 0 | AD179: 0 | AE179: 0 | AF179: 0 | AG179: 0 | AH179: 0 | AI179: 0 | AJ179: 0 | AK179: 0 | AL179: 0 | AM179: 0 | AN179: 0 | AP179: 412.87 | AQ179: 142.22 | AR179: 859.12 | AS179: 48.1 | AT179: 1431.88 | AU179: 1871.73 | AV179: 1153.96 | AW179: 1028.03 | AX179: 1104.6 | AY179: 165.96 | AZ179: 0 | BA179: 0
A181: %,FACCOUNT,TGL_FERC_ACCT,XDYYNNY01,N5590 | C181: Other Renewables Operations Expense | F181: 0 | G181: 0 | H181: =+F181-G181 -> 0 | I181: =IF(G181<0,IF(H181=0,0,IF(OR(G181=0,F181=0),"N.M.",IF(ABS(H181/G181)>=10,"N.M.",H181/(-G181)))),IF(H181=0,0,IF(OR(G181=0,F181=0),"N.M.",IF(ABS(H181/G181)>=10,"N.M.",H181/G181)))) -> 0 | K181: 0 | L181: 0 | M181: =+K181-L181 -> 0 | N181: =IF(L181<0,IF(M181=0,0,IF(OR(L181=0,K181=0),"N.M.",IF(ABS(M181/L181)>=10,"N.M.",M181/(-L181)))),IF(M181=0,0,IF(OR(L181=0,K181=0),"N.M.",IF(ABS(M181/L181)>=10,"N.M.",M181/L181)))) -> 0 | Q181: 0 | R181: 0 | S181: =+Q181-R181 -> 0 | V181: 0 | W181: 0 | X181: =+V181-W181 -> 0 | Y181: =IF(W181<0,IF(X181=0,0,IF(OR(W181=0,V181=0),"N.M.",IF(ABS(X181/W181)>=10,"N.M.",X181/(-W181)))),IF(X181=0,0,IF(OR(W181=0,V181=0),"N.M.",IF(ABS(X181/W181)>=10,"N.M.",X181/W181)))) -> 0 | AA181: 0 | AC181: 0 | AD181: 0 | AE181: 0 | AF181: 0 | AG181: 0 | AH181: 0 | AI181: 0 | AJ181: 0 | AK181: 0 | AL181: 0 | AM181: 0 | AN181: 0 | AP181: 0 | AQ181: 0 | AR181: 0 | AS181: 0 | AT181: 0 | AU181: 0 | AV181: 0 | AW181: 0 | AX181: 0 | AY181: 0 | AZ181: 0 | BA181: 0
A183: %,FACCOUNT,TGL_FERC_ACCT,XDYYNNY01,N401_OPERATION | C183: 401 Operation Expense | F183: 0 | G183: 0 | H183: =+F183-G183 -> 0 | I183: =IF(G183<0,IF(H183=0,0,IF(OR(G183=0,F183=0),"N.M.",IF(ABS(H183/G183)>=10,"N.M.",H183/(-G183)))),IF(H183=0,0,IF(OR(G183=0,F183=0),"N.M.",IF(ABS(H183/G183)>=10,"N.M.",H183/G183)))) -> 0 | K183: 0 | L183: 0 | M183: =+K183-L183 -> 0 | N183: =IF(L183<0,IF(M183=0,0,IF(OR(L183=0,K183=0),"N.M.",IF(ABS(M183/L183)>=10,"N.M.",M183/(-L183)))),IF(M183=0,0,IF(OR(L183=0,K183=0),"N.M.",IF(ABS(M183/L183)>=10,"N.M.",M183/L183)))) -> 0 | Q183: 0 | R183: 0 | S183: =+Q183-R183 -> 0 | T183: =IF(R183<0,IF(S183=0,0,IF(OR(R183=0,Q183=0),"N.M.",IF(ABS(S183/R183)>=10,"N.M.",S183/(-R183)))),IF(S183=0,0,IF(OR(R183=0,Q183=0),"N.M.",IF(ABS(S183/R183)>=10,"N.M.",S183/R183)))) -> 0 | V183: 0 | W183: 0 | X183: =+V183-W183 -> 0 | Y183: =IF(W183<0,IF(X183=0,0,IF(OR(W183=0,V183=0),"N.M.",IF(ABS(X183/W183)>=10,"N.M.",X183/(-W183)))),IF(X183=0,0,IF(OR(W183=0,V183=0),"N.M.",IF(ABS(X183/W183)>=10,"N.M.",X183/W183)))) -> 0 | AA183: 0 | AC183: 0 | AD183: 0 | AE183: 0 | AF183: 0 | AG183: 0 | AH183: 0 | AI183: 0 | AJ183: 0 | AK183: 0 | AL183: 0 | AM183: 0 | AN183: 0 | AP183: 0 | AQ183: 0 | AR183: 0 | AS183: 0 | AT183: 0 | AU183: 0 | AV183: 0 | AW183: 0 | AX183: 0 | AY183: 0 | AZ183: 0 | BA183: 0
A185: %,V5600000 | B185: 5600000 | C185: Oper Supervision & Engineering | F185: 201931.02 | G185: 147084.64 | H185: =+F185-G185 -> 54846.38 | I185: =IF(G185<0,IF(H185=0,0,IF(OR(G185=0,F185=0),"N.M.",IF(ABS(H185/G185)>=10,"N.M.",H185/(-G185)))),IF(H185=0,0,IF(OR(G185=0,F185=0),"N.M.",IF(ABS(H185/G185)>=10,"N.M.",H185/G185)))) -> 0.3728899224 | K185: 1995612.31 | L185: 1843458.1 | M185: =+K185-L185 -> 152154.21 | N185: =IF(L185<0,IF(M185=0,0,IF(OR(L185=0,K185=0),"N.M.",IF(ABS(M185/L185)>=10,"N.M.",M185/(-L185)))),IF(M185=0,0,IF(OR(L185=0,K185=0),"N.M.",IF(ABS(M185/L185)>=10,"N.M.",M185/L185)))) -> 0.08253738449 | Q185: 618167.07 | R185: 574178.79 | S185: =+Q185-R185 -> 43988.28 | T185: =IF(R185<0,IF(S185=0,0,IF(OR(R185=0,Q185=0),"N.M.",IF(ABS(S185/R185)>=10,"N.M.",S185/(-R185)))),IF(S185=0,0,IF(OR(R185=0,Q185=0),"N.M.",IF(ABS(S185/R185)>=10,"N.M.",S185/R185)))) -> 0.07661077136 | V185: 2216926.34 | W185: 2142165.53 | X185: =+V185-W185 -> 74760.81 | Y185: =IF(W185<0,IF(X185=0,0,IF(OR(W185=0,V185=0),"N.M.",IF(ABS(X185/W185)>=10,"N.M.",X185/(-W185)))),IF(X185=0,0,IF(OR(W185=0,V185=0),"N.M.",IF(ABS(X185/W185)>=10,"N.M.",X185/W185)))) -> 0.03489964195 | AA185: 168995.85 | AC185: 226312.48 | AD185: 177789.39 | AE185: 192333.2 | AF185: 173195.5 | AG185: 184209.88 | AH185: 137056.33 | AI185: 178382.53 | AJ185: 212445.31 | AK185: 214648.84 | AL185: 147084.64 | AM185: 125215.99 | AN185: 96098.04 | AP185: 228555.82 | AQ185: 190482.01 | AR185: 174554.21 | AS185: 185380.88 | AT185: 127650.46 | AU185: 212175.87 | AV185: 258645.99 | AW185: 189783.07 | AX185: 226452.98 | AY185: 201931.02 | AZ185: 0 | BA185: 0
A186: %,V5612000 | B186: 5612000 | C186: Load Dispatch-Mntr&Op TransSys | F186: 63095.82 | G186: 32035.74 | H186: =+F186-G186 -> 31060.08 | I186: =IF(G186<0,IF(H186=0,0,IF(OR(G186=0,F186=0),"N.M.",IF(ABS(H186/G186)>=10,"N.M.",H186/(-G186)))),IF(H186=0,0,IF(OR(G186=0,F186=0),"N.M.",IF(ABS(H186/G186)>=10,"N.M.",H186/G186)))) -> 0.9695446398 | K186: 558261.01 | L186: 325103.88 | M186: =+K186-L186 -> 233157.13 | N186: =IF(L186<0,IF(M186=0,0,IF(OR(L186=0,K186=0),"N.M.",IF(ABS(M186/L186)>=10,"N.M.",M186/(-L186)))),IF(M186=0,0,IF(OR(L186=0,K186=0),"N.M.",IF(ABS(M186/L186)>=10,"N.M.",M186/L186)))) -> 0.7171773219 | Q186: 179326.78 | R186: 102059.17 | S186: =+Q186-R186 -> 77267.61 | T186: =IF(R186<0,IF(S186=0,0,IF(OR(R186=0,Q186=0),"N.M.",IF(ABS(S186/R186)>=10,"N.M.",S186/(-R186)))),IF(S186=0,0,IF(OR(R186=0,Q186=0),"N.M.",IF(ABS(S186/R186)>=10,"N.M.",S186/R186)))) -> 0.7570864039 | V186: 619242.38 | W186: 366845.01 | X186: =+V186-W186 -> 252397.37 | Y186: =IF(W186<0,IF(X186=0,0,IF(OR(W186=0,V186=0),"N.M.",IF(ABS(X186/W186)>=10,"N.M.",X186/(-W186)))),IF(X186=0,0,IF(OR(W186=0,V186=0),"N.M.",IF(ABS(X186/W186)>=10,"N.M.",X186/W186)))) -> 0.6880218161 | AA186: 18683.85 | AC186: 33127.11 | AD186: 33085.61 | AE186: 31198.84 | AF186: 30760.07 | AG186: 30590.93 | AH186: 30121.74 | AI186: 34160.41 | AJ186: 36512.02 | AK186: 33511.41 | AL186: 32035.74 | AM186: 28185.56 | AN186: 32795.81 | AP186: 39358.12 | AQ186: 35577.94 | AR186: 33249.93 | AS186: 103888.42 | AT186: 48131.09 | AU186: 54208.05 | AV186: 64520.68 | AW186: 55995.37 | AX186: 60235.59 | AY186: 63095.82 | AZ186: 0 | BA186: 0
A187: %,V5613000 | B187: 5613000 | C187: Load Dispatch-Trans Srvc&Sched | F187: -105.54 | G187: 0 | H187: =+F187-G187 -> -105.54 | I187: =IF(G187<0,IF(H187=0,0,IF(OR(G187=0,F187=0),"N.M.",IF(ABS(H187/G187)>=10,"N.M.",H187/(-G187)))),IF(H187=0,0,IF(OR(G187=0,F187=0),"N.M.",IF(ABS(H187/G187)>=10,"N.M.",H187/G187)))) -> N.M. | K187: 141.44 | L187: 0 | M187: =+K187-L187 -> 141.44 | N187: =IF(L187<0,IF(M187=0,0,IF(OR(L187=0,K187=0),"N.M.",IF(ABS(M187/L187)>=10,"N.M.",M187/(-L187)))),IF(M187=0,0,IF(OR(L187=0,K187=0),"N.M.",IF(ABS(M187/L187)>=10,"N.M.",M187/L187)))) -> N.M. | Q187: 36.75 | R187: 0 | S187: =+Q187-R187 -> 36.75 | T187: =IF(R187<0,IF(S187=0,0,IF(OR(R187=0,Q187=0),"N.M.",IF(ABS(S187/R187)>=10,"N.M.",S187/(-R187)))),IF(S187=0,0,IF(OR(R187=0,Q187=0),"N.M.",IF(ABS(S187/R187)>=10,"N.M.",S187/R187)))) -> N.M. | V187: 271.49 | W187: 0 | X187: =+V187-W187 -> 271.49 | Y187: =IF(W187<0,IF(X187=0,0,IF(OR(W187=0,V187=0),"N.M.",IF(ABS(X187/W187)>=10,"N.M.",X187/(-W187)))),IF(X187=0,0,IF(OR(W187=0,V187=0),"N.M.",IF(ABS(X187/W187)>=10,"N.M.",X187/W187)))) -> N.M. | AA187: 0 | AC187: 0 | AD187: 0 | AE187: 0 | AF187: 0 | AG187: 0 | AH187: 0 | AI187: 0 | AJ187: 0 | AK187: 0 | AL187: 0 | AM187: 0 | AN187: 130.05 | AP187: 192.28 | AQ187: 52.16 | AR187: -70.1 | AS187: -66.9 | AT187: -162.4 | AU187: 80.16 | AV187: 79.49 | AW187: 60.99 | AX187: 81.3 | AY187: -105.54 | AZ187: 0 | BA187: 0
A188: %,V5614000 | B188: 5614000 | C188: PJM Admin-SSC&DS-OSS | F188: 9864.81 | G188: 4624.46 | H188: =+F188-G188 -> 5240.35 | I188: =IF(G188<0,IF(H188=0,0,IF(OR(G188=0,F188=0),"N.M.",IF(ABS(H188/G188)>=10,"N.M.",H188/(-G188)))),IF(H188=0,0,IF(OR(G188=0,F188=0),"N.M.",IF(ABS(H188/G188)>=10,"N.M.",H188/G188)))) -> 1.133180955 | K188: 80783.65 | L188: 62968.96 | M188: =+K188-L188 -> 17814.69 | N188: =IF(L188<0,IF(M188=0,0,IF(OR(L188=0,K188=0),"N.M.",IF(ABS(M188/L188)>=10,"N.M.",M188/(-L188)))),IF(M188=0,0,IF(OR(L188=0,K188=0),"N.M.",IF(ABS(M188/L188)>=10,"N.M.",M188/L188)))) -> 0.2829122476 | Q188: 27956.17 | R188: 16973.48 | S188: =+Q188-R188 -> 10982.69 | T188: =IF(R188<0,IF(S188=0,0,IF(OR(R188=0,Q188=0),"N.M.",IF(ABS(S188/R188)>=10,"N.M.",S188/(-R188)))),IF(S188=0,0,IF(OR(R188=0,Q188=0),"N.M.",IF(ABS(S188/R188)>=10,"N.M.",S188/R188)))) -> 0.6470499862 | V188: 95075.19 | W188: 71107.81 | X188: =+V188-W188 -> 23967.38 | Y188: =IF(W188<0,IF(X188=0,0,IF(OR(W188=0,V188=0),"N.M.",IF(ABS(X188/W188)>=10,"N.M.",X188/(-W188)))),IF(X188=0,0,IF(OR(W188=0,V188=0),"N.M.",IF(ABS(X188/W188)>=10,"N.M.",X188/W188)))) -> 0.3370569281 | AA188: 2485.27 | AC188: 714.26 | AD188: 9941.76 | AE188: 2472.86 | AF188: 8597.01 | AG188: 4271.61 | AH188: 13322.58 | AI188: 6675.4 | AJ188: 9127.24 | AK188: 3221.78 | AL188: 4624.46 | AM188: 4952.04 | AN188: 9339.5 | AP188: 6581.16 | AQ188: 7185.07 | AR188: 3995.46 | AS188: 7351.26 | AT188: 7077.3 | AU188: 12356.26 | AV188: 8280.97 | AW188: 12482.78 | AX188: 5608.58 | AY188: 9864.81 | AZ188: -10104.18 | BA188: 0
A189: %,V5614001 | B189: 5614001 | C189: PJM Admin-SSC&DS-Internal | F189: 86514.87 | G189: 105296.06 | H189: =+F189-G189 -> -18781.19 | I189: =IF(G189<0,IF(H189=0,0,IF(OR(G189=0,F189=0),"N.M.",IF(ABS(H189/G189)>=10,"N.M.",H189/(-G189)))),IF(H189=0,0,IF(OR(G189=0,F189=0),"N.M.",IF(ABS(H189/G189)>=10,"N.M.",H189/G189)))) -> -0.1783655533 | K189: 1080768.29 | L189: 1087969.74 | M189: =+K189-L189 -> -7201.45 | N189: =IF(L189<0,IF(M189=0,0,IF(OR(L189=0,K189=0),"N.M.",IF(ABS(M189/L189)>=10,"N.M.",M189/(-L189)))),IF(M189=0,0,IF(OR(L189=0,K189=0),"N.M.",IF(ABS(M189/L189)>=10,"N.M.",M189/L189)))) -> -0.006619163875 | Q189: 274396.72 | R189: 291040.96 | S189: =+Q189-R189 -> -16644.24 | T189: =IF(R189<0,IF(S189=0,0,IF(OR(R189=0,Q189=0),"N.M.",IF(ABS(S189/R189)>=10,"N.M.",S189/(-R189)))),IF(S189=0,0,IF(OR(R189=0,Q189=0),"N.M.",IF(ABS(S189/R189)>=10,"N.M.",S189/R189)))) -> -0.05718865138 | V189: 1308900.41 | W189: 1278642.85 | X189: =+V189-W189 -> 30257.56 | Y189: =IF(W189<0,IF(X189=0,0,IF(OR(W189=0,V189=0),"N.M.",IF(ABS(X189/W189)>=10,"N.M.",X189/(-W189)))),IF(X189=0,0,IF(OR(W189=0,V189=0),"N.M.",IF(ABS(X189/W189)>=10,"N.M.",X189/W189)))) -> 0.02366380886 | AA189: 114824.86 | AC189: 177950.44 | AD189: 98439.81 | AE189: 94710.36 | AF189: 145525.28 | AG189: 103350.43 | AH189: 110596.15 | AI189: 66356.31 | AJ189: 98323.12 | AK189: 87421.78 | AL189: 105296.06 | AM189: 117890.6 | AN189: 110241.52 | AP189: 144999.86 | AQ189: 133517.82 | AR189: 101289.53 | AS189: 146971.6 | AT189: 103893.98 | AU189: 101015.23 | AV189: 74683.55 | AW189: 101237.23 | AX189: 86644.62 | AY189: 86514.87 | AZ189: -84438.79 | BA189: 0
A190: %,V5614008 | B190: 5614008 | C190: PJM Admin Defaults OSS | F190: 0 | G190: 0 | H190: =+F190-G190 -> 0 | I190: =IF(G190<0,IF(H190=0,0,IF(OR(G190=0,F190=0),"N.M.",IF(ABS(H190/G190)>=10,"N.M.",H190/(-G190)))),IF(H190=0,0,IF(OR(G190=0,F190=0),"N.M.",IF(ABS(H190/G190)>=10,"N.M.",H190/G190)))) -> 0 | K190: 0 | L190: 0 | M190: =+K190-L190 -> 0 | N190: =IF(L190<0,IF(M190=0,0,IF(OR(L190=0,K190=0),"N.M.",IF(ABS(M190/L190)>=10,"N.M.",M190/(-L190)))),IF(M190=0,0,IF(OR(L190=0,K190=0),"N.M.",IF(ABS(M190/L190)>=10,"N.M.",M190/L190)))) -> 0 | Q190: 0 | R190: 0 | S190: =+Q190-R190 -> 0 | T190: =IF(R190<0,IF(S190=0,0,IF(OR(R190=0,Q190=0),"N.M.",IF(ABS(S190/R190)>=10,"N.M.",S190/(-R190)))),IF(S190=0,0,IF(OR(R190=0,Q190=0),"N.M.",IF(ABS(S190/R190)>=10,"N.M.",S190/R190)))) -> 0 | V190: 0 | W190: 4112.75 | X190: =+V190-W190 -> -4112.75 | Y190: =IF(W190<0,IF(X190=0,0,IF(OR(W190=0,V190=0),"N.M.",IF(ABS(X190/W190)>=10,"N.M.",X190/(-W190)))),IF(X190=0,0,IF(OR(W190=0,V190=0),"N.M.",IF(ABS(X190/W190)>=10,"N.M.",X190/W190)))) -> N.M. | AA190: 4112.75 | AC190: 0 | AD190: 0 | AE190: 0 | AF190: 0 | AG190: 0 | AH190: 0 | AI190: 0 | AJ190: 0 | AK190: 0 | AL190: 0 | AM190: 0 | AN190: 0 | AP190: 0 | AQ190: 0 | AR190: 0 | AS190: 0 | AT190: 0 | AU190: 0 | AV190: 0 | AW190: 0 | AX190: 0 | AY190: 0 | AZ190: 0 | BA190: 0
A191: %,V5614009 | B191: 5614009 | C191: GreenHat Settlement | F191: 0 | G191: 0 | H191: =+F191-G191 -> 0 | I191: =IF(G191<0,IF(H191=0,0,IF(OR(G191=0,F191=0),"N.M.",IF(ABS(H191/G191)>=10,"N.M.",H191/(-G191)))),IF(H191=0,0,IF(OR(G191=0,F191=0),"N.M.",IF(ABS(H191/G191)>=10,"N.M.",H191/G191)))) -> 0 | K191: 0 | L191: 3534.97 | M191: =+K191-L191 -> -3534.97 | N191: =IF(L191<0,IF(M191=0,0,IF(OR(L191=0,K191=0),"N.M.",IF(ABS(M191/L191)>=10,"N.M.",M191/(-L191)))),IF(M191=0,0,IF(OR(L191=0,K191=0),"N.M.",IF(ABS(M191/L191)>=10,"N.M.",M191/L191)))) -> N.M. | Q191: 0 | R191: 0 | S191: =+Q191-R191 -> 0 | T191: =IF(R191<0,IF(S191=0,0,IF(OR(R191=0,Q191=0),"N.M.",IF(ABS(S191/R191)>=10,"N.M.",S191/(-R191)))),IF(S191=0,0,IF(OR(R191=0,Q191=0),"N.M.",IF(ABS(S191/R191)>=10,"N.M.",S191/R191)))) -> 0 | V191: 0 | W191: 20393.73 | X191: =+V191-W191 -> -20393.73 | Y191: =IF(W191<0,IF(X191=0,0,IF(OR(W191=0,V191=0),"N.M.",IF(ABS(X191/W191)>=10,"N.M.",X191/(-W191)))),IF(X191=0,0,IF(OR(W191=0,V191=0),"N.M.",IF(ABS(X191/W191)>=10,"N.M.",X191/W191)))) -> N.M. | AA191: 8429.38 | AC191: 3534.97 | AD191: 0 | AE191: 0 | AF191: 0 | AG191: 0 | AH191: 0 | AI191: 0 | AJ191: 0 | AK191: 0 | AL191: 0 | AM191: 0 | AN191: 0 | AP191: 0 | AQ191: 0 | AR191: 0 | AS191: 0 | AT191: 0 | AU191: 0 | AV191: 0 | AW191: 0 | AX191: 0 | AY191: 0 | AZ191: 0 | BA191: 0
A192: %,V5615000 | B192: 5615000 | C192: Reliability,Plng&Stds Develop | F192: 20632.64 | G192: 13046.32 | H192: =+F192-G192 -> 7586.32 | I192: =IF(G192<0,IF(H192=0,0,IF(OR(G192=0,F192=0),"N.M.",IF(ABS(H192/G192)>=10,"N.M.",H192/(-G192)))),IF(H192=0,0,IF(OR(G192=0,F192=0),"N.M.",IF(ABS(H192/G192)>=10,"N.M.",H192/G192)))) -> 0.5814911791 | K192: 81074.11 | L192: 65882.53 | M192: =+K192-L192 -> 15191.58 | N192: =IF(L192<0,IF(M192=0,0,IF(OR(L192=0,K192=0),"N.M.",IF(ABS(M192/L192)>=10,"N.M.",M192/(-L192)))),IF(M192=0,0,IF(OR(L192=0,K192=0),"N.M.",IF(ABS(M192/L192)>=10,"N.M.",M192/L192)))) -> 0.2305858624 | Q192: 26726.47 | R192: 26161.09 | S192: =+Q192-R192 -> 565.38 | T192: =IF(R192<0,IF(S192=0,0,IF(OR(R192=0,Q192=0),"N.M.",IF(ABS(S192/R192)>=10,"N.M.",S192/(-R192)))),IF(S192=0,0,IF(OR(R192=0,Q192=0),"N.M.",IF(ABS(S192/R192)>=10,"N.M.",S192/R192)))) -> 0.02161148484 | V192: 93272.9 | W192: 75234.85 | X192: =+V192-W192 -> 18038.05 | Y192: =IF(W192<0,IF(X192=0,0,IF(OR(W192=0,V192=0),"N.M.",IF(ABS(X192/W192)>=10,"N.M.",X192/(-W192)))),IF(X192=0,0,IF(OR(W192=0,V192=0),"N.M.",IF(ABS(X192/W192)>=10,"N.M.",X192/W192)))) -> 0.2397565756 | AA192: 3003.27 | AC192: 6337.15 | AD192: 7074.21 | AE192: 6579.44 | AF192: 5501.97 | AG192: 4245.08 | AH192: 4827.24 | AI192: 5156.35 | AJ192: 6422.07 | AK192: 6692.7 | AL192: 13046.32 | AM192: 7626.03 | AN192: 4572.76 | AP192: 5237.07 | AQ192: 5257.11 | AR192: 3852.76 | AS192: 17798.1 | AT192: 16125.02 | AU192: 2751.74 | AV192: 3325.84 | AW192: 2540.7 | AX192: 3553.13 | AY192: 20632.64 | AZ192: 0 | BA192: 0
A193: %,V5618000 | B193: 5618000 | C193: PJM Admin-RP&SDS-OSS | F193: 2987.97 | G193: 1328.13 | H193: =+F193-G193 -> 1659.84 | I193: =IF(G193<0,IF(H193=0,0,IF(OR(G193=0,F193=0),"N.M.",IF(ABS(H193/G193)>=10,"N.M.",H193/(-G193)))),IF(H193=0,0,IF(OR(G193=0,F193=0),"N.M.",IF(ABS(H193/G193)>=10,"N.M.",H193/G193)))) -> 1.249757177 | K193: 24774.68 | L193: 20310.58 | M193: =+K193-L193 -> 4464.1 | N193: =IF(L193<0,IF(M193=0,0,IF(OR(L193=0,K193=0),"N.M.",IF(ABS(M193/L193)>=10,"N.M.",M193/(-L193)))),IF(M193=0,0,IF(OR(L193=0,K193=0),"N.M.",IF(ABS(M193/L193)>=10,"N.M.",M193/L193)))) -> 0.2197918523 | Q193: 10992.81 | R193: 5610.09 | S193: =+Q193-R193 -> 5382.72 | T193: =IF(R193<0,IF(S193=0,0,IF(OR(R193=0,Q193=0),"N.M.",IF(ABS(S193/R193)>=10,"N.M.",S193/(-R193)))),IF(S193=0,0,IF(OR(R193=0,Q193=0),"N.M.",IF(ABS(S193/R193)>=10,"N.M.",S193/R193)))) -> 0.9594712384 | V193: 28792.27 | W193: 22297.58 | X193: =+V193-W193 -> 6494.69 | Y193: =IF(W193<0,IF(X193=0,0,IF(OR(W193=0,V193=0),"N.M.",IF(ABS(X193/W193)>=10,"N.M.",X193/(-W193)))),IF(X193=0,0,IF(OR(W193=0,V193=0),"N.M.",IF(ABS(X193/W193)>=10,"N.M.",X193/W193)))) -> 0.2912733131 | AA193: 535.55 | AC193: 1549.07 | AD193: 2765.6 | AE193: 573 | AF193: 2070.15 | AG193: 1093.04 | AH193: 3350.43 | AI193: 3299.2 | AJ193: 3185 | AK193: 1096.96 | AL193: 1328.13 | AM193: 1379.39 | AN193: 2638.2 | AP193: 3336.66 | AQ193: 2383.17 | AR193: 887.63 | AS193: 1730.27 | AT193: 1108.19 | AU193: 3382.46 | AV193: 953.49 | AW193: 6494.27 | AX193: 1510.57 | AY193: 2987.97 | AZ193: -3024.7 | BA193: 0
A194: %,V5618001 | B194: 5618001 | C194: PJM Admin-RP&SDS- Internal | F194: 26155.4 | G194: 30039.13 | H194: =+F194-G194 -> -3883.73 | I194: =IF(G194<0,IF(H194=0,0,IF(OR(G194=0,F194=0),"N.M.",IF(ABS(H194/G194)>=10,"N.M.",H194/(-G194)))),IF(H194=0,0,IF(OR(G194=0,F194=0),"N.M.",IF(ABS(H194/G194)>=10,"N.M.",H194/G194)))) -> -0.1292890307 | K194: 321101.45 | L194: 364193.48 | M194: =+K194-L194 -> -43092.03 | N194: =IF(L194<0,IF(M194=0,0,IF(OR(L194=0,K194=0),"N.M.",IF(ABS(M194/L194)>=10,"N.M.",M194/(-L194)))),IF(M194=0,0,IF(OR(L194=0,K194=0),"N.M.",IF(ABS(M194/L194)>=10,"N.M.",M194/L194)))) -> -0.1183218052 | Q194: 105461.87 | R194: 94224.98 | S194: =+Q194-R194 -> 11236.89 | T194: =IF(R194<0,IF(S194=0,0,IF(OR(R194=0,Q194=0),"N.M.",IF(ABS(S194/R194)>=10,"N.M.",S194/(-R194)))),IF(S194=0,0,IF(OR(R194=0,Q194=0),"N.M.",IF(ABS(S194/R194)>=10,"N.M.",S194/R194)))) -> 0.1192559553 | V194: 384790.42 | W194: 438370.03 | X194: =+V194-W194 -> -53579.61 | Y194: =IF(W194<0,IF(X194=0,0,IF(OR(W194=0,V194=0),"N.M.",IF(ABS(X194/W194)>=10,"N.M.",X194/(-W194)))),IF(X194=0,0,IF(OR(W194=0,V194=0),"N.M.",IF(ABS(X194/W194)>=10,"N.M.",X194/W194)))) -> -0.1222246192 | AA194: 25909.65 | AC194: 68948.57 | AD194: 55784.36 | AE194: 22683.59 | AF194: 37449.89 | AG194: 26619.95 | AH194: 27992.28 | AI194: 30489.86 | AJ194: 34253.88 | AK194: 29931.97 | AL194: 30039.13 | AM194: 32919.86 | AN194: 30769.11 | AP194: 59349.11 | AQ194: 44773.07 | AR194: 24292.17 | AS194: 34095.87 | AT194: 14289.28 | AU194: 31652.36 | AV194: 7187.72 | AW194: 55073.63 | AX194: 24232.84 | AY194: 26155.4 | AZ194: -24998.44 | BA194: 0
A195: %,V5620001 | B195: 5620001 | C195: Station Expenses - Nonassoc | F195: 29046.67 | G195: 861.3 | H195: =+F195-G195 -> 28185.37 | I195: =IF(G195<0,IF(H195=0,0,IF(OR(G195=0,F195=0),"N.M.",IF(ABS(H195/G195)>=10,"N.M.",H195/(-G195)))),IF(H195=0,0,IF(OR(G195=0,F195=0),"N.M.",IF(ABS(H195/G195)>=10,"N.M.",H195/G195)))) -> N.M. | K195: 262126.43 | L195: 174657.52 | M195: =+K195-L195 -> 87468.91 | N195: =IF(L195<0,IF(M195=0,0,IF(OR(L195=0,K195=0),"N.M.",IF(ABS(M195/L195)>=10,"N.M.",M195/(-L195)))),IF(M195=0,0,IF(OR(L195=0,K195=0),"N.M.",IF(ABS(M195/L195)>=10,"N.M.",M195/L195)))) -> 0.5008024275 | Q195: 72702.98 | R195: 45839.52 | S195: =+Q195-R195 -> 26863.46 | T195: =IF(R195<0,IF(S195=0,0,IF(OR(R195=0,Q195=0),"N.M.",IF(ABS(S195/R195)>=10,"N.M.",S195/(-R195)))),IF(S195=0,0,IF(OR(R195=0,Q195=0),"N.M.",IF(ABS(S195/R195)>=10,"N.M.",S195/R195)))) -> 0.5860327508 | V195: 290965.53 | W195: 205348.43 | X195: =+V195-W195 -> 85617.1 | Y195: =IF(W195<0,IF(X195=0,0,IF(OR(W195=0,V195=0),"N.M.",IF(ABS(X195/W195)>=10,"N.M.",X195/(-W195)))),IF(X195=0,0,IF(OR(W195=0,V195=0),"N.M.",IF(ABS(X195/W195)>=10,"N.M.",X195/W195)))) -> 0.4169357419 | AA195: 14956.52 | AC195: 15476.45 | AD195: 18953.3 | AE195: 11834.38 | AF195: 20186.86 | AG195: 23692 | AH195: 19668.21 | AI195: 19006.8 | AJ195: 15004.95 | AK195: 29973.27 | AL195: 861.3 | AM195: 28697.55 | AN195: 141.55 | AP195: 25544.2 | AQ195: 17002.71 | AR195: 28419.13 | AS195: 31279.02 | AT195: 28896.07 | AU195: 28263.51 | AV195: 30018.81 | AW195: 25540.66 | AX195: 18115.65 | AY195: 29046.67 | AZ195: 74.54 | BA195: 0
A196: %,V5630000 | B196: 5630000 | C196: Overhead Line Expenses | F196: 881.04 | G196: -2652.06 | H196: =+F196-G196 -> 3533.1 | I196: =IF(G196<0,IF(H196=0,0,IF(OR(G196=0,F196=0),"N.M.",IF(ABS(H196/G196)>=10,"N.M.",H196/(-G196)))),IF(H196=0,0,IF(OR(G196=0,F196=0),"N.M.",IF(ABS(H196/G196)>=10,"N.M.",H196/G196)))) -> 1.332209679 | K196: 19070.91 | L196: 25779.43 | M196: =+K196-L196 -> -6708.52 | N196: =IF(L196<0,IF(M196=0,0,IF(OR(L196=0,K196=0),"N.M.",IF(ABS(M196/L196)>=10,"N.M.",M196/(-L196)))),IF(M196=0,0,IF(OR(L196=0,K196=0),"N.M.",IF(ABS(M196/L196)>=10,"N.M.",M196/L196)))) -> -0.2602276311 | Q196: 6019.83 | R196: 11533.89 | S196: =+Q196-R196 -> -5514.06 | T196: =IF(R196<0,IF(S196=0,0,IF(OR(R196=0,Q196=0),"N.M.",IF(ABS(S196/R196)>=10,"N.M.",S196/(-R196)))),IF(S196=0,0,IF(OR(R196=0,Q196=0),"N.M.",IF(ABS(S196/R196)>=10,"N.M.",S196/R196)))) -> -0.4780746132 | V196: 20474.62 | W196: 27643.01 | X196: =+V196-W196 -> -7168.39 | Y196: =IF(W196<0,IF(X196=0,0,IF(OR(W196=0,V196=0),"N.M.",IF(ABS(X196/W196)>=10,"N.M.",X196/(-W196)))),IF(X196=0,0,IF(OR(W196=0,V196=0),"N.M.",IF(ABS(X196/W196)>=10,"N.M.",X196/W196)))) -> -0.2593201681 | AA196: 807.6 | AC196: 1068.23 | AD196: 2437 | AE196: 1918.73 | AF196: 790.76 | AG196: 5563.56 | AH196: 1827.21 | AI196: 640.05 | AJ196: 785.94 | AK196: 13400.01 | AL196: -2652.06 | AM196: 722.81 | AN196: 680.9 | AP196: 864.88 | AQ196: 732.27 | AR196: 1692.62 | AS196: 904.92 | AT196: 2268.44 | AU196: 3344.88 | AV196: 3243.07 | AW196: 1857.34 | AX196: 3281.45 | AY196: 881.04 | AZ196: 54.9 | BA196: 0
A197: %,V5640000 | B197: 5640000 | C197: Underground Line Expenses | F197: 0 | G197: 0 | H197: =+F197-G197 -> 0 | I197: =IF(G197<0,IF(H197=0,0,IF(OR(G197=0,F197=0),"N.M.",IF(ABS(H197/G197)>=10,"N.M.",H197/(-G197)))),IF(H197=0,0,IF(OR(G197=0,F197=0),"N.M.",IF(ABS(H197/G197)>=10,"N.M.",H197/G197)))) -> 0 | K197: 0 | L197: 15.85 | M197: =+K197-L197 -> -15.85 | N197: =IF(L197<0,IF(M197=0,0,IF(OR(L197=0,K197=0),"N.M.",IF(ABS(M197/L197)>=10,"N.M.",M197/(-L197)))),IF(M197=0,0,IF(OR(L197=0,K197=0),"N.M.",IF(ABS(M197/L197)>=10,"N.M.",M197/L197)))) -> N.M. | Q197: 0 | R197: 0 | S197: =+Q197-R197 -> 0 | T197: =IF(R197<0,IF(S197=0,0,IF(OR(R197=0,Q197=0),"N.M.",IF(ABS(S197/R197)>=10,"N.M.",S197/(-R197)))),IF(S197=0,0,IF(OR(R197=0,Q197=0),"N.M.",IF(ABS(S197/R197)>=10,"N.M.",S197/R197)))) -> 0 | V197: 0 | W197: 15.85 | X197: =+V197-W197 -> -15.85 | Y197: =IF(W197<0,IF(X197=0,0,IF(OR(W197=0,V197=0),"N.M.",IF(ABS(X197/W197)>=10,"N.M.",X197/(-W197)))),IF(X197=0,0,IF(OR(W197=0,V197=0),"N.M.",IF(ABS(X197/W197)>=10,"N.M.",X197/W197)))) -> N.M. | AA197: 0 | AC197: 0 | AD197: 0 | AE197: 0 | AF197: 0 | AG197: 0 | AH197: 0 | AI197: 15.85 | AJ197: 0 | AK197: 0 | AL197: 0 | AM197: 0 | AN197: 0 | AP197: 0 | AQ197: 0 | AR197: 0 | AS197: 0 | AT197: 0 | AU197: 0 | AV197: 0 | AW197: 0 | AX197: 0 | AY197: 0 | AZ197: 0 | BA197: 0
A198: %,V5650002 | B198: 5650002 | C198: Transmssn Elec by Others-NAC | F198: 6253.5 | G198: 6175.5 | H198: =+F198-G198 -> 78 | I198: =IF(G198<0,IF(H198=0,0,IF(OR(G198=0,F198=0),"N.M.",IF(ABS(H198/G198)>=10,"N.M.",H198/(-G198)))),IF(H198=0,0,IF(OR(G198=0,F198=0),"N.M.",IF(ABS(H198/G198)>=10,"N.M.",H198/G198)))) -> 0.01263055623 | K198: 83793 | L198: 77710.5 | M198: =+K198-L198 -> 6082.5 | N198: =IF(L198<0,IF(M198=0,0,IF(OR(L198=0,K198=0),"N.M.",IF(ABS(M198/L198)>=10,"N.M.",M198/(-L198)))),IF(M198=0,0,IF(OR(L198=0,K198=0),"N.M.",IF(ABS(M198/L198)>=10,"N.M.",M198/L198)))) -> 0.07827127608 | Q198: 21783 | R198: 21390 | S198: =+Q198-R198 -> 393 | T198: =IF(R198<0,IF(S198=0,0,IF(OR(R198=0,Q198=0),"N.M.",IF(ABS(S198/R198)>=10,"N.M.",S198/(-R198)))),IF(S198=0,0,IF(OR(R198=0,Q198=0),"N.M.",IF(ABS(S198/R198)>=10,"N.M.",S198/R198)))) -> 0.01837307153 | V198: 99372 | W198: 97296 | X198: =+V198-W198 -> 2076 | Y198: =IF(W198<0,IF(X198=0,0,IF(OR(W198=0,V198=0),"N.M.",IF(ABS(X198/W198)>=10,"N.M.",X198/(-W198)))),IF(X198=0,0,IF(OR(W198=0,V198=0),"N.M.",IF(ABS(X198/W198)>=10,"N.M.",X198/W198)))) -> 0.02133695116 | AA198: 8842.5 | AC198: 11478 | AD198: 8179.5 | AE198: 6891 | AF198: 6115.5 | AG198: 6693 | AH198: 8349 | AI198: 8614.5 | AJ198: 8433 | AK198: 6781.5 | AL198: 6175.5 | AM198: 6622.5 | AN198: 8956.5 | AP198: 15075 | AQ198: 9775.5 | AR198: 7228.5 | AS198: 6552 | AT198: 6016.5 | AU198: 7993.5 | AV198: 9369 | AW198: 8422.5 | AX198: 7107 | AY198: 6253.5 | AZ198: 0 | BA198: 0
A199: %,V5650007 | B199: 5650007 | C199: Tran Elec by Oth-Aff-Trn Price | F199: 0 | G199: 0 | H199: =+F199-G199 -> 0 | I199: =IF(G199<0,IF(H199=0,0,IF(OR(G199=0,F199=0),"N.M.",IF(ABS(H199/G199)>=10,"N.M.",H199/(-G199)))),IF(H199=0,0,IF(OR(G199=0,F199=0),"N.M.",IF(ABS(H199/G199)>=10,"N.M.",H199/G199)))) -> 0 | K199: 0 | L199: 0 | M199: =+K199-L199 -> 0 | N199: =IF(L199<0,IF(M199=0,0,IF(OR(L199=0,K199=0),"N.M.",IF(ABS(M199/L199)>=10,"N.M.",M199/(-L199)))),IF(M199=0,0,IF(OR(L199=0,K199=0),"N.M.",IF(ABS(M199/L199)>=10,"N.M.",M199/L199)))) -> 0 | Q199: 0 | R199: 0 | S199: =+Q199-R199 -> 0 | T199: =IF(R199<0,IF(S199=0,0,IF(OR(R199=0,Q199=0),"N.M.",IF(ABS(S199/R199)>=10,"N.M.",S199/(-R199)))),IF(S199=0,0,IF(OR(R199=0,Q199=0),"N.M.",IF(ABS(S199/R199)>=10,"N.M.",S199/R199)))) -> 0 | V199: 0 | W199: 0 | X199: =+V199-W199 -> 0 | Y199: =IF(W199<0,IF(X199=0,0,IF(OR(W199=0,V199=0),"N.M.",IF(ABS(X199/W199)>=10,"N.M.",X199/(-W199)))),IF(X199=0,0,IF(OR(W199=0,V199=0),"N.M.",IF(ABS(X199/W199)>=10,"N.M.",X199/W199)))) -> 0 | AA199: 0 | AC199: 0 | AD199: 0 | AE199: 0 | AF199: 0 | AG199: 0 | AH199: 0 | AI199: 0 | AJ199: 0 | AK199: 0 | AL199: 0 | AM199: 0 | AN199: 0 | AP199: 0 | AQ199: 0 | AR199: 0 | AS199: 0 | AT199: 0 | AU199: 0 | AV199: 0 | AW199: 0 | AX199: 0 | AY199: 0 | AZ199: 71873775.04 | BA199: 0
A200: %,V5650012 | B200: 5650012 | C200: PJM Trans Enhancement Charge | F200: 172514.55 | G200: 170512.23 | H200: =+F200-G200 -> 2002.32 | I200: =IF(G200<0,IF(H200=0,0,IF(OR(G200=0,F200=0),"N.M.",IF(ABS(H200/G200)>=10,"N.M.",H200/(-G200)))),IF(H200=0,0,IF(OR(G200=0,F200=0),"N.M.",IF(ABS(H200/G200)>=10,"N.M.",H200/G200)))) -> 0.01174296999 | K200: 1722531.26 | L200: 1720423.58 | M200: =+K200-L200 -> 2107.68 | N200: =IF(L200<0,IF(M200=0,0,IF(OR(L200=0,K200=0),"N.M.",IF(ABS(M200/L200)>=10,"N.M.",M200/(-L200)))),IF(M200=0,0,IF(OR(L200=0,K200=0),"N.M.",IF(ABS(M200/L200)>=10,"N.M.",M200/L200)))) -> 0.001225093648 | Q200: 513456.93 | R200: 511624.59 | S200: =+Q200-R200 -> 1832.34 | T200: =IF(R200<0,IF(S200=0,0,IF(OR(R200=0,Q200=0),"N.M.",IF(ABS(S200/R200)>=10,"N.M.",S200/(-R200)))),IF(S200=0,0,IF(OR(R200=0,Q200=0),"N.M.",IF(ABS(S200/R200)>=10,"N.M.",S200/R200)))) -> 0.003581415037 | V200: 2063636.62 | W200: 1977924.96 | X200: =+V200-W200 -> 85711.66 | Y200: =IF(W200<0,IF(X200=0,0,IF(OR(W200=0,V200=0),"N.M.",IF(ABS(X200/W200)>=10,"N.M.",X200/(-W200)))),IF(X200=0,0,IF(OR(W200=0,V200=0),"N.M.",IF(ABS(X200/W200)>=10,"N.M.",X200/W200)))) -> 0.04333413134 | AA200: 108405.78 | AC200: 173455.56 | AD200: 173773.47 | AE200: 173081.5 | AF200: 173766.3 | AG200: 173725.86 | AH200: 170484.08 | AI200: 170512.22 | AJ200: 170519.23 | AK200: 170593.13 | AL200: 170512.23 | AM200: 170667.06 | AN200: 170438.3 | AP200: 167900.46 | AQ200: 178658.29 | AR200: 169087.17 | AS200: 173806.15 | AT200: 173770.52 | AU200: 173337.14 | AV200: 172514.6 | AW200: 168427.8 | AX200: 172514.58 | AY200: 172514.55 | AZ200: -172514.61 | BA200: 0
A201: %,V5650015 | B201: 5650015 | C201: PJM TO Serv Exp - Aff | F201: 11322.4 | G201: 12289.3 | H201: =+F201-G201 -> -966.9 | I201: =IF(G201<0,IF(H201=0,0,IF(OR(G201=0,F201=0),"N.M.",IF(ABS(H201/G201)>=10,"N.M.",H201/(-G201)))),IF(H201=0,0,IF(OR(G201=0,F201=0),"N.M.",IF(ABS(H201/G201)>=10,"N.M.",H201/G201)))) -> -0.07867819973 | K201: 136845.85 | L201: 137745.76 | M201: =+K201-L201 -> -899.91 | N201: =IF(L201<0,IF(M201=0,0,IF(OR(L201=0,K201=0),"N.M.",IF(ABS(M201/L201)>=10,"N.M.",M201/(-L201)))),IF(M201=0,0,IF(OR(L201=0,K201=0),"N.M.",IF(ABS(M201/L201)>=10,"N.M.",M201/L201)))) -> -0.006533123052 | Q201: 36606.13 | R201: 39022.2 | S201: =+Q201-R201 -> -2416.07 | T201: =IF(R201<0,IF(S201=0,0,IF(OR(R201=0,Q201=0),"N.M.",IF(ABS(S201/R201)>=10,"N.M.",S201/(-R201)))),IF(S201=0,0,IF(OR(R201=0,Q201=0),"N.M.",IF(ABS(S201/R201)>=10,"N.M.",S201/R201)))) -> -0.06191526874 | V201: 165147.12 | W201: 129229.73 | X201: =+V201-W201 -> 35917.39 | Y201: =IF(W201<0,IF(X201=0,0,IF(OR(W201=0,V201=0),"N.M.",IF(ABS(X201/W201)>=10,"N.M.",X201/(-W201)))),IF(X201=0,0,IF(OR(W201=0,V201=0),"N.M.",IF(ABS(X201/W201)>=10,"N.M.",X201/W201)))) -> 0.2779344196 | AA201: -4535.4 | AC201: 17805.91 | AD201: 14028.62 | AE201: 13616.74 | AF201: 11770.97 | AG201: 12613.19 | AH201: 13746.02 | AI201: 15142.11 | AJ201: 14278.87 | AK201: 12454.03 | AL201: 12289.3 | AM201: 12384.13 | AN201: 15917.14 | AP201: 19216.27 | AQ201: 14587.66 | AR201: 13698.22 | AS201: 12070.45 | AT201: 11519.97 | AU201: 13654.09 | AV201: 15493.06 | AW201: 13760.82 | AX201: 11522.91 | AY201: 11322.4 | AZ201: -11324.87 | BA201: 0
A202: %,V5650016 | B202: 5650016 | C202: PJM NITS Expense - Affiliated | F202: 6501533.21 | G202: 6323263.11 | H202: =+F202-G202 -> 178270.1 | I202: =IF(G202<0,IF(H202=0,0,IF(OR(G202=0,F202=0),"N.M.",IF(ABS(H202/G202)>=10,"N.M.",H202/(-G202)))),IF(H202=0,0,IF(OR(G202=0,F202=0),"N.M.",IF(ABS(H202/G202)>=10,"N.M.",H202/G202)))) -> 0.02819273797 | K202: 63751108.87 | L202: 62208002.61 | M202: =+K202-L202 -> 1543106.26 | N202: =IF(L202<0,IF(M202=0,0,IF(OR(L202=0,K202=0),"N.M.",IF(ABS(M202/L202)>=10,"N.M.",M202/(-L202)))),IF(M202=0,0,IF(OR(L202=0,K202=0),"N.M.",IF(ABS(M202/L202)>=10,"N.M.",M202/L202)))) -> 0.02480559084 | Q202: 19293895.76 | R202: 18764863.63 | S202: =+Q202-R202 -> 529032.13 | T202: =IF(R202<0,IF(S202=0,0,IF(OR(R202=0,Q202=0),"N.M.",IF(ABS(S202/R202)>=10,"N.M.",S202/(-R202)))),IF(S202=0,0,IF(OR(R202=0,Q202=0),"N.M.",IF(ABS(S202/R202)>=10,"N.M.",S202/R202)))) -> 0.02819269782 | V202: 76192709.39 | W202: 73944223.55 | X202: =+V202-W202 -> 2248485.84 | Y202: =IF(W202<0,IF(X202=0,0,IF(OR(W202=0,V202=0),"N.M.",IF(ABS(X202/W202)>=10,"N.M.",X202/(-W202)))),IF(X202=0,0,IF(OR(W202=0,V202=0),"N.M.",IF(ABS(X202/W202)>=10,"N.M.",X202/W202)))) -> 0.03040786328 | AA202: 5964609.13 | AC202: 6323262.77 | AD202: 5913412.06 | AE202: 6323263.11 | AF202: 6118337.41 | AG202: 6323263.11 | AH202: 6118337.41 | AI202: 6323263.11 | AJ202: 6323263.11 | AK202: 6118337.41 | AL202: 6323263.11 | AM202: 6118337.41 | AN202: 6323263.11 | AP202: 6501533.21 | AQ202: 5869421.59 | AR202: 6501533.21 | AS202: 6290829.34 | AT202: 6501533.21 | AU202: 6290829.34 | AV202: 6501533.21 | AW202: 6501533.21 | AX202: 6290829.34 | AY202: 6501533.21 | AZ202: -6501533.21 | BA202: 0
A203: %,V5650019 | B203: 5650019 | C203: Affil PJM Trans Enhncement Exp | F203: 398850.65 | G203: 458249.14 | H203: =+F203-G203 -> -59398.49 | I203: =IF(G203<0,IF(H203=0,0,IF(OR(G203=0,F203=0),"N.M.",IF(ABS(H203/G203)>=10,"N.M.",H203/(-G203)))),IF(H203=0,0,IF(OR(G203=0,F203=0),"N.M.",IF(ABS(H203/G203)>=10,"N.M.",H203/G203)))) -> -0.129620516 | K203: 3988506.5 | L203: 4582491.16 | M203: =+K203-L203 -> -593984.66 | N203: =IF(L203<0,IF(M203=0,0,IF(OR(L203=0,K203=0),"N.M.",IF(ABS(M203/L203)>=10,"N.M.",M203/(-L203)))),IF(M203=0,0,IF(OR(L203=0,K203=0),"N.M.",IF(ABS(M203/L203)>=10,"N.M.",M203/L203)))) -> -0.1296204705 | Q203: 1196551.95 | R203: 1374747.35 | S203: =+Q203-R203 -> -178195.4 | T203: =IF(R203<0,IF(S203=0,0,IF(OR(R203=0,Q203=0),"N.M.",IF(ABS(S203/R203)>=10,"N.M.",S203/(-R203)))),IF(S203=0,0,IF(OR(R203=0,Q203=0),"N.M.",IF(ABS(S203/R203)>=10,"N.M.",S203/R203)))) -> -0.1296204717 | V203: 4905004.73 | W203: 5487813.36 | X203: =+V203-W203 -> -582808.63 | Y203: =IF(W203<0,IF(X203=0,0,IF(OR(W203=0,V203=0),"N.M.",IF(ABS(X203/W203)>=10,"N.M.",X203/(-W203)))),IF(X203=0,0,IF(OR(W203=0,V203=0),"N.M.",IF(ABS(X203/W203)>=10,"N.M.",X203/W203)))) -> -0.1062005195 | AA203: 452661.1 | AC203: 458249.12 | AD203: 458249.11 | AE203: 458249.12 | AF203: 458249.11 | AG203: 458249.11 | AH203: 458249.12 | AI203: 458249.12 | AJ203: 458249.11 | AK203: 458249.1 | AL203: 458249.14 | AM203: 458249.11 | AN203: 458249.12 | AP203: 398850.65 | AQ203: 398850.64 | AR203: 398850.66 | AS203: 398850.65 | AT203: 398850.65 | AU203: 398850.65 | AV203: 398850.65 | AW203: 398850.65 | AX203: 398850.65 | AY203: 398850.65 | AZ203: -398850.65 | BA203: 0
A204: %,V5650020 | B204: 5650020 | C204: PROVISION RTO Affl Tran Expnse | F204: 240243 | G204: -150865 | H204: =+F204-G204 -> 391108 | I204: =IF(G204<0,IF(H204=0,0,IF(OR(G204=0,F204=0),"N.M.",IF(ABS(H204/G204)>=10,"N.M.",H204/(-G204)))),IF(H204=0,0,IF(OR(G204=0,F204=0),"N.M.",IF(ABS(H204/G204)>=10,"N.M.",H204/G204)))) -> 2.592436947 | K204: 8536005 | L204: -3511573 | M204: =+K204-L204 -> 12047578 | N204: =IF(L204<0,IF(M204=0,0,IF(OR(L204=0,K204=0),"N.M.",IF(ABS(M204/L204)>=10,"N.M.",M204/(-L204)))),IF(M204=0,0,IF(OR(L204=0,K204=0),"N.M.",IF(ABS(M204/L204)>=10,"N.M.",M204/L204)))) -> 3.430820889 | Q204: 782198 | R204: -446475 | S204: =+Q204-R204 -> 1228673 | T204: =IF(R204<0,IF(S204=0,0,IF(OR(R204=0,Q204=0),"N.M.",IF(ABS(S204/R204)>=10,"N.M.",S204/(-R204)))),IF(S204=0,0,IF(OR(R204=0,Q204=0),"N.M.",IF(ABS(S204/R204)>=10,"N.M.",S204/R204)))) -> 2.751941318 | V204: 7224148 | W204: -13507156 | X204: =+V204-W204 -> 20731304 | Y204: =IF(W204<0,IF(X204=0,0,IF(OR(W204=0,V204=0),"N.M.",IF(ABS(X204/W204)>=10,"N.M.",X204/(-W204)))),IF(X204=0,0,IF(OR(W204=0,V204=0),"N.M.",IF(ABS(X204/W204)>=10,"N.M.",X204/W204)))) -> 1.53483857 | AA204: -9994705 | AC204: -5210 | AD204: 1688 | AE204: -298648 | AF204: -102991 | AG204: -316247 | AH204: -2216889 | AI204: -126801 | AJ204: -146912 | AK204: -148698 | AL204: -150865 | AM204: -147355 | AN204: -1164502 | AP204: -147629 | AQ204: -86875 | AR204: -119381 | AS204: -117156 | AT204: -117469 | AU204: 8170676 | AV204: 171641 | AW204: 235247 | AX204: 306708 | AY204: 240243 | AZ204: -2325529 | BA204: 0
A205: %,V5650021 | B205: 5650021 | C205: PJM NITS Expense - Non-Affilia | F205: 91200.32 | G205: 72347.68 | H205: =+F205-G205 -> 18852.64 | I205: =IF(G205<0,IF(H205=0,0,IF(OR(G205=0,F205=0),"N.M.",IF(ABS(H205/G205)>=10,"N.M.",H205/(-G205)))),IF(H205=0,0,IF(OR(G205=0,F205=0),"N.M.",IF(ABS(H205/G205)>=10,"N.M.",H205/G205)))) -> 0.2605838916 | K205: 923402.52 | L205: 722600.65 | M205: =+K205-L205 -> 200801.87 | N205: =IF(L205<0,IF(M205=0,0,IF(OR(L205=0,K205=0),"N.M.",IF(ABS(M205/L205)>=10,"N.M.",M205/(-L205)))),IF(M205=0,0,IF(OR(L205=0,K205=0),"N.M.",IF(ABS(M205/L205)>=10,"N.M.",M205/L205)))) -> 0.2778877517 | Q205: 273101.02 | R205: 217023.19 | S205: =+Q205-R205 -> 56077.83 | T205: =IF(R205<0,IF(S205=0,0,IF(OR(R205=0,Q205=0),"N.M.",IF(ABS(S205/R205)>=10,"N.M.",S205/(-R205)))),IF(S205=0,0,IF(OR(R205=0,Q205=0),"N.M.",IF(ABS(S205/R205)>=10,"N.M.",S205/R205)))) -> 0.2583955659 | V205: 1074600.39 | W205: 843763.43 | X205: =+V205-W205 -> 230836.96 | Y205: =IF(W205<0,IF(X205=0,0,IF(OR(W205=0,V205=0),"N.M.",IF(ABS(X205/W205)>=10,"N.M.",X205/(-W205)))),IF(X205=0,0,IF(OR(W205=0,V205=0),"N.M.",IF(ABS(X205/W205)>=10,"N.M.",X205/W205)))) -> 0.2735801906 | AA205: 60604.54 | AC205: 72919.29 | AD205: 71425.54 | AE205: 72269.99 | AF205: 72172.4 | AG205: 72270.01 | AH205: 72172.46 | AI205: 72347.77 | AJ205: 72425.39 | AK205: 72250.12 | AL205: 72347.68 | AM205: 72250.11 | AN205: 78947.76 | AP205: 84543.12 | AQ205: 74451.6 | AR205: 127048.53 | AS205: 90871.65 | AT205: 91257.49 | AU205: 90871.66 | AV205: 91257.45 | AW205: 91143.26 | AX205: 90757.44 | AY205: 91200.32 | AZ205: -91200.22 | BA205: 0
A206: %,V5650023 | B206: 5650023 | C206: Amort of PROVISION RTO Expense | F206: 586515 | G206: 4567.51 | H206: =+F206-G206 -> 581947.49 | I206: =IF(G206<0,IF(H206=0,0,IF(OR(G206=0,F206=0),"N.M.",IF(ABS(H206/G206)>=10,"N.M.",H206/(-G206)))),IF(H206=0,0,IF(OR(G206=0,F206=0),"N.M.",IF(ABS(H206/G206)>=10,"N.M.",H206/G206)))) -> N.M. | K206: 7109772 | L206: 45675.1 | M206: =+K206-L206 -> 7064096.9 | N206: =IF(L206<0,IF(M206=0,0,IF(OR(L206=0,K206=0),"N.M.",IF(ABS(M206/L206)>=10,"N.M.",M206/(-L206)))),IF(M206=0,0,IF(OR(L206=0,K206=0),"N.M.",IF(ABS(M206/L206)>=10,"N.M.",M206/L206)))) -> N.M. | Q206: 1759545 | R206: 13702.53 | S206: =+Q206-R206 -> 1745842.47 | T206: =IF(R206<0,IF(S206=0,0,IF(OR(R206=0,Q206=0),"N.M.",IF(ABS(S206/R206)>=10,"N.M.",S206/(-R206)))),IF(S206=0,0,IF(OR(R206=0,Q206=0),"N.M.",IF(ABS(S206/R206)>=10,"N.M.",S206/R206)))) -> N.M. | V206: 7118905.02 | W206: -722656.6 | X206: =+V206-W206 -> 7841561.62 | Y206: =IF(W206<0,IF(X206=0,0,IF(OR(W206=0,V206=0),"N.M.",IF(ABS(X206/W206)>=10,"N.M.",X206/(-W206)))),IF(X206=0,0,IF(OR(W206=0,V206=0),"N.M.",IF(ABS(X206/W206)>=10,"N.M.",X206/W206)))) -> N.M. | AA206: -875762.35 | AC206: 4567.51 | AD206: 4567.51 | AE206: 4567.51 | AF206: 4567.51 | AG206: 4567.51 | AH206: 4567.51 | AI206: 4567.51 | AJ206: 4567.51 | AK206: 4567.51 | AL206: 4567.51 | AM206: 4567.51 | AN206: 4565.51 | AP206: 793952 | AQ206: 793952 | AR206: 793952 | AS206: 793952 | AT206: 793952 | AU206: 793952 | AV206: 586515 | AW206: 586515 | AX206: 586515 | AY206: 586515 | AZ206: 0 | BA206: 0
A207: %,V5650062 | B207: 5650062 | C207: Deferral of Provision RTO Exp | F207: 0 | G207: 0 | H207: =+F207-G207 -> 0 | I207: =IF(G207<0,IF(H207=0,0,IF(OR(G207=0,F207=0),"N.M.",IF(ABS(H207/G207)>=10,"N.M.",H207/(-G207)))),IF(H207=0,0,IF(OR(G207=0,F207=0),"N.M.",IF(ABS(H207/G207)>=10,"N.M.",H207/G207)))) -> 0 | K207: -15726307 | L207: 0 | M207: =+K207-L207 -> -15726307 | N207: =IF(L207<0,IF(M207=0,0,IF(OR(L207=0,K207=0),"N.M.",IF(ABS(M207/L207)>=10,"N.M.",M207/(-L207)))),IF(M207=0,0,IF(OR(L207=0,K207=0),"N.M.",IF(ABS(M207/L207)>=10,"N.M.",M207/L207)))) -> N.M. | Q207: -15726307 | R207: 0 | S207: =+Q207-R207 -> -15726307 | T207: =IF(R207<0,IF(S207=0,0,IF(OR(R207=0,Q207=0),"N.M.",IF(ABS(S207/R207)>=10,"N.M.",S207/(-R207)))),IF(S207=0,0,IF(OR(R207=0,Q207=0),"N.M.",IF(ABS(S207/R207)>=10,"N.M.",S207/R207)))) -> N.M. | V207: -15726307 | W207: 0 | X207: =+V207-W207 -> -15726307 | Y207: =IF(W207<0,IF(X207=0,0,IF(OR(W207=0,V207=0),"N.M.",IF(ABS(X207/W207)>=10,"N.M.",X207/(-W207)))),IF(X207=0,0,IF(OR(W207=0,V207=0),"N.M.",IF(ABS(X207/W207)>=10,"N.M.",X207/W207)))) -> N.M. | AA207: 0 | AC207: 0 | AD207: 0 | AE207: 0 | AF207: 0 | AG207: 0 | AH207: 0 | AI207: 0 | AJ207: 0 | AK207: 0 | AL207: 0 | AM207: 0 | AN207: 0 | AP207: 0 | AQ207: 0 | AR207: 0 | AS207: 0 | AT207: 0 | AU207: 0 | AV207: 0 | AW207: 0 | AX207: -15726307 | AY207: 0 | AZ207: 0 | BA207: 0
A208: %,V5660000 | B208: 5660000 | C208: Misc Transmission Expenses | F208: 93127.41 | G208: 65165.32 | H208: =+F208-G208 -> 27962.09 | I208: =IF(G208<0,IF(H208=0,0,IF(OR(G208=0,F208=0),"N.M.",IF(ABS(H208/G208)>=10,"N.M.",H208/(-G208)))),IF(H208=0,0,IF(OR(G208=0,F208=0),"N.M.",IF(ABS(H208/G208)>=10,"N.M.",H208/G208)))) -> 0.4290946473 | K208: 774800.92 | L208: 1035582.87 | M208: =+K208-L208 -> -260781.95 | N208: =IF(L208<0,IF(M208=0,0,IF(OR(L208=0,K208=0),"N.M.",IF(ABS(M208/L208)>=10,"N.M.",M208/(-L208)))),IF(M208=0,0,IF(OR(L208=0,K208=0),"N.M.",IF(ABS(M208/L208)>=10,"N.M.",M208/L208)))) -> -0.2518214211 | Q208: 285104.05 | R208: 185078.32 | S208: =+Q208-R208 -> 100025.73 | T208: =IF(R208<0,IF(S208=0,0,IF(OR(R208=0,Q208=0),"N.M.",IF(ABS(S208/R208)>=10,"N.M.",S208/(-R208)))),IF(S208=0,0,IF(OR(R208=0,Q208=0),"N.M.",IF(ABS(S208/R208)>=10,"N.M.",S208/R208)))) -> 0.540450821 | V208: 934272.35 | W208: 1041591.82 | X208: =+V208-W208 -> -107319.47 | Y208: =IF(W208<0,IF(X208=0,0,IF(OR(W208=0,V208=0),"N.M.",IF(ABS(X208/W208)>=10,"N.M.",X208/(-W208)))),IF(X208=0,0,IF(OR(W208=0,V208=0),"N.M.",IF(ABS(X208/W208)>=10,"N.M.",X208/W208)))) -> -0.1030340945 | AA208: -78573.25 | AC208: 174796.82 | AD208: 56092.65 | AE208: 51714.34 | AF208: 49411.67 | AG208: 51892.2 | AH208: 423275.98 | AI208: 43320.89 | AJ208: 73885.69 | AK208: 46027.31 | AL208: 65165.32 | AM208: 46055.69 | AN208: 113415.74 | AP208: 43287.71 | AQ208: 68253.07 | AR208: 58513.68 | AS208: 76585.19 | AT208: 44850.23 | AU208: 250785.13 | AV208: -52578.14 | AW208: 104293.39 | AX208: 87683.25 | AY208: 93127.41 | AZ208: 2.28 | BA208: 0
A209: %,V5660009 | B209: 5660009 | C209: PJM OATT LSE Over-Under Adjust | F209: 0 | G209: 0 | H209: =+F209-G209 -> 0 | I209: =IF(G209<0,IF(H209=0,0,IF(OR(G209=0,F209=0),"N.M.",IF(ABS(H209/G209)>=10,"N.M.",H209/(-G209)))),IF(H209=0,0,IF(OR(G209=0,F209=0),"N.M.",IF(ABS(H209/G209)>=10,"N.M.",H209/G209)))) -> 0 | K209: 0 | L209: 1248885.15 | M209: =+K209-L209 -> -1248885.15 | N209: =IF(L209<0,IF(M209=0,0,IF(OR(L209=0,K209=0),"N.M.",IF(ABS(M209/L209)>=10,"N.M.",M209/(-L209)))),IF(M209=0,0,IF(OR(L209=0,K209=0),"N.M.",IF(ABS(M209/L209)>=10,"N.M.",M209/L209)))) -> N.M. | Q209: 0 | R209: 0 | S209: =+Q209-R209 -> 0 | T209: =IF(R209<0,IF(S209=0,0,IF(OR(R209=0,Q209=0),"N.M.",IF(ABS(S209/R209)>=10,"N.M.",S209/(-R209)))),IF(S209=0,0,IF(OR(R209=0,Q209=0),"N.M.",IF(ABS(S209/R209)>=10,"N.M.",S209/R209)))) -> 0 | V209: 0 | W209: 493607.85 | X209: =+V209-W209 -> -493607.85 | Y209: =IF(W209<0,IF(X209=0,0,IF(OR(W209=0,V209=0),"N.M.",IF(ABS(X209/W209)>=10,"N.M.",X209/(-W209)))),IF(X209=0,0,IF(OR(W209=0,V209=0),"N.M.",IF(ABS(X209/W209)>=10,"N.M.",X209/W209)))) -> N.M. | AA209: 436193.52 | AC209: 1248885.15 | AD209: -1897846.05 | AE209: 1897846.05 | AF209: 0 | AG209: 0 | AH209: 0 | AI209: 0 | AJ209: 0 | AK209: 0 | AL209: 0 | AM209: 0 | AN209: 0 | AP209: 0 | AQ209: 0 | AR209: 0 | AS209: 0 | AT209: 0 | AU209: 0 | AV209: 0 | AW209: 0 | AX209: 0 | AY209: 0 | AZ209: 0 | BA209: 0
A210: %,V5660011 | B210: 5660011 | C210: Misc Transm Exp - Affiliate | F210: 264.04 | G210: 258.13 | H210: =+F210-G210 -> 5.91 | I210: =IF(G210<0,IF(H210=0,0,IF(OR(G210=0,F210=0),"N.M.",IF(ABS(H210/G210)>=10,"N.M.",H210/(-G210)))),IF(H210=0,0,IF(OR(G210=0,F210=0),"N.M.",IF(ABS(H210/G210)>=10,"N.M.",H210/G210)))) -> 0.02289544028 | K210: 2844.43 | L210: 2875.28 | M210: =+K210-L210 -> -30.85 | N210: =IF(L210<0,IF(M210=0,0,IF(OR(L210=0,K210=0),"N.M.",IF(ABS(M210/L210)>=10,"N.M.",M210/(-L210)))),IF(M210=0,0,IF(OR(L210=0,K210=0),"N.M.",IF(ABS(M210/L210)>=10,"N.M.",M210/L210)))) -> -0.01072938983 | Q210: 772.41 | R210: 765.88 | S210: =+Q210-R210 -> 6.53 | T210: =IF(R210<0,IF(S210=0,0,IF(OR(R210=0,Q210=0),"N.M.",IF(ABS(S210/R210)>=10,"N.M.",S210/(-R210)))),IF(S210=0,0,IF(OR(R210=0,Q210=0),"N.M.",IF(ABS(S210/R210)>=10,"N.M.",S210/R210)))) -> 0.008526139865 | V210: 3505.86 | W210: 3569.35 | X210: =+V210-W210 -> -63.49 | Y210: =IF(W210<0,IF(X210=0,0,IF(OR(W210=0,V210=0),"N.M.",IF(ABS(X210/W210)>=10,"N.M.",X210/(-W210)))),IF(X210=0,0,IF(OR(W210=0,V210=0),"N.M.",IF(ABS(X210/W210)>=10,"N.M.",X210/W210)))) -> -0.01778755236 | AA210: 313.49 | AC210: 277.68 | AD210: 358.63 | AE210: 334.24 | AF210: 321.63 | AG210: 292.8 | AH210: 239.28 | AI210: 285.14 | AJ210: 262.8 | AK210: 244.95 | AL210: 258.13 | AM210: 255.81 | AN210: 405.62 | AP210: 268.33 | AQ210: 363.53 | AR210: 278.08 | AS210: 277.29 | AT210: 277.29 | AU210: 355.43 | AV210: 252.07 | AW210: 257.31 | AX210: 251.06 | AY210: 264.04 | AZ210: 0 | BA210: 0
A211: %,V5670001 | B211: 5670001 | C211: Rents - Nonassociated | F211: 0 | G211: 0 | H211: =+F211-G211 -> 0 | I211: =IF(G211<0,IF(H211=0,0,IF(OR(G211=0,F211=0),"N.M.",IF(ABS(H211/G211)>=10,"N.M.",H211/(-G211)))),IF(H211=0,0,IF(OR(G211=0,F211=0),"N.M.",IF(ABS(H211/G211)>=10,"N.M.",H211/G211)))) -> 0 | K211: 1880.19 | L211: 0 | M211: =+K211-L211 -> 1880.19 | N211: =IF(L211<0,IF(M211=0,0,IF(OR(L211=0,K211=0),"N.M.",IF(ABS(M211/L211)>=10,"N.M.",M211/(-L211)))),IF(M211=0,0,IF(OR(L211=0,K211=0),"N.M.",IF(ABS(M211/L211)>=10,"N.M.",M211/L211)))) -> N.M. | Q211: 1630.19 | R211: 0 | S211: =+Q211-R211 -> 1630.19 | T211: =IF(R211<0,IF(S211=0,0,IF(OR(R211=0,Q211=0),"N.M.",IF(ABS(S211/R211)>=10,"N.M.",S211/(-R211)))),IF(S211=0,0,IF(OR(R211=0,Q211=0),"N.M.",IF(ABS(S211/R211)>=10,"N.M.",S211/R211)))) -> N.M. | V211: 1880.19 | W211: 0 | X211: =+V211-W211 -> 1880.19 | Y211: =IF(W211<0,IF(X211=0,0,IF(OR(W211=0,V211=0),"N.M.",IF(ABS(X211/W211)>=10,"N.M.",X211/(-W211)))),IF(X211=0,0,IF(OR(W211=0,V211=0),"N.M.",IF(ABS(X211/W211)>=10,"N.M.",X211/W211)))) -> N.M. | AA211: 0 | AC211: 0 | AD211: 0 | AE211: 0 | AF211: 0 | AG211: 0 | AH211: 0 | AI211: 0 | AJ211: 0 | AK211: 0 | AL211: 0 | AM211: 0 | AN211: 0 | AP211: 0 | AQ211: 0 | AR211: 250 | AS211: 0 | AT211: 0 | AU211: 0 | AV211: 0 | AW211: 0 | AX211: 1630.19 | AY211: 0 | AZ211: 0 | BA211: 0
A212: %,V5670002 | B212: 5670002 | C212: Rents - Associated | F212: 0 | G212: 0 | H212: =+F212-G212 -> 0 | I212: =IF(G212<0,IF(H212=0,0,IF(OR(G212=0,F212=0),"N.M.",IF(ABS(H212/G212)>=10,"N.M.",H212/(-G212)))),IF(H212=0,0,IF(OR(G212=0,F212=0),"N.M.",IF(ABS(H212/G212)>=10,"N.M.",H212/G212)))) -> 0 | K212: 0 | L212: 0 | M212: =+K212-L212 -> 0 | N212: =IF(L212<0,IF(M212=0,0,IF(OR(L212=0,K212=0),"N.M.",IF(ABS(M212/L212)>=10,"N.M.",M212/(-L212)))),IF(M212=0,0,IF(OR(L212=0,K212=0),"N.M.",IF(ABS(M212/L212)>=10,"N.M.",M212/L212)))) -> 0 | Q212: 0 | R212: 0 | S212: =+Q212-R212 -> 0 | T212: =IF(R212<0,IF(S212=0,0,IF(OR(R212=0,Q212=0),"N.M.",IF(ABS(S212/R212)>=10,"N.M.",S212/(-R212)))),IF(S212=0,0,IF(OR(R212=0,Q212=0),"N.M.",IF(ABS(S212/R212)>=10,"N.M.",S212/R212)))) -> 0 | V212: 0 | W212: 0 | X212: =+V212-W212 -> 0 | Y212: =IF(W212<0,IF(X212=0,0,IF(OR(W212=0,V212=0),"N.M.",IF(ABS(X212/W212)>=10,"N.M.",X212/(-W212)))),IF(X212=0,0,IF(OR(W212=0,V212=0),"N.M.",IF(ABS(X212/W212)>=10,"N.M.",X212/W212)))) -> 0 | AA212: 0 | AC212: 0 | AD212: 0 | AE212: 0 | AF212: 0 | AG212: 0 | AH212: 0 | AI212: 0 | AJ212: 0 | AK212: 0 | AL212: 0 | AM212: 0 | AN212: 0 | AP212: 0 | AQ212: 0 | AR212: 0 | AS212: 0 | AT212: 0 | AU212: 0 | AV212: 0 | AW212: 0 | AX212: 0 | AY212: 0 | AZ212: 340036.05 | BA212: 0
A213: %,FACCOUNT,TGL_FERC_ACCT,XDYYNNY01,N560-567 | C213: Transmission Operations | F213: 8542828.78 | G213: 7293626.64 | H213: =+F213-G213 -> 1249202.14 | I213: =IF(G213<0,IF(H213=0,0,IF(OR(G213=0,F213=0),"N.M.",IF(ABS(H213/G213)>=10,"N.M.",H213/(-G213)))),IF(H213=0,0,IF(OR(G213=0,F213=0),"N.M.",IF(ABS(H213/G213)>=10,"N.M.",H213/G213)))) -> 0.171273113 | K213: 75728897.82 | L213: 72244294.7 | M213: =+K213-L213 -> 3484603.12 | N213: =IF(L213<0,IF(M213=0,0,IF(OR(L213=0,K213=0),"N.M.",IF(ABS(M213/L213)>=10,"N.M.",M213/(-L213)))),IF(M213=0,0,IF(OR(L213=0,K213=0),"N.M.",IF(ABS(M213/L213)>=10,"N.M.",M213/L213)))) -> 0.04823360979 | Q213: 9760124.89 | R213: 21849364.66 | S213: =+Q213-R213 -> -12089239.77 | T213: =IF(R213<0,IF(S213=0,0,IF(OR(R213=0,Q213=0),"N.M.",IF(ABS(S213/R213)>=10,"N.M.",S213/(-R213)))),IF(S213=0,0,IF(OR(R213=0,Q213=0),"N.M.",IF(ABS(S213/R213)>=10,"N.M.",S213/R213)))) -> -0.5532993731 | V213: 89115586.22 | W213: 74441384.88 | X213: =+V213-W213 -> 14674201.34 | Y213: =IF(W213<0,IF(X213=0,0,IF(OR(W213=0,V213=0),"N.M.",IF(ABS(X213/W213)>=10,"N.M.",X213/(-W213)))),IF(X213=0,0,IF(OR(W213=0,V213=0),"N.M.",IF(ABS(X213/W213)>=10,"N.M.",X213/W213)))) -> 0.1971242389 | AA213: -3559201.39 | AC213: 9015506.54 | AD213: 5210200.08 | AE213: 9067490 | AF213: 7215798.99 | AG213: 7170956.27 | AH213: 5401294.03 | AI213: 7313684.13 | AJ213: 7395032.24 | AK213: 7160705.78 | AL213: 7293626.64 | AM213: 7089624.16 | AN213: 6297064.24 | AP213: 8391016.91 | AQ213: 7758402.21 | AR213: 8323222.39 | AS213: 8255972.16 | AT213: 8253836.29 | AU213: 16640535.46 | AV213: 8345787.51 | AW213: 8559516.98 | AX213: -7342220.87 | AY213: 8542828.78 | AZ213: 62590424.14 | BA213: 0
A215: %,V5757000 | B215: 5757000 | C215: PJM Admin-MAM&SC- OSS | F215: 7096.63 | G215: 2931.51 | H215: =+F215-G215 -> 4165.12 | I215: =IF(G215<0,IF(H215=0,0,IF(OR(G215=0,F215=0),"N.M.",IF(ABS(H215/G215)>=10,"N.M.",H215/(-G215)))),IF(H215=0,0,IF(OR(G215=0,F215=0),"N.M.",IF(ABS(H215/G215)>=10,"N.M.",H215/G215)))) -> 1.420810436 | K215: 70024.59 | L215: 60359.9 | M215: =+K215-L215 -> 9664.69 | N215: =IF(L215<0,IF(M215=0,0,IF(OR(L215=0,K215=0),"N.M.",IF(ABS(M215/L215)>=10,"N.M.",M215/(-L215)))),IF(M215=0,0,IF(OR(L215=0,K215=0),"N.M.",IF(ABS(M215/L215)>=10,"N.M.",M215/L215)))) -> 0.1601177272 | Q215: 31307.76 | R215: 16412.88 | S215: =+Q215-R215 -> 14894.88 | T215: =IF(R215<0,IF(S215=0,0,IF(OR(R215=0,Q215=0),"N.M.",IF(ABS(S215/R215)>=10,"N.M.",S215/(-R215)))),IF(S215=0,0,IF(OR(R215=0,Q215=0),"N.M.",IF(ABS(S215/R215)>=10,"N.M.",S215/R215)))) -> 0.9075116616 | V215: 81479.89 | W215: 64838.41 | X215: =+V215-W215 -> 16641.48 | Y215: =IF(W215<0,IF(X215=0,0,IF(OR(W215=0,V215=0),"N.M.",IF(ABS(X215/W215)>=10,"N.M.",X215/(-W215)))),IF(X215=0,0,IF(OR(W215=0,V215=0),"N.M.",IF(ABS(X215/W215)>=10,"N.M.",X215/W215)))) -> 0.256660828 | AA215: 774.26 | AC215: 3045.95 | AD215: 8122.23 | AE215: 1816.04 | AF215: 6544.22 | AG215: 2751.99 | AH215: 9983.37 | AI215: 11683.22 | AJ215: 10189.78 | AK215: 3291.59 | AL215: 2931.51 | AM215: 3642.67 | AN215: 7812.63 | AP215: 6761.19 | AQ215: 7074.43 | AR215: 2192.08 | AS215: 4530.45 | AT215: 5431 | AU215: 7744.23 | AV215: 4983.45 | AW215: 18902.24 | AX215: 5308.89 | AY215: 7096.63 | AZ215: -8096.9 | BA215: 0
A216: %,V5757001 | B216: 5757001 | C216: PJM Admin-MAM&SC- Internal | F216: 77560.36 | G216: 78792.97 | H216: =+F216-G216 -> -1232.61 | I216: =IF(G216<0,IF(H216=0,0,IF(OR(G216=0,F216=0),"N.M.",IF(ABS(H216/G216)>=10,"N.M.",H216/(-G216)))),IF(H216=0,0,IF(OR(G216=0,F216=0),"N.M.",IF(ABS(H216/G216)>=10,"N.M.",H216/G216)))) -> -0.0156436545 | K216: 1064855.4 | L216: 1158817.01 | M216: =+K216-L216 -> -93961.61 | N216: =IF(L216<0,IF(M216=0,0,IF(OR(L216=0,K216=0),"N.M.",IF(ABS(M216/L216)>=10,"N.M.",M216/(-L216)))),IF(M216=0,0,IF(OR(L216=0,K216=0),"N.M.",IF(ABS(M216/L216)>=10,"N.M.",M216/L216)))) -> -0.08108407901 | Q216: 344320.26 | R216: 309176.47 | S216: =+Q216-R216 -> 35143.79 | T216: =IF(R216<0,IF(S216=0,0,IF(OR(R216=0,Q216=0),"N.M.",IF(ABS(S216/R216)>=10,"N.M.",S216/(-R216)))),IF(S216=0,0,IF(OR(R216=0,Q216=0),"N.M.",IF(ABS(S216/R216)>=10,"N.M.",S216/R216)))) -> 0.1136690318 | V216: 1277216.99 | W216: 1268307.92 | X216: =+V216-W216 -> 8909.07 | Y216: =IF(W216<0,IF(X216=0,0,IF(OR(W216=0,V216=0),"N.M.",IF(ABS(X216/W216)>=10,"N.M.",X216/(-W216)))),IF(X216=0,0,IF(OR(W216=0,V216=0),"N.M.",IF(ABS(X216/W216)>=10,"N.M.",X216/W216)))) -> 0.007024374649 | AA216: 52761.64 | AC216: 329649.67 | AD216: 3267.27 | AE216: 89771.62 | AF216: 126774.7 | AG216: 83306.35 | AH216: 99270.1 | AI216: 117600.83 | AJ216: 124874.94 | AK216: 105508.56 | AL216: 78792.97 | AM216: 103357.23 | AN216: 109004.36 | AP216: 158273.45 | AQ216: 149555.78 | AR216: 80954.13 | AS216: 101728.7 | AT216: 94620.05 | AU216: 81406.89 | AV216: 53996.14 | AW216: 162453.75 | AX216: 104306.15 | AY216: 77560.36 | AZ216: -68452.64 | BA216: 0
A217: %,FACCOUNT,TGL_FERC_ACCT,XDYYNNY01,N575-576 | C217: Regional Market Expense | F217: 84656.99 | G217: 81724.48 | H217: =+F217-G217 -> 2932.51 | I217: =IF(G217<0,IF(H217=0,0,IF(OR(G217=0,F217=0),"N.M.",IF(ABS(H217/G217)>=10,"N.M.",H217/(-G217)))),IF(H217=0,0,IF(OR(G217=0,F217=0),"N.M.",IF(ABS(H217/G217)>=10,"N.M.",H217/G217)))) -> 0.03588288356 | K217: 1134879.99 | L217: 1219176.91 | M217: =+K217-L217 -> -84296.92 | N217: =IF(L217<0,IF(M217=0,0,IF(OR(L217=0,K217=0),"N.M.",IF(ABS(M217/L217)>=10,"N.M.",M217/(-L217)))),IF(M217=0,0,IF(OR(L217=0,K217=0),"N.M.",IF(ABS(M217/L217)>=10,"N.M.",M217/L217)))) -> -0.06914248401 | Q217: 375628.02 | R217: 325589.35 | S217: =+Q217-R217 -> 50038.67 | T217: =IF(R217<0,IF(S217=0,0,IF(OR(R217=0,Q217=0),"N.M.",IF(ABS(S217/R217)>=10,"N.M.",S217/(-R217)))),IF(S217=0,0,IF(OR(R217=0,Q217=0),"N.M.",IF(ABS(S217/R217)>=10,"N.M.",S217/R217)))) -> 0.1536864458 | V217: 1358696.88 | W217: 1333146.33 | X217: =+V217-W217 -> 25550.55 | Y217: =IF(W217<0,IF(X217=0,0,IF(OR(W217=0,V217=0),"N.M.",IF(ABS(X217/W217)>=10,"N.M.",X217/(-W217)))),IF(X217=0,0,IF(OR(W217=0,V217=0),"N.M.",IF(ABS(X217/W217)>=10,"N.M.",X217/W217)))) -> 0.01916560052 | AA217: 53535.9 | AC217: 332695.62 | AD217: 11389.5 | AE217: 91587.66 | AF217: 133318.92 | AG217: 86058.34 | AH217: 109253.47 | AI217: 129284.05 | AJ217: 135064.72 | AK217: 108800.15 | AL217: 81724.48 | AM217: 106999.9 | AN217: 116816.99 | AP217: 165034.64 | AQ217: 156630.21 | AR217: 83146.21 | AS217: 106259.15 | AT217: 100051.05 | AU217: 89151.12 | AV217: 58979.59 | AW217: 181355.99 | AX217: 109615.04 | AY217: 84656.99 | AZ217: -76549.54 | BA217: 0
... 421 more rows

Sheet Modification History (hidden)
A2: BU_Name | C2: Scope-based
A3: Contact Person | C3: Neal Hartley
A4: Department Owner | C4: Financial Reporting
A5: Account Tree | C5: GL_FERC_ACCT
A6: Business Unit Tree | C6: Scope-based
A7: Sunset Date
A8: Report Statement Type | C8: Reporting Package
A9: Report Description | C9: IS, BS, O&M, and Trial Bal
A10: Title (Builtin) | C10: FERC Comparative Statements
A11: Author (Builtin) | C11: Financial Reporting / Neal Hartley
A12: Comments (Builtin) | C12: Acct: GL_FERC_ACCT BU: Scope-based
A13: Subject (Builtin)
A14: Category (Builtin)
A15: Keywords (Builtin)
A18: 2016-08-01 | C18: Neal Hartley | E18: Created this new report from GLR3000V
A19: 2018-09-05 | C19: Neal Hartley | E19: Change Effective tax rate on lines 93 & 166 from 35% to 21%

Sheet O&M
A1: %,LACTUALS,SBAL | B1: %,ATF,FACCOUNT | C1: %,ATT,FDESCR,UDESCR | F1: %,LACTUALS,SPER | G1: %,LACTUALS,SPER-1YR | H1: %,C | I1: %,C | K1: %,LACTUALS,SYTD | L1: %,LACTUALS,SYTD-1YR | M1: %,C | N1: %,C | Q1: %,LACTUALS,SQTR | R1: %,LACTUALS,SQTR-1YR | S1: %,C | T1: %,C | V1: %,LACTUALS,SROLLING12 | W1: %,LACTUALS,SROLNG12-1Y | X1: %,C | Y1: %,C
C2: Kentucky Power Corp Consol | G2: Kentucky Power Corp Consol | L2: Kentucky Power Corp Consol | R2: Kentucky Power Corp Consol | W2: Kentucky Power Corp Consol
C3: October 2025 | G3: As of: Oct 2025 | L3: As of: Oct 2025 | R3: As of: Oct 2025 | W3: As of: Oct 2025
B4: Run Date: 11/08/2025 10:20 AM
B5: GLR6283P | C5: Rpt ID: FERC_IS1 Layout: FERC_IS1 | F5: ONE MONTH ENDED | H5: Variance | K5: YEAR TO DATE | M5: Variance | Q5: THREE MONTHS ENDED | S5: Variance | V5: TWELVE MONTHS ENDED | X5: Variance
B6: KYP_CORP_CONSOL | C6: V2099-01-01 Acct: GL_FERC_ACCT BU: GL_PRPT_CONS | F6: 2025 | G6: 2024 | H6: $ | I6: % | K6: 2025 | L6: 2024 | M6: $ | N6: % | O6: Explanation | Q6: 2025 | R6: 2024 | S6: $ | T6: % | V6: 2025 | W6: 2024 | X6: $ | Y6: %
C8: OPERATING AND MAINTENANCE DETAIL
C9: FERC Page 320
B10: Line 1 | C10: 1. POWER PRODUCTION EXPENSES
B11: Line 2 | C11: A. STEAM POWER GENERATION
B12: Line 3 | C12: Operation
A13: %,V5000000 | B13: 5000000 | C13: Oper Supervision & Engineering | F13: 366881.03 | G13: 248673.26 | H13: =+F13-G13 -> 118207.77 | I13: =IF(G13<0,IF(H13=0,0,IF(OR(G13=0,F13=0),"N.M.",IF(ABS(H13/G13)>=10,"N.M.",H13/(-G13)))),IF(H13=0,0,IF(OR(G13=0,F13=0),"N.M.",IF(ABS(H13/G13)>=10,"N.M.",H13/G13)))) -> 0.4753537634 | K13: 3539314.92 | L13: 3780152.19 | M13: =+K13-L13 -> -240837.27 | N13: =IF(L13<0,IF(M13=0,0,IF(OR(L13=0,K13=0),"N.M.",IF(ABS(M13/L13)>=10,"N.M.",M13/(-L13)))),IF(M13=0,0,IF(OR(L13=0,K13=0),"N.M.",IF(ABS(M13/L13)>=10,"N.M.",M13/L13)))) -> -0.06371099837 | Q13: 1146527.51 | R13: 1038949.45 | S13: =+Q13-R13 -> 107578.06 | T13: =IF(R13<0,IF(S13=0,0,IF(OR(R13=0,Q13=0),"N.M.",IF(ABS(S13/R13)>=10,"N.M.",S13/(-R13)))),IF(S13=0,0,IF(OR(R13=0,Q13=0),"N.M.",IF(ABS(S13/R13)>=10,"N.M.",S13/R13)))) -> 0.1035450377 | V13: 4186087.45 | W13: 4589310.6 | X13: =+V13-W13 -> -403223.15 | Y13: =IF(W13<0,IF(X13=0,0,IF(OR(W13=0,V13=0),"N.M.",IF(ABS(X13/W13)>=10,"N.M.",X13/(-W13)))),IF(X13=0,0,IF(OR(W13=0,V13=0),"N.M.",IF(ABS(X13/W13)>=10,"N.M.",X13/W13)))) -> -0.08786137726
A14: %,V5000003 | B14: 5000003 | C14: Cnstr Srchrge Op Sup & Eng Exp | F14: 0 | G14: 0 | H14: =+F14-G14 -> 0 | I14: =IF(G14<0,IF(H14=0,0,IF(OR(G14=0,F14=0),"N.M.",IF(ABS(H14/G14)>=10,"N.M.",H14/(-G14)))),IF(H14=0,0,IF(OR(G14=0,F14=0),"N.M.",IF(ABS(H14/G14)>=10,"N.M.",H14/G14)))) -> 0 | K14: 64.34 | L14: 0 | M14: =+K14-L14 -> 64.34 | N14: =IF(L14<0,IF(M14=0,0,IF(OR(L14=0,K14=0),"N.M.",IF(ABS(M14/L14)>=10,"N.M.",M14/(-L14)))),IF(M14=0,0,IF(OR(L14=0,K14=0),"N.M.",IF(ABS(M14/L14)>=10,"N.M.",M14/L14)))) -> N.M. | Q14: 64.34 | R14: 0 | S14: =+Q14-R14 -> 64.34 | T14: =IF(R14<0,IF(S14=0,0,IF(OR(R14=0,Q14=0),"N.M.",IF(ABS(S14/R14)>=10,"N.M.",S14/(-R14)))),IF(S14=0,0,IF(OR(R14=0,Q14=0),"N.M.",IF(ABS(S14/R14)>=10,"N.M.",S14/R14)))) -> N.M. | V14: 64.34 | W14: 0 | X14: =+V14-W14 -> 64.34 | Y14: =IF(W14<0,IF(X14=0,0,IF(OR(W14=0,V14=0),"N.M.",IF(ABS(X14/W14)>=10,"N.M.",X14/(-W14)))),IF(X14=0,0,IF(OR(W14=0,V14=0),"N.M.",IF(ABS(X14/W14)>=10,"N.M.",X14/W14)))) -> N.M.
A15: %,V5000005 | B15: 5000005 | C15: Deferred OM - 20% Non FMR | F15: 0 | G15: 0 | H15: =+F15-G15 -> 0 | I15: =IF(G15<0,IF(H15=0,0,IF(OR(G15=0,F15=0),"N.M.",IF(ABS(H15/G15)>=10,"N.M.",H15/(-G15)))),IF(H15=0,0,IF(OR(G15=0,F15=0),"N.M.",IF(ABS(H15/G15)>=10,"N.M.",H15/G15)))) -> 0 | K15: 0 | L15: 0 | M15: =+K15-L15 -> 0 | N15: =IF(L15<0,IF(M15=0,0,IF(OR(L15=0,K15=0),"N.M.",IF(ABS(M15/L15)>=10,"N.M.",M15/(-L15)))),IF(M15=0,0,IF(OR(L15=0,K15=0),"N.M.",IF(ABS(M15/L15)>=10,"N.M.",M15/L15)))) -> 0 | Q15: 0 | R15: 0 | S15: =+Q15-R15 -> 0 | T15: =IF(R15<0,IF(S15=0,0,IF(OR(R15=0,Q15=0),"N.M.",IF(ABS(S15/R15)>=10,"N.M.",S15/(-R15)))),IF(S15=0,0,IF(OR(R15=0,Q15=0),"N.M.",IF(ABS(S15/R15)>=10,"N.M.",S15/R15)))) -> 0 | V15: 0 | W15: 0 | X15: =+V15-W15 -> 0 | Y15: =IF(W15<0,IF(X15=0,0,IF(OR(W15=0,V15=0),"N.M.",IF(ABS(X15/W15)>=10,"N.M.",X15/(-W15)))),IF(X15=0,0,IF(OR(W15=0,V15=0),"N.M.",IF(ABS(X15/W15)>=10,"N.M.",X15/W15)))) -> 0
A16: %,FACCOUNT,X,TGL_FERC_ACCT,N5000 | B16: Line 4 | C16: (500) Operation Supervision and Engineering | F16: 366881.03 | G16: 248673.26 | H16: =+F16-G16 -> 118207.77 | I16: =IF(G16<0,IF(H16=0,0,IF(OR(G16=0,F16=0),"N.M.",IF(ABS(H16/G16)>=10,"N.M.",H16/(-G16)))),IF(H16=0,0,IF(OR(G16=0,F16=0),"N.M.",IF(ABS(H16/G16)>=10,"N.M.",H16/G16)))) -> 0.4753537634 | K16: 3539379.26 | L16: 3780152.19 | M16: =+K16-L16 -> -240772.93 | N16: =IF(L16<0,IF(M16=0,0,IF(OR(L16=0,K16=0),"N.M.",IF(ABS(M16/L16)>=10,"N.M.",M16/(-L16)))),IF(M16=0,0,IF(OR(L16=0,K16=0),"N.M.",IF(ABS(M16/L16)>=10,"N.M.",M16/L16)))) -> -0.06369397789 | Q16: 1146591.85 | R16: 1038949.45 | S16: =+Q16-R16 -> 107642.4 | T16: =IF(R16<0,IF(S16=0,0,IF(OR(R16=0,Q16=0),"N.M.",IF(ABS(S16/R16)>=10,"N.M.",S16/(-R16)))),IF(S16=0,0,IF(OR(R16=0,Q16=0),"N.M.",IF(ABS(S16/R16)>=10,"N.M.",S16/R16)))) -> 0.1036069657 | V16: 4186151.79 | W16: 4589310.6 | X16: =+V16-W16 -> -403158.81 | Y16: =IF(W16<0,IF(X16=0,0,IF(OR(W16=0,V16=0),"N.M.",IF(ABS(X16/W16)>=10,"N.M.",X16/(-W16)))),IF(X16=0,0,IF(OR(W16=0,V16=0),"N.M.",IF(ABS(X16/W16)>=10,"N.M.",X16/W16)))) -> -0.08784735773
A17: %,V5010000 | B17: 5010000 | C17: Fuel | F17: 534269.35 | G17: 208202.56 | H17: =+F17-G17 -> 326066.79 | I17: =IF(G17<0,IF(H17=0,0,IF(OR(G17=0,F17=0),"N.M.",IF(ABS(H17/G17)>=10,"N.M.",H17/(-G17)))),IF(H17=0,0,IF(OR(G17=0,F17=0),"N.M.",IF(ABS(H17/G17)>=10,"N.M.",H17/G17)))) -> 1.566103654 | K17: 6587808.13 | L17: 5490530.41 | M17: =+K17-L17 -> 1097277.72 | N17: =IF(L17<0,IF(M17=0,0,IF(OR(L17=0,K17=0),"N.M.",IF(ABS(M17/L17)>=10,"N.M.",M17/(-L17)))),IF(M17=0,0,IF(OR(L17=0,K17=0),"N.M.",IF(ABS(M17/L17)>=10,"N.M.",M17/L17)))) -> 0.199849129 | Q17: 1817003.92 | R17: 1941317.36 | S17: =+Q17-R17 -> -124313.44 | T17: =IF(R17<0,IF(S17=0,0,IF(OR(R17=0,Q17=0),"N.M.",IF(ABS(S17/R17)>=10,"N.M.",S17/(-R17)))),IF(S17=0,0,IF(OR(R17=0,Q17=0),"N.M.",IF(ABS(S17/R17)>=10,"N.M.",S17/R17)))) -> -0.0640356093 | V17: 7446117.73 | W17: 7297457.96 | X17: =+V17-W17 -> 148659.77 | Y17: =IF(W17<0,IF(X17=0,0,IF(OR(W17=0,V17=0),"N.M.",IF(ABS(X17/W17)>=10,"N.M.",X17/(-W17)))),IF(X17=0,0,IF(OR(W17=0,V17=0),"N.M.",IF(ABS(X17/W17)>=10,"N.M.",X17/W17)))) -> 0.02037144589
A18: %,V5010001 | B18: 5010001 | C18: Fuel Consumed | F18: 9776000.93 | G18: 5748105.71 | H18: =+F18-G18 -> 4027895.22 | I18: =IF(G18<0,IF(H18=0,0,IF(OR(G18=0,F18=0),"N.M.",IF(ABS(H18/G18)>=10,"N.M.",H18/(-G18)))),IF(H18=0,0,IF(OR(G18=0,F18=0),"N.M.",IF(ABS(H18/G18)>=10,"N.M.",H18/G18)))) -> 0.7007343677 | K18: 58089542.65 | L18: 64166304.05 | M18: =+K18-L18 -> -6076761.4 | N18: =IF(L18<0,IF(M18=0,0,IF(OR(L18=0,K18=0),"N.M.",IF(ABS(M18/L18)>=10,"N.M.",M18/(-L18)))),IF(M18=0,0,IF(OR(L18=0,K18=0),"N.M.",IF(ABS(M18/L18)>=10,"N.M.",M18/L18)))) -> -0.09470331025 | Q18: 19460885.74 | R18: 15480083.14 | S18: =+Q18-R18 -> 3980802.6 | T18: =IF(R18<0,IF(S18=0,0,IF(OR(R18=0,Q18=0),"N.M.",IF(ABS(S18/R18)>=10,"N.M.",S18/(-R18)))),IF(S18=0,0,IF(OR(R18=0,Q18=0),"N.M.",IF(ABS(S18/R18)>=10,"N.M.",S18/R18)))) -> 0.2571564096 | V18: 76120162.9 | W18: 72122256.21 | X18: =+V18-W18 -> 3997906.69 | Y18: =IF(W18<0,IF(X18=0,0,IF(OR(W18=0,V18=0),"N.M.",IF(ABS(X18/W18)>=10,"N.M.",X18/(-W18)))),IF(X18=0,0,IF(OR(W18=0,V18=0),"N.M.",IF(ABS(X18/W18)>=10,"N.M.",X18/W18)))) -> 0.0554323575
A19: %,V5010003 | B19: 5010003 | C19: Fuel - Procure Unload & Handle | F19: 464300.85 | G19: 279714.02 | H19: =+F19-G19 -> 184586.83 | I19: =IF(G19<0,IF(H19=0,0,IF(OR(G19=0,F19=0),"N.M.",IF(ABS(H19/G19)>=10,"N.M.",H19/(-G19)))),IF(H19=0,0,IF(OR(G19=0,F19=0),"N.M.",IF(ABS(H19/G19)>=10,"N.M.",H19/G19)))) -> 0.6599126851 | K19: 3253415.96 | L19: 2669796.85 | M19: =+K19-L19 -> 583619.11 | N19: =IF(L19<0,IF(M19=0,0,IF(OR(L19=0,K19=0),"N.M.",IF(ABS(M19/L19)>=10,"N.M.",M19/(-L19)))),IF(M19=0,0,IF(OR(L19=0,K19=0),"N.M.",IF(ABS(M19/L19)>=10,"N.M.",M19/L19)))) -> 0.2186005688 | Q19: 984298.47 | R19: 726102.17 | S19: =+Q19-R19 -> 258196.3 | T19: =IF(R19<0,IF(S19=0,0,IF(OR(R19=0,Q19=0),"N.M.",IF(ABS(S19/R19)>=10,"N.M.",S19/(-R19)))),IF(S19=0,0,IF(OR(R19=0,Q19=0),"N.M.",IF(ABS(S19/R19)>=10,"N.M.",S19/R19)))) -> 0.355592244 | V19: 4134409.19 | W19: 2934277.27 | X19: =+V19-W19 -> 1200131.92 | Y19: =IF(W19<0,IF(X19=0,0,IF(OR(W19=0,V19=0),"N.M.",IF(ABS(X19/W19)>=10,"N.M.",X19/(-W19)))),IF(X19=0,0,IF(OR(W19=0,V19=0),"N.M.",IF(ABS(X19/W19)>=10,"N.M.",X19/W19)))) -> 0.4090042656
A20: %,V5010005 | B20: 5010005 | C20: Fuel - Deferred | F20: -4067343.391 | G20: 765316.16 | H20: =+F20-G20 -> -4832659.551 | I20: =IF(G20<0,IF(H20=0,0,IF(OR(G20=0,F20=0),"N.M.",IF(ABS(H20/G20)>=10,"N.M.",H20/(-G20)))),IF(H20=0,0,IF(OR(G20=0,F20=0),"N.M.",IF(ABS(H20/G20)>=10,"N.M.",H20/G20)))) -> -6.314592326 | K20: 3597380.24 | L20: 3190865.31 | M20: =+K20-L20 -> 406514.93 | N20: =IF(L20<0,IF(M20=0,0,IF(OR(L20=0,K20=0),"N.M.",IF(ABS(M20/L20)>=10,"N.M.",M20/(-L20)))),IF(M20=0,0,IF(OR(L20=0,K20=0),"N.M.",IF(ABS(M20/L20)>=10,"N.M.",M20/L20)))) -> 0.1273995893 | Q20: 3357961 | R20: 2715647 | S20: =+Q20-R20 -> 642314 | T20: =IF(R20<0,IF(S20=0,0,IF(OR(R20=0,Q20=0),"N.M.",IF(ABS(S20/R20)>=10,"N.M.",S20/(-R20)))),IF(S20=0,0,IF(OR(R20=0,Q20=0),"N.M.",IF(ABS(S20/R20)>=10,"N.M.",S20/R20)))) -> 0.2365233773 | V20: 2459739 | W20: -2788074 | X20: =+V20-W20 -> 5247813 | Y20: =IF(W20<0,IF(X20=0,0,IF(OR(W20=0,V20=0),"N.M.",IF(ABS(X20/W20)>=10,"N.M.",X20/(-W20)))),IF(X20=0,0,IF(OR(W20=0,V20=0),"N.M.",IF(ABS(X20/W20)>=10,"N.M.",X20/W20)))) -> 1.882235909
A21: %,V5010012 | B21: 5010012 | C21: Ash Sales Proceeds | F21: 880.4 | G21: 584.27 | H21: =+F21-G21 -> 296.13 | I21: =IF(G21<0,IF(H21=0,0,IF(OR(G21=0,F21=0),"N.M.",IF(ABS(H21/G21)>=10,"N.M.",H21/(-G21)))),IF(H21=0,0,IF(OR(G21=0,F21=0),"N.M.",IF(ABS(H21/G21)>=10,"N.M.",H21/G21)))) -> 0.5068375922 | K21: 5109.5 | L21: 15673.29 | M21: =+K21-L21 -> -10563.79 | N21: =IF(L21<0,IF(M21=0,0,IF(OR(L21=0,K21=0),"N.M.",IF(ABS(M21/L21)>=10,"N.M.",M21/(-L21)))),IF(M21=0,0,IF(OR(L21=0,K21=0),"N.M.",IF(ABS(M21/L21)>=10,"N.M.",M21/L21)))) -> -0.673999524 | Q21: 2089.95 | R21: 4999.45 | S21: =+Q21-R21 -> -2909.5 | T21: =IF(R21<0,IF(S21=0,0,IF(OR(R21=0,Q21=0),"N.M.",IF(ABS(S21/R21)>=10,"N.M.",S21/(-R21)))),IF(S21=0,0,IF(OR(R21=0,Q21=0),"N.M.",IF(ABS(S21/R21)>=10,"N.M.",S21/R21)))) -> -0.581964016 | V21: 8290.26 | W21: 15673.29 | X21: =+V21-W21 -> -7383.03 | Y21: =IF(W21<0,IF(X21=0,0,IF(OR(W21=0,V21=0),"N.M.",IF(ABS(X21/W21)>=10,"N.M.",X21/(-W21)))),IF(X21=0,0,IF(OR(W21=0,V21=0),"N.M.",IF(ABS(X21/W21)>=10,"N.M.",X21/W21)))) -> -0.4710580867
A22: %,V5010013 | B22: 5010013 | C22: Fuel Survey Activity | F22: 0 | G22: 0 | H22: =+F22-G22 -> 0 | I22: =IF(G22<0,IF(H22=0,0,IF(OR(G22=0,F22=0),"N.M.",IF(ABS(H22/G22)>=10,"N.M.",H22/(-G22)))),IF(H22=0,0,IF(OR(G22=0,F22=0),"N.M.",IF(ABS(H22/G22)>=10,"N.M.",H22/G22)))) -> 0 | K22: 4136038.43 | L22: 49281.13 | M22: =+K22-L22 -> 4086757.3 | N22: =IF(L22<0,IF(M22=0,0,IF(OR(L22=0,K22=0),"N.M.",IF(ABS(M22/L22)>=10,"N.M.",M22/(-L22)))),IF(M22=0,0,IF(OR(L22=0,K22=0),"N.M.",IF(ABS(M22/L22)>=10,"N.M.",M22/L22)))) -> N.M. | Q22: 0 | R22: 0 | S22: =+Q22-R22 -> 0 | T22: =IF(R22<0,IF(S22=0,0,IF(OR(R22=0,Q22=0),"N.M.",IF(ABS(S22/R22)>=10,"N.M.",S22/(-R22)))),IF(S22=0,0,IF(OR(R22=0,Q22=0),"N.M.",IF(ABS(S22/R22)>=10,"N.M.",S22/R22)))) -> 0 | V22: 4136038.43 | W22: 49281.13 | X22: =+V22-W22 -> 4086757.3 | Y22: =IF(W22<0,IF(X22=0,0,IF(OR(W22=0,V22=0),"N.M.",IF(ABS(X22/W22)>=10,"N.M.",X22/(-W22)))),IF(X22=0,0,IF(OR(W22=0,V22=0),"N.M.",IF(ABS(X22/W22)>=10,"N.M.",X22/W22)))) -> N.M.
A23: %,V5010019 | B23: 5010019 | C23: Fuel Oil Consumed | F23: 299158.57 | G23: 712070.8 | H23: =+F23-G23 -> -412912.23 | I23: =IF(G23<0,IF(H23=0,0,IF(OR(G23=0,F23=0),"N.M.",IF(ABS(H23/G23)>=10,"N.M.",H23/(-G23)))),IF(H23=0,0,IF(OR(G23=0,F23=0),"N.M.",IF(ABS(H23/G23)>=10,"N.M.",H23/G23)))) -> -0.5798752456 | K23: 3420445.51 | L23: 3426610.51 | M23: =+K23-L23 -> -6165 | N23: =IF(L23<0,IF(M23=0,0,IF(OR(L23=0,K23=0),"N.M.",IF(ABS(M23/L23)>=10,"N.M.",M23/(-L23)))),IF(M23=0,0,IF(OR(L23=0,K23=0),"N.M.",IF(ABS(M23/L23)>=10,"N.M.",M23/L23)))) -> -0.001799153998 | Q23: 720293.21 | R23: 1265222.88 | S23: =+Q23-R23 -> -544929.67 | T23: =IF(R23<0,IF(S23=0,0,IF(OR(R23=0,Q23=0),"N.M.",IF(ABS(S23/R23)>=10,"N.M.",S23/(-R23)))),IF(S23=0,0,IF(OR(R23=0,Q23=0),"N.M.",IF(ABS(S23/R23)>=10,"N.M.",S23/R23)))) -> -0.430698558 | V23: 3723166.32 | W23: 4197678.55 | X23: =+V23-W23 -> -474512.23 | Y23: =IF(W23<0,IF(X23=0,0,IF(OR(W23=0,V23=0),"N.M.",IF(ABS(X23/W23)>=10,"N.M.",X23/(-W23)))),IF(X23=0,0,IF(OR(W23=0,V23=0),"N.M.",IF(ABS(X23/W23)>=10,"N.M.",X23/W23)))) -> -0.1130415834
A24: %,V5010020 | B24: 5010020 | C24: Nat Gas Consumed Steam | F24: 10346.29 | G24: -20.64 | H24: =+F24-G24 -> 10366.93 | I24: =IF(G24<0,IF(H24=0,0,IF(OR(G24=0,F24=0),"N.M.",IF(ABS(H24/G24)>=10,"N.M.",H24/(-G24)))),IF(H24=0,0,IF(OR(G24=0,F24=0),"N.M.",IF(ABS(H24/G24)>=10,"N.M.",H24/G24)))) -> N.M. | K24: 30926113.95 | L24: 24588025.92 | M24: =+K24-L24 -> 6338088.03 | N24: =IF(L24<0,IF(M24=0,0,IF(OR(L24=0,K24=0),"N.M.",IF(ABS(M24/L24)>=10,"N.M.",M24/(-L24)))),IF(M24=0,0,IF(OR(L24=0,K24=0),"N.M.",IF(ABS(M24/L24)>=10,"N.M.",M24/L24)))) -> 0.2577713254 | Q24: 5509339.33 | R24: 4324252.82 | S24: =+Q24-R24 -> 1185086.51 | T24: =IF(R24<0,IF(S24=0,0,IF(OR(R24=0,Q24=0),"N.M.",IF(ABS(S24/R24)>=10,"N.M.",S24/(-R24)))),IF(S24=0,0,IF(OR(R24=0,Q24=0),"N.M.",IF(ABS(S24/R24)>=10,"N.M.",S24/R24)))) -> 0.2740557871 | V24: 34103214.8 | W24: 28707778.4 | X24: =+V24-W24 -> 5395436.4 | Y24: =IF(W24<0,IF(X24=0,0,IF(OR(W24=0,V24=0),"N.M.",IF(ABS(X24/W24)>=10,"N.M.",X24/(-W24)))),IF(X24=0,0,IF(OR(W24=0,V24=0),"N.M.",IF(ABS(X24/W24)>=10,"N.M.",X24/W24)))) -> 0.1879433624
A25: %,V5010021 | B25: 5010021 | C25: Transp Gas Consumed Steam | F25: 105032.69 | G25: 65739.41 | H25: =+F25-G25 -> 39293.28 | I25: =IF(G25<0,IF(H25=0,0,IF(OR(G25=0,F25=0),"N.M.",IF(ABS(H25/G25)>=10,"N.M.",H25/(-G25)))),IF(H25=0,0,IF(OR(G25=0,F25=0),"N.M.",IF(ABS(H25/G25)>=10,"N.M.",H25/G25)))) -> 0.5977126962 | K25: 544774.08 | L25: 667036.33 | M25: =+K25-L25 -> -122262.25 | N25: =IF(L25<0,IF(M25=0,0,IF(OR(L25=0,K25=0),"N.M.",IF(ABS(M25/L25)>=10,"N.M.",M25/(-L25)))),IF(M25=0,0,IF(OR(L25=0,K25=0),"N.M.",IF(ABS(M25/L25)>=10,"N.M.",M25/L25)))) -> -0.1832917406 | Q25: 229641.14 | R25: 91958.26 | S25: =+Q25-R25 -> 137682.88 | T25: =IF(R25<0,IF(S25=0,0,IF(OR(R25=0,Q25=0),"N.M.",IF(ABS(S25/R25)>=10,"N.M.",S25/(-R25)))),IF(S25=0,0,IF(OR(R25=0,Q25=0),"N.M.",IF(ABS(S25/R25)>=10,"N.M.",S25/R25)))) -> 1.497232331 | V25: 502233.66 | W25: 713102.06 | X25: =+V25-W25 -> -210868.4 | Y25: =IF(W25<0,IF(X25=0,0,IF(OR(W25=0,V25=0),"N.M.",IF(ABS(X25/W25)>=10,"N.M.",X25/(-W25)))),IF(X25=0,0,IF(OR(W25=0,V25=0),"N.M.",IF(ABS(X25/W25)>=10,"N.M.",X25/W25)))) -> -0.2957057788
A26: %,V5010027 | B26: 5010027 | C26: Gypsum handling/disposal costs | F26: 136617.8 | G26: 122197.09 | H26: =+F26-G26 -> 14420.71 | I26: =IF(G26<0,IF(H26=0,0,IF(OR(G26=0,F26=0),"N.M.",IF(ABS(H26/G26)>=10,"N.M.",H26/(-G26)))),IF(H26=0,0,IF(OR(G26=0,F26=0),"N.M.",IF(ABS(H26/G26)>=10,"N.M.",H26/G26)))) -> 0.1180118937 | K26: 1173401.8 | L26: 1136677.8 | M26: =+K26-L26 -> 36724 | N26: =IF(L26<0,IF(M26=0,0,IF(OR(L26=0,K26=0),"N.M.",IF(ABS(M26/L26)>=10,"N.M.",M26/(-L26)))),IF(M26=0,0,IF(OR(L26=0,K26=0),"N.M.",IF(ABS(M26/L26)>=10,"N.M.",M26/L26)))) -> 0.03230818795 | Q26: 403798.9 | R26: 343722.14 | S26: =+Q26-R26 -> 60076.76 | T26: =IF(R26<0,IF(S26=0,0,IF(OR(R26=0,Q26=0),"N.M.",IF(ABS(S26/R26)>=10,"N.M.",S26/(-R26)))),IF(S26=0,0,IF(OR(R26=0,Q26=0),"N.M.",IF(ABS(S26/R26)>=10,"N.M.",S26/R26)))) -> 0.174782922 | V26: 1426995.68 | W26: 1373851.1 | X26: =+V26-W26 -> 53144.58 | Y26: =IF(W26<0,IF(X26=0,0,IF(OR(W26=0,V26=0),"N.M.",IF(ABS(X26/W26)>=10,"N.M.",X26/(-W26)))),IF(X26=0,0,IF(OR(W26=0,V26=0),"N.M.",IF(ABS(X26/W26)>=10,"N.M.",X26/W26)))) -> 0.03868292568
A27: %,V5010028 | B27: 5010028 | C27: Gypsum Sales Proceeds | F27: -100916.97 | G27: -59705.71 | H27: =+F27-G27 -> -41211.26 | I27: =IF(G27<0,IF(H27=0,0,IF(OR(G27=0,F27=0),"N.M.",IF(ABS(H27/G27)>=10,"N.M.",H27/(-G27)))),IF(H27=0,0,IF(OR(G27=0,F27=0),"N.M.",IF(ABS(H27/G27)>=10,"N.M.",H27/G27)))) -> -0.6902398447 | K27: -1044148.64 | L27: -1110370.39 | M27: =+K27-L27 -> 66221.75 | N27: =IF(L27<0,IF(M27=0,0,IF(OR(L27=0,K27=0),"N.M.",IF(ABS(M27/L27)>=10,"N.M.",M27/(-L27)))),IF(M27=0,0,IF(OR(L27=0,K27=0),"N.M.",IF(ABS(M27/L27)>=10,"N.M.",M27/L27)))) -> 0.0596393335 | Q27: -344402.39 | R27: -320304.58 | S27: =+Q27-R27 -> -24097.81 | T27: =IF(R27<0,IF(S27=0,0,IF(OR(R27=0,Q27=0),"N.M.",IF(ABS(S27/R27)>=10,"N.M.",S27/(-R27)))),IF(S27=0,0,IF(OR(R27=0,Q27=0),"N.M.",IF(ABS(S27/R27)>=10,"N.M.",S27/R27)))) -> -0.07523404754 | V27: -1219455.76 | W27: -1241293.51 | X27: =+V27-W27 -> 21837.75 | Y27: =IF(W27<0,IF(X27=0,0,IF(OR(W27=0,V27=0),"N.M.",IF(ABS(X27/W27)>=10,"N.M.",X27/(-W27)))),IF(X27=0,0,IF(OR(W27=0,V27=0),"N.M.",IF(ABS(X27/W27)>=10,"N.M.",X27/W27)))) -> 0.01759273679
A28: %,V5010034 | B28: 5010034 | C28: Gas Transp Res Fees-Steam | F28: 503208 | G28: 549928.84 | H28: =+F28-G28 -> -46720.84 | I28: =IF(G28<0,IF(H28=0,0,IF(OR(G28=0,F28=0),"N.M.",IF(ABS(H28/G28)>=10,"N.M.",H28/(-G28)))),IF(H28=0,0,IF(OR(G28=0,F28=0),"N.M.",IF(ABS(H28/G28)>=10,"N.M.",H28/G28)))) -> -0.08495797384 | K28: 5095673.27 | L28: 5332168.12 | M28: =+K28-L28 -> -236494.85 | N28: =IF(L28<0,IF(M28=0,0,IF(OR(L28=0,K28=0),"N.M.",IF(ABS(M28/L28)>=10,"N.M.",M28/(-L28)))),IF(M28=0,0,IF(OR(L28=0,K28=0),"N.M.",IF(ABS(M28/L28)>=10,"N.M.",M28/L28)))) -> -0.04435247439 | Q28: 1495216.79 | R28: 1635400.84 | S28: =+Q28-R28 -> -140184.05 | T28: =IF(R28<0,IF(S28=0,0,IF(OR(R28=0,Q28=0),"N.M.",IF(ABS(S28/R28)>=10,"N.M.",S28/(-R28)))),IF(S28=0,0,IF(OR(R28=0,Q28=0),"N.M.",IF(ABS(S28/R28)>=10,"N.M.",S28/R28)))) -> -0.08571846521 | V28: 6001664.55 | W28: 6352835.8 | X28: =+V28-W28 -> -351171.25 | Y28: =IF(W28<0,IF(X28=0,0,IF(OR(W28=0,V28=0),"N.M.",IF(ABS(X28/W28)>=10,"N.M.",X28/(-W28)))),IF(X28=0,0,IF(OR(W28=0,V28=0),"N.M.",IF(ABS(X28/W28)>=10,"N.M.",X28/W28)))) -> -0.05527787291
A29: %,V5010040 | B29: 5010040 | C29: Gas Procuremnt Sales Net | F29: 312992.9 | G29: 638344.962 | H29: =+F29-G29 -> -325352.062 | I29: =IF(G29<0,IF(H29=0,0,IF(OR(G29=0,F29=0),"N.M.",IF(ABS(H29/G29)>=10,"N.M.",H29/(-G29)))),IF(H29=0,0,IF(OR(G29=0,F29=0),"N.M.",IF(ABS(H29/G29)>=10,"N.M.",H29/G29)))) -> -0.5096806294 | K29: 660196.66 | L29: 1780041.71 | M29: =+K29-L29 -> -1119845.05 | N29: =IF(L29<0,IF(M29=0,0,IF(OR(L29=0,K29=0),"N.M.",IF(ABS(M29/L29)>=10,"N.M.",M29/(-L29)))),IF(M29=0,0,IF(OR(L29=0,K29=0),"N.M.",IF(ABS(M29/L29)>=10,"N.M.",M29/L29)))) -> -0.6291116909 | Q29: 422212.91 | R29: 639344.85 | S29: =+Q29-R29 -> -217131.94 | T29: =IF(R29<0,IF(S29=0,0,IF(OR(R29=0,Q29=0),"N.M.",IF(ABS(S29/R29)>=10,"N.M.",S29/(-R29)))),IF(S29=0,0,IF(OR(R29=0,Q29=0),"N.M.",IF(ABS(S29/R29)>=10,"N.M.",S29/R29)))) -> -0.3396163119 | V29: 1578957.65 | W29: 1865936.37 | X29: =+V29-W29 -> -286978.72 | Y29: =IF(W29<0,IF(X29=0,0,IF(OR(W29=0,V29=0),"N.M.",IF(ABS(X29/W29)>=10,"N.M.",X29/(-W29)))),IF(X29=0,0,IF(OR(W29=0,V29=0),"N.M.",IF(ABS(X29/W29)>=10,"N.M.",X29/W29)))) -> -0.1537987707
A30: %,FACCOUNT,X,TGL_FERC_ACCT,N5010 | B30: Line 5 | C30: (501) Fuel | F30: 7974547.419 | G30: 9030477.472 | H30: =+F30-G30 -> -1055930.053 | I30: =IF(G30<0,IF(H30=0,0,IF(OR(G30=0,F30=0),"N.M.",IF(ABS(H30/G30)>=10,"N.M.",H30/(-G30)))),IF(H30=0,0,IF(OR(G30=0,F30=0),"N.M.",IF(ABS(H30/G30)>=10,"N.M.",H30/G30)))) -> -0.1169295927 | K30: 116445751.5 | L30: 111402641 | M30: =+K30-L30 -> 5043110.5 | N30: =IF(L30<0,IF(M30=0,0,IF(OR(L30=0,K30=0),"N.M.",IF(ABS(M30/L30)>=10,"N.M.",M30/(-L30)))),IF(M30=0,0,IF(OR(L30=0,K30=0),"N.M.",IF(ABS(M30/L30)>=10,"N.M.",M30/L30)))) -> 0.04526921851 | Q30: 34058338.97 | R30: 28847746.33 | S30: =+Q30-R30 -> 5210592.64 | T30: =IF(R30<0,IF(S30=0,0,IF(OR(R30=0,Q30=0),"N.M.",IF(ABS(S30/R30)>=10,"N.M.",S30/(-R30)))),IF(S30=0,0,IF(OR(R30=0,Q30=0),"N.M.",IF(ABS(S30/R30)>=10,"N.M.",S30/R30)))) -> 0.1806239066 | V30: 140421534.4 | W30: 121600760.6 | X30: =+V30-W30 -> 18820773.78 | Y30: =IF(W30<0,IF(X30=0,0,IF(OR(W30=0,V30=0),"N.M.",IF(ABS(X30/W30)>=10,"N.M.",X30/(-W30)))),IF(X30=0,0,IF(OR(W30=0,V30=0),"N.M.",IF(ABS(X30/W30)>=10,"N.M.",X30/W30)))) -> 0.154775132
A31: %,V5020000 | B31: 5020000 | C31: Steam Expenses | F31: 168965.39 | G31: 109282.58 | H31: =+F31-G31 -> 59682.81 | I31: =IF(G31<0,IF(H31=0,0,IF(OR(G31=0,F31=0),"N.M.",IF(ABS(H31/G31)>=10,"N.M.",H31/(-G31)))),IF(H31=0,0,IF(OR(G31=0,F31=0),"N.M.",IF(ABS(H31/G31)>=10,"N.M.",H31/G31)))) -> 0.5461328786 | K31: 1677403.5 | L31: 1259576.64 | M31: =+K31-L31 -> 417826.86 | N31: =IF(L31<0,IF(M31=0,0,IF(OR(L31=0,K31=0),"N.M.",IF(ABS(M31/L31)>=10,"N.M.",M31/(-L31)))),IF(M31=0,0,IF(OR(L31=0,K31=0),"N.M.",IF(ABS(M31/L31)>=10,"N.M.",M31/L31)))) -> 0.331720077 | Q31: 487136.15 | R31: 353345.39 | S31: =+Q31-R31 -> 133790.76 | T31: =IF(R31<0,IF(S31=0,0,IF(OR(R31=0,Q31=0),"N.M.",IF(ABS(S31/R31)>=10,"N.M.",S31/(-R31)))),IF(S31=0,0,IF(OR(R31=0,Q31=0),"N.M.",IF(ABS(S31/R31)>=10,"N.M.",S31/R31)))) -> 0.3786401741 | V31: 1917558.51 | W31: 1505593.66 | X31: =+V31-W31 -> 411964.85 | Y31: =IF(W31<0,IF(X31=0,0,IF(OR(W31=0,V31=0),"N.M.",IF(ABS(X31/W31)>=10,"N.M.",X31/(-W31)))),IF(X31=0,0,IF(OR(W31=0,V31=0),"N.M.",IF(ABS(X31/W31)>=10,"N.M.",X31/W31)))) -> 0.2736228645
A32: %,V5020002 | B32: 5020002 | C32: Urea Expense | F32: 137585.53 | G32: 95424.8 | H32: =+F32-G32 -> 42160.73 | I32: =IF(G32<0,IF(H32=0,0,IF(OR(G32=0,F32=0),"N.M.",IF(ABS(H32/G32)>=10,"N.M.",H32/(-G32)))),IF(H32=0,0,IF(OR(G32=0,F32=0),"N.M.",IF(ABS(H32/G32)>=10,"N.M.",H32/G32)))) -> 0.4418215181 | K32: 728972.96 | L32: 1004576.45 | M32: =+K32-L32 -> -275603.49 | N32: =IF(L32<0,IF(M32=0,0,IF(OR(L32=0,K32=0),"N.M.",IF(ABS(M32/L32)>=10,"N.M.",M32/(-L32)))),IF(M32=0,0,IF(OR(L32=0,K32=0),"N.M.",IF(ABS(M32/L32)>=10,"N.M.",M32/L32)))) -> -0.2743479503 | Q32: 248345.87 | R32: 230969.87 | S32: =+Q32-R32 -> 17376 | T32: =IF(R32<0,IF(S32=0,0,IF(OR(R32=0,Q32=0),"N.M.",IF(ABS(S32/R32)>=10,"N.M.",S32/(-R32)))),IF(S32=0,0,IF(OR(R32=0,Q32=0),"N.M.",IF(ABS(S32/R32)>=10,"N.M.",S32/R32)))) -> 0.07523059177 | V32: 1002191.06 | W32: 1310727.1 | X32: =+V32-W32 -> -308536.04 | Y32: =IF(W32<0,IF(X32=0,0,IF(OR(W32=0,V32=0),"N.M.",IF(ABS(X32/W32)>=10,"N.M.",X32/(-W32)))),IF(X32=0,0,IF(OR(W32=0,V32=0),"N.M.",IF(ABS(X32/W32)>=10,"N.M.",X32/W32)))) -> -0.2353930425
A33: %,V5020004 | B33: 5020004 | C33: Lime-Related Expenses | F33: 358832.84 | G33: 187378.03 | H33: =+F33-G33 -> 171454.81 | I33: =IF(G33<0,IF(H33=0,0,IF(OR(G33=0,F33=0),"N.M.",IF(ABS(H33/G33)>=10,"N.M.",H33/(-G33)))),IF(H33=0,0,IF(OR(G33=0,F33=0),"N.M.",IF(ABS(H33/G33)>=10,"N.M.",H33/G33)))) -> 0.9150208805 | K33: 1877841.53 | L33: 1678025.8 | M33: =+K33-L33 -> 199815.73 | N33: =IF(L33<0,IF(M33=0,0,IF(OR(L33=0,K33=0),"N.M.",IF(ABS(M33/L33)>=10,"N.M.",M33/(-L33)))),IF(M33=0,0,IF(OR(L33=0,K33=0),"N.M.",IF(ABS(M33/L33)>=10,"N.M.",M33/L33)))) -> 0.1190778652 | Q33: 717781.05 | R33: 496324.81 | S33: =+Q33-R33 -> 221456.24 | T33: =IF(R33<0,IF(S33=0,0,IF(OR(R33=0,Q33=0),"N.M.",IF(ABS(S33/R33)>=10,"N.M.",S33/(-R33)))),IF(S33=0,0,IF(OR(R33=0,Q33=0),"N.M.",IF(ABS(S33/R33)>=10,"N.M.",S33/R33)))) -> 0.4461921619 | V33: 2475532.62 | W33: 1965056.94 | X33: =+V33-W33 -> 510475.68 | Y33: =IF(W33<0,IF(X33=0,0,IF(OR(W33=0,V33=0),"N.M.",IF(ABS(X33/W33)>=10,"N.M.",X33/(-W33)))),IF(X33=0,0,IF(OR(W33=0,V33=0),"N.M.",IF(ABS(X33/W33)>=10,"N.M.",X33/W33)))) -> 0.2597765335
A34: %,V5020005 | B34: 5020005 | C34: Polymer expense | F34: 0 | G34: 0 | H34: =+F34-G34 -> 0 | I34: =IF(G34<0,IF(H34=0,0,IF(OR(G34=0,F34=0),"N.M.",IF(ABS(H34/G34)>=10,"N.M.",H34/(-G34)))),IF(H34=0,0,IF(OR(G34=0,F34=0),"N.M.",IF(ABS(H34/G34)>=10,"N.M.",H34/G34)))) -> 0 | K34: 0 | L34: 0 | M34: =+K34-L34 -> 0 | N34: =IF(L34<0,IF(M34=0,0,IF(OR(L34=0,K34=0),"N.M.",IF(ABS(M34/L34)>=10,"N.M.",M34/(-L34)))),IF(M34=0,0,IF(OR(L34=0,K34=0),"N.M.",IF(ABS(M34/L34)>=10,"N.M.",M34/L34)))) -> 0 | Q34: 0 | R34: 0 | S34: =+Q34-R34 -> 0 | T34: =IF(R34<0,IF(S34=0,0,IF(OR(R34=0,Q34=0),"N.M.",IF(ABS(S34/R34)>=10,"N.M.",S34/(-R34)))),IF(S34=0,0,IF(OR(R34=0,Q34=0),"N.M.",IF(ABS(S34/R34)>=10,"N.M.",S34/R34)))) -> 0 | V34: 0 | W34: -16103.08 | X34: =+V34-W34 -> 16103.08 | Y34: =IF(W34<0,IF(X34=0,0,IF(OR(W34=0,V34=0),"N.M.",IF(ABS(X34/W34)>=10,"N.M.",X34/(-W34)))),IF(X34=0,0,IF(OR(W34=0,V34=0),"N.M.",IF(ABS(X34/W34)>=10,"N.M.",X34/W34)))) -> N.M.
A35: %,FACCOUNT,X,TGL_FERC_ACCT,N5020 | B35: Line 6 | C35: (502) Steam Expenses | F35: 665383.76 | G35: 392085.41 | H35: =+F35-G35 -> 273298.35 | I35: =IF(G35<0,IF(H35=0,0,IF(OR(G35=0,F35=0),"N.M.",IF(ABS(H35/G35)>=10,"N.M.",H35/(-G35)))),IF(H35=0,0,IF(OR(G35=0,F35=0),"N.M.",IF(ABS(H35/G35)>=10,"N.M.",H35/G35)))) -> 0.6970377959 | K35: 4284217.99 | L35: 3942178.89 | M35: =+K35-L35 -> 342039.1 | N35: =IF(L35<0,IF(M35=0,0,IF(OR(L35=0,K35=0),"N.M.",IF(ABS(M35/L35)>=10,"N.M.",M35/(-L35)))),IF(M35=0,0,IF(OR(L35=0,K35=0),"N.M.",IF(ABS(M35/L35)>=10,"N.M.",M35/L35)))) -> 0.0867639723 | Q35: 1453263.07 | R35: 1080640.07 | S35: =+Q35-R35 -> 372623 | T35: =IF(R35<0,IF(S35=0,0,IF(OR(R35=0,Q35=0),"N.M.",IF(ABS(S35/R35)>=10,"N.M.",S35/(-R35)))),IF(S35=0,0,IF(OR(R35=0,Q35=0),"N.M.",IF(ABS(S35/R35)>=10,"N.M.",S35/R35)))) -> 0.344816938 | V35: 5395282.19 | W35: 4765274.62 | X35: =+V35-W35 -> 630007.57 | Y35: =IF(W35<0,IF(X35=0,0,IF(OR(W35=0,V35=0),"N.M.",IF(ABS(X35/W35)>=10,"N.M.",X35/(-W35)))),IF(X35=0,0,IF(OR(W35=0,V35=0),"N.M.",IF(ABS(X35/W35)>=10,"N.M.",X35/W35)))) -> 0.13220803
A36: %,FACCOUNT,X,TGL_FERC_ACCT,N5030 | B36: Line 7 | C36: (503) Steam from Other Sources | F36: 0 | G36: 0 | H36: =+F36-G36 -> 0 | I36: =IF(G36<0,IF(H36=0,0,IF(OR(G36=0,F36=0),"N.M.",IF(ABS(H36/G36)>=10,"N.M.",H36/(-G36)))),IF(H36=0,0,IF(OR(G36=0,F36=0),"N.M.",IF(ABS(H36/G36)>=10,"N.M.",H36/G36)))) -> 0 | K36: 0 | L36: 0 | M36: =+K36-L36 -> 0 | N36: =IF(L36<0,IF(M36=0,0,IF(OR(L36=0,K36=0),"N.M.",IF(ABS(M36/L36)>=10,"N.M.",M36/(-L36)))),IF(M36=0,0,IF(OR(L36=0,K36=0),"N.M.",IF(ABS(M36/L36)>=10,"N.M.",M36/L36)))) -> 0 | Q36: 0 | R36: 0 | S36: =+Q36-R36 -> 0 | T36: =IF(R36<0,IF(S36=0,0,IF(OR(R36=0,Q36=0),"N.M.",IF(ABS(S36/R36)>=10,"N.M.",S36/(-R36)))),IF(S36=0,0,IF(OR(R36=0,Q36=0),"N.M.",IF(ABS(S36/R36)>=10,"N.M.",S36/R36)))) -> 0 | V36: 0 | W36: 0 | X36: =+V36-W36 -> 0 | Y36: =IF(W36<0,IF(X36=0,0,IF(OR(W36=0,V36=0),"N.M.",IF(ABS(X36/W36)>=10,"N.M.",X36/(-W36)))),IF(X36=0,0,IF(OR(W36=0,V36=0),"N.M.",IF(ABS(X36/W36)>=10,"N.M.",X36/W36)))) -> 0
A37: %,R,FACCOUNT,X,TGL_FERC_ACCT,N5040 | B37: Line 8 | C37: (Less) (504) Steam Transferred-Cr. | F37: 0 | G37: 0 | H37: =+F37-G37 -> 0 | I37: =IF(G37<0,IF(H37=0,0,IF(OR(G37=0,F37=0),"N.M.",IF(ABS(H37/G37)>=10,"N.M.",H37/(-G37)))),IF(H37=0,0,IF(OR(G37=0,F37=0),"N.M.",IF(ABS(H37/G37)>=10,"N.M.",H37/G37)))) -> 0 | K37: 0 | L37: 0 | M37: =+K37-L37 -> 0 | N37: =IF(L37<0,IF(M37=0,0,IF(OR(L37=0,K37=0),"N.M.",IF(ABS(M37/L37)>=10,"N.M.",M37/(-L37)))),IF(M37=0,0,IF(OR(L37=0,K37=0),"N.M.",IF(ABS(M37/L37)>=10,"N.M.",M37/L37)))) -> 0 | Q37: 0 | R37: 0 | S37: =+Q37-R37 -> 0 | T37: =IF(R37<0,IF(S37=0,0,IF(OR(R37=0,Q37=0),"N.M.",IF(ABS(S37/R37)>=10,"N.M.",S37/(-R37)))),IF(S37=0,0,IF(OR(R37=0,Q37=0),"N.M.",IF(ABS(S37/R37)>=10,"N.M.",S37/R37)))) -> 0 | V37: 0 | W37: 0 | X37: =+V37-W37 -> 0 | Y37: =IF(W37<0,IF(X37=0,0,IF(OR(W37=0,V37=0),"N.M.",IF(ABS(X37/W37)>=10,"N.M.",X37/(-W37)))),IF(X37=0,0,IF(OR(W37=0,V37=0),"N.M.",IF(ABS(X37/W37)>=10,"N.M.",X37/W37)))) -> 0
A38: %,V5050000 | B38: 5050000 | C38: Electric Expenses | F38: 4963.2 | G38: 5479.62 | H38: =+F38-G38 -> -516.42 | I38: =IF(G38<0,IF(H38=0,0,IF(OR(G38=0,F38=0),"N.M.",IF(ABS(H38/G38)>=10,"N.M.",H38/(-G38)))),IF(H38=0,0,IF(OR(G38=0,F38=0),"N.M.",IF(ABS(H38/G38)>=10,"N.M.",H38/G38)))) -> -0.09424376143 | K38: 68091.36 | L38: 35702.5 | M38: =+K38-L38 -> 32388.86 | N38: =IF(L38<0,IF(M38=0,0,IF(OR(L38=0,K38=0),"N.M.",IF(ABS(M38/L38)>=10,"N.M.",M38/(-L38)))),IF(M38=0,0,IF(OR(L38=0,K38=0),"N.M.",IF(ABS(M38/L38)>=10,"N.M.",M38/L38)))) -> 0.9071874519 | Q38: 21652.95 | R38: 10738.77 | S38: =+Q38-R38 -> 10914.18 | T38: =IF(R38<0,IF(S38=0,0,IF(OR(R38=0,Q38=0),"N.M.",IF(ABS(S38/R38)>=10,"N.M.",S38/(-R38)))),IF(S38=0,0,IF(OR(R38=0,Q38=0),"N.M.",IF(ABS(S38/R38)>=10,"N.M.",S38/R38)))) -> 1.016334273 | V38: 76809.07 | W38: 38644.36 | X38: =+V38-W38 -> 38164.71 | Y38: =IF(W38<0,IF(X38=0,0,IF(OR(W38=0,V38=0),"N.M.",IF(ABS(X38/W38)>=10,"N.M.",X38/(-W38)))),IF(X38=0,0,IF(OR(W38=0,V38=0),"N.M.",IF(ABS(X38/W38)>=10,"N.M.",X38/W38)))) -> 0.9875880982
A39: %,FACCOUNT,X,TGL_FERC_ACCT,N5050 | B39: Line 9 | C39: (505) Electric Expenses | F39: 4963.2 | G39: 5479.62 | H39: =+F39-G39 -> -516.42 | I39: =IF(G39<0,IF(H39=0,0,IF(OR(G39=0,F39=0),"N.M.",IF(ABS(H39/G39)>=10,"N.M.",H39/(-G39)))),IF(H39=0,0,IF(OR(G39=0,F39=0),"N.M.",IF(ABS(H39/G39)>=10,"N.M.",H39/G39)))) -> -0.09424376143 | K39: 68091.36 | L39: 35702.5 | M39: =+K39-L39 -> 32388.86 | N39: =IF(L39<0,IF(M39=0,0,IF(OR(L39=0,K39=0),"N.M.",IF(ABS(M39/L39)>=10,"N.M.",M39/(-L39)))),IF(M39=0,0,IF(OR(L39=0,K39=0),"N.M.",IF(ABS(M39/L39)>=10,"N.M.",M39/L39)))) -> 0.9071874519 | Q39: 21652.95 | R39: 10738.77 | S39: =+Q39-R39 -> 10914.18 | T39: =IF(R39<0,IF(S39=0,0,IF(OR(R39=0,Q39=0),"N.M.",IF(ABS(S39/R39)>=10,"N.M.",S39/(-R39)))),IF(S39=0,0,IF(OR(R39=0,Q39=0),"N.M.",IF(ABS(S39/R39)>=10,"N.M.",S39/R39)))) -> 1.016334273 | V39: 76809.07 | W39: 38644.36 | X39: =+V39-W39 -> 38164.71 | Y39: =IF(W39<0,IF(X39=0,0,IF(OR(W39=0,V39=0),"N.M.",IF(ABS(X39/W39)>=10,"N.M.",X39/(-W39)))),IF(X39=0,0,IF(OR(W39=0,V39=0),"N.M.",IF(ABS(X39/W39)>=10,"N.M.",X39/W39)))) -> 0.9875880982
